Workbook

Sheet objekte (hidden)
B1: =COUNT(D7:D1001) -> 174 | H1: =COUNTA(I1:I15) -> 9 | I1: Datenbank | J1: =MATCH(I1,$B$7:$B$501,0) -> 1 | K1: =J1+6 -> 7 | L1: =K1-1+COUNTIF($B$7:$B$501,"="&I1) -> 15 | N1: Kopie O-T | O1: Blatt | P1: Name | Q1: L | R1: T | S1: W | T1: H | Z1: ActiveX | AA1: =COUNT(AG4:AG53) -> 17 | AK1: =COUNT(AM4:AM33) -> 13
I2: Turnierstatistik | J2: 10 | K2: 16 | L2: 35 | AE2: Zelle Li | AF2: Zelle O | AK2: TIPPABGABE | AL2: Zelle Li | AM2: Zelle O
I3: Tippspiel | J3: 30 | K3: 36 | L3: 56 | AA3: Cobos | AB3: Blatt | AC3: W | AD3: H | AE3: Spalte | AF3: Zeile | AG3: Offset X | AH3: Offset Y | AL3: Spalte | AM3: Zeile | AN3: Offset X | AO3: Offset Y
I4: Tippabgabe | J4: 51 | K4: 57 | L4: 113 | AA4: nav | AB4: Datenbank | AC4: 12.75 | AD4: 12.75 | AE4: b2 | AF4: b2 | AG4: 5 | AH4: 0 | AK4: but_print | AL4: ax | AM4: 21 | AN4: 7 | AO4: 4
I5: Ranglisten | J5: 108 | K5: 114 | L5: 118 | AA5: nav | AB5: Turnierstatistik | AC5: 12.75 | AD5: 12.75 | AE5: a1 | AF5: a1 | AG5: 3 | AH5: 3 | AK5: but_msp1 | AL5: ao | AM5: 21 | AN5: 0 | AO5: 4
B6: Blatt | C6: Name | D6: L | E6: T | F6: W | G6: H | I6: EM 2024 XXL | J6: 113 | K6: 119 | L6: 130 | AA6: nav | AB6: Tippspiel | AC6: 12.75 | AD6: 12.75 | AE6: l11 | AF6: l11 | AG6: 0 | AH6: 0 | AK6: but_settings | AL6: am | AM6: 21 | AN6: 0 | AO6: 4
B7: Datenbank | C7: wahl_daba | D7: 149.25 | E7: 5.25 | F7: 144.75 | G7: 18 | I7: QUALIFIKATION | J7: 125 | K7: 131 | L7: 131 | AA7: nav | AB7: Tippabgabe | AC7: 12.75 | AD7: 12.75 | AE7: t21 | AF7: t21 | AG7: 1 | AH7: 5 | AK7: but_impexp | AL7: ar | AM7: 21 | AN7: -4 | AO7: 4
B8: Datenbank | C8: wahl_turnier | D8: 309.75 | E8: 5.25 | F8: 196.5 | G8: 18 | I8: Ergebnisse | J8: 126 | K8: 132 | L8: 150 | AA8: nav | AB8: Ranglisten | AC8: 12.75 | AD8: 12.75 | AE8: e7 | AF8: e7 | AG8: 3 | AH8: 1 | AK8: but_quit | AL8: bb | AM8: 21 | AN8: 0 | AO8: 2
B9: Datenbank | C9: nav | D9: 5.25 | E9: 7.5 | F9: 12.75 | G9: 12.75 | I9: Tippstatistik | J9: 145 | K9: 151 | L9: 180 | AA9: nav | AB9: EM 2024 XXL | AC9: 12.75 | AD9: 12.75 | AE9: d3 | AF9: d3 | AG9: 5 | AH9: 0 | AK9: but_reload | AL9: ah | AM9: 27 | AN9: 0 | AO9: 4
B10: Datenbank | C10: txt_daba | D10: 27 | E10: 7.5 | F10: 115.5 | G10: 13.5 | AA10: nav | AB10: QUALIFIKATION | AC10: 12.75 | AD10: 12.75 | AE10: b1 | AF10: b1 | AG10: 0 | AH10: 0 | AK10: but_showhint | AL10: au | AM10: 21 | AN10: -4 | AO10: 4
B11: Datenbank | C11: but_nextt | D11: 762.75 | E11: 93.75 | F11: 33.75 | G11: 17.25 | AA11: nav | AB11: Ergebnisse | AC11: 12.75 | AD11: 12.75 | AE11: g7 | AF11: g7 | AG11: 5 | AH11: -6 | AK11: but_logout | AL11: aa | AM11: 27 | AN11: 0 | AO11: 4
B12: Datenbank | C12: but_prevt | D12: 222 | E12: 93.75 | F12: 33.75 | G12: 17.25 | AA12: kk_allg | AB12: ergebnisse | AE12: w8 | AF12: w8 | AG12: 5 | AH12: 2 | AK12: but_kwmsp | AL12: aa | AM12: 27 | AN12: 19 | AO12: 5
B13: Datenbank | C13: but_showts | D13: 557.25 | E13: 6 | F13: 135 | G13: 15.75 | AA13: kk_akt | AB13: ergebnisse | AE13: aj8 | AF13: aj8 | AG13: 5 | AH13: 2 | AK13: kk_kopaarungen | AL13: u | AM13: 92 | AN13: 8 | AO13: 2
B14: Datenbank | C14: but_showts2 | D14: 331.5 | E14: 6.75 | F14: 138.75 | G14: 15 | AA14: teamwahl | AB14: turnierstatistik | AC14: 166 | AD14: 16.5 | AE14: df194 | AF14: df194 | AG14: -3 | AH14: 2 | AK14: but_tabkorr | AL14: ap | AM14: 27 | AN14: 0 | AO14: 4
B15: Datenbank | C15: but_showueb | D15: 822 | E15: 6 | F15: 123 | G15: 15.75 | AA15: auswahl_sd | AB15: turnierstatistik | AC15: 360 | AD15: 18.75 | AE15: eq247 | AF15: eq247 | AG15: 0 | AH15: 0 | AK15: pic_txtko | AL15: t | AM15: 92 | AN15: 5 | AO15: 4
B16: Turnierstatistik | C16: auswahl_sd | D16: 783 | E16: 458.25 | F16: 360 | G16: 18.75 | AA16: wahl_stats | AB16: tippspiel | AC16: 160 | AD16: 17.25 | AE16: t14 | AF16: t14 | AG16: 5 | AH16: -2 | AK16: pic_txterg | AL16: av | AM16: 21 | AN16: 3 | AO16: 4
B17: Turnierstatistik | C17: teamwahl | D17: 777.75 | E17: 463.5 | F17: 165.75 | G17: 16.5 | AA17: wahl_sort | AB17: tippspiel | AC17: 220 | AD17: 17.25 | AE17: ag14 | AF17: ag14 | AG17: 0 | AH17: -2
B18: Turnierstatistik | C18: wahl_but1 | D18: 12 | E18: 15 | F18: 84 | G18: 28.5 | AA18: quickselect_msp | AB18: tippspiel | AC18: 14.25 | AD18: 14.25 | AE18: r24 | AF18: r24 | AG18: 90 | AH18: 5
B19: Turnierstatistik | C19: wahl_but2 | D19: 12 | E19: 54 | F19: 84 | G19: 28.5 | AA19: rangwahl | AB19: ranglisten | AC19: 205 | AD19: 17.25 | AE19: r9 | AF19: r9 | AG19: 2 | AH19: 6
B20: Turnierstatistik | C20: wahl_but3 | D20: 12 | E20: 93.75 | F20: 84 | G20: 28.5 | AA20: mspselect | AB20: ranglisten | AC20: 9.75 | AD20: 9.75 | AE20: g16 | AF20: g16 | AG20: -12 | AH20: 1
B21: Turnierstatistik | C21: wahl_but4 | D21: 12 | E21: 172.5 | F21: 84 | G21: 28.5 | AB21: tippstatistik
B22: Turnierstatistik | C22: wahl_but5 | D22: 12 | E22: 132.75 | F22: 84 | G22: 28.5 | AB22: tippstatistik
B23: Turnierstatistik | C23: wahl_but6 | D23: 12 | E23: 212.25 | F23: 84 | G23: 28.5 | AB23: tippstatistik
B24: Turnierstatistik | C24: show_treffer_but | D24: 7.5 | E24: 318.75 | F24: 93 | G24: 15.75 | AB24: tippstatistik
B25: Turnierstatistik | C25: show_allteams_but | D25: 7.5 | E25: 271.5 | F25: 93 | G25: 15.75 | AB25: tippstatistik
B26: Turnierstatistik | C26: show_gestab2_but | D26: 7.5 | E26: 342 | F26: 93 | G26: 15.75 | AB26: tippstatistik
B27: Turnierstatistik | C27: show_gestab1_but | D27: 7.5 | E27: 294.75 | F27: 93 | G27: 15.75 | AB27: tippstatistik
B28: Turnierstatistik | C28: show_schieri_but | D28: 7.5 | E28: 366 | F28: 93 | G28: 15.75 | AB28: tippstatistik
B29: Turnierstatistik | C29: show_kader_but | D29: 7.5 | E29: 396.75 | F29: 93 | G29: 15.75 | AB29: tippstatistik
B30: Turnierstatistik | C30: trenner | D30: 9.75 | E30: 256.5 | F30: 90.75 | G30: 0 | AB30: tippstatistik
B31: Turnierstatistik | C31: show_zusch_but | D31: 783 | E31: 460.5 | F31: 93 | G31: 27.75 | AB31: tippstatistik
B32: Turnierstatistik | C32: show_bilanz_but | D32: 783 | E32: 460.5 | F32: 127.5 | G32: 15.75 | AB32: tippstatistik
B33: Turnierstatistik | C33: show_opt_but | D33: 7.5 | E33: 419.25 | F33: 93 | G33: 15.75 | AB33: tippstatistik
B34: Turnierstatistik | C34: edit_sd_but | D34: 7.5 | E34: 441.75 | F34: 93 | G34: 15.75 | AB34: tippstatistik
B35: Turnierstatistik | C35: nav | D35: 3.75 | E35: 3 | F35: 12.75 | G35: 12.75 | AB35: tippstatistik
B36: Tippspiel | C36: but1tueb | D36: 5.25 | E36: 56 | F36: 59.25 | G36: 14.25 | AB36: tippstatistik
B37: Tippspiel | C37: but2tueb | D37: 68.75 | E37: 56 | F37: 59.25 | G37: 14.25 | AB37: tippabgabe
B38: Tippspiel | C38: but3tueb | D38: 133 | E38: 56 | F38: 59.25 | G38: 14.25 | AB38: tippabgabe
B39: Tippspiel | C39: but4tueb | D39: 197.25 | E39: 56 | F39: 59.25 | G39: 14.25 | AB39: tippabgabe
B40: Tippspiel | C40: nav_gruru | D40: 0 | E40: 64.5 | F40: 2.25 | G40: 0.75 | AB40: tippabgabe
B41: Tippspiel | C41: nav_koru | D41: 0 | E41: 64.5 | F41: 2.25 | G41: 0.75 | AB41: tippabgabe
B42: Tippspiel | C42: wahl_sort | D42: 527.25 | E42: 57 | F42: 219.75 | G42: 17.25 | AB42: tippabgabe
B43: Tippspiel | C43: but_print | D43: 658.5 | E43: 5.25 | F43: 21 | G43: 19.5 | AB43: tippabgabe
B44: Tippspiel | C44: txttippueb | D44: 448.5 | E44: 55.75 | F44: 67.5 | G44: 15 | AB44: tippabgabe
B45: Tippspiel | C45: but_msp1 | D45: 72 | E45: 24.75 | F45: 28.5 | G45: 24.75 | AB45: tippabgabe
B46: Tippspiel | C46: but_msp | D46: 103.5 | E46: 29.25 | F46: 30.75 | G46: 14.25 | AB46: tippabgabe
B47: Tippspiel | C47: but_settings | D47: 31.5 | E47: 24.75 | F47: 24.75 | G47: 24.75
B48: Tippspiel | C48: but_ta | D48: 150.75 | E48: 24.75 | F48: 22.5 | G48: 22.5
B49: Tippspiel | C49: but_impexp | D49: 178.5 | E49: 24.75 | F49: 22.5 | G49: 22.5
B50: Tippspiel | C50: but_rangli | D50: 226.5 | E50: 25.5 | F50: 22.5 | G50: 23.25
B51: Tippspiel | C51: but_rules | D51: 624 | E51: 3 | F51: 24 | G51: 24
B52: Tippspiel | C52: quickselect_msp | D52: 244.5 | E52: 167.25 | F52: 14.25 | G52: 14.25
B53: Tippspiel | C53: but_del | D53: 591.75 | E53: 3.75 | F53: 22.5 | G53: 22.5
B54: Tippspiel | C54: wahl_stats | D54: 287.25 | E54: 57 | F54: 159.75 | G54: 17.25
B55: Tippspiel | C55: Picture 20 | D55: 259.5 | E55: 3.75 | F55: 12.75 | G55: 12.75
B56: Tippspiel | C56: nav | D56: 4.5 | E56: 25.5 | F56: 12.75 | G56: 12.75
B57: Tippabgabe | C57: cobo_tiptab | D57: 596.25 | E57: 113.25 | F57: 195 | G57: 18
B58: Tippabgabe | C58: cobo_ew1 | D58: 586.5 | E58: 691.5 | F58: 37.5 | G58: 16.5
B59: Tippabgabe | C59: cobo_win1 | D59: 629.25 | E59: 691.5 | F59: 37.5 | G59: 16.5
B60: Tippabgabe | C60: cobo_ew2 | D60: 586.5 | E60: 716.25 | F60: 37.5 | G60: 16.5
B61: Tippabgabe | C61: cobo_win2 | D61: 629.25 | E61: 716.25 | F61: 37.5 | G61: 16.5
B62: Tippabgabe | C62: cobo_ew3 | D62: 586.5 | E62: 741 | F62: 37.5 | G62: 16.5
B63: Tippabgabe | C63: cobo_win3 | D63: 629.25 | E63: 741 | F63: 37.5 | G63: 16.5
B64: Tippabgabe | C64: cobo_ew4 | D64: 586.5 | E64: 765.75 | F64: 37.5 | G64: 16.5
B65: Tippabgabe | C65: cobo_win4 | D65: 629.25 | E65: 765.75 | F65: 37.5 | G65: 16.5
B66: Tippabgabe | C66: cobo_ew5 | D66: 586.5 | E66: 790.5 | F66: 37.5 | G66: 16.5
B67: Tippabgabe | C67: cobo_win5 | D67: 629.25 | E67: 790.5 | F67: 37.5 | G67: 16.5
B68: Tippabgabe | C68: cobo_ew6 | D68: 586.5 | E68: 815.25 | F68: 37.5 | G68: 16.5
B69: Tippabgabe | C69: cobo_win6 | D69: 629.25 | E69: 815.25 | F69: 37.5 | G69: 16.5
B70: Tippabgabe | C70: cobo_ew7 | D70: 586.5 | E70: 840 | F70: 37.5 | G70: 16.5
B71: Tippabgabe | C71: cobo_win7 | D71: 629.25 | E71: 840 | F71: 37.5 | G71: 16.5
B72: Tippabgabe | C72: cobo_ew8 | D72: 586.5 | E72: 864.75 | F72: 37.5 | G72: 16.5
B73: Tippabgabe | C73: cobo_win8 | D73: 629.25 | E73: 864.75 | F73: 37.5 | G73: 16.5
B74: Tippabgabe | C74: cobo_ew9 | D74: 586.5 | E74: 930 | F74: 37.5 | G74: 16.5
B75: Tippabgabe | C75: cobo_win9 | D75: 629.25 | E75: 930 | F75: 37.5 | G75: 16.5
B76: Tippabgabe | C76: cobo_ew10 | D76: 586.5 | E76: 954.75 | F76: 37.5 | G76: 16.5
B77: Tippabgabe | C77: cobo_win10 | D77: 629.25 | E77: 954.75 | F77: 37.5 | G77: 16.5
B78: Tippabgabe | C78: cobo_ew11 | D78: 586.5 | E78: 979.5 | F78: 37.5 | G78: 16.5
B79: Tippabgabe | C79: cobo_win11 | D79: 629.25 | E79: 979.5 | F79: 37.5 | G79: 16.5
B80: Tippabgabe | C80: cobo_ew12 | D80: 586.5 | E80: 1004.25 | F80: 37.5 | G80: 16.5
B81: Tippabgabe | C81: cobo_win12 | D81: 629.25 | E81: 1004.25 | F81: 37.5 | G81: 16.5
B82: Tippabgabe | C82: cobo_ew13 | D82: 586.5 | E82: 1069.5 | F82: 37.5 | G82: 16.5
B83: Tippabgabe | C83: cobo_win13 | D83: 629.25 | E83: 1069.5 | F83: 37.5 | G83: 16.5
B84: Tippabgabe | C84: cobo_ew14 | D84: 586.5 | E84: 1094.25 | F84: 37.5 | G84: 16.5
B85: Tippabgabe | C85: cobo_win14 | D85: 629.25 | E85: 1094.25 | F85: 37.5 | G85: 16.5
B86: Tippabgabe | C86: cobo_ew15 | D86: 586.5 | E86: 1133.25 | F86: 37.5 | G86: 16.5
B87: Tippabgabe | C87: cobo_win15 | D87: 629.25 | E87: 1133.25 | F87: 37.5 | G87: 16.5
B88: Tippabgabe | C88: but_print | D88: 747 | E88: 3.75 | F88: 15.75 | G88: 14.25
B89: Tippabgabe | C89: but_impexp | D89: 651 | E89: 3.75 | F89: 15.75 | G89: 15.75
B90: Tippabgabe | C90: but_quit | D90: 786 | E90: 2.25 | F90: 28.5 | G90: 23.25
B91: Tippabgabe | C91: but_reload | D91: 531 | E91: 74.25 | F91: 14.25 | G91: 14.25
B92: Tippabgabe | C92: but_showhint | D92: 693.75 | E92: 3.75 | F92: 13.5 | G92: 14.25
B93: Tippabgabe | C93: selectmsp | D93: 14.25 | E93: 73.5 | F93: 217.5 | G93: 18
B94: Tippabgabe | C94: but_logout | D94: 242.25 | E94: 74.25 | F94: 16.5 | G94: 16.5
B95: Tippabgabe | C95: but_kwmsp | D95: 261 | E95: 75.75 | F95: 14.25 | G95: 14.25
B96: Tippabgabe | C96: kk_kopaarungen | D96: 31.5 | E96: 636 | F96: 616.5 | G96: 17.25
B97: Tippabgabe | C97: but_tabkorr | D97: 626.25 | E97: 74.25 | F97: 168 | G97: 14.25
B98: Tippabgabe | C98: pic_txtko | D98: 19.5 | E98: 637.5 | F98: 12 | G98: 12
B99: Tippabgabe | C99: but_save | D99: 306.75 | E99: 73.5 | F99: 213.75 | G99: 17.25
B100: Tippabgabe | C100: pic_txterg | D100: 714.75 | E100: 3.75 | F100: 14.25 | G100: 14.25
B101: Tippabgabe | C101: cobo_tsk | D101: 184.5 | E101: 1177.5 | F101: 252 | G101: 18.75
B102: Tippabgabe | C102: but_etuebernahme | D102: 798 | E102: 2456.25 | F102: 23.25 | G102: 23.25
B103: Tippabgabe | C103: but_clearet | D103: 1941.75 | E103: 2424.75 | F103: 26.25 | G103: 26.25
B104: Tippabgabe | C104: nav | D104: 15 | E104: 5.25 | F104: 12.75 | G104: 12.75
B105: Tippabgabe | C105: but_msp1 | D105: 612 | E105: 3.75 | F105: 20.25 | G105: 17.25
B106: Tippabgabe | C106: but_settings | D106: 583.5 | E106: 3.75 | F106: 17.25 | G106: 17.25
B107: Tippabgabe | C107: but_reload | D107: 531 | E107: 74.25 | F107: 14.25 | G107: 14.25
B108: Tippabgabe | C108: but_logout | D108: 242.25 | E108: 74.25 | F108: 16.5 | G108: 16.5
B109: Tippabgabe | C109: but_kwmsp | D109: 261 | E109: 75.75 | F109: 14.25 | G109: 14.25
B110: Tippabgabe | C110: kk_kopaarungen | D110: 31.5 | E110: 636 | F110: 616.5 | G110: 17.25
B111: Tippabgabe | C111: but_tabkorr | D111: 626.25 | E111: 74.25 | F111: 168 | G111: 14.25
B112: Tippabgabe | C112: pic_txtko | D112: 19.5 | E112: 637.5 | F112: 12 | G112: 12
B113: Tippabgabe | C113: but_save | D113: 306.75 | E113: 73.5 | F113: 198 | G113: 18
B114: Ranglisten | C114: mspselect | D114: 210 | E114: 90 | F114: 9.75 | G114: 9.75
B115: Ranglisten | C115: nav | D115: 7.5 | E115: 0.75 | F115: 12.75 | G115: 12.75
B116: Ranglisten | C116: rangwahl | D116: 462.75 | E116: 21 | F116: 204.75 | G116: 17.25
B117: Ranglisten | C117: but_zurueck | D117: 895.5 | E117: 8.25 | F117: 15.75 | G117: 15
B118: Ranglisten | C118: icon7 | D118: 854.25 | E118: 3.75 | F118: 20.25 | G118: 20.25
B119: EM 2024 XXL | C119: nav | D119: 23.25 | E119: 11.25 | F119: 12.75 | G119: 12.75
B120: EM 2024 XXL | C120: but_ergupdate | D120: 774 | E120: 249.75 | F120: 133.5 | G120: 28.5
B121: EM 2024 XXL | C121: but_aktdat | D121: 774 | E121: 286 | F121: 133.5 | G121: 28.5
B122: EM 2024 XXL | C122: but_loadakt | D122: 762 | E122: 222 | F122: 157.5 | G122: 21
B123: EM 2024 XXL | C123: but_showdoc | D123: 790.5 | E123: 398.25 | F123: 103.5 | G123: 20.25
B124: EM 2024 XXL | C124: but_deldat | D124: 775.5 | E124: 362 | F124: 133.5 | G124: 28.5
B125: EM 2024 XXL | C125: but_showsettings | D125: 23.25 | E125: 332 | F125: 150 | G125: 28.5
B126: EM 2024 XXL | C126: but_showfaq | D126: 790.5 | E126: 428.25 | F126: 103.5 | G126: 20.25
B127: EM 2024 XXL | C127: but_sendmail | D127: 775.5 | E127: 456 | F127: 133.5 | G127: 28.5
B128: EM 2024 XXL | C128: but_delkompo | D128: 23.25 | E128: 372 | F128: 150 | G128: 28.5
B129: EM 2024 XXL | C129: but_korr | D129: 775.5 | E129: 328 | F129: 133.5 | G129: 28.5
B130: EM 2024 XXL | C130: but_mail | D130: 915 | E130: 461 | F130: 19 | G130: 19
B131: QUALIFIKATION | C131: nav | D131: 3 | E131: 3 | F131: 12.75 | G131: 12.75
B132: Ergebnisse | C132: flag9 | D132: 463.5 | E132: 802.5 | F132: 36 | G132: 24
B133: Ergebnisse | C133: flag10 | D133: 707.25 | E133: 802.5 | F133: 36 | G133: 24
B134: Ergebnisse | C134: flag11 | D134: 951 | E134: 802.5 | F134: 36 | G134: 24
B135: Ergebnisse | C135: flag12 | D135: 1194.75 | E135: 802.5 | F135: 36 | G135: 24
B136: Ergebnisse | C136: flag13 | D136: 651 | E136: 907.5 | F136: 54 | G136: 36
B137: Ergebnisse | C137: flag14 | D137: 988.5 | E137: 907.5 | F137: 54 | G137: 36
B138: Ergebnisse | C138: flag1 | D138: 410.25 | E138: 695.25 | F138: 30 | G138: 19.5
B139: Ergebnisse | C139: flag2 | D139: 522.75 | E139: 695.25 | F139: 30 | G139: 19.5
B140: Ergebnisse | C140: flag3 | D140: 654 | E140: 695.25 | F140: 30 | G140: 19.5
B141: Ergebnisse | C141: flag4 | D141: 766.5 | E141: 695.25 | F141: 30 | G141: 19.5
B142: Ergebnisse | C142: flag5 | D142: 897.75 | E142: 695.25 | F142: 30 | G142: 19.5
B143: Ergebnisse | C143: flag6 | D143: 1010.25 | E143: 695.25 | F143: 30 | G143: 19.5
B144: Ergebnisse | C144: flag7 | D144: 1141.5 | E144: 695.25 | F144: 30 | G144: 19.5
B145: Ergebnisse | C145: flag8 | D145: 1254 | E145: 695.25 | F145: 30 | G145: 19.5
B146: Ergebnisse | C146: but_tabkorr | D146: 865.5 | E146: 452 | F146: 114 | G146: 14.25
B147: Ergebnisse | C147: kk_allg | D147: 291 | E147: 23.25 | F147: 244.5 | G147: 17.25
B148: Ergebnisse | C148: kk_akt | D148: 534.75 | E148: 23.25 | F148: 328.5 | G148: 17.25
B149: Ergebnisse | C149: unlockerg | D149: 867 | E149: 3.75 | F149: 146.25 | G149: 17.25
B150: Ergebnisse | C150: nav | D150: 5.25 | E150: 4.5 | F150: 12.75 | G150: 12.75
B151: Tippstatistik | C151: nav | D151: 12 | E151: 6.75 | F151: 12 | G151: 12
B152: Tippstatistik | C152: diatasp1 | D152: 12 | E152: 357.75 | F152: 275.25 | G152: 174
B153: Tippstatistik | C153: diatages | D153: 355.5 | E153: 355.5 | F153: 269.25 | G153: 174
B154: Tippstatistik | C154: diatasp2 | D154: 684.75 | E154: 355.5 | F154: 272.25 | G154: 174
B155: Tippstatistik | C155: but_ausgdiakat | D155: 878.25 | E155: 330 | F155: 82.5 | G155: 14.25
B156: Tippstatistik | C156: tsbut5 | D156: 664.5 | E156: 592.5 | F156: 81.75 | G156: 15
B157: Tippstatistik | C157: tsbut6 | D157: 835.5 | E157: 592.5 | F157: 88.5 | G157: 15
B158: Tippstatistik | C158: dia_tippstats | D158: 9.75 | E158: 728.25 | F158: 954 | G158: 321.75
B159: Tippstatistik | C159: CBox1 | D159: 136.5 | E159: 1056.75 | F159: 24 | G159: 17.25
B160: Tippstatistik | C160: CBox2 | D160: 337.5 | E160: 1056.75 | F160: 24 | G160: 17.25
B161: Tippstatistik | C161: CBox3 | D161: 539.25 | E161: 1056.75 | F161: 24 | G161: 17.25
B162: Tippstatistik | C162: CBox4 | D162: 739.5 | E162: 1056.75 | F162: 24 | G162: 17.25
B163: Tippstatistik | C163: opbts1 | D163: 212.25 | E163: 1080.75 | F163: 70.5 | G163: 17.25
B164: Tippstatistik | C164: opbts2 | D164: 108 | E164: 1080.75 | F164: 84 | G164: 17.25
B165: Tippstatistik | C165: autotop5 | D165: 357 | E165: 1080.75 | F165: 143.25 | G165: 17.25
B166: Tippstatistik | C166: CBox5 | D166: 940.5 | E166: 1056.75 | F166: 24 | G166: 17.25
B167: Tippstatistik | C167: but_etdetails | D167: 665.25 | E167: 652.5 | F167: 176.25 | G167: 15
B168: Tippstatistik | C168: but_matches | D168: 782.25 | E168: 285 | F168: 184.5 | G168: 15
B169: Tippstatistik | C169: but_close_stats | D169: 950.25 | E169: 4.5 | F169: 18 | G169: 19.5
B170: Tippstatistik | C170: but_ausgdiaverl | D170: 859.5 | E170: 1083 | F170: 107.25 | G170: 14.25
B171: Tippstatistik | C171: ComboBox3 | D171: 375 | E171: 327.75 | F171: 230.25 | G171: 18
B172: Tippstatistik | C172: cobox1 | D172: 7.5 | E172: 1058.25 | F172: 129 | G172: 18
B173: Tippstatistik | C173: cobox2 | D173: 208.5 | E173: 1058.25 | F173: 129 | G173: 18
B174: Tippstatistik | C174: cobox3 | D174: 410.25 | E174: 1058.25 | F174: 129 | G174: 18
B175: Tippstatistik | C175: cobox4 | D175: 611.25 | E175: 1058.25 | F175: 129 | G175: 18
B176: Tippstatistik | C176: cobox5 | D176: 813 | E176: 1058.25 | F176: 129 | G176: 18
B177: Tippstatistik | C177: ComboBox1 | D177: 47.25 | E177: 541.5 | F177: 192.75 | G177: 18
B178: Tippstatistik | C178: ComboBox2 | D178: 738 | E178: 540 | F178: 192.75 | G178: 18
B179: Tippstatistik | C179: but_rangli | D179: 904.5 | E179: 6.75 | F179: 16.5 | G179: 17.25
B180: Tippstatistik | C180: but_etrangl | D180: 665.25 | E180: 673.5 | F180: 176.25 | G180: 15

Sheet tabber (hidden)
C1: Index= Eintrag in der Liste aller Teams (lfd. Nr.) | H1: EDIT
C2: Nr = Nummer in der Gruppe | H2: Resultat
A3: Tabber
A4: A | B4: Paarungen | G4: Resultat | K4: Punkte | Q4: =SUM(Q6:Q11) -> 0 | AA4: B | AB4: Paarungen | AG4: Resultat | AK4: Punkte | AQ4: =SUM(AQ6:AQ11) -> 0
A5: Nr | D5: HT | E5: AT | F5: HT2 | G5: ErgH | H5: ErgA | I5: ErgH2 | K5: PH | L5: PA | M5: DifH | N5: DifA | O5: WertH | P5: WertA | Q5: Spiele | S5: Resultat | AA5: Nr | AD5: HT | AE5: AT | AF5: HT2 | AG5: ErgH | AH5: ErgA | AI5: ErgH2 | AK5: PH | AL5: PA | AM5: DifH | AN5: DifA | AO5: WertH | AP5: WertA | AQ5: Spiele | AS5: Resultat
A6: 1 | B6: =D6&"#"&E6 -> 1#2 | C6: =E6&"#"&D6 -> 2#1 | D6: =VLOOKUP(J6,daten!$D$49:$J$84,6,FALSE) -> 1 | E6: =VLOOKUP(J6,daten!$D$49:$K$84,7,FALSE) -> 2 | F6: =D6 -> 1 | G6: =VLOOKUP(J6,ERGEBNISSE!$C$12:$F$47,3,FALSE) ->  | H6: =VLOOKUP(J6,ERGEBNISSE!$C$12:$F$47,4,FALSE) ->  | I6: =IF(LEN(G6)>0,G6,"") ->  | J6: =A4&A6 -> A1 | K6: =IF(COUNT(G6:H6)<>2,0,IF(G6>H6,3,IF(H6>G6,0,1))) -> 0 | L6: =IF(COUNT(G6:H6)<>2,0,IF(G6>H6,0,IF(H6>G6,3,1))) -> 0 | M6: =IF(COUNT(G6:H6)<>2,0,G6-H6) -> 0 | N6: =IF(COUNT(G6:H6)<>2,0,H6-I6) -> 0 | O6: =K6*1000+M6+IF(LEN(G6)=0,0,G6/1000) -> 0 | P6: 0 | Q6: =IF(COUNT(G6:H6)=2,1,0) -> 0 | R6: =Q6 -> 0 | S6: =IF(Q6=0,"X",IF(K6=3,"S",IF(K6=0,"N","U")))&D6 -> X1 | T6: X2 | AA6: 1 | AB6: =AD6&"#"&AE6 -> 5#6 | AC6: =AE6&"#"&AD6 -> 6#5 | AD6: =VLOOKUP(AJ6,daten!$D$49:$J$84,6,FALSE) -> 5 | AE6: =VLOOKUP(AJ6,daten!$D$49:$K$84,7,FALSE) -> 6 | AF6: =AD6 -> 5 | AG6: =VLOOKUP(AJ6,ERGEBNISSE!$C$12:$F$47,3,FALSE) ->  | AH6: =VLOOKUP(AJ6,ERGEBNISSE!$C$12:$F$47,4,FALSE) ->  | AI6: =IF(LEN(AG6)>0,AG6,"") ->  | AJ6: =AA4&AA6 -> B1 | AK6: =IF(COUNT(AG6:AH6)<>2,0,IF(AG6>AH6,3,IF(AH6>AG6,0,1))) -> 0 | AL6: =IF(COUNT(AG6:AH6)<>2,0,IF(AG6>AH6,0,IF(AH6>AG6,3,1))) -> 0 | AM6: =IF(COUNT(AG6:AH6)<>2,0,AG6-AH6) -> 0 | AN6: =IF(COUNT(AG6:AH6)<>2,0,AH6-AI6) -> 0 | AO6: =AK6*1000+AM6+IF(LEN(AG6)=0,0,AG6/1000) -> 0 | AP6: 0 | AQ6: =IF(COUNT(AG6:AH6)=2,1,0) -> 0 | AR6: =AQ6 -> 0 | AS6: =IF(AQ6=0,"X",IF(AK6=3,"S",IF(AK6=0,"N","U")))&AD6 -> X5 | AT6: X6
A7: 2 | B7: 3#4 | C7: 4#3 | D7: =VLOOKUP(J7,daten!$D$49:$J$84,6,FALSE) -> 3 | E7: =VLOOKUP(J7,daten!$D$49:$K$84,7,FALSE) -> 4 | F7: 3 | G7: =VLOOKUP(J7,ERGEBNISSE!$C$12:$F$47,3,FALSE) ->  | H7: =VLOOKUP(J7,ERGEBNISSE!$C$12:$F$47,4,FALSE) ->  | J7: =A4&A7 -> A2 | K7: 0 | L7: 0 | M7: 0 | N7: 0 | O7: 0 | P7: 0 | Q7: 0 | R7: 0 | S7: X3 | T7: X4 | AA7: 2 | AB7: 7#8 | AC7: 8#7 | AD7: =VLOOKUP(AJ7,daten!$D$49:$J$84,6,FALSE) -> 7 | AE7: =VLOOKUP(AJ7,daten!$D$49:$K$84,7,FALSE) -> 8 | AF7: 7 | AG7: =VLOOKUP(AJ7,ERGEBNISSE!$C$12:$F$47,3,FALSE) ->  | AH7: =VLOOKUP(AJ7,ERGEBNISSE!$C$12:$F$47,4,FALSE) ->  | AJ7: =AA4&AA7 -> B2 | AK7: 0 | AL7: 0 | AM7: 0 | AN7: 0 | AO7: 0 | AP7: 0 | AQ7: 0 | AR7: 0 | AS7: X7 | AT7: X8
A8: 3 | B8: 1#3 | C8: 3#1 | D8: =VLOOKUP(J8,daten!$D$49:$J$84,6,FALSE) -> 1 | E8: =VLOOKUP(J8,daten!$D$49:$K$84,7,FALSE) -> 3 | F8: 1 | G8: =VLOOKUP(J8,ERGEBNISSE!$C$12:$F$47,3,FALSE) ->  | H8: =VLOOKUP(J8,ERGEBNISSE!$C$12:$F$47,4,FALSE) ->  | J8: =A4&A8 -> A3 | K8: 0 | L8: 0 | M8: 0 | N8: 0 | O8: 0 | P8: 0 | Q8: 0 | R8: 0 | S8: X1 | T8: X3 | AA8: 3 | AB8: 6#8 | AC8: 8#6 | AD8: =VLOOKUP(AJ8,daten!$D$49:$J$84,6,FALSE) -> 6 | AE8: =VLOOKUP(AJ8,daten!$D$49:$K$84,7,FALSE) -> 8 | AF8: 6 | AG8: =VLOOKUP(AJ8,ERGEBNISSE!$C$12:$F$47,3,FALSE) ->  | AH8: =VLOOKUP(AJ8,ERGEBNISSE!$C$12:$F$47,4,FALSE) ->  | AJ8: =AA4&AA8 -> B3 | AK8: 0 | AL8: 0 | AM8: 0 | AN8: 0 | AO8: 0 | AP8: 0 | AQ8: 0 | AR8: 0 | AS8: X6 | AT8: X8
A9: 4 | B9: 2#4 | C9: 4#2 | D9: =VLOOKUP(J9,daten!$D$49:$J$84,6,FALSE) -> 2 | E9: =VLOOKUP(J9,daten!$D$49:$K$84,7,FALSE) -> 4 | F9: 2 | G9: =VLOOKUP(J9,ERGEBNISSE!$C$12:$F$47,3,FALSE) ->  | H9: =VLOOKUP(J9,ERGEBNISSE!$C$12:$F$47,4,FALSE) ->  | J9: =A4&A9 -> A4 | K9: 0 | L9: 0 | M9: 0 | N9: 0 | O9: 0 | P9: 0 | Q9: 0 | R9: 0 | S9: X2 | T9: X4 | AA9: 4 | AB9: 5#7 | AC9: 7#5 | AD9: =VLOOKUP(AJ9,daten!$D$49:$J$84,6,FALSE) -> 5 | AE9: =VLOOKUP(AJ9,daten!$D$49:$K$84,7,FALSE) -> 7 | AF9: 5 | AG9: =VLOOKUP(AJ9,ERGEBNISSE!$C$12:$F$47,3,FALSE) ->  | AH9: =VLOOKUP(AJ9,ERGEBNISSE!$C$12:$F$47,4,FALSE) ->  | AJ9: =AA4&AA9 -> B4 | AK9: 0 | AL9: 0 | AM9: 0 | AN9: 0 | AO9: 0 | AP9: 0 | AQ9: 0 | AR9: 0 | AS9: X5 | AT9: X7
A10: 5 | B10: 4#1 | C10: 1#4 | D10: =VLOOKUP(J10,daten!$D$49:$J$84,6,FALSE) -> 4 | E10: =VLOOKUP(J10,daten!$D$49:$K$84,7,FALSE) -> 1 | F10: 4 | G10: =VLOOKUP(J10,ERGEBNISSE!$C$12:$F$47,3,FALSE) ->  | H10: =VLOOKUP(J10,ERGEBNISSE!$C$12:$F$47,4,FALSE) ->  | J10: =A4&A10 -> A5 | K10: 0 | L10: 0 | M10: 0 | N10: 0 | O10: 0 | P10: 0 | Q10: 0 | R10: 0 | S10: X4 | T10: X1 | AA10: 5 | AB10: 6#7 | AC10: 7#6 | AD10: =VLOOKUP(AJ10,daten!$D$49:$J$84,6,FALSE) -> 6 | AE10: =VLOOKUP(AJ10,daten!$D$49:$K$84,7,FALSE) -> 7 | AF10: 6 | AG10: =VLOOKUP(AJ10,ERGEBNISSE!$C$12:$F$47,3,FALSE) ->  | AH10: =VLOOKUP(AJ10,ERGEBNISSE!$C$12:$F$47,4,FALSE) ->  | AJ10: =AA4&AA10 -> B5 | AK10: 0 | AL10: 0 | AM10: 0 | AN10: 0 | AO10: 0 | AP10: 0 | AQ10: 0 | AR10: 0 | AS10: X6 | AT10: X7
A11: 6 | B11: 2#3 | C11: 3#2 | D11: =VLOOKUP(J11,daten!$D$49:$J$84,6,FALSE) -> 2 | E11: =VLOOKUP(J11,daten!$D$49:$K$84,7,FALSE) -> 3 | F11: 2 | G11: =VLOOKUP(J11,ERGEBNISSE!$C$12:$F$47,3,FALSE) ->  | H11: =VLOOKUP(J11,ERGEBNISSE!$C$12:$F$47,4,FALSE) ->  | J11: =A4&A11 -> A6 | K11: 0 | L11: 0 | M11: 0 | N11: 0 | O11: 0 | P11: 0 | Q11: 0 | R11: 0 | S11: X2 | T11: X3 | AA11: 6 | AB11: 8#5 | AC11: 5#8 | AD11: =VLOOKUP(AJ11,daten!$D$49:$J$84,6,FALSE) -> 8 | AE11: =VLOOKUP(AJ11,daten!$D$49:$K$84,7,FALSE) -> 5 | AF11: 8 | AG11: =VLOOKUP(AJ11,ERGEBNISSE!$C$12:$F$47,3,FALSE) ->  | AH11: =VLOOKUP(AJ11,ERGEBNISSE!$C$12:$F$47,4,FALSE) ->  | AJ11: =AA4&AA11 -> B6 | AK11: 0 | AL11: 0 | AM11: 0 | AN11: 0 | AO11: 0 | AP11: 0 | AQ11: 0 | AR11: 0 | AS11: X8 | AT11: X5
N13: besserer Rang = mehr Punkte
A14: Modus | C14: TeamIdx | D14: P | E14: Treffer | F14: GTo | G14: Dif | H14: Team | I14: RangPkt | K14: Koeff | M14: Rang | N14: RangPkt | AA14: Modus | AC14: TeamIdx | AD14: P | AE14: Treffer | AF14: GTo | AG14: Dif | AH14: Team | AI14: RangPkt | AK14: Koeff | AM14: Rang | AN14: RangPkt
A15: 1 | C15: 1 | D15: =SUMIF($D$6:$E$11,"="&C15,$K$6:$L$11) -> 0 | E15: =SUMIF($D$6:$E$11,"="&$C15,$G$6:$H$11) -> 0 | F15: =E15-G15 -> 0 | G15: =SUMIF($D$6:$E$11,"="&$C15,$G$6:$H$11)-SUMIF($D$6:$E$11,"="&$C15,$H$6:$I$11) -> 0 | H15: =INDEX(teams_k,C15) -> GER | I15: =RANK(D15,$D$15:$D$18,1) -> 1 | L15: 1 | M15: =INDEX(daten!$CM$147:$CM$170,C15) -> 1 | N15: =RANK(M15,$M$15:$M$18) -> 1 | AA15: 1 | AC15: 5 | AD15: =SUMIF($AD$6:$AE$11,"="&AC15,$AK$6:$AL$11) -> 0 | AE15: =SUMIF($AD$6:$AE$11,"="&$AC15,$AG$6:$AH$11) -> 0 | AF15: =AE15-AG15 -> 0 | AG15: =SUMIF($AD$6:$AE$11,"="&$AC15,$AG$6:$AH$11)-SUMIF($AD$6:$AE$11,"="&$AC15,$AH$6:$AI$11) -> 0 | AH15: =INDEX(teams_k,AC15) -> ESP | AI15: =RANK(AD15,$AD$15:$AD$18,1) -> 1 | AL15: 1 | AM15: =INDEX(daten!$CM$147:$CM$170,AC15) -> 1 | AN15: =RANK(AM15,$AM$15:$AM$18) -> 1
C16: 2 | D16: =SUMIF($D$6:$E$11,"="&C16,$K$6:$L$11) -> 0 | E16: =SUMIF($D$6:$E$11,"="&$C16,$G$6:$H$11) -> 0 | F16: =E16-G16 -> 0 | G16: =SUMIF($D$6:$E$11,"="&$C16,$G$6:$H$11)-SUMIF($D$6:$E$11,"="&$C16,$H$6:$I$11) -> 0 | H16: =INDEX(teams_k,C16) -> SCO | I16: =RANK(D16,$D$15:$D$18,1) -> 1 | L16: 2 | M16: =INDEX(daten!$CM$147:$CM$170,C16) -> 1 | N16: =RANK(M16,$M$15:$M$18) -> 1 | AC16: 6 | AD16: =SUMIF($AD$6:$AE$11,"="&AC16,$AK$6:$AL$11) -> 0 | AE16: =SUMIF($AD$6:$AE$11,"="&$AC16,$AG$6:$AH$11) -> 0 | AF16: =AE16-AG16 -> 0 | AG16: =SUMIF($AD$6:$AE$11,"="&$AC16,$AG$6:$AH$11)-SUMIF($AD$6:$AE$11,"="&$AC16,$AH$6:$AI$11) -> 0 | AH16: =INDEX(teams_k,AC16) -> CRO | AI16: =RANK(AD16,$AD$15:$AD$18,1) -> 1 | AL16: 2 | AM16: =INDEX(daten!$CM$147:$CM$170,AC16) -> 1 | AN16: =RANK(AM16,$AM$15:$AM$18) -> 1
C17: 3 | D17: =SUMIF($D$6:$E$11,"="&C17,$K$6:$L$11) -> 0 | E17: =SUMIF($D$6:$E$11,"="&$C17,$G$6:$H$11) -> 0 | F17: =E17-G17 -> 0 | G17: =SUMIF($D$6:$E$11,"="&$C17,$G$6:$H$11)-SUMIF($D$6:$E$11,"="&$C17,$H$6:$I$11) -> 0 | H17: =INDEX(teams_k,C17) -> HUN | I17: =RANK(D17,$D$15:$D$18,1) -> 1 | L17: 3 | M17: =INDEX(daten!$CM$147:$CM$170,C17) -> 1 | N17: =RANK(M17,$M$15:$M$18) -> 1 | AC17: 7 | AD17: =SUMIF($AD$6:$AE$11,"="&AC17,$AK$6:$AL$11) -> 0 | AE17: =SUMIF($AD$6:$AE$11,"="&$AC17,$AG$6:$AH$11) -> 0 | AF17: =AE17-AG17 -> 0 | AG17: =SUMIF($AD$6:$AE$11,"="&$AC17,$AG$6:$AH$11)-SUMIF($AD$6:$AE$11,"="&$AC17,$AH$6:$AI$11) -> 0 | AH17: =INDEX(teams_k,AC17) -> ITA | AI17: =RANK(AD17,$AD$15:$AD$18,1) -> 1 | AL17: 3 | AM17: =INDEX(daten!$CM$147:$CM$170,AC17) -> 1 | AN17: =RANK(AM17,$AM$15:$AM$18) -> 1
C18: 4 | D18: =SUMIF($D$6:$E$11,"="&C18,$K$6:$L$11) -> 0 | E18: =SUMIF($D$6:$E$11,"="&$C18,$G$6:$H$11) -> 0 | F18: =E18-G18 -> 0 | G18: =SUMIF($D$6:$E$11,"="&$C18,$G$6:$H$11)-SUMIF($D$6:$E$11,"="&$C18,$H$6:$I$11) -> 0 | H18: =INDEX(teams_k,C18) -> SUI | I18: =RANK(D18,$D$15:$D$18,1) -> 1 | L18: 4 | M18: =INDEX(daten!$CM$147:$CM$170,C18) -> 1 | N18: =RANK(M18,$M$15:$M$18) -> 1 | AC18: 8 | AD18: =SUMIF($AD$6:$AE$11,"="&AC18,$AK$6:$AL$11) -> 0 | AE18: =SUMIF($AD$6:$AE$11,"="&$AC18,$AG$6:$AH$11) -> 0 | AF18: =AE18-AG18 -> 0 | AG18: =SUMIF($AD$6:$AE$11,"="&$AC18,$AG$6:$AH$11)-SUMIF($AD$6:$AE$11,"="&$AC18,$AH$6:$AI$11) -> 0 | AH18: =INDEX(teams_k,AC18) -> ALB | AI18: =RANK(AD18,$AD$15:$AD$18,1) -> 1 | AL18: 4 | AM18: =INDEX(daten!$CM$147:$CM$170,AC18) -> 1 | AN18: =RANK(AM18,$AM$15:$AM$18) -> 1
B20: DV1 | D20: =B22 -> 1 | E20: =B23 -> 2 | F20: =B24 -> 3 | G20: =B25 -> 4 | AB20: DV1 | AD20: =AB22 -> 5 | AE20: =AB23 -> 6 | AF20: =AB24 -> 7 | AG20: =AB25 -> 8
B21: TeamIndex | C21: Nr | D21: =C22 -> 1 | E21: =C23 -> 2 | F21: =C24 -> 3 | G21: =C25 -> 4 | I21: RangPkt. | K21: Siege | AB21: TeamIndex | AC21: Nr | AD21: =AC22 -> 1 | AE21: =AC23 -> 2 | AF21: =AC24 -> 3 | AG21: =AC25 -> 4 | AI21: RangPkt. | AK21: Siege
B22: =INDEX($C$15:$C$18,C22) -> 1 | C22: 1 | D22: =IF(INDEX($I$15:$I$18,$C22)<>INDEX($I$15:$I$18,D$21),0,SUMIF($B$6:$C$11,"="&$B22&"#"&D$20,$O$6:$P$11)) -> 0 | E22: 0 | F22: 0 | G22: 0 | H22: =SUM(D22:G22) -> 0 | I22: =RANK(H22,$H$22:$H$25,1) -> 1 | K22: =COUNTIF(S6:T11,"S"&B22) -> 0 | AB22: =INDEX($AC$15:$AC$18,AC22) -> 5 | AC22: 1 | AD22: =IF(INDEX($AI$15:$AI$18,$AC22)<>INDEX($AI$15:$AI$18,AD$21),0,SUMIF($AB$6:$AC$11,"="&$AB22&"#"&AD$20,$AO$6:$AP$11)) -> 0 | AE22: 0 | AF22: 0 | AG22: 0 | AH22: =SUM(AD22:AG22) -> 0 | AI22: =RANK(AH22,$AH$22:$AH$25,1) -> 1 | AK22: =COUNTIF(AS6:AT11,"S"&AB22) -> 0
B23: =INDEX($C$15:$C$18,C23) -> 2 | C23: 2 | D23: 0 | E23: 0 | F23: 0 | G23: 0 | H23: =SUM(D23:G23) -> 0 | I23: =RANK(H23,$H$22:$H$25,1) -> 1 | K23: =COUNTIF(S6:T11,"S"&B23) -> 0 | AB23: =INDEX($AC$15:$AC$18,AC23) -> 6 | AC23: 2 | AD23: 0 | AE23: 0 | AF23: 0 | AG23: 0 | AH23: =SUM(AD23:AG23) -> 0 | AI23: =RANK(AH23,$AH$22:$AH$25,1) -> 1 | AK23: =COUNTIF(AS6:AT11,"S"&AB23) -> 0
B24: =INDEX($C$15:$C$18,C24) -> 3 | C24: 3 | D24: 0 | E24: 0 | F24: 0 | G24: 0 | H24: =SUM(D24:G24) -> 0 | I24: =RANK(H24,$H$22:$H$25,1) -> 1 | K24: =COUNTIF(S6:T11,"S"&B24) -> 0 | AB24: =INDEX($AC$15:$AC$18,AC24) -> 7 | AC24: 3 | AD24: 0 | AE24: 0 | AF24: 0 | AG24: 0 | AH24: =SUM(AD24:AG24) -> 0 | AI24: =RANK(AH24,$AH$22:$AH$25,1) -> 1 | AK24: =COUNTIF(AS6:AT11,"S"&AB24) -> 0
B25: =INDEX($C$15:$C$18,C25) -> 4 | C25: 4 | D25: 0 | E25: 0 | F25: 0 | G25: 0 | H25: =SUM(D25:G25) -> 0 | I25: =RANK(H25,$H$22:$H$25,1) -> 1 | K25: =COUNTIF(S6:T11,"S"&B25) -> 0 | AB25: =INDEX($AC$15:$AC$18,AC25) -> 8 | AC25: 4 | AD25: 0 | AE25: 0 | AF25: 0 | AG25: 0 | AH25: =SUM(AD25:AG25) -> 0 | AI25: =RANK(AH25,$AH$22:$AH$25,1) -> 1 | AK25: =COUNTIF(AS6:AT11,"S"&AB25) -> 0
B27: DV2 | C27: Nr | D27: =C28 -> 1 | E27: =C29 -> 2 | F27: =C30 -> 3 | G27: =C31 -> 4 | I27: RangPkt. | AB27: DV2 | AC27: Nr | AD27: =AC28 -> 1 | AE27: =AC29 -> 2 | AF27: =AC30 -> 3 | AG27: =AC31 -> 4 | AI27: RangPkt.
B28: =B22 -> 1 | C28: 1 | D28: =IF(D22=0,0,IF(INDEX($I$22:$I$25,$C22)<>INDEX($I$22:$I$25,D$21),0,SUMIF($B$6:$C$11,"="&$B22&"#"&D$20,$K$6:$L$11)*1000+SUMIF($B$6:$C$11,"="&$B22&"#"&D$20,$M$6:$N$11)+SUMIF($B$6:$C$11,"="&$B22&"#"&D$20,$G$6:$H$11)/1000)) -> 0 | E28: 0 | F28: 0 | G28: 0 | H28: =SUM(D28:G28) -> 0 | I28: =RANK(H28,$H$28:$H$31,1) -> 1 | AB28: =AB22 -> 5 | AC28: 1 | AD28: =IF(AD22=0,0,IF(INDEX($AI$22:$AI$25,$AC22)<>INDEX($AI$22:$AI$25,AD$21),0,SUMIF($AB$6:$AC$11,"="&$AB22&"#"&AD$20,$AK$6:$AL$11)*1000+SUMIF($AB$6:$AC$11,"="&$AB22&"#"&AD$20,$AM$6:$AN$11)+SUMIF($AB$6:$AC$11,"="&$AB22&"#"&AD$20,$AG$6:$AH$11)/1000)) -> 0 | AE28: 0 | AF28: 0 | AG28: 0 | AH28: =SUM(AD28:AG28) -> 0 | AI28: =RANK(AH28,$AH$28:$AH$31,1) -> 1
B29: =B23 -> 2 | C29: 2 | D29: 0 | E29: 0 | F29: 0 | G29: 0 | H29: =SUM(D29:G29) -> 0 | I29: =RANK(H29,$H$28:$H$31,1) -> 1 | AB29: =AB23 -> 6 | AC29: 2 | AD29: 0 | AE29: 0 | AF29: 0 | AG29: 0 | AH29: =SUM(AD29:AG29) -> 0 | AI29: =RANK(AH29,$AH$28:$AH$31,1) -> 1
B30: =B24 -> 3 | C30: 3 | D30: 0 | E30: 0 | F30: 0 | G30: 0 | H30: =SUM(D30:G30) -> 0 | I30: =RANK(H30,$H$28:$H$31,1) -> 1 | AB30: =AB24 -> 7 | AC30: 3 | AD30: 0 | AE30: 0 | AF30: 0 | AG30: 0 | AH30: =SUM(AD30:AG30) -> 0 | AI30: =RANK(AH30,$AH$28:$AH$31,1) -> 1
B31: =B25 -> 4 | C31: 4 | D31: 0 | E31: 0 | F31: 0 | G31: 0 | H31: =SUM(D31:G31) -> 0 | I31: =RANK(H31,$H$28:$H$31,1) -> 1 | AB31: =AB25 -> 8 | AC31: 4 | AD31: 0 | AE31: 0 | AF31: 0 | AG31: 0 | AH31: =SUM(AD31:AG31) -> 0 | AI31: =RANK(AH31,$AH$28:$AH$31,1) -> 1
C33: Nr | D33: RangPkt | H33: RangPkt | AC33: Nr | AD33: RangPkt | AH33: RangPkt
B34: Diff | C34: 1 | D34: =RANK(G15,$G$15:$G$18,1) -> 1 | F34: Tore | G34: 1 | H34: =RANK(E15,$E$15:$E$18,1) -> 1 | AB34: Diff | AC34: 1 | AD34: =RANK(AG15,$AG$15:$AG$18,1) -> 1 | AF34: Tore | AG34: 1 | AH34: =RANK(AE15,$AE$15:$AE$18,1) -> 1
C35: 2 | D35: =RANK(G16,$G$15:$G$18,1) -> 1 | G35: 2 | H35: =RANK(E16,$E$15:$E$18,1) -> 1 | AC35: 2 | AD35: =RANK(AG16,$AG$15:$AG$18,1) -> 1 | AG35: 2 | AH35: =RANK(AE16,$AE$15:$AE$18,1) -> 1
C36: 3 | D36: =RANK(G17,$G$15:$G$18,1) -> 1 | G36: 3 | H36: =RANK(E17,$E$15:$E$18,1) -> 1 | AC36: 3 | AD36: =RANK(AG17,$AG$15:$AG$18,1) -> 1 | AG36: 3 | AH36: =RANK(AE17,$AE$15:$AE$18,1) -> 1
C37: 4 | D37: =RANK(G18,$G$15:$G$18,1) -> 1 | G37: 4 | H37: =RANK(E18,$E$15:$E$18,1) -> 1 | AC37: 4 | AD37: =RANK(AG18,$AG$15:$AG$18,1) -> 1 | AG37: 4 | AH37: =RANK(AE18,$AE$15:$AE$18,1) -> 1
I39: Modus | AI39: Modus
C40: Nr | E40: RangPkt | F40: Rang | H40: Wertigkeit | I40: 1 | J40: 2 | K40: Faktor | M40: Faktoren | AC40: Nr | AE40: RangPkt | AF40: Rang | AH40: Wertigkeit | AI40: 1 | AJ40: 2 | AK40: Faktor | AM40: Faktoren
B41: Wert | C41: 1 | D41: =I15*$K$41+I22*$K$42+I28*$K$43+D34*$K$44+H34*$K$45 -> 10101010100 | E41: =RANK(D41,$D$41:$D$44,1) -> 1 | F41: =RANK(D41,$D$41:$D$44) -> 1 | H41: Punkte | I41: 1 | J41: 1 | K41: =INDEX(N41:N48,INDEX(I41:J41,A15)) -> 10000000000 | M41: 1 | N41: 10000000000 | AB41: Wert | AC41: 1 | AD41: =AI15*$AK$41+AI22*$AK$42+AI28*$AK$43+AD34*$AK$44+AH34*$AK$45 -> 10101010100 | AE41: =RANK(AD41,$AD$41:$AD$44,1) -> 1 | AF41: =RANK(AD41,$AD$41:$AD$44) -> 1 | AH41: Punkte | AI41: 1 | AJ41: 1 | AK41: =INDEX(AN41:AN48,INDEX(AI41:AJ41,AA15)) -> 10000000000 | AM41: 1 | AN41: 10000000000
C42: 2 | D42: =I16*$K$41+I23*$K$42+I29*$K$43+D35*$K$44+H35*$K$45 -> 10101010100 | E42: =RANK(D42,$D$41:$D$44,1) -> 1 | F42: =RANK(D42,$D$41:$D$44) -> 1 | H42: DV1 | I42: 2 | J42: 4 | K42: =INDEX(N41:N48,INDEX(I42:J42,A15)) -> 100000000 | M42: 2 | N42: 100000000 | AC42: 2 | AD42: =AI16*$AK$41+AI23*$AK$42+AI29*$AK$43+AD35*$AK$44+AH35*$AK$45 -> 10101010100 | AE42: =RANK(AD42,$AD$41:$AD$44,1) -> 1 | AF42: =RANK(AD42,$AD$41:$AD$44) -> 1 | AH42: DV1 | AI42: 2 | AJ42: 4 | AK42: =INDEX(AN41:AN48,INDEX(AI42:AJ42,AA15)) -> 100000000 | AM42: 2 | AN42: 100000000
C43: 3 | D43: =I17*$K$41+I24*$K$42+I30*$K$43+D36*$K$44+H36*$K$45 -> 10101010100 | E43: =RANK(D43,$D$41:$D$44,1) -> 1 | F43: =RANK(D43,$D$41:$D$44) -> 1 | H43: DV2 | I43: 3 | J43: 5 | K43: =INDEX(N41:N48,INDEX(I43:J43,A15)) -> 1000000 | M43: 3 | N43: 1000000 | AC43: 3 | AD43: =AI17*$AK$41+AI24*$AK$42+AI30*$AK$43+AD36*$AK$44+AH36*$AK$45 -> 10101010100 | AE43: =RANK(AD43,$AD$41:$AD$44,1) -> 1 | AF43: =RANK(AD43,$AD$41:$AD$44) -> 1 | AH43: DV2 | AI43: 3 | AJ43: 5 | AK43: =INDEX(AN41:AN48,INDEX(AI43:AJ43,AA15)) -> 1000000 | AM43: 3 | AN43: 1000000
C44: 4 | D44: =I18*$K$41+I25*$K$42+I31*$K$43+D37*$K$44+H37*$K$45 -> 10101010100 | E44: =RANK(D44,$D$41:$D$44,1) -> 1 | F44: =RANK(D44,$D$41:$D$44) -> 1 | H44: TD alle | I44: 4 | J44: 2 | K44: =INDEX(N41:N48,INDEX(I44:J44,A15)) -> 10000 | M44: 4 | N44: 10000 | AC44: 4 | AD44: =AI18*$AK$41+AI25*$AK$42+AI31*$AK$43+AD37*$AK$44+AH37*$AK$45 -> 10101010100 | AE44: =RANK(AD44,$AD$41:$AD$44,1) -> 1 | AF44: =RANK(AD44,$AD$41:$AD$44) -> 1 | AH44: TD alle | AI44: 4 | AJ44: 2 | AK44: =INDEX(AN41:AN48,INDEX(AI44:AJ44,AA15)) -> 10000 | AM44: 4 | AN44: 10000
H45: Tore alle | I45: 5 | J45: 3 | K45: =INDEX(N41:N48,INDEX(I45:J45,A15)) -> 100 | M45: 5 | N45: 100 | AH45: Tore alle | AI45: 5 | AJ45: 3 | AK45: =INDEX(AN41:AN48,INDEX(AI45:AJ45,AA15)) -> 100 | AM45: 5 | AN45: 100
H46: EMS | I46: 6 | J46: 6 | K46: =INDEX(N41:N48,INDEX(I46:J46,A15)) -> 1 | M46: 6 | N46: 1 | AH46: EMS | AI46: 6 | AJ46: 6 | AK46: =INDEX(AN41:AN48,INDEX(AI46:AJ46,AA15)) -> 1 | AM46: 6 | AN46: 1
H47: FP | I47: 8 | J47: 7 | K47: =INDEX(N41:N48,INDEX(I47:J47,A15)) -> 0.0001 | M47: 7 | N47: =1/100 -> 0.01 | AH47: FP | AI47: 8 | AJ47: 7 | AK47: =INDEX(AN41:AN48,INDEX(AI47:AJ47,AA15)) -> 0.0001 | AM47: 7 | AN47: =1/100 -> 0.01
H48: Anzahl Siege Alle | I48: 7 | J48: 8 | K48: =INDEX(N41:N48,INDEX(I48:J48,A15)) -> 0.01 | M48: 8 | N48: =1/10000 -> 0.0001 | AH48: Anzahl Siege Alle | AI48: 7 | AJ48: 8 | AK48: =INDEX(AN41:AN48,INDEX(AI48:AJ48,AA15)) -> 0.01 | AM48: 8 | AN48: =1/10000 -> 0.0001
C64: Rangpkt inkl. EMS und Koeff | AC64: Rangpkt inkl. EMS und Koeff
C65: Nr. | D65: RangPkt | E65: Rang | F65: Rang korr | AC65: Nr. | AD65: RangPkt | AE65: Rang | AF65: Rang korr
B66: Wert | C66: 1 | D66: =E41*1000+SUMIF($D$266:$E$277,"="&C15,$P$266:$Q$277)*$K$46+N15*$K$47+K22*$K$48 -> 1000.0001 | E66: =RANK(D66,$D$66:$D$69) -> 1 | F66: =E66+COUNTIF(E$65:E65,"="&E66) -> 1 | AB66: Wert | AC66: 1 | AD66: =AE41*1000+SUMIF($D$266:$E$277,"="&AC15,$P$266:$Q$277)*$K$46+AN15*$K$47+AK22*$K$48 -> 1000.0001 | AE66: =RANK(AD66,$AD$66:$AD$69) -> 1 | AF66: =AE66+COUNTIF(AE$65:AE65,"="&AE66) -> 1
C67: 2 | D67: =E42*1000+SUMIF($D$266:$E$277,"="&C16,$P$266:$Q$277)*$K$46+N16*$K$47+K23*$K$48 -> 1000.0001 | E67: =RANK(D67,$D$66:$D$69) -> 1 | F67: =E67+COUNTIF(E$65:E66,"="&E67) -> 2 | AC67: 2 | AD67: =AE42*1000+SUMIF($D$266:$E$277,"="&AC16,$P$266:$Q$277)*$K$46+AN16*$K$47+AK23*$K$48 -> 1000.0001 | AE67: =RANK(AD67,$AD$66:$AD$69) -> 1 | AF67: =AE67+COUNTIF(AE$65:AE66,"="&AE67) -> 2
C68: 3 | D68: =E43*1000+SUMIF($D$266:$E$277,"="&C17,$P$266:$Q$277)*$K$46+N17*$K$47+K24*$K$48 -> 1000.0001 | E68: =RANK(D68,$D$66:$D$69) -> 1 | F68: =E68+COUNTIF(E$65:E67,"="&E68) -> 3 | AC68: 3 | AD68: =AE43*1000+SUMIF($D$266:$E$277,"="&AC17,$P$266:$Q$277)*$K$46+AN17*$K$47+AK24*$K$48 -> 1000.0001 | AE68: =RANK(AD68,$AD$66:$AD$69) -> 1 | AF68: =AE68+COUNTIF(AE$65:AE67,"="&AE68) -> 3
C69: 4 | D69: =E44*1000+SUMIF($D$266:$E$277,"="&C18,$P$266:$Q$277)*$K$46+N18*$K$47+K25*$K$48 -> 1000.0001 | E69: =RANK(D69,$D$66:$D$69) -> 1 | F69: =E69+COUNTIF(E$65:E68,"="&E69) -> 4 | AC69: 4 | AD69: =AE44*1000+SUMIF($D$266:$E$277,"="&AC18,$P$266:$Q$277)*$K$46+AN18*$K$47+AK25*$K$48 -> 1000.0001 | AE69: =RANK(AD69,$AD$66:$AD$69) -> 1 | AF69: =AE69+COUNTIF(AE$65:AE68,"="&AE69) -> 4
J70: berechnete oder manuelle Tabelle | AJ70: berechnete oder manuelle Tabelle
B71: Tabelle | C71: Rang | D71: Nr | E71: Rang Eff | F71: Manuell | G71: =VLOOKUP(A4,ERGEBNISSE!$BQ$38:$BR$47,2,FALSE) -> FALSE | H71: Nr | J71: Nr korr | AB71: Tabelle | AC71: Rang | AD71: Nr | AE71: Rang Eff | AF71: Manuell | AG71: =VLOOKUP(AA4,ERGEBNISSE!$BQ$38:$BR$47,2,FALSE) -> FALSE | AH71: Nr | AJ71: Nr korr
B72: =INDEX(teams,INDEX(C15:C18,D72)) -> Deutschland | C72: 1 | D72: =MATCH(C72,$F$66:$F$69,0) -> 1 | E72: =IF(G71,C72,INDEX(E66:E69,D72)) -> 1 | F72: 1 | G72: 1 | H72: =IF(G71,VLOOKUP(A79,ERGEBNISSE!$BR$12:$BT$35,3,FALSE),D72) -> 1 | J72: =IF($G$71,H72,D72) -> 1 | AB72: =INDEX(teams,INDEX(AC15:AC18,AD72)) -> Spanien | AC72: 1 | AD72: =MATCH(AC72,$AF$66:$AF$69,0) -> 1 | AE72: =IF(AG71,AC72,INDEX(AE66:AE69,AD72)) -> 1 | AF72: 1 | AG72: 1 | AH72: =IF(AG71,VLOOKUP(AA79,ERGEBNISSE!$BR$12:$BT$35,3,FALSE),AD72) -> 1 | AJ72: =IF($AG$71,AH72,AD72) -> 1
B73: =INDEX(teams,INDEX(C15:C18,D73)) -> Schottland | C73: 2 | D73: =MATCH(C73,$F$66:$F$69,0) -> 2 | E73: =IF(G71,C73,INDEX(E66:E69,D73)) -> 1 | G73: 2 | H73: =IF(G71,VLOOKUP(A80,ERGEBNISSE!$BR$12:$BT$35,3,FALSE),D73) -> 2 | J73: =IF($G$71,H73,D73) -> 2 | AB73: =INDEX(teams,INDEX(AC15:AC18,AD73)) -> Kroatien | AC73: 2 | AD73: =MATCH(AC73,$AF$66:$AF$69,0) -> 2 | AE73: =IF(AG71,AC73,INDEX(AE66:AE69,AD73)) -> 1 | AG73: 2 | AH73: =IF(AG71,VLOOKUP(AA80,ERGEBNISSE!$BR$12:$BT$35,3,FALSE),AD73) -> 2 | AJ73: =IF($AG$71,AH73,AD73) -> 2
B74: =INDEX(teams,INDEX(C15:C18,D74)) -> Ungarn | C74: 3 | D74: =MATCH(C74,$F$66:$F$69,0) -> 3 | E74: =IF(G71,C74,INDEX(E66:E69,D74)) -> 1 | G74: 3 | H74: =IF(G71,VLOOKUP(A81,ERGEBNISSE!$BR$12:$BT$35,3,FALSE),D74) -> 3 | J74: =IF($G$71,H74,D74) -> 3 | AB74: =INDEX(teams,INDEX(AC15:AC18,AD74)) -> Italien | AC74: 3 | AD74: =MATCH(AC74,$AF$66:$AF$69,0) -> 3 | AE74: =IF(AG71,AC74,INDEX(AE66:AE69,AD74)) -> 1 | AG74: 3 | AH74: =IF(AG71,VLOOKUP(AA81,ERGEBNISSE!$BR$12:$BT$35,3,FALSE),AD74) -> 3 | AJ74: =IF($AG$71,AH74,AD74) -> 3
B75: =INDEX(teams,INDEX(C15:C18,D75)) -> Schweiz | C75: 4 | D75: =MATCH(C75,$F$66:$F$69,0) -> 4 | E75: =IF(G71,C75,INDEX(E66:E69,D75)) -> 1 | G75: 4 | H75: =IF(G71,VLOOKUP(A82,ERGEBNISSE!$BR$12:$BT$35,3,FALSE),D75) -> 4 | J75: =IF($G$71,H75,D75) -> 4 | AB75: =INDEX(teams,INDEX(AC15:AC18,AD75)) -> Albanien | AC75: 4 | AD75: =MATCH(AC75,$AF$66:$AF$69,0) -> 4 | AE75: =IF(AG71,AC75,INDEX(AE66:AE69,AD75)) -> 1 | AG75: 4 | AH75: =IF(AG71,VLOOKUP(AA82,ERGEBNISSE!$BR$12:$BT$35,3,FALSE),AD75) -> 4 | AJ75: =IF($AG$71,AH75,AD75) -> 4
B78: Tabelle | C78: TeamIndex | D78: Nr | E78: Team | F78: Sp | G78: P | H78: T+ | I78: T- | J78: Diff | K78: S | L78: U | M78: N | AB78: Tabelle | AC78: TeamIndex | AD78: Nr | AE78: Team | AF78: Sp | AG78: P | AH78: T+ | AI78: T- | AJ78: Diff | AK78: S | AL78: U | AM78: N
A79: ="S"&A4 -> SA | B79: 1 | C79: =INDEX($C$15:$C$18,J72) -> 1 | D79: =J72 -> 1 | E79: =INDEX($H$15:$H$18,J72) -> GER | F79: =SUMIF($D$6:$E$11,"="&$C79,$Q$6:$R$11) -> 0 | G79: =INDEX($D$15:$D$18,$J72) -> 0 | H79: =INDEX($E$15:$E$18,$J72) -> 0 | I79: =INDEX($F$15:$F$18,$J72) -> 0 | J79: =INDEX($G$15:$G$18,$J72) -> 0 | K79: =COUNTIF($S$6:$T$11,"="&K$78&$C79) -> 0 | L79: 0 | M79: 0 | AA79: ="S"&AA4 -> SB | AB79: 1 | AC79: =INDEX($AC$15:$AC$18,AJ72) -> 5 | AD79: =AJ72 -> 1 | AE79: =INDEX($AH$15:$AH$18,AJ72) -> ESP | AF79: =SUMIF($AD$6:$AE$11,"="&$AC79,$AQ$6:$AR$11) -> 0 | AG79: =INDEX($AD$15:$AD$18,$AJ72) -> 0 | AH79: =INDEX($AE$15:$AE$18,$AJ72) -> 0 | AI79: =INDEX($AF$15:$AF$18,$AJ72) -> 0 | AJ79: =INDEX($AG$15:$AG$18,$AJ72) -> 0 | AK79: =COUNTIF($AS$6:$AT$11,"="&AK$78&$AC79) -> 0 | AL79: 0 | AM79: 0
A80: ="Z"&A4 -> ZA | B80: 2 | C80: =INDEX($C$15:$C$18,J73) -> 2 | D80: =J73 -> 2 | E80: =INDEX($H$15:$H$18,J73) -> SCO | F80: =SUMIF($D$6:$E$11,"="&$C80,$Q$6:$R$11) -> 0 | G80: =INDEX($D$15:$D$18,$J73) -> 0 | H80: =INDEX($E$15:$E$18,$J73) -> 0 | I80: =INDEX($F$15:$F$18,$J73) -> 0 | J80: =INDEX($G$15:$G$18,$J73) -> 0 | K80: 0 | L80: 0 | M80: 0 | AA80: ="Z"&AA4 -> ZB | AB80: 2 | AC80: =INDEX($AC$15:$AC$18,AJ73) -> 6 | AD80: =AJ73 -> 2 | AE80: =INDEX($AH$15:$AH$18,AJ73) -> CRO | AF80: =SUMIF($AD$6:$AE$11,"="&$AC80,$AQ$6:$AR$11) -> 0 | AG80: =INDEX($AD$15:$AD$18,$AJ73) -> 0 | AH80: =INDEX($AE$15:$AE$18,$AJ73) -> 0 | AI80: =INDEX($AF$15:$AF$18,$AJ73) -> 0 | AJ80: =INDEX($AG$15:$AG$18,$AJ73) -> 0 | AK80: 0 | AL80: 0 | AM80: 0
A81: ="D"&A4 -> DA | B81: 3 | C81: =INDEX($C$15:$C$18,J74) -> 3 | D81: =J74 -> 3 | E81: =INDEX($H$15:$H$18,J74) -> HUN | F81: =SUMIF($D$6:$E$11,"="&$C81,$Q$6:$R$11) -> 0 | G81: =INDEX($D$15:$D$18,$J74) -> 0 | H81: =INDEX($E$15:$E$18,$J74) -> 0 | I81: =INDEX($F$15:$F$18,$J74) -> 0 | J81: =INDEX($G$15:$G$18,$J74) -> 0 | K81: 0 | L81: 0 | M81: 0 | AA81: ="D"&AA4 -> DB | AB81: 3 | AC81: =INDEX($AC$15:$AC$18,AJ74) -> 7 | AD81: =AJ74 -> 3 | AE81: =INDEX($AH$15:$AH$18,AJ74) -> ITA | AF81: =SUMIF($AD$6:$AE$11,"="&$AC81,$AQ$6:$AR$11) -> 0 | AG81: =INDEX($AD$15:$AD$18,$AJ74) -> 0 | AH81: =INDEX($AE$15:$AE$18,$AJ74) -> 0 | AI81: =INDEX($AF$15:$AF$18,$AJ74) -> 0 | AJ81: =INDEX($AG$15:$AG$18,$AJ74) -> 0 | AK81: 0 | AL81: 0 | AM81: 0
A82: ="V"&A4 -> VA | B82: 4 | C82: =INDEX($C$15:$C$18,J75) -> 4 | D82: =J75 -> 4 | E82: =INDEX($H$15:$H$18,J75) -> SUI | F82: =SUMIF($D$6:$E$11,"="&$C82,$Q$6:$R$11) -> 0 | G82: =INDEX($D$15:$D$18,$J75) -> 0 | H82: =INDEX($E$15:$E$18,$J75) -> 0 | I82: =INDEX($F$15:$F$18,$J75) -> 0 | J82: =INDEX($G$15:$G$18,$J75) -> 0 | K82: 0 | L82: 0 | M82: 0 | AA82: ="V"&AA4 -> VB | AB82: 4 | AC82: =INDEX($AC$15:$AC$18,AJ75) -> 8 | AD82: =AJ75 -> 4 | AE82: =INDEX($AH$15:$AH$18,AJ75) -> ALB | AF82: =SUMIF($AD$6:$AE$11,"="&$AC82,$AQ$6:$AR$11) -> 0 | AG82: =INDEX($AD$15:$AD$18,$AJ75) -> 0 | AH82: =INDEX($AE$15:$AE$18,$AJ75) -> 0 | AI82: =INDEX($AF$15:$AF$18,$AJ75) -> 0 | AJ82: =INDEX($AG$15:$AG$18,$AJ75) -> 0 | AK82: 0 | AL82: 0 | AM82: 0
A86: C | B86: Paarungen | G86: Resultat | K86: Punkte | Q86: =SUM(Q88:Q93) -> 0 | AA86: D | AB86: Paarungen | AG86: Resultat | AK86: Punkte | AQ86: =SUM(AQ88:AQ93) -> 0
A87: Nr | D87: HT | E87: AT | F87: HT2 | G87: ErgH | H87: ErgA | I87: ErgH2 | K87: PH | L87: PA | M87: DifH | N87: DifA | O87: WertH | P87: WertA | Q87: Spiele | S87: Resultat | AA87: Nr | AD87: HT | AE87: AT | AF87: HT2 | AG87: ErgH | AH87: ErgA | AI87: ErgH2 | AK87: PH | AL87: PA | AM87: DifH | AN87: DifA | AO87: WertH | AP87: WertA | AQ87: Spiele | AS87: Resultat
A88: 1 | B88: =D88&"#"&E88 -> 9#10 | C88: =E88&"#"&D88 -> 10#9 | D88: =VLOOKUP(J88,daten!$D$49:$J$84,6,FALSE) -> 9 | E88: =VLOOKUP(J88,daten!$D$49:$K$84,7,FALSE) -> 10 | F88: =D88 -> 9 | G88: =VLOOKUP(J88,ERGEBNISSE!$C$12:$F$47,3,FALSE) ->  | H88: =VLOOKUP(J88,ERGEBNISSE!$C$12:$F$47,4,FALSE) ->  | I88: =IF(LEN(G88)>0,G88,"") ->  | J88: =A86&A88 -> C1 | K88: =IF(COUNT(G88:H88)<>2,0,IF(G88>H88,3,IF(H88>G88,0,1))) -> 0 | L88: =IF(COUNT(G88:H88)<>2,0,IF(G88>H88,0,IF(H88>G88,3,1))) -> 0 | M88: =IF(COUNT(G88:H88)<>2,0,G88-H88) -> 0 | N88: =IF(COUNT(G88:H88)<>2,0,H88-I88) -> 0 | O88: =K88*1000+M88+IF(LEN(G88)=0,0,G88/1000) -> 0 | P88: 0 | Q88: =IF(COUNT(G88:H88)=2,1,0) -> 0 | R88: =Q88 -> 0 | S88: =IF(Q88=0,"X",IF(K88=3,"S",IF(K88=0,"N","U")))&D88 -> X9 | T88: X10 | AA88: 1 | AB88: =AD88&"#"&AE88 -> 13#14 | AC88: =AE88&"#"&AD88 -> 14#13 | AD88: =VLOOKUP(AJ88,daten!$D$49:$J$84,6,FALSE) -> 13 | AE88: =VLOOKUP(AJ88,daten!$D$49:$K$84,7,FALSE) -> 14 | AF88: =AD88 -> 13 | AG88: =VLOOKUP(AJ88,ERGEBNISSE!$C$12:$F$47,3,FALSE) ->  | AH88: =VLOOKUP(AJ88,ERGEBNISSE!$C$12:$F$47,4,FALSE) ->  | AI88: =IF(LEN(AG88)>0,AG88,"") ->  | AJ88: =AA86&AA88 -> D1 | AK88: =IF(COUNT(AG88:AH88)<>2,0,IF(AG88>AH88,3,IF(AH88>AG88,0,1))) -> 0 | AL88: =IF(COUNT(AG88:AH88)<>2,0,IF(AG88>AH88,0,IF(AH88>AG88,3,1))) -> 0 | AM88: =IF(COUNT(AG88:AH88)<>2,0,AG88-AH88) -> 0 | AN88: =IF(COUNT(AG88:AH88)<>2,0,AH88-AI88) -> 0 | AO88: =AK88*1000+AM88+IF(LEN(AG88)=0,0,AG88/1000) -> 0 | AP88: 0 | AQ88: =IF(COUNT(AG88:AH88)=2,1,0) -> 0 | AR88: =AQ88 -> 0 | AS88: =IF(AQ88=0,"X",IF(AK88=3,"S",IF(AK88=0,"N","U")))&AD88 -> X13 | AT88: X14
A89: 2 | B89: 11#12 | C89: 12#11 | D89: =VLOOKUP(J89,daten!$D$49:$J$84,6,FALSE) -> 11 | E89: =VLOOKUP(J89,daten!$D$49:$K$84,7,FALSE) -> 12 | F89: 11 | G89: =VLOOKUP(J89,ERGEBNISSE!$C$12:$F$47,3,FALSE) ->  | H89: =VLOOKUP(J89,ERGEBNISSE!$C$12:$F$47,4,FALSE) ->  | J89: =A86&A89 -> C2 | K89: 0 | L89: 0 | M89: 0 | N89: 0 | O89: 0 | P89: 0 | Q89: 0 | R89: 0 | S89: X11 | T89: X12 | AA89: 2 | AB89: 15#16 | AC89: 16#15 | AD89: =VLOOKUP(AJ89,daten!$D$49:$J$84,6,FALSE) -> 15 | AE89: =VLOOKUP(AJ89,daten!$D$49:$K$84,7,FALSE) -> 16 | AF89: 15 | AG89: =VLOOKUP(AJ89,ERGEBNISSE!$C$12:$F$47,3,FALSE) ->  | AH89: =VLOOKUP(AJ89,ERGEBNISSE!$C$12:$F$47,4,FALSE) ->  | AJ89: =AA86&AA89 -> D2 | AK89: 0 | AL89: 0 | AM89: 0 | AN89: 0 | AO89: 0 | AP89: 0 | AQ89: 0 | AR89: 0 | AS89: X15 | AT89: X16
A90: 3 | B90: 9#11 | C90: 11#9 | D90: =VLOOKUP(J90,daten!$D$49:$J$84,6,FALSE) -> 9 | E90: =VLOOKUP(J90,daten!$D$49:$K$84,7,FALSE) -> 11 | F90: 9 | G90: =VLOOKUP(J90,ERGEBNISSE!$C$12:$F$47,3,FALSE) ->  | H90: =VLOOKUP(J90,ERGEBNISSE!$C$12:$F$47,4,FALSE) ->  | J90: =A86&A90 -> C3 | K90: 0 | L90: 0 | M90: 0 | N90: 0 | O90: 0 | P90: 0 | Q90: 0 | R90: 0 | S90: X9 | T90: X11 | AA90: 3 | AB90: 13#15 | AC90: 15#13 | AD90: =VLOOKUP(AJ90,daten!$D$49:$J$84,6,FALSE) -> 13 | AE90: =VLOOKUP(AJ90,daten!$D$49:$K$84,7,FALSE) -> 15 | AF90: 13 | AG90: =VLOOKUP(AJ90,ERGEBNISSE!$C$12:$F$47,3,FALSE) ->  | AH90: =VLOOKUP(AJ90,ERGEBNISSE!$C$12:$F$47,4,FALSE) ->  | AJ90: =AA86&AA90 -> D3 | AK90: 0 | AL90: 0 | AM90: 0 | AN90: 0 | AO90: 0 | AP90: 0 | AQ90: 0 | AR90: 0 | AS90: X13 | AT90: X15
A91: 4 | B91: 10#12 | C91: 12#10 | D91: =VLOOKUP(J91,daten!$D$49:$J$84,6,FALSE) -> 10 | E91: =VLOOKUP(J91,daten!$D$49:$K$84,7,FALSE) -> 12 | F91: 10 | G91: =VLOOKUP(J91,ERGEBNISSE!$C$12:$F$47,3,FALSE) ->  | H91: =VLOOKUP(J91,ERGEBNISSE!$C$12:$F$47,4,FALSE) ->  | J91: =A86&A91 -> C4 | K91: 0 | L91: 0 | M91: 0 | N91: 0 | O91: 0 | P91: 0 | Q91: 0 | R91: 0 | S91: X10 | T91: X12 | AA91: 4 | AB91: 14#16 | AC91: 16#14 | AD91: =VLOOKUP(AJ91,daten!$D$49:$J$84,6,FALSE) -> 14 | AE91: =VLOOKUP(AJ91,daten!$D$49:$K$84,7,FALSE) -> 16 | AF91: 14 | AG91: =VLOOKUP(AJ91,ERGEBNISSE!$C$12:$F$47,3,FALSE) ->  | AH91: =VLOOKUP(AJ91,ERGEBNISSE!$C$12:$F$47,4,FALSE) ->  | AJ91: =AA86&AA91 -> D4 | AK91: 0 | AL91: 0 | AM91: 0 | AN91: 0 | AO91: 0 | AP91: 0 | AQ91: 0 | AR91: 0 | AS91: X14 | AT91: X16
A92: 5 | B92: 12#9 | C92: 9#12 | D92: =VLOOKUP(J92,daten!$D$49:$J$84,6,FALSE) -> 12 | E92: =VLOOKUP(J92,daten!$D$49:$K$84,7,FALSE) -> 9 | F92: 12 | G92: =VLOOKUP(J92,ERGEBNISSE!$C$12:$F$47,3,FALSE) ->  | H92: =VLOOKUP(J92,ERGEBNISSE!$C$12:$F$47,4,FALSE) ->  | J92: =A86&A92 -> C5 | K92: 0 | L92: 0 | M92: 0 | N92: 0 | O92: 0 | P92: 0 | Q92: 0 | R92: 0 | S92: X12 | T92: X9 | AA92: 5 | AB92: 14#15 | AC92: 15#14 | AD92: =VLOOKUP(AJ92,daten!$D$49:$J$84,6,FALSE) -> 14 | AE92: =VLOOKUP(AJ92,daten!$D$49:$K$84,7,FALSE) -> 15 | AF92: 14 | AG92: =VLOOKUP(AJ92,ERGEBNISSE!$C$12:$F$47,3,FALSE) ->  | AH92: =VLOOKUP(AJ92,ERGEBNISSE!$C$12:$F$47,4,FALSE) ->  | AJ92: =AA86&AA92 -> D5 | AK92: 0 | AL92: 0 | AM92: 0 | AN92: 0 | AO92: 0 | AP92: 0 | AQ92: 0 | AR92: 0 | AS92: X14 | AT92: X15
A93: 6 | B93: 10#11 | C93: 11#10 | D93: =VLOOKUP(J93,daten!$D$49:$J$84,6,FALSE) -> 10 | E93: =VLOOKUP(J93,daten!$D$49:$K$84,7,FALSE) -> 11 | F93: 10 | G93: =VLOOKUP(J93,ERGEBNISSE!$C$12:$F$47,3,FALSE) ->  | H93: =VLOOKUP(J93,ERGEBNISSE!$C$12:$F$47,4,FALSE) ->  | J93: =A86&A93 -> C6 | K93: 0 | L93: 0 | M93: 0 | N93: 0 | O93: 0 | P93: 0 | Q93: 0 | R93: 0 | S93: X10 | T93: X11 | AA93: 6 | AB93: 16#13 | AC93: 13#16 | AD93: =VLOOKUP(AJ93,daten!$D$49:$J$84,6,FALSE) -> 16 | AE93: =VLOOKUP(AJ93,daten!$D$49:$K$84,7,FALSE) -> 13 | AF93: 16 | AG93: =VLOOKUP(AJ93,ERGEBNISSE!$C$12:$F$47,3,FALSE) ->  | AH93: =VLOOKUP(AJ93,ERGEBNISSE!$C$12:$F$47,4,FALSE) ->  | AJ93: =AA86&AA93 -> D6 | AK93: 0 | AL93: 0 | AM93: 0 | AN93: 0 | AO93: 0 | AP93: 0 | AQ93: 0 | AR93: 0 | AS93: X16 | AT93: X13
A96: Modus | C96: TeamIdx | D96: P | E96: Treffer | F96: GTo | G96: Dif | H96: Team | I96: RangPkt | K96: Koeff | M96: Rang | N96: RangPkt | AA96: Modus | AC96: TeamIdx | AD96: P | AE96: Treffer | AF96: GTo | AG96: Dif | AH96: Team | AI96: RangPkt | AK96: Koeff | AM96: Rang | AN96: RangPkt
A97: 1 | C97: 9 | D97: =SUMIF($D$88:$E$93,"="&C97,$K$88:$L$93) -> 0 | E97: =SUMIF($D$88:$E$93,"="&$C97,$G$88:$H$93) -> 0 | F97: =E97-G97 -> 0 | G97: =SUMIF($D$88:$E$93,"="&$C97,$G$88:$H$93)-SUMIF($D$88:$E$93,"="&$C97,$H$88:$I$93) -> 0 | H97: =INDEX(teams_k,C97) -> SLO | I97: =RANK(D97,$D$97:$D$100,1) -> 1 | L97: 1 | M97: =INDEX(daten!$CM$147:$CM$170,C97) -> 1 | N97: =RANK(M97,$M$97:$M$100) -> 1 | AA97: 1 | AC97: 13 | AD97: =SUMIF($AD$88:$AE$93,"="&AC97,$AK$88:$AL$93) -> 0 | AE97: =SUMIF($AD$88:$AE$93,"="&$AC97,$AG$88:$AH$93) -> 0 | AF97: =AE97-AG97 -> 0 | AG97: =SUMIF($AD$88:$AE$93,"="&$AC97,$AG$88:$AH$93)-SUMIF($AD$88:$AE$93,"="&$AC97,$AH$88:$AI$93) -> 0 | AH97: =INDEX(teams_k,AC97) -> POL | AI97: =RANK(AD97,$AD$97:$AD$100,1) -> 1 | AL97: 1 | AM97: =INDEX(daten!$CM$147:$CM$170,AC97) -> 1 | AN97: =RANK(AM97,$AM$97:$AM$100) -> 1
C98: 10 | D98: =SUMIF($D$88:$E$93,"="&C98,$K$88:$L$93) -> 0 | E98: =SUMIF($D$88:$E$93,"="&$C98,$G$88:$H$93) -> 0 | F98: =E98-G98 -> 0 | G98: =SUMIF($D$88:$E$93,"="&$C98,$G$88:$H$93)-SUMIF($D$88:$E$93,"="&$C98,$H$88:$I$93) -> 0 | H98: =INDEX(teams_k,C98) -> DEN | I98: =RANK(D98,$D$97:$D$100,1) -> 1 | L98: 2 | M98: =INDEX(daten!$CM$147:$CM$170,C98) -> 1 | N98: =RANK(M98,$M$97:$M$100) -> 1 | AC98: 14 | AD98: =SUMIF($AD$88:$AE$93,"="&AC98,$AK$88:$AL$93) -> 0 | AE98: =SUMIF($AD$88:$AE$93,"="&$AC98,$AG$88:$AH$93) -> 0 | AF98: =AE98-AG98 -> 0 | AG98: =SUMIF($AD$88:$AE$93,"="&$AC98,$AG$88:$AH$93)-SUMIF($AD$88:$AE$93,"="&$AC98,$AH$88:$AI$93) -> 0 | AH98: =INDEX(teams_k,AC98) -> NED | AI98: =RANK(AD98,$AD$97:$AD$100,1) -> 1 | AL98: 2 | AM98: =INDEX(daten!$CM$147:$CM$170,AC98) -> 1 | AN98: =RANK(AM98,$AM$97:$AM$100) -> 1
C99: 11 | D99: =SUMIF($D$88:$E$93,"="&C99,$K$88:$L$93) -> 0 | E99: =SUMIF($D$88:$E$93,"="&$C99,$G$88:$H$93) -> 0 | F99: =E99-G99 -> 0 | G99: =SUMIF($D$88:$E$93,"="&$C99,$G$88:$H$93)-SUMIF($D$88:$E$93,"="&$C99,$H$88:$I$93) -> 0 | H99: =INDEX(teams_k,C99) -> SRB | I99: =RANK(D99,$D$97:$D$100,1) -> 1 | L99: 3 | M99: =INDEX(daten!$CM$147:$CM$170,C99) -> 1 | N99: =RANK(M99,$M$97:$M$100) -> 1 | AC99: 15 | AD99: =SUMIF($AD$88:$AE$93,"="&AC99,$AK$88:$AL$93) -> 0 | AE99: =SUMIF($AD$88:$AE$93,"="&$AC99,$AG$88:$AH$93) -> 0 | AF99: =AE99-AG99 -> 0 | AG99: =SUMIF($AD$88:$AE$93,"="&$AC99,$AG$88:$AH$93)-SUMIF($AD$88:$AE$93,"="&$AC99,$AH$88:$AI$93) -> 0 | AH99: =INDEX(teams_k,AC99) -> AUT | AI99: =RANK(AD99,$AD$97:$AD$100,1) -> 1 | AL99: 3 | AM99: =INDEX(daten!$CM$147:$CM$170,AC99) -> 1 | AN99: =RANK(AM99,$AM$97:$AM$100) -> 1
C100: 12 | D100: =SUMIF($D$88:$E$93,"="&C100,$K$88:$L$93) -> 0 | E100: =SUMIF($D$88:$E$93,"="&$C100,$G$88:$H$93) -> 0 | F100: =E100-G100 -> 0 | G100: =SUMIF($D$88:$E$93,"="&$C100,$G$88:$H$93)-SUMIF($D$88:$E$93,"="&$C100,$H$88:$I$93) -> 0 | H100: =INDEX(teams_k,C100) -> ENG | I100: =RANK(D100,$D$97:$D$100,1) -> 1 | L100: 4 | M100: =INDEX(daten!$CM$147:$CM$170,C100) -> 1 | N100: =RANK(M100,$M$97:$M$100) -> 1 | AC100: 16 | AD100: =SUMIF($AD$88:$AE$93,"="&AC100,$AK$88:$AL$93) -> 0 | AE100: =SUMIF($AD$88:$AE$93,"="&$AC100,$AG$88:$AH$93) -> 0 | AF100: =AE100-AG100 -> 0 | AG100: =SUMIF($AD$88:$AE$93,"="&$AC100,$AG$88:$AH$93)-SUMIF($AD$88:$AE$93,"="&$AC100,$AH$88:$AI$93) -> 0 | AH100: =INDEX(teams_k,AC100) -> FRA | AI100: =RANK(AD100,$AD$97:$AD$100,1) -> 1 | AL100: 4 | AM100: =INDEX(daten!$CM$147:$CM$170,AC100) -> 1 | AN100: =RANK(AM100,$AM$97:$AM$100) -> 1
B102: DV1 | D102: =B104 -> 9 | E102: =B105 -> 10 | F102: =B106 -> 11 | G102: =B107 -> 12 | AB102: DV1 | AD102: =AB104 -> 13 | AE102: =AB105 -> 14 | AF102: =AB106 -> 15 | AG102: =AB107 -> 16
B103: TeamIndex | C103: Nr | D103: =C104 -> 1 | E103: =C105 -> 2 | F103: =C106 -> 3 | G103: =C107 -> 4 | I103: RangPkt. | K103: Siege | AB103: TeamIndex | AC103: Nr | AD103: =AC104 -> 1 | AE103: =AC105 -> 2 | AF103: =AC106 -> 3 | AG103: =AC107 -> 4 | AI103: RangPkt. | AK103: Siege
B104: =INDEX($C$97:$C$100,C104) -> 9 | C104: 1 | D104: =IF(INDEX($I$97:$I$100,$C104)<>INDEX($I$97:$I$100,D$103),0,SUMIF($B$88:$C$93,"="&$B104&"#"&D$102,$O$88:$P$93)) -> 0 | E104: 0 | F104: 0 | G104: 0 | H104: =SUM(D104:G104) -> 0 | I104: =RANK(H104,$H$104:$H$107,1) -> 1 | K104: =COUNTIF(S88:T93,"S"&B104) -> 0 | AB104: =INDEX($AC$97:$AC$100,AC104) -> 13 | AC104: 1 | AD104: =IF(INDEX($AI$97:$AI$100,$AC104)<>INDEX($AI$97:$AI$100,AD$103),0,SUMIF($AB$88:$AC$93,"="&$AB104&"#"&AD$102,$AO$88:$AP$93)) -> 0 | AE104: 0 | AF104: 0 | AG104: 0 | AH104: =SUM(AD104:AG104) -> 0 | AI104: =RANK(AH104,$AH$104:$AH$107,1) -> 1 | AK104: =COUNTIF(AS88:AT93,"S"&AB104) -> 0
B105: =INDEX($C$97:$C$100,C105) -> 10 | C105: 2 | D105: 0 | E105: 0 | F105: 0 | G105: 0 | H105: =SUM(D105:G105) -> 0 | I105: =RANK(H105,$H$104:$H$107,1) -> 1 | K105: =COUNTIF(S88:T93,"S"&B105) -> 0 | AB105: =INDEX($AC$97:$AC$100,AC105) -> 14 | AC105: 2 | AD105: 0 | AE105: 0 | AF105: 0 | AG105: 0 | AH105: =SUM(AD105:AG105) -> 0 | AI105: =RANK(AH105,$AH$104:$AH$107,1) -> 1 | AK105: =COUNTIF(AS88:AT93,"S"&AB105) -> 0
B106: =INDEX($C$97:$C$100,C106) -> 11 | C106: 3 | D106: 0 | E106: 0 | F106: 0 | G106: 0 | H106: =SUM(D106:G106) -> 0 | I106: =RANK(H106,$H$104:$H$107,1) -> 1 | K106: =COUNTIF(S88:T93,"S"&B106) -> 0 | AB106: =INDEX($AC$97:$AC$100,AC106) -> 15 | AC106: 3 | AD106: 0 | AE106: 0 | AF106: 0 | AG106: 0 | AH106: =SUM(AD106:AG106) -> 0 | AI106: =RANK(AH106,$AH$104:$AH$107,1) -> 1 | AK106: =COUNTIF(AS88:AT93,"S"&AB106) -> 0
B107: =INDEX($C$97:$C$100,C107) -> 12 | C107: 4 | D107: 0 | E107: 0 | F107: 0 | G107: 0 | H107: =SUM(D107:G107) -> 0 | I107: =RANK(H107,$H$104:$H$107,1) -> 1 | K107: =COUNTIF(S88:T93,"S"&B107) -> 0 | AB107: =INDEX($AC$97:$AC$100,AC107) -> 16 | AC107: 4 | AD107: 0 | AE107: 0 | AF107: 0 | AG107: 0 | AH107: =SUM(AD107:AG107) -> 0 | AI107: =RANK(AH107,$AH$104:$AH$107,1) -> 1 | AK107: =COUNTIF(AS88:AT93,"S"&AB107) -> 0
B109: DV2 | C109: Nr | D109: =C110 -> 1 | E109: =C111 -> 2 | F109: =C112 -> 3 | G109: =C113 -> 4 | I109: RangPkt. | AB109: DV2 | AC109: Nr | AD109: =AC110 -> 1 | AE109: =AC111 -> 2 | AF109: =AC112 -> 3 | AG109: =AC113 -> 4 | AI109: RangPkt.
B110: =B104 -> 9 | C110: 1 | D110: =IF(D104=0,0,IF(INDEX($I$104:$I$107,$C104)<>INDEX($I$104:$I$107,D$103),0,SUMIF($B$88:$C$93,"="&$B104&"#"&D$102,$K$88:$L$93)*1000+SUMIF($B$88:$C$93,"="&$B104&"#"&D$102,$M$88:$N$93)+SUMIF($B$88:$C$93,"="&$B104&"#"&D$102,$G$88:$H$93)/1000)) -> 0 | E110: 0 | F110: 0 | G110: 0 | H110: =SUM(D110:G110) -> 0 | I110: =RANK(H110,$H$110:$H$113,1) -> 1 | AB110: =AB104 -> 13 | AC110: 1 | AD110: =IF(AD104=0,0,IF(INDEX($AI$104:$AI$107,$AC104)<>INDEX($AI$104:$AI$107,AD$103),0,SUMIF($AB$88:$AC$93,"="&$AB104&"#"&AD$102,$AK$88:$AL$93)*1000+SUMIF($AB$88:$AC$93,"="&$AB104&"#"&AD$102,$AM$88:$AN$93)+SUMIF($AB$88:$AC$93,"="&$AB104&"#"&AD$102,$AG$88:$AH$93)/1000)) -> 0 | AE110: 0 | AF110: 0 | AG110: 0 | AH110: =SUM(AD110:AG110) -> 0 | AI110: =RANK(AH110,$AH$110:$AH$113,1) -> 1
B111: =B105 -> 10 | C111: 2 | D111: 0 | E111: 0 | F111: 0 | G111: 0 | H111: =SUM(D111:G111) -> 0 | I111: =RANK(H111,$H$110:$H$113,1) -> 1 | AB111: =AB105 -> 14 | AC111: 2 | AD111: 0 | AE111: 0 | AF111: 0 | AG111: 0 | AH111: =SUM(AD111:AG111) -> 0 | AI111: =RANK(AH111,$AH$110:$AH$113,1) -> 1
B112: =B106 -> 11 | C112: 3 | D112: 0 | E112: 0 | F112: 0 | G112: 0 | H112: =SUM(D112:G112) -> 0 | I112: =RANK(H112,$H$110:$H$113,1) -> 1 | AB112: =AB106 -> 15 | AC112: 3 | AD112: 0 | AE112: 0 | AF112: 0 | AG112: 0 | AH112: =SUM(AD112:AG112) -> 0 | AI112: =RANK(AH112,$AH$110:$AH$113,1) -> 1
B113: =B107 -> 12 | C113: 4 | D113: 0 | E113: 0 | F113: 0 | G113: 0 | H113: =SUM(D113:G113) -> 0 | I113: =RANK(H113,$H$110:$H$113,1) -> 1 | AB113: =AB107 -> 16 | AC113: 4 | AD113: 0 | AE113: 0 | AF113: 0 | AG113: 0 | AH113: =SUM(AD113:AG113) -> 0 | AI113: =RANK(AH113,$AH$110:$AH$113,1) -> 1
C115: Nr | D115: RangPkt | H115: RangPkt | AC115: Nr | AD115: RangPkt | AH115: RangPkt
B116: Diff | C116: 1 | D116: =RANK(G97,$G$97:$G$100,1) -> 1 | F116: Tore | G116: 1 | H116: =RANK(E97,$E$97:$E$100,1) -> 1 | AB116: Diff | AC116: 1 | AD116: =RANK(AG97,$AG$97:$AG$100,1) -> 1 | AF116: Tore | AG116: 1 | AH116: =RANK(AE97,$AE$97:$AE$100,1) -> 1
C117: 2 | D117: =RANK(G98,$G$97:$G$100,1) -> 1 | G117: 2 | H117: =RANK(E98,$E$97:$E$100,1) -> 1 | AC117: 2 | AD117: =RANK(AG98,$AG$97:$AG$100,1) -> 1 | AG117: 2 | AH117: =RANK(AE98,$AE$97:$AE$100,1) -> 1
C118: 3 | D118: =RANK(G99,$G$97:$G$100,1) -> 1 | G118: 3 | H118: =RANK(E99,$E$97:$E$100,1) -> 1 | AC118: 3 | AD118: =RANK(AG99,$AG$97:$AG$100,1) -> 1 | AG118: 3 | AH118: =RANK(AE99,$AE$97:$AE$100,1) -> 1
C119: 4 | D119: =RANK(G100,$G$97:$G$100,1) -> 1 | G119: 4 | H119: =RANK(E100,$E$97:$E$100,1) -> 1 | AC119: 4 | AD119: =RANK(AG100,$AG$97:$AG$100,1) -> 1 | AG119: 4 | AH119: =RANK(AE100,$AE$97:$AE$100,1) -> 1
I121: Modus | AI121: Modus
C122: Nr | E122: RangPkt | F122: Rang | H122: Wertigkeit | I122: 1 | J122: 2 | K122: Faktor | M122: Faktoren | AC122: Nr | AE122: RangPkt | AF122: Rang | AH122: Wertigkeit | AI122: 1 | AJ122: 2 | AK122: Faktor | AM122: Faktoren
B123: Wert | C123: 1 | D123: =I97*$K$123+I104*$K$124+I110*$K$125+D116*$K$126+H116*$K$127 -> 10101010100 | E123: =RANK(D123,$D$123:$D$126,1) -> 1 | F123: =RANK(D123,$D$123:$D$126) -> 1 | H123: Punkte | I123: 1 | J123: 1 | K123: =INDEX(N123:N130,INDEX(I123:J123,A97)) -> 10000000000 | M123: 1 | N123: 10000000000 | AB123: Wert | AC123: 1 | AD123: =AI97*$AK$123+AI104*$AK$124+AI110*$AK$125+AD116*$AK$126+AH116*$AK$127 -> 10101010100 | AE123: =RANK(AD123,$AD$123:$AD$126,1) -> 1 | AF123: =RANK(AD123,$AD$123:$AD$126) -> 1 | AH123: Punkte | AI123: 1 | AJ123: 1 | AK123: =INDEX(AN123:AN130,INDEX(AI123:AJ123,AA97)) -> 10000000000 | AM123: 1 | AN123: 10000000000
C124: 2 | D124: =I98*$K$123+I105*$K$124+I111*$K$125+D117*$K$126+H117*$K$127 -> 10101010100 | E124: =RANK(D124,$D$123:$D$126,1) -> 1 | F124: =RANK(D124,$D$123:$D$126) -> 1 | H124: DV1 | I124: 2 | J124: 4 | K124: =INDEX(N123:N130,INDEX(I124:J124,A97)) -> 100000000 | M124: 2 | N124: 100000000 | AC124: 2 | AD124: =AI98*$AK$123+AI105*$AK$124+AI111*$AK$125+AD117*$AK$126+AH117*$AK$127 -> 10101010100 | AE124: =RANK(AD124,$AD$123:$AD$126,1) -> 1 | AF124: =RANK(AD124,$AD$123:$AD$126) -> 1 | AH124: DV1 | AI124: 2 | AJ124: 4 | AK124: =INDEX(AN123:AN130,INDEX(AI124:AJ124,AA97)) -> 100000000 | AM124: 2 | AN124: 100000000
C125: 3 | D125: =I99*$K$123+I106*$K$124+I112*$K$125+D118*$K$126+H118*$K$127 -> 10101010100 | E125: =RANK(D125,$D$123:$D$126,1) -> 1 | F125: =RANK(D125,$D$123:$D$126) -> 1 | H125: DV2 | I125: 3 | J125: 5 | K125: =INDEX(N123:N130,INDEX(I125:J125,A97)) -> 1000000 | M125: 3 | N125: 1000000 | AC125: 3 | AD125: =AI99*$AK$123+AI106*$AK$124+AI112*$AK$125+AD118*$AK$126+AH118*$AK$127 -> 10101010100 | AE125: =RANK(AD125,$AD$123:$AD$126,1) -> 1 | AF125: =RANK(AD125,$AD$123:$AD$126) -> 1 | AH125: DV2 | AI125: 3 | AJ125: 5 | AK125: =INDEX(AN123:AN130,INDEX(AI125:AJ125,AA97)) -> 1000000 | AM125: 3 | AN125: 1000000
C126: 4 | D126: =I100*$K$123+I107*$K$124+I113*$K$125+D119*$K$126+H119*$K$127 -> 10101010100 | E126: =RANK(D126,$D$123:$D$126,1) -> 1 | F126: =RANK(D126,$D$123:$D$126) -> 1 | H126: TD alle | I126: 4 | J126: 2 | K126: =INDEX(N123:N130,INDEX(I126:J126,A97)) -> 10000 | M126: 4 | N126: 10000 | AC126: 4 | AD126: =AI100*$AK$123+AI107*$AK$124+AI113*$AK$125+AD119*$AK$126+AH119*$AK$127 -> 10101010100 | AE126: =RANK(AD126,$AD$123:$AD$126,1) -> 1 | AF126: =RANK(AD126,$AD$123:$AD$126) -> 1 | AH126: TD alle | AI126: 4 | AJ126: 2 | AK126: =INDEX(AN123:AN130,INDEX(AI126:AJ126,AA97)) -> 10000 | AM126: 4 | AN126: 10000
H127: Tore alle | I127: 5 | J127: 3 | K127: =INDEX(N123:N130,INDEX(I127:J127,A97)) -> 100 | M127: 5 | N127: 100 | AH127: Tore alle | AI127: 5 | AJ127: 3 | AK127: =INDEX(AN123:AN130,INDEX(AI127:AJ127,AA97)) -> 100 | AM127: 5 | AN127: 100
H128: EMS | I128: 6 | J128: 6 | K128: =INDEX(N123:N130,INDEX(I128:J128,A97)) -> 1 | M128: 6 | N128: 1 | AH128: EMS | AI128: 6 | AJ128: 6 | AK128: =INDEX(AN123:AN130,INDEX(AI128:AJ128,AA97)) -> 1 | AM128: 6 | AN128: 1
H129: FP | I129: 8 | J129: 7 | K129: =INDEX(N123:N130,INDEX(I129:J129,A97)) -> 0.0001 | M129: 7 | N129: =1/100 -> 0.01 | AH129: FP | AI129: 8 | AJ129: 7 | AK129: =INDEX(AN123:AN130,INDEX(AI129:AJ129,AA97)) -> 0.0001 | AM129: 7 | AN129: =1/100 -> 0.01
H130: Anzahl Siege Alle | I130: 7 | J130: 8 | K130: =INDEX(N123:N130,INDEX(I130:J130,A97)) -> 0.01 | M130: 8 | N130: =1/10000 -> 0.0001 | AH130: Anzahl Siege Alle | AI130: 7 | AJ130: 8 | AK130: =INDEX(AN123:AN130,INDEX(AI130:AJ130,AA97)) -> 0.01 | AM130: 8 | AN130: =1/10000 -> 0.0001
C146: Rangpkt inkl. EMS und Koeff | AC146: Rangpkt inkl. EMS und Koeff
C147: Nr. | D147: RangPkt | E147: Rang | F147: Rang korr | AC147: Nr. | AD147: RangPkt | AE147: Rang | AF147: Rang korr
B148: Wert | C148: 1 | D148: =E123*1000+SUMIF($D$266:$E$277,"="&C97,$P$266:$Q$277)*$K$46+N97*$K$47+K104*$K$48 -> 1000.0001 | E148: =RANK(D148,$D$148:$D$151) -> 1 | F148: =E148+COUNTIF(E$147:E147,"="&E148) -> 1 | AB148: Wert | AC148: 1 | AD148: =AE123*1000+SUMIF($D$266:$E$277,"="&AC97,$P$266:$Q$277)*$K$46+AN97*$K$47+AK104*$K$48 -> 1000.0001 | AE148: =RANK(AD148,$AD$148:$AD$151) -> 1 | AF148: =AE148+COUNTIF(AE$147:AE147,"="&AE148) -> 1
C149: 2 | D149: =E124*1000+SUMIF($D$266:$E$277,"="&C98,$P$266:$Q$277)*$K$46+N98*$K$47+K105*$K$48 -> 1000.0001 | E149: =RANK(D149,$D$148:$D$151) -> 1 | F149: =E149+COUNTIF(E$147:E148,"="&E149) -> 2 | AC149: 2 | AD149: =AE124*1000+SUMIF($D$266:$E$277,"="&AC98,$P$266:$Q$277)*$K$46+AN98*$K$47+AK105*$K$48 -> 1000.0001 | AE149: =RANK(AD149,$AD$148:$AD$151) -> 1 | AF149: =AE149+COUNTIF(AE$147:AE148,"="&AE149) -> 2
C150: 3 | D150: =E125*1000+SUMIF($D$266:$E$277,"="&C99,$P$266:$Q$277)*$K$46+N99*$K$47+K106*$K$48 -> 1000.0001 | E150: =RANK(D150,$D$148:$D$151) -> 1 | F150: =E150+COUNTIF(E$147:E149,"="&E150) -> 3 | AC150: 3 | AD150: =AE125*1000+SUMIF($D$266:$E$277,"="&AC99,$P$266:$Q$277)*$K$46+AN99*$K$47+AK106*$K$48 -> 1000.0001 | AE150: =RANK(AD150,$AD$148:$AD$151) -> 1 | AF150: =AE150+COUNTIF(AE$147:AE149,"="&AE150) -> 3
C151: 4 | D151: =E126*1000+SUMIF($D$266:$E$277,"="&C100,$P$266:$Q$277)*$K$46+N100*$K$47+K107*$K$48 -> 1000.0001 | E151: =RANK(D151,$D$148:$D$151) -> 1 | F151: =E151+COUNTIF(E$147:E150,"="&E151) -> 4 | AC151: 4 | AD151: =AE126*1000+SUMIF($D$266:$E$277,"="&AC100,$P$266:$Q$277)*$K$46+AN100*$K$47+AK107*$K$48 -> 1000.0001 | AE151: =RANK(AD151,$AD$148:$AD$151) -> 1 | AF151: =AE151+COUNTIF(AE$147:AE150,"="&AE151) -> 4
J152: berechnete oder manuelle Tabelle | AJ152: berechnete oder manuelle Tabelle
B153: Tabelle | C153: Rang | D153: Nr | E153: Rang Eff | F153: Manuell | G153: =VLOOKUP(A86,ERGEBNISSE!$BQ$38:$BR$47,2,FALSE) -> FALSE | H153: Nr | J153: Nr korr | AB153: Tabelle | AC153: Rang | AD153: Nr | AE153: Rang Eff | AF153: Manuell | AG153: =VLOOKUP(AA86,ERGEBNISSE!$BQ$38:$BR$47,2,FALSE) -> FALSE | AH153: Nr | AJ153: Nr korr
B154: =INDEX(teams,INDEX(C97:C100,D154)) -> Slowenien | C154: 1 | D154: =MATCH(C154,$F$148:$F$151,0) -> 1 | E154: =IF(G153,C154,INDEX(E148:E151,D154)) -> 1 | F154: 1 | G154: 1 | H154: =IF(G153,VLOOKUP(A161,ERGEBNISSE!$BR$12:$BT$35,3,FALSE),D154) -> 1 | J154: =IF($G$153,H154,D154) -> 1 | AB154: =INDEX(teams,INDEX(AC97:AC100,AD154)) -> Polen | AC154: 1 | AD154: =MATCH(AC154,$AF$148:$AF$151,0) -> 1 | AE154: =IF(AG153,AC154,INDEX(AE148:AE151,AD154)) -> 1 | AF154: 1 | AG154: 1 | AH154: =IF(AG153,VLOOKUP(AA161,ERGEBNISSE!$BR$12:$BT$35,3,FALSE),AD154) -> 1 | AJ154: =IF($AG$153,AH154,AD154) -> 1
B155: =INDEX(teams,INDEX(C97:C100,D155)) -> Dänemark | C155: 2 | D155: =MATCH(C155,$F$148:$F$151,0) -> 2 | E155: =IF(G153,C155,INDEX(E148:E151,D155)) -> 1 | G155: 2 | H155: =IF(G153,VLOOKUP(A162,ERGEBNISSE!$BR$12:$BT$35,3,FALSE),D155) -> 2 | J155: =IF($G$153,H155,D155) -> 2 | AB155: =INDEX(teams,INDEX(AC97:AC100,AD155)) -> Niederlande | AC155: 2 | AD155: =MATCH(AC155,$AF$148:$AF$151,0) -> 2 | AE155: =IF(AG153,AC155,INDEX(AE148:AE151,AD155)) -> 1 | AG155: 2 | AH155: =IF(AG153,VLOOKUP(AA162,ERGEBNISSE!$BR$12:$BT$35,3,FALSE),AD155) -> 2 | AJ155: =IF($AG$153,AH155,AD155) -> 2
B156: =INDEX(teams,INDEX(C97:C100,D156)) -> Serbien | C156: 3 | D156: =MATCH(C156,$F$148:$F$151,0) -> 3 | E156: =IF(G153,C156,INDEX(E148:E151,D156)) -> 1 | G156: 3 | H156: =IF(G153,VLOOKUP(A163,ERGEBNISSE!$BR$12:$BT$35,3,FALSE),D156) -> 3 | J156: =IF($G$153,H156,D156) -> 3 | AB156: =INDEX(teams,INDEX(AC97:AC100,AD156)) -> Österreich | AC156: 3 | AD156: =MATCH(AC156,$AF$148:$AF$151,0) -> 3 | AE156: =IF(AG153,AC156,INDEX(AE148:AE151,AD156)) -> 1 | AG156: 3 | AH156: =IF(AG153,VLOOKUP(AA163,ERGEBNISSE!$BR$12:$BT$35,3,FALSE),AD156) -> 3 | AJ156: =IF($AG$153,AH156,AD156) -> 3
B157: =INDEX(teams,INDEX(C97:C100,D157)) -> England | C157: 4 | D157: =MATCH(C157,$F$148:$F$151,0) -> 4 | E157: =IF(G153,C157,INDEX(E148:E151,D157)) -> 1 | G157: 4 | H157: =IF(G153,VLOOKUP(A164,ERGEBNISSE!$BR$12:$BT$35,3,FALSE),D157) -> 4 | J157: =IF($G$153,H157,D157) -> 4 | AB157: =INDEX(teams,INDEX(AC97:AC100,AD157)) -> Frankreich | AC157: 4 | AD157: =MATCH(AC157,$AF$148:$AF$151,0) -> 4 | AE157: =IF(AG153,AC157,INDEX(AE148:AE151,AD157)) -> 1 | AG157: 4 | AH157: =IF(AG153,VLOOKUP(AA164,ERGEBNISSE!$BR$12:$BT$35,3,FALSE),AD157) -> 4 | AJ157: =IF($AG$153,AH157,AD157) -> 4
B160: Tabelle | C160: TeamIndex | D160: Nr | E160: Team | F160: Sp | G160: P | H160: T+ | I160: T- | J160: Diff | K160: S | L160: U | M160: N | AB160: Tabelle | AC160: TeamIndex | AD160: Nr | AE160: Team | AF160: Sp | AG160: P | AH160: T+ | AI160: T- | AJ160: Diff | AK160: S | AL160: U | AM160: N
A161: ="S"&A86 -> SC | B161: 1 | C161: =INDEX($C$97:$C$100,J154) -> 9 | D161: =J154 -> 1 | E161: =INDEX($H$97:$H$100,J154) -> SLO | F161: =SUMIF($D$88:$E$93,"="&$C161,$Q$88:$R$93) -> 0 | G161: =INDEX($D$97:$D$100,$J154) -> 0 | H161: =INDEX($E$97:$E$100,$J154) -> 0 | I161: =INDEX($F$97:$F$100,$J154) -> 0 | J161: =INDEX($G$97:$G$100,$J154) -> 0 | K161: =COUNTIF($S$88:$T$93,"="&K$160&$C161) -> 0 | L161: 0 | M161: 0 | AA161: ="S"&AA86 -> SD | AB161: 1 | AC161: =INDEX($AC$97:$AC$100,AJ154) -> 13 | AD161: =AJ154 -> 1 | AE161: =INDEX($AH$97:$AH$100,AJ154) -> POL | AF161: =SUMIF($AD$88:$AE$93,"="&$AC161,$AQ$88:$AR$93) -> 0 | AG161: =INDEX($AD$97:$AD$100,$AJ154) -> 0 | AH161: =INDEX($AE$97:$AE$100,$AJ154) -> 0 | AI161: =INDEX($AF$97:$AF$100,$AJ154) -> 0 | AJ161: =INDEX($AG$97:$AG$100,$AJ154) -> 0 | AK161: =COUNTIF($AS$88:$AT$93,"="&AK$160&$AC161) -> 0 | AL161: 0 | AM161: 0
A162: ="Z"&A86 -> ZC | B162: 2 | C162: =INDEX($C$97:$C$100,J155) -> 10 | D162: =J155 -> 2 | E162: =INDEX($H$97:$H$100,J155) -> DEN | F162: =SUMIF($D$88:$E$93,"="&$C162,$Q$88:$R$93) -> 0 | G162: =INDEX($D$97:$D$100,$J155) -> 0 | H162: =INDEX($E$97:$E$100,$J155) -> 0 | I162: =INDEX($F$97:$F$100,$J155) -> 0 | J162: =INDEX($G$97:$G$100,$J155) -> 0 | K162: 0 | L162: 0 | M162: 0 | AA162: ="Z"&AA86 -> ZD | AB162: 2 | AC162: =INDEX($AC$97:$AC$100,AJ155) -> 14 | AD162: =AJ155 -> 2 | AE162: =INDEX($AH$97:$AH$100,AJ155) -> NED | AF162: =SUMIF($AD$88:$AE$93,"="&$AC162,$AQ$88:$AR$93) -> 0 | AG162: =INDEX($AD$97:$AD$100,$AJ155) -> 0 | AH162: =INDEX($AE$97:$AE$100,$AJ155) -> 0 | AI162: =INDEX($AF$97:$AF$100,$AJ155) -> 0 | AJ162: =INDEX($AG$97:$AG$100,$AJ155) -> 0 | AK162: 0 | AL162: 0 | AM162: 0
A163: ="D"&A86 -> DC | B163: 3 | C163: =INDEX($C$97:$C$100,J156) -> 11 | D163: =J156 -> 3 | E163: =INDEX($H$97:$H$100,J156) -> SRB | F163: =SUMIF($D$88:$E$93,"="&$C163,$Q$88:$R$93) -> 0 | G163: =INDEX($D$97:$D$100,$J156) -> 0 | H163: =INDEX($E$97:$E$100,$J156) -> 0 | I163: =INDEX($F$97:$F$100,$J156) -> 0 | J163: =INDEX($G$97:$G$100,$J156) -> 0 | K163: 0 | L163: 0 | M163: 0 | AA163: ="D"&AA86 -> DD | AB163: 3 | AC163: =INDEX($AC$97:$AC$100,AJ156) -> 15 | AD163: =AJ156 -> 3 | AE163: =INDEX($AH$97:$AH$100,AJ156) -> AUT | AF163: =SUMIF($AD$88:$AE$93,"="&$AC163,$AQ$88:$AR$93) -> 0 | AG163: =INDEX($AD$97:$AD$100,$AJ156) -> 0 | AH163: =INDEX($AE$97:$AE$100,$AJ156) -> 0 | AI163: =INDEX($AF$97:$AF$100,$AJ156) -> 0 | AJ163: =INDEX($AG$97:$AG$100,$AJ156) -> 0 | AK163: 0 | AL163: 0 | AM163: 0
A164: ="V"&A86 -> VC | B164: 4 | C164: =INDEX($C$97:$C$100,J157) -> 12 | D164: =J157 -> 4 | E164: =INDEX($H$97:$H$100,J157) -> ENG | F164: =SUMIF($D$88:$E$93,"="&$C164,$Q$88:$R$93) -> 0 | G164: =INDEX($D$97:$D$100,$J157) -> 0 | H164: =INDEX($E$97:$E$100,$J157) -> 0 | I164: =INDEX($F$97:$F$100,$J157) -> 0 | J164: =INDEX($G$97:$G$100,$J157) -> 0 | K164: 0 | L164: 0 | M164: 0 | AA164: ="V"&AA86 -> VD | AB164: 4 | AC164: =INDEX($AC$97:$AC$100,AJ157) -> 16 | AD164: =AJ157 -> 4 | AE164: =INDEX($AH$97:$AH$100,AJ157) -> FRA | AF164: =SUMIF($AD$88:$AE$93,"="&$AC164,$AQ$88:$AR$93) -> 0 | AG164: =INDEX($AD$97:$AD$100,$AJ157) -> 0 | AH164: =INDEX($AE$97:$AE$100,$AJ157) -> 0 | AI164: =INDEX($AF$97:$AF$100,$AJ157) -> 0 | AJ164: =INDEX($AG$97:$AG$100,$AJ157) -> 0 | AK164: 0 | AL164: 0 | AM164: 0
A168: E | B168: Paarungen | G168: Resultat | K168: Punkte | Q168: =SUM(Q170:Q175) -> 0 | AA168: F | AB168: Paarungen | AG168: Resultat | AK168: Punkte | AQ168: =SUM(AQ170:AQ175) -> 0
A169: Nr | D169: HT | E169: AT | F169: HT2 | G169: ErgH | H169: ErgA | I169: ErgH2 | K169: PH | L169: PA | M169: DifH | N169: DifA | O169: WertH | P169: WertA | Q169: Spiele | S169: Resultat | AA169: Nr | AD169: HT | AE169: AT | AF169: HT2 | AG169: ErgH | AH169: ErgA | AI169: ErgH2 | AK169: PH | AL169: PA | AM169: DifH | AN169: DifA | AO169: WertH | AP169: WertA | AQ169: Spiele | AS169: Resultat
A170: 1 | B170: =D170&"#"&E170 -> 19#20 | C170: =E170&"#"&D170 -> 20#19 | D170: =VLOOKUP(J170,daten!$D$49:$J$84,6,FALSE) -> 19 | E170: =VLOOKUP(J170,daten!$D$49:$K$84,7,FALSE) -> 20 | F170: =D170 -> 19 | G170: =VLOOKUP(J170,ERGEBNISSE!$C$12:$F$47,3,FALSE) ->  | H170: =VLOOKUP(J170,ERGEBNISSE!$C$12:$F$47,4,FALSE) ->  | I170: =IF(LEN(G170)>0,G170,"") ->  | J170: =A168&A170 -> E1 | K170: =IF(COUNT(G170:H170)<>2,0,IF(G170>H170,3,IF(H170>G170,0,1))) -> 0 | L170: =IF(COUNT(G170:H170)<>2,0,IF(G170>H170,0,IF(H170>G170,3,1))) -> 0 | M170: =IF(COUNT(G170:H170)<>2,0,G170-H170) -> 0 | N170: =IF(COUNT(G170:H170)<>2,0,H170-I170) -> 0 | O170: =K170*1000+M170+IF(LEN(G170)=0,0,G170/1000) -> 0 | P170: 0 | Q170: =IF(COUNT(G170:H170)=2,1,0) -> 0 | R170: =Q170 -> 0 | S170: =IF(Q170=0,"X",IF(K170=3,"S",IF(K170=0,"N","U")))&D170 -> X19 | T170: X20 | AA170: 1 | AB170: =AD170&"#"&AE170 -> 21#22 | AC170: =AE170&"#"&AD170 -> 22#21 | AD170: =VLOOKUP(AJ170,daten!$D$49:$J$84,6,FALSE) -> 21 | AE170: =VLOOKUP(AJ170,daten!$D$49:$K$84,7,FALSE) -> 22 | AF170: =AD170 -> 21 | AG170: =VLOOKUP(AJ170,ERGEBNISSE!$C$12:$F$47,3,FALSE) ->  | AH170: =VLOOKUP(AJ170,ERGEBNISSE!$C$12:$F$47,4,FALSE) ->  | AI170: =IF(LEN(AG170)>0,AG170,"") ->  | AJ170: =AA168&AA170 -> F1 | AK170: =IF(COUNT(AG170:AH170)<>2,0,IF(AG170>AH170,3,IF(AH170>AG170,0,1))) -> 0 | AL170: =IF(COUNT(AG170:AH170)<>2,0,IF(AG170>AH170,0,IF(AH170>AG170,3,1))) -> 0 | AM170: =IF(COUNT(AG170:AH170)<>2,0,AG170-AH170) -> 0 | AN170: =IF(COUNT(AG170:AH170)<>2,0,AH170-AI170) -> 0 | AO170: =AK170*1000+AM170+IF(LEN(AG170)=0,0,AG170/1000) -> 0 | AP170: 0 | AQ170: =IF(COUNT(AG170:AH170)=2,1,0) -> 0 | AR170: =AQ170 -> 0 | AS170: =IF(AQ170=0,"X",IF(AK170=3,"S",IF(AK170=0,"N","U")))&AD170 -> X21 | AT170: X22
A171: 2 | B171: 17#18 | C171: 18#17 | D171: =VLOOKUP(J171,daten!$D$49:$J$84,6,FALSE) -> 17 | E171: =VLOOKUP(J171,daten!$D$49:$K$84,7,FALSE) -> 18 | F171: 17 | G171: =VLOOKUP(J171,ERGEBNISSE!$C$12:$F$47,3,FALSE) ->  | H171: =VLOOKUP(J171,ERGEBNISSE!$C$12:$F$47,4,FALSE) ->  | J171: =A168&A171 -> E2 | K171: 0 | L171: 0 | M171: 0 | N171: 0 | O171: 0 | P171: 0 | Q171: 0 | R171: 0 | S171: X17 | T171: X18 | AA171: 2 | AB171: 23#24 | AC171: 24#23 | AD171: =VLOOKUP(AJ171,daten!$D$49:$J$84,6,FALSE) -> 23 | AE171: =VLOOKUP(AJ171,daten!$D$49:$K$84,7,FALSE) -> 24 | AF171: 23 | AG171: =VLOOKUP(AJ171,ERGEBNISSE!$C$12:$F$47,3,FALSE) ->  | AH171: =VLOOKUP(AJ171,ERGEBNISSE!$C$12:$F$47,4,FALSE) ->  | AJ171: =AA168&AA171 -> F2 | AK171: 0 | AL171: 0 | AM171: 0 | AN171: 0 | AO171: 0 | AP171: 0 | AQ171: 0 | AR171: 0 | AS171: X23 | AT171: X24
A172: 3 | B172: 18#20 | C172: 20#18 | D172: =VLOOKUP(J172,daten!$D$49:$J$84,6,FALSE) -> 18 | E172: =VLOOKUP(J172,daten!$D$49:$K$84,7,FALSE) -> 20 | F172: 18 | G172: =VLOOKUP(J172,ERGEBNISSE!$C$12:$F$47,3,FALSE) ->  | H172: =VLOOKUP(J172,ERGEBNISSE!$C$12:$F$47,4,FALSE) ->  | J172: =A168&A172 -> E3 | K172: 0 | L172: 0 | M172: 0 | N172: 0 | O172: 0 | P172: 0 | Q172: 0 | R172: 0 | S172: X18 | T172: X20 | AA172: 3 | AB172: 22#24 | AC172: 24#22 | AD172: =VLOOKUP(AJ172,daten!$D$49:$J$84,6,FALSE) -> 22 | AE172: =VLOOKUP(AJ172,daten!$D$49:$K$84,7,FALSE) -> 24 | AF172: 22 | AG172: =VLOOKUP(AJ172,ERGEBNISSE!$C$12:$F$47,3,FALSE) ->  | AH172: =VLOOKUP(AJ172,ERGEBNISSE!$C$12:$F$47,4,FALSE) ->  | AJ172: =AA168&AA172 -> F3 | AK172: 0 | AL172: 0 | AM172: 0 | AN172: 0 | AO172: 0 | AP172: 0 | AQ172: 0 | AR172: 0 | AS172: X22 | AT172: X24
A173: 4 | B173: 17#19 | C173: 19#17 | D173: =VLOOKUP(J173,daten!$D$49:$J$84,6,FALSE) -> 17 | E173: =VLOOKUP(J173,daten!$D$49:$K$84,7,FALSE) -> 19 | F173: 17 | G173: =VLOOKUP(J173,ERGEBNISSE!$C$12:$F$47,3,FALSE) ->  | H173: =VLOOKUP(J173,ERGEBNISSE!$C$12:$F$47,4,FALSE) ->  | J173: =A168&A173 -> E4 | K173: 0 | L173: 0 | M173: 0 | N173: 0 | O173: 0 | P173: 0 | Q173: 0 | R173: 0 | S173: X17 | T173: X19 | AA173: 4 | AB173: 21#23 | AC173: 23#21 | AD173: =VLOOKUP(AJ173,daten!$D$49:$J$84,6,FALSE) -> 21 | AE173: =VLOOKUP(AJ173,daten!$D$49:$K$84,7,FALSE) -> 23 | AF173: 21 | AG173: =VLOOKUP(AJ173,ERGEBNISSE!$C$12:$F$47,3,FALSE) ->  | AH173: =VLOOKUP(AJ173,ERGEBNISSE!$C$12:$F$47,4,FALSE) ->  | AJ173: =AA168&AA173 -> F4 | AK173: 0 | AL173: 0 | AM173: 0 | AN173: 0 | AO173: 0 | AP173: 0 | AQ173: 0 | AR173: 0 | AS173: X21 | AT173: X23
A174: 5 | B174: 18#19 | C174: 19#18 | D174: =VLOOKUP(J174,daten!$D$49:$J$84,6,FALSE) -> 18 | E174: =VLOOKUP(J174,daten!$D$49:$K$84,7,FALSE) -> 19 | F174: 18 | G174: =VLOOKUP(J174,ERGEBNISSE!$C$12:$F$47,3,FALSE) ->  | H174: =VLOOKUP(J174,ERGEBNISSE!$C$12:$F$47,4,FALSE) ->  | J174: =A168&A174 -> E5 | K174: 0 | L174: 0 | M174: 0 | N174: 0 | O174: 0 | P174: 0 | Q174: 0 | R174: 0 | S174: X18 | T174: X19 | AA174: 5 | AB174: 22#23 | AC174: 23#22 | AD174: =VLOOKUP(AJ174,daten!$D$49:$J$84,6,FALSE) -> 22 | AE174: =VLOOKUP(AJ174,daten!$D$49:$K$84,7,FALSE) -> 23 | AF174: 22 | AG174: =VLOOKUP(AJ174,ERGEBNISSE!$C$12:$F$47,3,FALSE) ->  | AH174: =VLOOKUP(AJ174,ERGEBNISSE!$C$12:$F$47,4,FALSE) ->  | AJ174: =AA168&AA174 -> F5 | AK174: 0 | AL174: 0 | AM174: 0 | AN174: 0 | AO174: 0 | AP174: 0 | AQ174: 0 | AR174: 0 | AS174: X22 | AT174: X23
A175: 6 | B175: 20#17 | C175: 17#20 | D175: =VLOOKUP(J175,daten!$D$49:$J$84,6,FALSE) -> 20 | E175: =VLOOKUP(J175,daten!$D$49:$K$84,7,FALSE) -> 17 | F175: 20 | G175: =VLOOKUP(J175,ERGEBNISSE!$C$12:$F$47,3,FALSE) ->  | H175: =VLOOKUP(J175,ERGEBNISSE!$C$12:$F$47,4,FALSE) ->  | J175: =A168&A175 -> E6 | K175: 0 | L175: 0 | M175: 0 | N175: 0 | O175: 0 | P175: 0 | Q175: 0 | R175: 0 | S175: X20 | T175: X17 | AA175: 6 | AB175: 24#21 | AC175: 21#24 | AD175: =VLOOKUP(AJ175,daten!$D$49:$J$84,6,FALSE) -> 24 | AE175: =VLOOKUP(AJ175,daten!$D$49:$K$84,7,FALSE) -> 21 | AF175: 24 | AG175: =VLOOKUP(AJ175,ERGEBNISSE!$C$12:$F$47,3,FALSE) ->  | AH175: =VLOOKUP(AJ175,ERGEBNISSE!$C$12:$F$47,4,FALSE) ->  | AJ175: =AA168&AA175 -> F6 | AK175: 0 | AL175: 0 | AM175: 0 | AN175: 0 | AO175: 0 | AP175: 0 | AQ175: 0 | AR175: 0 | AS175: X24 | AT175: X21
A178: Modus | C178: TeamIdx | D178: P | E178: Treffer | F178: GTo | G178: Dif | H178: Team | I178: RangPkt | K178: Koeff | M178: Rang | N178: RangPkt | AA178: Modus | AC178: TeamIdx | AD178: P | AE178: Treffer | AF178: GTo | AG178: Dif | AH178: Team | AI178: RangPkt | AK178: Koeff | AM178: Rang | AN178: RangPkt
A179: 1 | C179: 17 | D179: =SUMIF($D$170:$E$175,"="&C179,$K$170:$L$175) -> 0 | E179: =SUMIF($D$170:$E$175,"="&$C179,$G$170:$H$175) -> 0 | F179: =E179-G179 -> 0 | G179: =SUMIF($D$170:$E$175,"="&$C179,$G$170:$H$175)-SUMIF($D$170:$E$175,"="&$C179,$H$170:$I$175) -> 0 | H179: =INDEX(teams_k,C179) -> BEL | I179: =RANK(D179,$D$179:$D$182,1) -> 1 | L179: 1 | M179: =INDEX(daten!$CM$147:$CM$170,C179) -> 1 | N179: =RANK(M179,$M$179:$M$182) -> 1 | AA179: 1 | AC179: 21 | AD179: =SUMIF($AD$170:$AE$175,"="&AC179,$AK$170:$AL$175) -> 0 | AE179: =SUMIF($AD$170:$AE$175,"="&$AC179,$AG$170:$AH$175) -> 0 | AF179: =AE179-AG179 -> 0 | AG179: =SUMIF($AD$170:$AE$175,"="&$AC179,$AG$170:$AH$175)-SUMIF($AD$170:$AE$175,"="&$AC179,$AH$170:$AI$175) -> 0 | AH179: =INDEX(teams_k,AC179) -> TUR | AI179: =RANK(AD179,$AD$179:$AD$182,1) -> 1 | AL179: 1 | AM179: =INDEX(daten!$CM$147:$CM$170,AC179) -> 1 | AN179: =RANK(AM179,$AM$179:$AM$182) -> 1
C180: 18 | D180: =SUMIF($D$170:$E$175,"="&C180,$K$170:$L$175) -> 0 | E180: =SUMIF($D$170:$E$175,"="&$C180,$G$170:$H$175) -> 0 | F180: =E180-G180 -> 0 | G180: =SUMIF($D$170:$E$175,"="&$C180,$G$170:$H$175)-SUMIF($D$170:$E$175,"="&$C180,$H$170:$I$175) -> 0 | H180: =INDEX(teams_k,C180) -> SVK | I180: =RANK(D180,$D$179:$D$182,1) -> 1 | L180: 2 | M180: =INDEX(daten!$CM$147:$CM$170,C180) -> 1 | N180: =RANK(M180,$M$179:$M$182) -> 1 | AC180: 22 | AD180: =SUMIF($AD$170:$AE$175,"="&AC180,$AK$170:$AL$175) -> 0 | AE180: =SUMIF($AD$170:$AE$175,"="&$AC180,$AG$170:$AH$175) -> 0 | AF180: =AE180-AG180 -> 0 | AG180: =SUMIF($AD$170:$AE$175,"="&$AC180,$AG$170:$AH$175)-SUMIF($AD$170:$AE$175,"="&$AC180,$AH$170:$AI$175) -> 0 | AH180: =INDEX(teams_k,AC180) -> GEO | AI180: =RANK(AD180,$AD$179:$AD$182,1) -> 1 | AL180: 2 | AM180: =INDEX(daten!$CM$147:$CM$170,AC180) -> 1 | AN180: =RANK(AM180,$AM$179:$AM$182) -> 1
C181: 19 | D181: =SUMIF($D$170:$E$175,"="&C181,$K$170:$L$175) -> 0 | E181: =SUMIF($D$170:$E$175,"="&$C181,$G$170:$H$175) -> 0 | F181: =E181-G181 -> 0 | G181: =SUMIF($D$170:$E$175,"="&$C181,$G$170:$H$175)-SUMIF($D$170:$E$175,"="&$C181,$H$170:$I$175) -> 0 | H181: =INDEX(teams_k,C181) -> ROM | I181: =RANK(D181,$D$179:$D$182,1) -> 1 | L181: 3 | M181: =INDEX(daten!$CM$147:$CM$170,C181) -> 1 | N181: =RANK(M181,$M$179:$M$182) -> 1 | AC181: 23 | AD181: =SUMIF($AD$170:$AE$175,"="&AC181,$AK$170:$AL$175) -> 0 | AE181: =SUMIF($AD$170:$AE$175,"="&$AC181,$AG$170:$AH$175) -> 0 | AF181: =AE181-AG181 -> 0 | AG181: =SUMIF($AD$170:$AE$175,"="&$AC181,$AG$170:$AH$175)-SUMIF($AD$170:$AE$175,"="&$AC181,$AH$170:$AI$175) -> 0 | AH181: =INDEX(teams_k,AC181) -> POR | AI181: =RANK(AD181,$AD$179:$AD$182,1) -> 1 | AL181: 3 | AM181: =INDEX(daten!$CM$147:$CM$170,AC181) -> 1 | AN181: =RANK(AM181,$AM$179:$AM$182) -> 1
C182: 20 | D182: =SUMIF($D$170:$E$175,"="&C182,$K$170:$L$175) -> 0 | E182: =SUMIF($D$170:$E$175,"="&$C182,$G$170:$H$175) -> 0 | F182: =E182-G182 -> 0 | G182: =SUMIF($D$170:$E$175,"="&$C182,$G$170:$H$175)-SUMIF($D$170:$E$175,"="&$C182,$H$170:$I$175) -> 0 | H182: =INDEX(teams_k,C182) -> UKR | I182: =RANK(D182,$D$179:$D$182,1) -> 1 | L182: 4 | M182: =INDEX(daten!$CM$147:$CM$170,C182) -> 1 | N182: =RANK(M182,$M$179:$M$182) -> 1 | AC182: 24 | AD182: =SUMIF($AD$170:$AE$175,"="&AC182,$AK$170:$AL$175) -> 0 | AE182: =SUMIF($AD$170:$AE$175,"="&$AC182,$AG$170:$AH$175) -> 0 | AF182: =AE182-AG182 -> 0 | AG182: =SUMIF($AD$170:$AE$175,"="&$AC182,$AG$170:$AH$175)-SUMIF($AD$170:$AE$175,"="&$AC182,$AH$170:$AI$175) -> 0 | AH182: =INDEX(teams_k,AC182) -> CZE | AI182: =RANK(AD182,$AD$179:$AD$182,1) -> 1 | AL182: 4 | AM182: =INDEX(daten!$CM$147:$CM$170,AC182) -> 1 | AN182: =RANK(AM182,$AM$179:$AM$182) -> 1
B184: DV1 | D184: =B186 -> 17 | E184: =B187 -> 18 | F184: =B188 -> 19 | G184: =B189 -> 20 | AB184: DV1 | AD184: =AB186 -> 21 | AE184: =AB187 -> 22 | AF184: =AB188 -> 23 | AG184: =AB189 -> 24
B185: TeamIndex | C185: Nr | D185: =C186 -> 1 | E185: =C187 -> 2 | F185: =C188 -> 3 | G185: =C189 -> 4 | I185: RangPkt. | K185: Siege | AB185: TeamIndex | AC185: Nr | AD185: =AC186 -> 1 | AE185: =AC187 -> 2 | AF185: =AC188 -> 3 | AG185: =AC189 -> 4 | AI185: RangPkt. | AK185: Siege
B186: =INDEX($C$179:$C$182,C186) -> 17 | C186: 1 | D186: =IF(INDEX($I$179:$I$182,$C186)<>INDEX($I$179:$I$182,D$185),0,SUMIF($B$170:$C$175,"="&$B186&"#"&D$184,$O$170:$P$175)) -> 0 | E186: 0 | F186: 0 | G186: 0 | H186: =SUM(D186:G186) -> 0 | I186: =RANK(H186,$H$186:$H$189,1) -> 1 | K186: =COUNTIF(S170:T175,"S"&B186) -> 0 | AB186: =INDEX($AC$179:$AC$182,AC186) -> 21 | AC186: 1 | AD186: =IF(INDEX($AI$179:$AI$182,$AC186)<>INDEX($AI$179:$AI$182,AD$185),0,SUMIF($AB$170:$AC$175,"="&$AB186&"#"&AD$184,$AO$170:$AP$175)) -> 0 | AE186: 0 | AF186: 0 | AG186: 0 | AH186: =SUM(AD186:AG186) -> 0 | AI186: =RANK(AH186,$AH$186:$AH$189,1) -> 1 | AK186: =COUNTIF(AS170:AT175,"S"&AB186) -> 0
B187: =INDEX($C$179:$C$182,C187) -> 18 | C187: 2 | D187: 0 | E187: 0 | F187: 0 | G187: 0 | H187: =SUM(D187:G187) -> 0 | I187: =RANK(H187,$H$186:$H$189,1) -> 1 | K187: =COUNTIF(S170:T175,"S"&B187) -> 0 | AB187: =INDEX($AC$179:$AC$182,AC187) -> 22 | AC187: 2 | AD187: 0 | AE187: 0 | AF187: 0 | AG187: 0 | AH187: =SUM(AD187:AG187) -> 0 | AI187: =RANK(AH187,$AH$186:$AH$189,1) -> 1 | AK187: =COUNTIF(AS170:AT175,"S"&AB187) -> 0
B188: =INDEX($C$179:$C$182,C188) -> 19 | C188: 3 | D188: 0 | E188: 0 | F188: 0 | G188: 0 | H188: =SUM(D188:G188) -> 0 | I188: =RANK(H188,$H$186:$H$189,1) -> 1 | K188: =COUNTIF(S170:T175,"S"&B188) -> 0 | AB188: =INDEX($AC$179:$AC$182,AC188) -> 23 | AC188: 3 | AD188: 0 | AE188: 0 | AF188: 0 | AG188: 0 | AH188: =SUM(AD188:AG188) -> 0 | AI188: =RANK(AH188,$AH$186:$AH$189,1) -> 1 | AK188: =COUNTIF(AS170:AT175,"S"&AB188) -> 0
B189: =INDEX($C$179:$C$182,C189) -> 20 | C189: 4 | D189: 0 | E189: 0 | F189: 0 | G189: 0 | H189: =SUM(D189:G189) -> 0 | I189: =RANK(H189,$H$186:$H$189,1) -> 1 | K189: =COUNTIF(S170:T175,"S"&B189) -> 0 | AB189: =INDEX($AC$179:$AC$182,AC189) -> 24 | AC189: 4 | AD189: 0 | AE189: 0 | AF189: 0 | AG189: 0 | AH189: =SUM(AD189:AG189) -> 0 | AI189: =RANK(AH189,$AH$186:$AH$189,1) -> 1 | AK189: =COUNTIF(AS170:AT175,"S"&AB189) -> 0
B191: DV2 | C191: Nr | D191: =C192 -> 1 | E191: =C193 -> 2 | F191: =C194 -> 3 | G191: =C195 -> 4 | I191: RangPkt. | AB191: DV2 | AC191: Nr | AD191: =AC192 -> 1 | AE191: =AC193 -> 2 | AF191: =AC194 -> 3 | AG191: =AC195 -> 4 | AI191: RangPkt.
B192: =B186 -> 17 | C192: 1 | D192: =IF(D186=0,0,IF(INDEX($I$186:$I$189,$C186)<>INDEX($I$186:$I$189,D$185),0,SUMIF($B$170:$C$175,"="&$B186&"#"&D$184,$K$170:$L$175)*1000+SUMIF($B$170:$C$175,"="&$B186&"#"&D$184,$M$170:$N$175)+SUMIF($B$170:$C$175,"="&$B186&"#"&D$184,$G$170:$H$175)/1000)) -> 0 | E192: 0 | F192: 0 | G192: 0 | H192: =SUM(D192:G192) -> 0 | I192: =RANK(H192,$H$192:$H$195,1) -> 1 | AB192: =AB186 -> 21 | AC192: 1 | AD192: =IF(AD186=0,0,IF(INDEX($AI$186:$AI$189,$AC186)<>INDEX($AI$186:$AI$189,AD$185),0,SUMIF($AB$170:$AC$175,"="&$AB186&"#"&AD$184,$AK$170:$AL$175)*1000+SUMIF($AB$170:$AC$175,"="&$AB186&"#"&AD$184,$AM$170:$AN$175)+SUMIF($AB$170:$AC$175,"="&$AB186&"#"&AD$184,$AG$170:$AH$175)/1000)) -> 0 | AE192: 0 | AF192: 0 | AG192: 0 | AH192: =SUM(AD192:AG192) -> 0 | AI192: =RANK(AH192,$AH$192:$AH$195,1) -> 1
B193: =B187 -> 18 | C193: 2 | D193: 0 | E193: 0 | F193: 0 | G193: 0 | H193: =SUM(D193:G193) -> 0 | I193: =RANK(H193,$H$192:$H$195,1) -> 1 | AB193: =AB187 -> 22 | AC193: 2 | AD193: 0 | AE193: 0 | AF193: 0 | AG193: 0 | AH193: =SUM(AD193:AG193) -> 0 | AI193: =RANK(AH193,$AH$192:$AH$195,1) -> 1
B194: =B188 -> 19 | C194: 3 | D194: 0 | E194: 0 | F194: 0 | G194: 0 | H194: =SUM(D194:G194) -> 0 | I194: =RANK(H194,$H$192:$H$195,1) -> 1 | AB194: =AB188 -> 23 | AC194: 3 | AD194: 0 | AE194: 0 | AF194: 0 | AG194: 0 | AH194: =SUM(AD194:AG194) -> 0 | AI194: =RANK(AH194,$AH$192:$AH$195,1) -> 1
B195: =B189 -> 20 | C195: 4 | D195: 0 | E195: 0 | F195: 0 | G195: 0 | H195: =SUM(D195:G195) -> 0 | I195: =RANK(H195,$H$192:$H$195,1) -> 1 | AB195: =AB189 -> 24 | AC195: 4 | AD195: 0 | AE195: 0 | AF195: 0 | AG195: 0 | AH195: =SUM(AD195:AG195) -> 0 | AI195: =RANK(AH195,$AH$192:$AH$195,1) -> 1
C197: Nr | D197: RangPkt | H197: RangPkt | AC197: Nr | AD197: RangPkt | AH197: RangPkt
B198: Diff | C198: 1 | D198: =RANK(G179,$G$179:$G$182,1) -> 1 | F198: Tore | G198: 1 | H198: =RANK(E179,$E$179:$E$182,1) -> 1 | AB198: Diff | AC198: 1 | AD198: =RANK(AG179,$AG$179:$AG$182,1) -> 1 | AF198: Tore | AG198: 1 | AH198: =RANK(AE179,$AE$179:$AE$182,1) -> 1
C199: 2 | D199: =RANK(G180,$G$179:$G$182,1) -> 1 | G199: 2 | H199: =RANK(E180,$E$179:$E$182,1) -> 1 | AC199: 2 | AD199: =RANK(AG180,$AG$179:$AG$182,1) -> 1 | AG199: 2 | AH199: =RANK(AE180,$AE$179:$AE$182,1) -> 1
C200: 3 | D200: =RANK(G181,$G$179:$G$182,1) -> 1 | G200: 3 | H200: =RANK(E181,$E$179:$E$182,1) -> 1 | AC200: 3 | AD200: =RANK(AG181,$AG$179:$AG$182,1) -> 1 | AG200: 3 | AH200: =RANK(AE181,$AE$179:$AE$182,1) -> 1
C201: 4 | D201: =RANK(G182,$G$179:$G$182,1) -> 1 | G201: 4 | H201: =RANK(E182,$E$179:$E$182,1) -> 1 | AC201: 4 | AD201: =RANK(AG182,$AG$179:$AG$182,1) -> 1 | AG201: 4 | AH201: =RANK(AE182,$AE$179:$AE$182,1) -> 1
I203: Modus | AI203: Modus
C204: Nr | E204: RangPkt | F204: Rang | H204: Wertigkeit | I204: 1 | J204: 2 | K204: Faktor | M204: Faktoren | AC204: Nr | AE204: RangPkt | AF204: Rang | AH204: Wertigkeit | AI204: 1 | AJ204: 2 | AK204: Faktor | AM204: Faktoren
B205: Wert | C205: 1 | D205: =I179*$K$205+I186*$K$206+I192*$K$207+D198*$K$208+H198*$K$209 -> 10101010100 | E205: =RANK(D205,$D$205:$D$208,1) -> 1 | F205: =RANK(D205,$D$205:$D$208) -> 1 | H205: Punkte | I205: 1 | J205: 1 | K205: =INDEX(N205:N212,INDEX(I205:J205,A179)) -> 10000000000 | M205: 1 | N205: 10000000000 | AB205: Wert | AC205: 1 | AD205: =AI179*$AK$205+AI186*$AK$206+AI192*$AK$207+AD198*$AK$208+AH198*$AK$209 -> 10101010100 | AE205: =RANK(AD205,$AD$205:$AD$208,1) -> 1 | AF205: =RANK(AD205,$AD$205:$AD$208) -> 1 | AH205: Punkte | AI205: 1 | AJ205: 1 | AK205: =INDEX(AN205:AN212,INDEX(AI205:AJ205,AA179)) -> 10000000000 | AM205: 1 | AN205: 10000000000
C206: 2 | D206: =I180*$K$205+I187*$K$206+I193*$K$207+D199*$K$208+H199*$K$209 -> 10101010100 | E206: =RANK(D206,$D$205:$D$208,1) -> 1 | F206: =RANK(D206,$D$205:$D$208) -> 1 | H206: DV1 | I206: 2 | J206: 4 | K206: =INDEX(N205:N212,INDEX(I206:J206,A179)) -> 100000000 | M206: 2 | N206: 100000000 | AC206: 2 | AD206: =AI180*$AK$205+AI187*$AK$206+AI193*$AK$207+AD199*$AK$208+AH199*$AK$209 -> 10101010100 | AE206: =RANK(AD206,$AD$205:$AD$208,1) -> 1 | AF206: =RANK(AD206,$AD$205:$AD$208) -> 1 | AH206: DV1 | AI206: 2 | AJ206: 4 | AK206: =INDEX(AN205:AN212,INDEX(AI206:AJ206,AA179)) -> 100000000 | AM206: 2 | AN206: 100000000
C207: 3 | D207: =I181*$K$205+I188*$K$206+I194*$K$207+D200*$K$208+H200*$K$209 -> 10101010100 | E207: =RANK(D207,$D$205:$D$208,1) -> 1 | F207: =RANK(D207,$D$205:$D$208) -> 1 | H207: DV2 | I207: 3 | J207: 5 | K207: =INDEX(N205:N212,INDEX(I207:J207,A179)) -> 1000000 | M207: 3 | N207: 1000000 | AC207: 3 | AD207: =AI181*$AK$205+AI188*$AK$206+AI194*$AK$207+AD200*$AK$208+AH200*$AK$209 -> 10101010100 | AE207: =RANK(AD207,$AD$205:$AD$208,1) -> 1 | AF207: =RANK(AD207,$AD$205:$AD$208) -> 1 | AH207: DV2 | AI207: 3 | AJ207: 5 | AK207: =INDEX(AN205:AN212,INDEX(AI207:AJ207,AA179)) -> 1000000 | AM207: 3 | AN207: 1000000
C208: 4 | D208: =I182*$K$205+I189*$K$206+I195*$K$207+D201*$K$208+H201*$K$209 -> 10101010100 | E208: =RANK(D208,$D$205:$D$208,1) -> 1 | F208: =RANK(D208,$D$205:$D$208) -> 1 | H208: TD alle | I208: 4 | J208: 2 | K208: =INDEX(N205:N212,INDEX(I208:J208,A179)) -> 10000 | M208: 4 | N208: 10000 | AC208: 4 | AD208: =AI182*$AK$205+AI189*$AK$206+AI195*$AK$207+AD201*$AK$208+AH201*$AK$209 -> 10101010100 | AE208: =RANK(AD208,$AD$205:$AD$208,1) -> 1 | AF208: =RANK(AD208,$AD$205:$AD$208) -> 1 | AH208: TD alle | AI208: 4 | AJ208: 2 | AK208: =INDEX(AN205:AN212,INDEX(AI208:AJ208,AA179)) -> 10000 | AM208: 4 | AN208: 10000
H209: Tore alle | I209: 5 | J209: 3 | K209: =INDEX(N205:N212,INDEX(I209:J209,A179)) -> 100 | M209: 5 | N209: 100 | AH209: Tore alle | AI209: 5 | AJ209: 3 | AK209: =INDEX(AN205:AN212,INDEX(AI209:AJ209,AA179)) -> 100 | AM209: 5 | AN209: 100
H210: EMS | I210: 6 | J210: 6 | K210: =INDEX(N205:N212,INDEX(I210:J210,A179)) -> 1 | M210: 6 | N210: 1 | AH210: EMS | AI210: 6 | AJ210: 6 | AK210: =INDEX(AN205:AN212,INDEX(AI210:AJ210,AA179)) -> 1 | AM210: 6 | AN210: 1
H211: FP | I211: 8 | J211: 7 | K211: =INDEX(N205:N212,INDEX(I211:J211,A179)) -> 0.0001 | M211: 7 | N211: =1/100 -> 0.01 | AH211: FP | AI211: 8 | AJ211: 7 | AK211: =INDEX(AN205:AN212,INDEX(AI211:AJ211,AA179)) -> 0.0001 | AM211: 7 | AN211: =1/100 -> 0.01
H212: Anzahl Siege Alle | I212: 7 | J212: 8 | K212: =INDEX(N205:N212,INDEX(I212:J212,A179)) -> 0.01 | M212: 8 | N212: =1/10000 -> 0.0001 | AH212: Anzahl Siege Alle | AI212: 7 | AJ212: 8 | AK212: =INDEX(AN205:AN212,INDEX(AI212:AJ212,AA179)) -> 0.01 | AM212: 8 | AN212: =1/10000 -> 0.0001
C228: Rangpkt inkl. EMS und Koeff | AC228: Rangpkt inkl. EMS und Koeff
C229: Nr. | D229: RangPkt | E229: Rang | F229: Rang korr | AC229: Nr. | AD229: RangPkt | AE229: Rang | AF229: Rang korr
B230: Wert | C230: 1 | D230: =E205*1000+SUMIF($D$266:$E$277,"="&C179,$P$266:$Q$277)*$K$46+N179*$K$47+K186*$K$48 -> 1000.0001 | E230: =RANK(D230,$D$230:$D$233) -> 1 | F230: =E230+COUNTIF(E$229:E229,"="&E230) -> 1 | AB230: Wert | AC230: 1 | AD230: =AE205*1000+SUMIF($D$266:$E$277,"="&AC179,$P$266:$Q$277)*$K$46+AN179*$K$47+AK186*$K$48 -> 1000.0001 | AE230: =RANK(AD230,$AD$230:$AD$233) -> 1 | AF230: =AE230+COUNTIF(AE$229:AE229,"="&AE230) -> 1
C231: 2 | D231: =E206*1000+SUMIF($D$266:$E$277,"="&C180,$P$266:$Q$277)*$K$46+N180*$K$47+K187*$K$48 -> 1000.0001 | E231: =RANK(D231,$D$230:$D$233) -> 1 | F231: =E231+COUNTIF(E$229:E230,"="&E231) -> 2 | AC231: 2 | AD231: =AE206*1000+SUMIF($D$266:$E$277,"="&AC180,$P$266:$Q$277)*$K$46+AN180*$K$47+AK187*$K$48 -> 1000.0001 | AE231: =RANK(AD231,$AD$230:$AD$233) -> 1 | AF231: =AE231+COUNTIF(AE$229:AE230,"="&AE231) -> 2
C232: 3 | D232: =E207*1000+SUMIF($D$266:$E$277,"="&C181,$P$266:$Q$277)*$K$46+N181*$K$47+K188*$K$48 -> 1000.0001 | E232: =RANK(D232,$D$230:$D$233) -> 1 | F232: =E232+COUNTIF(E$229:E231,"="&E232) -> 3 | AC232: 3 | AD232: =AE207*1000+SUMIF($D$266:$E$277,"="&AC181,$P$266:$Q$277)*$K$46+AN181*$K$47+AK188*$K$48 -> 1000.0001 | AE232: =RANK(AD232,$AD$230:$AD$233) -> 1 | AF232: =AE232+COUNTIF(AE$229:AE231,"="&AE232) -> 3
C233: 4 | D233: =E208*1000+SUMIF($D$266:$E$277,"="&C182,$P$266:$Q$277)*$K$46+N182*$K$47+K189*$K$48 -> 1000.0001 | E233: =RANK(D233,$D$230:$D$233) -> 1 | F233: =E233+COUNTIF(E$229:E232,"="&E233) -> 4 | AC233: 4 | AD233: =AE208*1000+SUMIF($D$266:$E$277,"="&AC182,$P$266:$Q$277)*$K$46+AN182*$K$47+AK189*$K$48 -> 1000.0001 | AE233: =RANK(AD233,$AD$230:$AD$233) -> 1 | AF233: =AE233+COUNTIF(AE$229:AE232,"="&AE233) -> 4
J234: berechnete oder manuelle Tabelle | AJ234: berechnete oder manuelle Tabelle
B235: Tabelle | C235: Rang | D235: Nr | E235: Rang Eff | F235: Manuell | G235: =VLOOKUP(A168,ERGEBNISSE!$BQ$38:$BR$47,2,FALSE) -> FALSE | H235: Nr | J235: Nr korr | AB235: Tabelle | AC235: Rang | AD235: Nr | AE235: Rang Eff | AF235: Manuell | AG235: =VLOOKUP(AA168,ERGEBNISSE!$BQ$38:$BR$47,2,FALSE) -> FALSE | AH235: Nr | AJ235: Nr korr
B236: =INDEX(teams,INDEX(C179:C182,D236)) -> Belgien | C236: 1 | D236: =MATCH(C236,$F$230:$F$233,0) -> 1 | E236: =IF(G235,C236,INDEX(E230:E233,D236)) -> 1 | F236: 1 | G236: 1 | H236: =IF(G235,VLOOKUP(A243,ERGEBNISSE!$BR$12:$BT$35,3,FALSE),D236) -> 1 | J236: =IF($G$235,H236,D236) -> 1 | AB236: =INDEX(teams,INDEX(AC179:AC182,AD236)) -> Türkei | AC236: 1 | AD236: =MATCH(AC236,$AF$230:$AF$233,0) -> 1 | AE236: =IF(AG235,AC236,INDEX(AE230:AE233,AD236)) -> 1 | AF236: 1 | AG236: 1 | AH236: =IF(AG235,VLOOKUP(AA243,ERGEBNISSE!$BR$12:$BT$35,3,FALSE),AD236) -> 1 | AJ236: =IF($AG$235,AH236,AD236) -> 1
B237: =INDEX(teams,INDEX(C179:C182,D237)) -> Slowakei | C237: 2 | D237: =MATCH(C237,$F$230:$F$233,0) -> 2 | E237: =IF(G235,C237,INDEX(E230:E233,D237)) -> 1 | G237: 2 | H237: =IF(G235,VLOOKUP(A244,ERGEBNISSE!$BR$12:$BT$35,3,FALSE),D237) -> 2 | J237: =IF($G$235,H237,D237) -> 2 | AB237: =INDEX(teams,INDEX(AC179:AC182,AD237)) -> Georgien | AC237: 2 | AD237: =MATCH(AC237,$AF$230:$AF$233,0) -> 2 | AE237: =IF(AG235,AC237,INDEX(AE230:AE233,AD237)) -> 1 | AG237: 2 | AH237: =IF(AG235,VLOOKUP(AA244,ERGEBNISSE!$BR$12:$BT$35,3,FALSE),AD237) -> 2 | AJ237: =IF($AG$235,AH237,AD237) -> 2
B238: =INDEX(teams,INDEX(C179:C182,D238)) -> Rumänien | C238: 3 | D238: =MATCH(C238,$F$230:$F$233,0) -> 3 | E238: =IF(G235,C238,INDEX(E230:E233,D238)) -> 1 | G238: 3 | H238: =IF(G235,VLOOKUP(A245,ERGEBNISSE!$BR$12:$BT$35,3,FALSE),D238) -> 3 | J238: =IF($G$235,H238,D238) -> 3 | AB238: =INDEX(teams,INDEX(AC179:AC182,AD238)) -> Portugal | AC238: 3 | AD238: =MATCH(AC238,$AF$230:$AF$233,0) -> 3 | AE238: =IF(AG235,AC238,INDEX(AE230:AE233,AD238)) -> 1 | AG238: 3 | AH238: =IF(AG235,VLOOKUP(AA245,ERGEBNISSE!$BR$12:$BT$35,3,FALSE),AD238) -> 3 | AJ238: =IF($AG$235,AH238,AD238) -> 3
B239: =INDEX(teams,INDEX(C179:C182,D239)) -> Ukraine | C239: 4 | D239: =MATCH(C239,$F$230:$F$233,0) -> 4 | E239: =IF(G235,C239,INDEX(E230:E233,D239)) -> 1 | G239: 4 | H239: =IF(G235,VLOOKUP(A246,ERGEBNISSE!$BR$12:$BT$35,3,FALSE),D239) -> 4 | J239: =IF($G$235,H239,D239) -> 4 | AB239: =INDEX(teams,INDEX(AC179:AC182,AD239)) -> Tschechien | AC239: 4 | AD239: =MATCH(AC239,$AF$230:$AF$233,0) -> 4 | AE239: =IF(AG235,AC239,INDEX(AE230:AE233,AD239)) -> 1 | AG239: 4 | AH239: =IF(AG235,VLOOKUP(AA246,ERGEBNISSE!$BR$12:$BT$35,3,FALSE),AD239) -> 4 | AJ239: =IF($AG$235,AH239,AD239) -> 4
B242: Tabelle | C242: TeamIndex | D242: Nr | E242: Team | F242: Sp | G242: P | H242: T+ | I242: T- | J242: Diff | K242: S | L242: U | M242: N | AB242: Tabelle | AC242: TeamIndex | AD242: Nr | AE242: Team | AF242: Sp | AG242: P | AH242: T+ | AI242: T- | AJ242: Diff | AK242: S | AL242: U | AM242: N
A243: ="S"&A168 -> SE | B243: 1 | C243: =INDEX($C$179:$C$182,J236) -> 17 | D243: =J236 -> 1 | E243: =INDEX($H$179:$H$182,J236) -> BEL | F243: =SUMIF($D$170:$E$175,"="&$C243,$Q$170:$R$175) -> 0 | G243: =INDEX($D$179:$D$182,$J236) -> 0 | H243: =INDEX($E$179:$E$182,$J236) -> 0 | I243: =INDEX($F$179:$F$182,$J236) -> 0 | J243: =INDEX($G$179:$G$182,$J236) -> 0 | K243: =COUNTIF($S$170:$T$175,"="&K$242&$C243) -> 0 | L243: 0 | M243: 0 | AA243: ="S"&AA168 -> SF | AB243: 1 | AC243: =INDEX($AC$179:$AC$182,AJ236) -> 21 | AD243: =AJ236 -> 1 | AE243: =INDEX($AH$179:$AH$182,AJ236) -> TUR | AF243: =SUMIF($AD$170:$AE$175,"="&$AC243,$AQ$170:$AR$175) -> 0 | AG243: =INDEX($AD$179:$AD$182,$AJ236) -> 0 | AH243: =INDEX($AE$179:$AE$182,$AJ236) -> 0 | AI243: =INDEX($AF$179:$AF$182,$AJ236) -> 0 | AJ243: =INDEX($AG$179:$AG$182,$AJ236) -> 0 | AK243: =COUNTIF($AS$170:$AT$175,"="&AK$242&$AC243) -> 0 | AL243: 0 | AM243: 0
A244: ="Z"&A168 -> ZE | B244: 2 | C244: =INDEX($C$179:$C$182,J237) -> 18 | D244: =J237 -> 2 | E244: =INDEX($H$179:$H$182,J237) -> SVK | F244: =SUMIF($D$170:$E$175,"="&$C244,$Q$170:$R$175) -> 0 | G244: =INDEX($D$179:$D$182,$J237) -> 0 | H244: =INDEX($E$179:$E$182,$J237) -> 0 | I244: =INDEX($F$179:$F$182,$J237) -> 0 | J244: =INDEX($G$179:$G$182,$J237) -> 0 | K244: 0 | L244: 0 | M244: 0 | AA244: ="Z"&AA168 -> ZF | AB244: 2 | AC244: =INDEX($AC$179:$AC$182,AJ237) -> 22 | AD244: =AJ237 -> 2 | AE244: =INDEX($AH$179:$AH$182,AJ237) -> GEO | AF244: =SUMIF($AD$170:$AE$175,"="&$AC244,$AQ$170:$AR$175) -> 0 | AG244: =INDEX($AD$179:$AD$182,$AJ237) -> 0 | AH244: =INDEX($AE$179:$AE$182,$AJ237) -> 0 | AI244: =INDEX($AF$179:$AF$182,$AJ237) -> 0 | AJ244: =INDEX($AG$179:$AG$182,$AJ237) -> 0 | AK244: 0 | AL244: 0 | AM244: 0
A245: ="D"&A168 -> DE | B245: 3 | C245: =INDEX($C$179:$C$182,J238) -> 19 | D245: =J238 -> 3 | E245: =INDEX($H$179:$H$182,J238) -> ROM | F245: =SUMIF($D$170:$E$175,"="&$C245,$Q$170:$R$175) -> 0 | G245: =INDEX($D$179:$D$182,$J238) -> 0 | H245: =INDEX($E$179:$E$182,$J238) -> 0 | I245: =INDEX($F$179:$F$182,$J238) -> 0 | J245: =INDEX($G$179:$G$182,$J238) -> 0 | K245: 0 | L245: 0 | M245: 0 | AA245: ="D"&AA168 -> DF | AB245: 3 | AC245: =INDEX($AC$179:$AC$182,AJ238) -> 23 | AD245: =AJ238 -> 3 | AE245: =INDEX($AH$179:$AH$182,AJ238) -> POR | AF245: =SUMIF($AD$170:$AE$175,"="&$AC245,$AQ$170:$AR$175) -> 0 | AG245: =INDEX($AD$179:$AD$182,$AJ238) -> 0 | AH245: =INDEX($AE$179:$AE$182,$AJ238) -> 0 | AI245: =INDEX($AF$179:$AF$182,$AJ238) -> 0 | AJ245: =INDEX($AG$179:$AG$182,$AJ238) -> 0 | AK245: 0 | AL245: 0 | AM245: 0
A246: ="V"&A168 -> VE | B246: 4 | C246: =INDEX($C$179:$C$182,J239) -> 20 | D246: =J239 -> 4 | E246: =INDEX($H$179:$H$182,J239) -> UKR | F246: =SUMIF($D$170:$E$175,"="&$C246,$Q$170:$R$175) -> 0 | G246: =INDEX($D$179:$D$182,$J239) -> 0 | H246: =INDEX($E$179:$E$182,$J239) -> 0 | I246: =INDEX($F$179:$F$182,$J239) -> 0 | J246: =INDEX($G$179:$G$182,$J239) -> 0 | K246: 0 | L246: 0 | M246: 0 | AA246: ="V"&AA168 -> VF | AB246: 4 | AC246: =INDEX($AC$179:$AC$182,AJ239) -> 24 | AD246: =AJ239 -> 4 | AE246: =INDEX($AH$179:$AH$182,AJ239) -> CZE | AF246: =SUMIF($AD$170:$AE$175,"="&$AC246,$AQ$170:$AR$175) -> 0 | AG246: =INDEX($AD$179:$AD$182,$AJ239) -> 0 | AH246: =INDEX($AE$179:$AE$182,$AJ239) -> 0 | AI246: =INDEX($AF$179:$AF$182,$AJ239) -> 0 | AJ246: =INDEX($AG$179:$AG$182,$AJ239) -> 0 | AK246: 0 | AL246: 0 | AM246: 0
A264: EMS GR | S264: Text Erg | U264: Text für Datenbank Turnierübersicht
A265: Spieltag 3 | B265: Gr. | C265: Spiele Gr. | D265: TIDXH | E265: TIDXA | F265: ErgH | G265: ErgA | H265: RangH | I265: RangA | J265: PH | K265: PA | L265: Hfgk. | M265: EMSOK | N265: Erg EMS | P265: PunkteEMS | R265: =SUM(R266:R277) -> 0
A266: =ERGEBNISSE!C36 -> A5 | B266: =CODE(LEFT(A266,1))-64 -> 1 | C266: =INDEX($E$281:$E$286,B266) -> 0 | D266: =daten!I73 -> 4 | E266: =daten!J73 -> 1 | F266: =ERGEBNISSE!E36 ->  | G266: =ERGEBNISSE!F36 ->  | H266: =INDEX($B$281:$B$304,D266) -> 1 | I266: =INDEX($B$281:$B$304,E266) -> 1 | J266: =INDEX($C$281:$C$304,D266) -> 0 | K266: =INDEX($C$281:$C$304,E266) -> 0 | L266: =SUM(IF($B$266:$B$277=B266,IF($J$266:$K$277=J266,1,0))) -> 4 | M266: =AND(C266=6,$A$15=1,COUNT(F266:G266)=2,H266=I266,L266=2) -> FALSE | N266: =IF(NOT(M266),"",IF(COUNT(ERGEBNISSE!AO36,ERGEBNISSE!AQ36)<>2,"",ERGEBNISSE!AO36)) ->  | O266: =IF(NOT(M266),"",IF(COUNT(ERGEBNISSE!AO36,ERGEBNISSE!AQ36)<>2,"",ERGEBNISSE!AQ36)) ->  | P266: =IF(COUNT(N266:O266)<>2,0,IF(N266>O266,1,0)) -> 0 | Q266: =IF(COUNT(N266:O266)<>2,0,IF(N266<O266,1,0)) -> 0 | R266: =IF(M266,1,0) -> 0 | S266: =IF(COUNT(N266:O266)<>2,"",N266&":"&O266 &" i.E.") ->  | U266: A5 | V266: =VLOOKUP(U266,$A$266:$M$277,13,FALSE) -> FALSE | W266: =IF(V266,VLOOKUP(U266,$A$266:$S$277,19,FALSE),"" ) -> 
A267: =ERGEBNISSE!C37 -> A6 | B267: 1 | C267: 0 | D267: =daten!I74 -> 2 | E267: =daten!J74 -> 3 | F267: =ERGEBNISSE!E37 ->  | G267: =ERGEBNISSE!F37 ->  | H267: 1 | I267: 1 | J267: 0 | K267: 0 | L267: =SUM(IF($B$266:$B$277=B267,IF($J$266:$K$277=J267,1,0))) -> 4 | M267: FALSE | N267: =IF(NOT(M267),"",IF(COUNT(ERGEBNISSE!AO37,ERGEBNISSE!AQ37)<>2,"",ERGEBNISSE!AO37)) ->  | O267: =IF(NOT(M267),"",IF(COUNT(ERGEBNISSE!AO37,ERGEBNISSE!AQ37)<>2,"",ERGEBNISSE!AQ37)) ->  | P267: 0 | Q267: 0 | R267: 0 | U267: A6 | V267: FALSE
A268: =ERGEBNISSE!C38 -> B5 | B268: 2 | C268: 0 | D268: =daten!I75 -> 6 | E268: =daten!J75 -> 7 | F268: =ERGEBNISSE!E38 ->  | G268: =ERGEBNISSE!F38 ->  | H268: 1 | I268: 1 | J268: 0 | K268: 0 | L268: =SUM(IF($B$266:$B$277=B268,IF($J$266:$K$277=J268,1,0))) -> 4 | M268: FALSE | N268: =IF(NOT(M268),"",IF(COUNT(ERGEBNISSE!AO38,ERGEBNISSE!AQ38)<>2,"",ERGEBNISSE!AO38)) ->  | O268: =IF(NOT(M268),"",IF(COUNT(ERGEBNISSE!AO38,ERGEBNISSE!AQ38)<>2,"",ERGEBNISSE!AQ38)) ->  | P268: 0 | Q268: 0 | R268: 0 | U268: B5 | V268: FALSE
A269: =ERGEBNISSE!C39 -> B6 | B269: 2 | C269: 0 | D269: =daten!I76 -> 8 | E269: =daten!J76 -> 5 | F269: =ERGEBNISSE!E39 ->  | G269: =ERGEBNISSE!F39 ->  | H269: 1 | I269: 1 | J269: 0 | K269: 0 | L269: =SUM(IF($B$266:$B$277=B269,IF($J$266:$K$277=J269,1,0))) -> 4 | M269: FALSE | N269: =IF(NOT(M269),"",IF(COUNT(ERGEBNISSE!AO39,ERGEBNISSE!AQ39)<>2,"",ERGEBNISSE!AO39)) ->  | O269: =IF(NOT(M269),"",IF(COUNT(ERGEBNISSE!AO39,ERGEBNISSE!AQ39)<>2,"",ERGEBNISSE!AQ39)) ->  | P269: 0 | Q269: 0 | R269: 0 | U269: B6 | V269: FALSE
A270: =ERGEBNISSE!C40 -> D5 | B270: 4 | C270: 0 | D270: =daten!I77 -> 14 | E270: =daten!J77 -> 15 | F270: =ERGEBNISSE!E40 ->  | G270: =ERGEBNISSE!F40 ->  | H270: 1 | I270: 1 | J270: 0 | K270: 0 | L270: =SUM(IF($B$266:$B$277=B270,IF($J$266:$K$277=J270,1,0))) -> 4 | M270: FALSE | N270: =IF(NOT(M270),"",IF(COUNT(ERGEBNISSE!AO40,ERGEBNISSE!AQ40)<>2,"",ERGEBNISSE!AO40)) ->  | O270: =IF(NOT(M270),"",IF(COUNT(ERGEBNISSE!AO40,ERGEBNISSE!AQ40)<>2,"",ERGEBNISSE!AQ40)) ->  | P270: 0 | Q270: 0 | R270: 0 | U270: C5 | V270: FALSE
A271: =ERGEBNISSE!C41 -> D6 | B271: 4 | C271: 0 | D271: =daten!I78 -> 16 | E271: =daten!J78 -> 13 | F271: =ERGEBNISSE!E41 ->  | G271: =ERGEBNISSE!F41 ->  | H271: 1 | I271: 1 | J271: 0 | K271: 0 | L271: =SUM(IF($B$266:$B$277=B271,IF($J$266:$K$277=J271,1,0))) -> 4 | M271: FALSE | N271: =IF(NOT(M271),"",IF(COUNT(ERGEBNISSE!AO41,ERGEBNISSE!AQ41)<>2,"",ERGEBNISSE!AO41)) ->  | O271: =IF(NOT(M271),"",IF(COUNT(ERGEBNISSE!AO41,ERGEBNISSE!AQ41)<>2,"",ERGEBNISSE!AQ41)) ->  | P271: 0 | Q271: 0 | R271: 0 | U271: C6 | V271: FALSE
A272: =ERGEBNISSE!C42 -> C5 | B272: 3 | C272: 0 | D272: =daten!I79 -> 12 | E272: =daten!J79 -> 9 | F272: =ERGEBNISSE!E42 ->  | G272: =ERGEBNISSE!F42 ->  | H272: 1 | I272: 1 | J272: 0 | K272: 0 | L272: =SUM(IF($B$266:$B$277=B272,IF($J$266:$K$277=J272,1,0))) -> 4 | M272: FALSE | N272: =IF(NOT(M272),"",IF(COUNT(ERGEBNISSE!AO42,ERGEBNISSE!AQ42)<>2,"",ERGEBNISSE!AO42)) ->  | O272: =IF(NOT(M272),"",IF(COUNT(ERGEBNISSE!AO42,ERGEBNISSE!AQ42)<>2,"",ERGEBNISSE!AQ42)) ->  | P272: 0 | Q272: 0 | R272: 0 | U272: D5 | V272: FALSE
A273: =ERGEBNISSE!C43 -> C6 | B273: 3 | C273: 0 | D273: =daten!I80 -> 10 | E273: =daten!J80 -> 11 | F273: =ERGEBNISSE!E43 ->  | G273: =ERGEBNISSE!F43 ->  | H273: 1 | I273: 1 | J273: 0 | K273: 0 | L273: =SUM(IF($B$266:$B$277=B273,IF($J$266:$K$277=J273,1,0))) -> 4 | M273: FALSE | N273: =IF(NOT(M273),"",IF(COUNT(ERGEBNISSE!AO43,ERGEBNISSE!AQ43)<>2,"",ERGEBNISSE!AO43)) ->  | O273: =IF(NOT(M273),"",IF(COUNT(ERGEBNISSE!AO43,ERGEBNISSE!AQ43)<>2,"",ERGEBNISSE!AQ43)) ->  | P273: 0 | Q273: 0 | R273: 0 | U273: D6 | V273: FALSE
A274: =ERGEBNISSE!C44 -> E5 | B274: 5 | C274: 0 | D274: =daten!I81 -> 18 | E274: =daten!J81 -> 19 | F274: =ERGEBNISSE!E44 ->  | G274: =ERGEBNISSE!F44 ->  | H274: 1 | I274: 1 | J274: 0 | K274: 0 | L274: =SUM(IF($B$266:$B$277=B274,IF($J$266:$K$277=J274,1,0))) -> 4 | M274: FALSE | N274: =IF(NOT(M274),"",IF(COUNT(ERGEBNISSE!AO44,ERGEBNISSE!AQ44)<>2,"",ERGEBNISSE!AO44)) ->  | O274: =IF(NOT(M274),"",IF(COUNT(ERGEBNISSE!AO44,ERGEBNISSE!AQ44)<>2,"",ERGEBNISSE!AQ44)) ->  | P274: 0 | Q274: 0 | R274: 0 | U274: E5 | V274: FALSE
A275: =ERGEBNISSE!C45 -> E6 | B275: 5 | C275: 0 | D275: =daten!I82 -> 20 | E275: =daten!J82 -> 17 | F275: =ERGEBNISSE!E45 ->  | G275: =ERGEBNISSE!F45 ->  | H275: 1 | I275: 1 | J275: 0 | K275: 0 | L275: =SUM(IF($B$266:$B$277=B275,IF($J$266:$K$277=J275,1,0))) -> 4 | M275: FALSE | N275: =IF(NOT(M275),"",IF(COUNT(ERGEBNISSE!AO45,ERGEBNISSE!AQ45)<>2,"",ERGEBNISSE!AO45)) ->  | O275: =IF(NOT(M275),"",IF(COUNT(ERGEBNISSE!AO45,ERGEBNISSE!AQ45)<>2,"",ERGEBNISSE!AQ45)) ->  | P275: 0 | Q275: 0 | R275: 0 | U275: E6 | V275: FALSE
A276: =ERGEBNISSE!C46 -> F5 | B276: 6 | C276: 0 | D276: =daten!I83 -> 22 | E276: =daten!J83 -> 23 | F276: =ERGEBNISSE!E46 ->  | G276: =ERGEBNISSE!F46 ->  | H276: 1 | I276: 1 | J276: 0 | K276: 0 | L276: =SUM(IF($B$266:$B$277=B276,IF($J$266:$K$277=J276,1,0))) -> 4 | M276: FALSE | N276: =IF(NOT(M276),"",IF(COUNT(ERGEBNISSE!AO46,ERGEBNISSE!AQ46)<>2,"",ERGEBNISSE!AO46)) ->  | O276: =IF(NOT(M276),"",IF(COUNT(ERGEBNISSE!AO46,ERGEBNISSE!AQ46)<>2,"",ERGEBNISSE!AQ46)) ->  | P276: 0 | Q276: 0 | R276: 0 | U276: F5 | V276: FALSE
A277: =ERGEBNISSE!C47 -> F6 | B277: 6 | C277: 0 | D277: =daten!I84 -> 24 | E277: =daten!J84 -> 21 | F277: =ERGEBNISSE!E47 ->  | G277: =ERGEBNISSE!F47 ->  | H277: 1 | I277: 1 | J277: 0 | K277: 0 | L277: =SUM(IF($B$266:$B$277=B277,IF($J$266:$K$277=J277,1,0))) -> 4 | M277: FALSE | N277: =IF(NOT(M277),"",IF(COUNT(ERGEBNISSE!AO47,ERGEBNISSE!AQ47)<>2,"",ERGEBNISSE!AO47)) ->  | O277: =IF(NOT(M277),"",IF(COUNT(ERGEBNISSE!AO47,ERGEBNISSE!AQ47)<>2,"",ERGEBNISSE!AQ47)) ->  | P277: 0 | Q277: 0 | R277: 0 | U277: F6 | V277: FALSE
A280: P-DV1-DV2-Dif-T | B280: Rang | C280: P | E280: Spiele Gr
A281: 1 | B281: =F41 -> 1 | C281: =D15 -> 0 | E281: =$Q$4 -> 0
A282: 2 | B282: =F42 -> 1 | C282: =D16 -> 0 | E282: =$AQ$4 -> 0
A283: 3 | B283: =F43 -> 1 | C283: =D17 -> 0 | E283: =$Q$86 -> 0
A284: 4 | B284: =F44 -> 1 | C284: =D18 -> 0 | E284: =$AQ$86 -> 0
A285: 5 | B285: =AF41 -> 1 | C285: =AD15 -> 0 | E285: =$Q$168 -> 0
A286: 6 | B286: =AF42 -> 1 | C286: =AD16 -> 0 | E286: =$AQ$168 -> 0
A287: 7 | B287: =AF43 -> 1 | C287: =AD17 -> 0
A288: 8 | B288: =AF44 -> 1 | C288: =AD18 -> 0
A289: 9 | B289: =F123 -> 1 | C289: =D97 -> 0
A290: 10 | B290: =F124 -> 1 | C290: =D98 -> 0
A291: 11 | B291: =F125 -> 1 | C291: =D99 -> 0
A292: 12 | B292: =F126 -> 1 | C292: =D100 -> 0
A293: 13 | B293: =AF123 -> 1 | C293: =AD97 -> 0
... 144 more rows

Sheet tabbermsp (hidden)
C1: Index= Eintrag in der Liste aller Teams (lfd. Nr.) | H1: EDIT
C2: Nr = Nummer in der Gruppe | H2: Resultat
A3: Tabber
A4: A | B4: Paarungen | G4: Resultat | K4: Punkte | AA4: B | AB4: Paarungen | AG4: Resultat | AK4: Punkte
A5: Nr | D5: HT | E5: AT | F5: HT2 | G5: ErgH | H5: ErgA | I5: ErgH2 | K5: PH | L5: PA | M5: DifH | N5: DifA | O5: WertH | P5: WertA | Q5: Spiele | S5: Resultat | AA5: Nr | AD5: HT | AE5: AT | AF5: HT2 | AG5: ErgH | AH5: ErgA | AI5: ErgH2 | AK5: PH | AL5: PA | AM5: DifH | AN5: DifA | AO5: WertH | AP5: WertA | AQ5: Spiele | AS5: Resultat
A6: 1 | B6: =D6&"#"&E6 -> 1#2 | C6: =E6&"#"&D6 -> 2#1 | D6: =VLOOKUP(J6,daten!$D$49:$J$84,6,FALSE) -> 1 | E6: =VLOOKUP(J6,daten!$D$49:$K$84,7,FALSE) -> 2 | F6: =D6 -> 1 | G6: =VLOOKUP(J6,TIPPABGABE!$CU$40:$DE$75,10,FALSE) ->  | H6: =VLOOKUP(J6,TIPPABGABE!$CU$40:$DE$75,11,FALSE) ->  | I6: =IF(LEN(G6)>0,G6,"") ->  | J6: =A4&A6 -> A1 | K6: =IF(COUNT(G6:H6)<>2,0,IF(G6>H6,3,IF(H6>G6,0,1))) -> 0 | L6: =IF(COUNT(G6:H6)<>2,0,IF(G6>H6,0,IF(H6>G6,3,1))) -> 0 | M6: =IF(COUNT(G6:H6)<>2,0,G6-H6) -> 0 | N6: =IF(COUNT(G6:H6)<>2,0,H6-I6) -> 0 | O6: =K6*1000+M6+IF(LEN(G6)=0,0,G6/1000) -> 0 | P6: 0 | Q6: =IF(COUNT(G6:H6)=2,1,0) -> 0 | R6: =Q6 -> 0 | S6: =IF(Q6=0,"X",IF(K6=3,"S",IF(K6=0,"N","U")))&D6 -> X1 | T6: X2 | AA6: 1 | AB6: =AD6&"#"&AE6 -> 5#6 | AC6: =AE6&"#"&AD6 -> 6#5 | AD6: =VLOOKUP(AJ6,daten!$D$49:$J$84,6,FALSE) -> 5 | AE6: =VLOOKUP(AJ6,daten!$D$49:$K$84,7,FALSE) -> 6 | AF6: =AD6 -> 5 | AG6: =VLOOKUP(AJ6,TIPPABGABE!$CU$40:$DE$75,10,FALSE) ->  | AH6: =VLOOKUP(AJ6,TIPPABGABE!$CU$40:$DE$75,11,FALSE) ->  | AI6: =IF(LEN(AG6)>0,AG6,"") ->  | AJ6: =AA4&AA6 -> B1 | AK6: =IF(COUNT(AG6:AH6)<>2,0,IF(AG6>AH6,3,IF(AH6>AG6,0,1))) -> 0 | AL6: =IF(COUNT(AG6:AH6)<>2,0,IF(AG6>AH6,0,IF(AH6>AG6,3,1))) -> 0 | AM6: =IF(COUNT(AG6:AH6)<>2,0,AG6-AH6) -> 0 | AN6: =IF(COUNT(AG6:AH6)<>2,0,AH6-AI6) -> 0 | AO6: =AK6*1000+AM6+IF(LEN(AG6)=0,0,AG6/1000) -> 0 | AP6: 0 | AQ6: =IF(COUNT(AG6:AH6)=2,1,0) -> 0 | AR6: =AQ6 -> 0 | AS6: =IF(AQ6=0,"X",IF(AK6=3,"S",IF(AK6=0,"N","U")))&AD6 -> X5 | AT6: X6
A7: 2 | B7: 3#4 | C7: 4#3 | D7: =VLOOKUP(J7,daten!$D$49:$J$84,6,FALSE) -> 3 | E7: =VLOOKUP(J7,daten!$D$49:$K$84,7,FALSE) -> 4 | F7: 3 | G7: =VLOOKUP(J7,TIPPABGABE!$CU$40:$DE$75,10,FALSE) ->  | H7: =VLOOKUP(J7,TIPPABGABE!$CU$40:$DE$75,11,FALSE) ->  | J7: =A4&A7 -> A2 | K7: 0 | L7: 0 | M7: 0 | N7: 0 | O7: 0 | P7: 0 | Q7: 0 | R7: 0 | S7: X3 | T7: X4 | AA7: 2 | AB7: 7#8 | AC7: 8#7 | AD7: =VLOOKUP(AJ7,daten!$D$49:$J$84,6,FALSE) -> 7 | AE7: =VLOOKUP(AJ7,daten!$D$49:$K$84,7,FALSE) -> 8 | AF7: 7 | AG7: =VLOOKUP(AJ7,TIPPABGABE!$CU$40:$DE$75,10,FALSE) ->  | AH7: =VLOOKUP(AJ7,TIPPABGABE!$CU$40:$DE$75,11,FALSE) ->  | AJ7: =AA4&AA7 -> B2 | AK7: 0 | AL7: 0 | AM7: 0 | AN7: 0 | AO7: 0 | AP7: 0 | AQ7: 0 | AR7: 0 | AS7: X7 | AT7: X8
A8: 3 | B8: 1#3 | C8: 3#1 | D8: =VLOOKUP(J8,daten!$D$49:$J$84,6,FALSE) -> 1 | E8: =VLOOKUP(J8,daten!$D$49:$K$84,7,FALSE) -> 3 | F8: 1 | G8: =VLOOKUP(J8,TIPPABGABE!$CU$40:$DE$75,10,FALSE) ->  | H8: =VLOOKUP(J8,TIPPABGABE!$CU$40:$DE$75,11,FALSE) ->  | J8: =A4&A8 -> A3 | K8: 0 | L8: 0 | M8: 0 | N8: 0 | O8: 0 | P8: 0 | Q8: 0 | R8: 0 | S8: X1 | T8: X3 | AA8: 3 | AB8: 6#8 | AC8: 8#6 | AD8: =VLOOKUP(AJ8,daten!$D$49:$J$84,6,FALSE) -> 6 | AE8: =VLOOKUP(AJ8,daten!$D$49:$K$84,7,FALSE) -> 8 | AF8: 6 | AG8: =VLOOKUP(AJ8,TIPPABGABE!$CU$40:$DE$75,10,FALSE) ->  | AH8: =VLOOKUP(AJ8,TIPPABGABE!$CU$40:$DE$75,11,FALSE) ->  | AJ8: =AA4&AA8 -> B3 | AK8: 0 | AL8: 0 | AM8: 0 | AN8: 0 | AO8: 0 | AP8: 0 | AQ8: 0 | AR8: 0 | AS8: X6 | AT8: X8
A9: 4 | B9: 2#4 | C9: 4#2 | D9: =VLOOKUP(J9,daten!$D$49:$J$84,6,FALSE) -> 2 | E9: =VLOOKUP(J9,daten!$D$49:$K$84,7,FALSE) -> 4 | F9: 2 | G9: =VLOOKUP(J9,TIPPABGABE!$CU$40:$DE$75,10,FALSE) ->  | H9: =VLOOKUP(J9,TIPPABGABE!$CU$40:$DE$75,11,FALSE) ->  | J9: =A4&A9 -> A4 | K9: 0 | L9: 0 | M9: 0 | N9: 0 | O9: 0 | P9: 0 | Q9: 0 | R9: 0 | S9: X2 | T9: X4 | AA9: 4 | AB9: 5#7 | AC9: 7#5 | AD9: =VLOOKUP(AJ9,daten!$D$49:$J$84,6,FALSE) -> 5 | AE9: =VLOOKUP(AJ9,daten!$D$49:$K$84,7,FALSE) -> 7 | AF9: 5 | AG9: =VLOOKUP(AJ9,TIPPABGABE!$CU$40:$DE$75,10,FALSE) ->  | AH9: =VLOOKUP(AJ9,TIPPABGABE!$CU$40:$DE$75,11,FALSE) ->  | AJ9: =AA4&AA9 -> B4 | AK9: 0 | AL9: 0 | AM9: 0 | AN9: 0 | AO9: 0 | AP9: 0 | AQ9: 0 | AR9: 0 | AS9: X5 | AT9: X7
A10: 5 | B10: 4#1 | C10: 1#4 | D10: =VLOOKUP(J10,daten!$D$49:$J$84,6,FALSE) -> 4 | E10: =VLOOKUP(J10,daten!$D$49:$K$84,7,FALSE) -> 1 | F10: 4 | G10: =VLOOKUP(J10,TIPPABGABE!$CU$40:$DE$75,10,FALSE) ->  | H10: =VLOOKUP(J10,TIPPABGABE!$CU$40:$DE$75,11,FALSE) ->  | J10: =A4&A10 -> A5 | K10: 0 | L10: 0 | M10: 0 | N10: 0 | O10: 0 | P10: 0 | Q10: 0 | R10: 0 | S10: X4 | T10: X1 | AA10: 5 | AB10: 6#7 | AC10: 7#6 | AD10: =VLOOKUP(AJ10,daten!$D$49:$J$84,6,FALSE) -> 6 | AE10: =VLOOKUP(AJ10,daten!$D$49:$K$84,7,FALSE) -> 7 | AF10: 6 | AG10: =VLOOKUP(AJ10,TIPPABGABE!$CU$40:$DE$75,10,FALSE) ->  | AH10: =VLOOKUP(AJ10,TIPPABGABE!$CU$40:$DE$75,11,FALSE) ->  | AJ10: =AA4&AA10 -> B5 | AK10: 0 | AL10: 0 | AM10: 0 | AN10: 0 | AO10: 0 | AP10: 0 | AQ10: 0 | AR10: 0 | AS10: X6 | AT10: X7
A11: 6 | B11: 2#3 | C11: 3#2 | D11: =VLOOKUP(J11,daten!$D$49:$J$84,6,FALSE) -> 2 | E11: =VLOOKUP(J11,daten!$D$49:$K$84,7,FALSE) -> 3 | F11: 2 | G11: =VLOOKUP(J11,TIPPABGABE!$CU$40:$DE$75,10,FALSE) ->  | H11: =VLOOKUP(J11,TIPPABGABE!$CU$40:$DE$75,11,FALSE) ->  | J11: =A4&A11 -> A6 | K11: 0 | L11: 0 | M11: 0 | N11: 0 | O11: 0 | P11: 0 | Q11: 0 | R11: 0 | S11: X2 | T11: X3 | AA11: 6 | AB11: 8#5 | AC11: 5#8 | AD11: =VLOOKUP(AJ11,daten!$D$49:$J$84,6,FALSE) -> 8 | AE11: =VLOOKUP(AJ11,daten!$D$49:$K$84,7,FALSE) -> 5 | AF11: 8 | AG11: =VLOOKUP(AJ11,TIPPABGABE!$CU$40:$DE$75,10,FALSE) ->  | AH11: =VLOOKUP(AJ11,TIPPABGABE!$CU$40:$DE$75,11,FALSE) ->  | AJ11: =AA4&AA11 -> B6 | AK11: 0 | AL11: 0 | AM11: 0 | AN11: 0 | AO11: 0 | AP11: 0 | AQ11: 0 | AR11: 0 | AS11: X8 | AT11: X5
A14: Modus | C14: TeamIdx | D14: P | E14: Treffer | F14: GTo | G14: Dif | H14: Team | I14: RangPkt | K14: Koeff | M14: Rang | N14: RangPkt | AA14: Modus | AC14: TeamIdx | AD14: P | AE14: Treffer | AF14: GTo | AG14: Dif | AH14: Team | AI14: RangPkt | AK14: Koeff | AM14: Rang | AN14: RangPkt
A15: 1 | C15: 1 | D15: =SUMIF($D$6:$E$11,"="&C15,$K$6:$L$11) -> 0 | E15: =SUMIF($D$6:$E$11,"="&$C15,$G$6:$H$11) -> 0 | F15: =E15-G15 -> 0 | G15: =SUMIF($D$6:$E$11,"="&$C15,$G$6:$H$11)-SUMIF($D$6:$E$11,"="&$C15,$H$6:$I$11) -> 0 | H15: =INDEX(teams_k,C15) -> GER | I15: =RANK(D15,$D$15:$D$18,1) -> 1 | L15: 1 | M15: 1 | N15: =RANK(M15,$M$15:$M$18) -> 1 | AA15: 1 | AC15: 5 | AD15: =SUMIF($AD$6:$AE$11,"="&AC15,$AK$6:$AL$11) -> 0 | AE15: =SUMIF($AD$6:$AE$11,"="&$AC15,$AG$6:$AH$11) -> 0 | AF15: =AE15-AG15 -> 0 | AG15: =SUMIF($AD$6:$AE$11,"="&$AC15,$AG$6:$AH$11)-SUMIF($AD$6:$AE$11,"="&$AC15,$AH$6:$AI$11) -> 0 | AH15: =INDEX(teams_k,AC15) -> ESP | AI15: =RANK(AD15,$AD$15:$AD$18,1) -> 1 | AL15: 1 | AM15: 1 | AN15: =RANK(AM15,$AM$15:$AM$18) -> 1
C16: 2 | D16: =SUMIF($D$6:$E$11,"="&C16,$K$6:$L$11) -> 0 | E16: =SUMIF($D$6:$E$11,"="&$C16,$G$6:$H$11) -> 0 | F16: =E16-G16 -> 0 | G16: =SUMIF($D$6:$E$11,"="&$C16,$G$6:$H$11)-SUMIF($D$6:$E$11,"="&$C16,$H$6:$I$11) -> 0 | H16: =INDEX(teams_k,C16) -> SCO | I16: =RANK(D16,$D$15:$D$18,1) -> 1 | L16: 2 | M16: 1 | N16: =RANK(M16,$M$15:$M$18) -> 1 | AC16: 6 | AD16: =SUMIF($AD$6:$AE$11,"="&AC16,$AK$6:$AL$11) -> 0 | AE16: =SUMIF($AD$6:$AE$11,"="&$AC16,$AG$6:$AH$11) -> 0 | AF16: =AE16-AG16 -> 0 | AG16: =SUMIF($AD$6:$AE$11,"="&$AC16,$AG$6:$AH$11)-SUMIF($AD$6:$AE$11,"="&$AC16,$AH$6:$AI$11) -> 0 | AH16: =INDEX(teams_k,AC16) -> CRO | AI16: =RANK(AD16,$AD$15:$AD$18,1) -> 1 | AL16: 2 | AM16: 1 | AN16: =RANK(AM16,$AM$15:$AM$18) -> 1
C17: 3 | D17: =SUMIF($D$6:$E$11,"="&C17,$K$6:$L$11) -> 0 | E17: =SUMIF($D$6:$E$11,"="&$C17,$G$6:$H$11) -> 0 | F17: =E17-G17 -> 0 | G17: =SUMIF($D$6:$E$11,"="&$C17,$G$6:$H$11)-SUMIF($D$6:$E$11,"="&$C17,$H$6:$I$11) -> 0 | H17: =INDEX(teams_k,C17) -> HUN | I17: =RANK(D17,$D$15:$D$18,1) -> 1 | L17: 3 | M17: 1 | N17: =RANK(M17,$M$15:$M$18) -> 1 | AC17: 7 | AD17: =SUMIF($AD$6:$AE$11,"="&AC17,$AK$6:$AL$11) -> 0 | AE17: =SUMIF($AD$6:$AE$11,"="&$AC17,$AG$6:$AH$11) -> 0 | AF17: =AE17-AG17 -> 0 | AG17: =SUMIF($AD$6:$AE$11,"="&$AC17,$AG$6:$AH$11)-SUMIF($AD$6:$AE$11,"="&$AC17,$AH$6:$AI$11) -> 0 | AH17: =INDEX(teams_k,AC17) -> ITA | AI17: =RANK(AD17,$AD$15:$AD$18,1) -> 1 | AL17: 3 | AM17: 1 | AN17: =RANK(AM17,$AM$15:$AM$18) -> 1
C18: 4 | D18: =SUMIF($D$6:$E$11,"="&C18,$K$6:$L$11) -> 0 | E18: =SUMIF($D$6:$E$11,"="&$C18,$G$6:$H$11) -> 0 | F18: =E18-G18 -> 0 | G18: =SUMIF($D$6:$E$11,"="&$C18,$G$6:$H$11)-SUMIF($D$6:$E$11,"="&$C18,$H$6:$I$11) -> 0 | H18: =INDEX(teams_k,C18) -> SUI | I18: =RANK(D18,$D$15:$D$18,1) -> 1 | L18: 4 | M18: 1 | N18: =RANK(M18,$M$15:$M$18) -> 1 | AC18: 8 | AD18: =SUMIF($AD$6:$AE$11,"="&AC18,$AK$6:$AL$11) -> 0 | AE18: =SUMIF($AD$6:$AE$11,"="&$AC18,$AG$6:$AH$11) -> 0 | AF18: =AE18-AG18 -> 0 | AG18: =SUMIF($AD$6:$AE$11,"="&$AC18,$AG$6:$AH$11)-SUMIF($AD$6:$AE$11,"="&$AC18,$AH$6:$AI$11) -> 0 | AH18: =INDEX(teams_k,AC18) -> ALB | AI18: =RANK(AD18,$AD$15:$AD$18,1) -> 1 | AL18: 4 | AM18: 1 | AN18: =RANK(AM18,$AM$15:$AM$18) -> 1
B20: DV1 | D20: =B22 -> 1 | E20: =B23 -> 2 | F20: =B24 -> 3 | G20: =B25 -> 4 | AB20: DV1 | AD20: =AB22 -> 5 | AE20: =AB23 -> 6 | AF20: =AB24 -> 7 | AG20: =AB25 -> 8
B21: TeamIndex | C21: Nr | D21: =C22 -> 1 | E21: =C23 -> 2 | F21: =C24 -> 3 | G21: =C25 -> 4 | I21: RangPkt. | AB21: TeamIndex | AC21: Nr | AD21: =AC22 -> 1 | AE21: =AC23 -> 2 | AF21: =AC24 -> 3 | AG21: =AC25 -> 4 | AI21: RangPkt.
B22: =INDEX($C$15:$C$18,C22) -> 1 | C22: 1 | D22: =IF(INDEX($I$15:$I$18,$C22)<>INDEX($I$15:$I$18,D$21),0,SUMIF($B$6:$C$11,"="&$B22&"#"&D$20,$O$6:$P$11)) -> 0 | E22: 0 | F22: 0 | G22: 0 | H22: =SUM(D22:G22) -> 0 | I22: =RANK(H22,$H$22:$H$25,1) -> 1 | AB22: =INDEX($AC$15:$AC$18,AC22) -> 5 | AC22: 1 | AD22: =IF(INDEX($AI$15:$AI$18,$AC22)<>INDEX($AI$15:$AI$18,AD$21),0,SUMIF($AB$6:$AC$11,"="&$AB22&"#"&AD$20,$AO$6:$AP$11)) -> 0 | AE22: 0 | AF22: 0 | AG22: 0 | AH22: =SUM(AD22:AG22) -> 0 | AI22: =RANK(AH22,$AH$22:$AH$25,1) -> 1
B23: =INDEX($C$15:$C$18,C23) -> 2 | C23: 2 | D23: 0 | E23: 0 | F23: 0 | G23: 0 | H23: =SUM(D23:G23) -> 0 | I23: =RANK(H23,$H$22:$H$25,1) -> 1 | AB23: =INDEX($AC$15:$AC$18,AC23) -> 6 | AC23: 2 | AD23: 0 | AE23: 0 | AF23: 0 | AG23: 0 | AH23: =SUM(AD23:AG23) -> 0 | AI23: =RANK(AH23,$AH$22:$AH$25,1) -> 1
B24: =INDEX($C$15:$C$18,C24) -> 3 | C24: 3 | D24: 0 | E24: 0 | F24: 0 | G24: 0 | H24: =SUM(D24:G24) -> 0 | I24: =RANK(H24,$H$22:$H$25,1) -> 1 | AB24: =INDEX($AC$15:$AC$18,AC24) -> 7 | AC24: 3 | AD24: 0 | AE24: 0 | AF24: 0 | AG24: 0 | AH24: =SUM(AD24:AG24) -> 0 | AI24: =RANK(AH24,$AH$22:$AH$25,1) -> 1
B25: =INDEX($C$15:$C$18,C25) -> 4 | C25: 4 | D25: 0 | E25: 0 | F25: 0 | G25: 0 | H25: =SUM(D25:G25) -> 0 | I25: =RANK(H25,$H$22:$H$25,1) -> 1 | AB25: =INDEX($AC$15:$AC$18,AC25) -> 8 | AC25: 4 | AD25: 0 | AE25: 0 | AF25: 0 | AG25: 0 | AH25: =SUM(AD25:AG25) -> 0 | AI25: =RANK(AH25,$AH$22:$AH$25,1) -> 1
B27: DV2 | C27: Nr | D27: =C28 -> 1 | E27: =C29 -> 2 | F27: =C30 -> 3 | G27: =C31 -> 4 | I27: RangPkt. | AB27: DV2 | AC27: Nr | AD27: =AC28 -> 1 | AE27: =AC29 -> 2 | AF27: =AC30 -> 3 | AG27: =AC31 -> 4 | AI27: RangPkt.
B28: =B22 -> 1 | C28: 1 | D28: =IF(D22=0,0,IF(INDEX($I$22:$I$25,$C22)<>INDEX($I$22:$I$25,D$21),0,SUMIF($B$6:$C$11,"="&$B22&"#"&D$20,$K$6:$L$11)*1000+SUMIF($B$6:$C$11,"="&$B22&"#"&D$20,$M$6:$N$11)+SUMIF($B$6:$C$11,"="&$B22&"#"&D$20,$G$6:$H$11)/1000)) -> 0 | E28: 0 | F28: 0 | G28: 0 | H28: =SUM(D28:G28) -> 0 | I28: =RANK(H28,$H$28:$H$31,1) -> 1 | AB28: =AB22 -> 5 | AC28: 1 | AD28: =IF(AD22=0,0,IF(INDEX($AI$22:$AI$25,$AC22)<>INDEX($AI$22:$AI$25,AD$21),0,SUMIF($AB$6:$AC$11,"="&$AB22&"#"&AD$20,$AK$6:$AL$11)*1000+SUMIF($AB$6:$AC$11,"="&$AB22&"#"&AD$20,$AM$6:$AN$11)+SUMIF($AB$6:$AC$11,"="&$AB22&"#"&AD$20,$AG$6:$AH$11)/1000)) -> 0 | AE28: 0 | AF28: 0 | AG28: 0 | AH28: =SUM(AD28:AG28) -> 0 | AI28: =RANK(AH28,$AH$28:$AH$31,1) -> 1
B29: =B23 -> 2 | C29: 2 | D29: 0 | E29: 0 | F29: 0 | G29: 0 | H29: =SUM(D29:G29) -> 0 | I29: =RANK(H29,$H$28:$H$31,1) -> 1 | AB29: =AB23 -> 6 | AC29: 2 | AD29: 0 | AE29: 0 | AF29: 0 | AG29: 0 | AH29: =SUM(AD29:AG29) -> 0 | AI29: =RANK(AH29,$AH$28:$AH$31,1) -> 1
B30: =B24 -> 3 | C30: 3 | D30: 0 | E30: 0 | F30: 0 | G30: 0 | H30: =SUM(D30:G30) -> 0 | I30: =RANK(H30,$H$28:$H$31,1) -> 1 | AB30: =AB24 -> 7 | AC30: 3 | AD30: 0 | AE30: 0 | AF30: 0 | AG30: 0 | AH30: =SUM(AD30:AG30) -> 0 | AI30: =RANK(AH30,$AH$28:$AH$31,1) -> 1
B31: =B25 -> 4 | C31: 4 | D31: 0 | E31: 0 | F31: 0 | G31: 0 | H31: =SUM(D31:G31) -> 0 | I31: =RANK(H31,$H$28:$H$31,1) -> 1 | AB31: =AB25 -> 8 | AC31: 4 | AD31: 0 | AE31: 0 | AF31: 0 | AG31: 0 | AH31: =SUM(AD31:AG31) -> 0 | AI31: =RANK(AH31,$AH$28:$AH$31,1) -> 1
C33: Nr | D33: RangPkt | H33: RangPkt | AC33: Nr | AD33: RangPkt | AH33: RangPkt
B34: Diff | C34: 1 | D34: =RANK(G15,$G$15:$G$18,1) -> 1 | F34: Tore | G34: 1 | H34: =RANK(E15,$E$15:$E$18,1) -> 1 | AB34: Diff | AC34: 1 | AD34: =RANK(AG15,$AG$15:$AG$18,1) -> 1 | AF34: Tore | AG34: 1 | AH34: =RANK(AE15,$AE$15:$AE$18,1) -> 1
C35: 2 | D35: =RANK(G16,$G$15:$G$18,1) -> 1 | G35: 2 | H35: =RANK(E16,$E$15:$E$18,1) -> 1 | AC35: 2 | AD35: =RANK(AG16,$AG$15:$AG$18,1) -> 1 | AG35: 2 | AH35: =RANK(AE16,$AE$15:$AE$18,1) -> 1
C36: 3 | D36: =RANK(G17,$G$15:$G$18,1) -> 1 | G36: 3 | H36: =RANK(E17,$E$15:$E$18,1) -> 1 | AC36: 3 | AD36: =RANK(AG17,$AG$15:$AG$18,1) -> 1 | AG36: 3 | AH36: =RANK(AE17,$AE$15:$AE$18,1) -> 1
C37: 4 | D37: =RANK(G18,$G$15:$G$18,1) -> 1 | G37: 4 | H37: =RANK(E18,$E$15:$E$18,1) -> 1 | AC37: 4 | AD37: =RANK(AG18,$AG$15:$AG$18,1) -> 1 | AG37: 4 | AH37: =RANK(AE18,$AE$15:$AE$18,1) -> 1
I39: Modus | AI39: Modus
C40: Nr | E40: RangPkt | F40: Rang | H40: Wertigkeit | I40: 1 | J40: 2 | K40: Faktor | M40: Faktoren | AC40: Nr | AE40: RangPkt | AF40: Rang | AH40: Wertigkeit | AI40: 1 | AJ40: 2 | AK40: Faktor | AM40: Faktoren
B41: Wert | C41: 1 | D41: =I15*$K$41+I22*$K$42+I28*$K$43+D34*$K$44+H34*$K$45 -> 1010101.01 | E41: =RANK(D41,$D$41:$D$44,1) -> 1 | F41: =RANK(D41,$D$41:$D$44) -> 1 | H41: Punkte | I41: 1 | J41: 1 | K41: =INDEX($N$41:$N$45,INDEX(I41:J41,$A$15)) -> 1000000 | M41: 1 | N41: 1000000 | AB41: Wert | AC41: 1 | AD41: =AI15*$AK$41+AI22*$AK$42+AI28*$AK$43+AD34*$AK$44+AH34*$AK$45 -> 1010101.01 | AE41: =RANK(AD41,$AD$41:$AD$44,1) -> 1 | AF41: =RANK(AD41,$AD$41:$AD$44) -> 1 | AH41: Punkte | AI41: 1 | AJ41: 1 | AK41: =INDEX($AN$41:$AN$45,INDEX(AI41:AJ41,$AA$15)) -> 1000000 | AM41: 1 | AN41: 1000000
C42: 2 | D42: =I16*$K$41+I23*$K$42+I29*$K$43+D35*$K$44+H35*$K$45 -> 1010101.01 | E42: =RANK(D42,$D$41:$D$44,1) -> 1 | F42: =RANK(D42,$D$41:$D$44) -> 1 | H42: DV1 | I42: 2 | J42: 4 | K42: =INDEX($N$41:$N$45,INDEX(I42:J42,$A$15)) -> 10000 | M42: 2 | N42: 10000 | AC42: 2 | AD42: =AI16*$AK$41+AI23*$AK$42+AI29*$AK$43+AD35*$AK$44+AH35*$AK$45 -> 1010101.01 | AE42: =RANK(AD42,$AD$41:$AD$44,1) -> 1 | AF42: =RANK(AD42,$AD$41:$AD$44) -> 1 | AH42: DV1 | AI42: 2 | AJ42: 4 | AK42: =INDEX($AN$41:$AN$45,INDEX(AI42:AJ42,$AA$15)) -> 10000 | AM42: 2 | AN42: 10000
C43: 3 | D43: =I17*$K$41+I24*$K$42+I30*$K$43+D36*$K$44+H36*$K$45 -> 1010101.01 | E43: =RANK(D43,$D$41:$D$44,1) -> 1 | F43: =RANK(D43,$D$41:$D$44) -> 1 | H43: DV2 | I43: 3 | J43: 5 | K43: =INDEX($N$41:$N$45,INDEX(I43:J43,$A$15)) -> 100 | M43: 3 | N43: 100 | AC43: 3 | AD43: =AI17*$AK$41+AI24*$AK$42+AI30*$AK$43+AD36*$AK$44+AH36*$AK$45 -> 1010101.01 | AE43: =RANK(AD43,$AD$41:$AD$44,1) -> 1 | AF43: =RANK(AD43,$AD$41:$AD$44) -> 1 | AH43: DV2 | AI43: 3 | AJ43: 5 | AK43: =INDEX($AN$41:$AN$45,INDEX(AI43:AJ43,$AA$15)) -> 100 | AM43: 3 | AN43: 100
C44: 4 | D44: =I18*$K$41+I25*$K$42+I31*$K$43+D37*$K$44+H37*$K$45 -> 1010101.01 | E44: =RANK(D44,$D$41:$D$44,1) -> 1 | F44: =RANK(D44,$D$41:$D$44) -> 1 | H44: TD alle | I44: 4 | J44: 2 | K44: =INDEX($N$41:$N$45,INDEX(I44:J44,$A$15)) -> 1 | M44: 4 | N44: 1 | AC44: 4 | AD44: =AI18*$AK$41+AI25*$AK$42+AI31*$AK$43+AD37*$AK$44+AH37*$AK$45 -> 1010101.01 | AE44: =RANK(AD44,$AD$41:$AD$44,1) -> 1 | AF44: =RANK(AD44,$AD$41:$AD$44) -> 1 | AH44: TD alle | AI44: 4 | AJ44: 2 | AK44: =INDEX($AN$41:$AN$45,INDEX(AI44:AJ44,$AA$15)) -> 1 | AM44: 4 | AN44: 1
H45: Tore alle | I45: 5 | J45: 3 | K45: =INDEX($N$41:$N$45,INDEX(I45:J45,$A$15)) -> 0.01 | M45: 5 | N45: =1/100 -> 0.01 | AH45: Tore alle | AI45: 5 | AJ45: 3 | AK45: =INDEX($AN$41:$AN$45,INDEX(AI45:AJ45,$AA$15)) -> 0.01 | AM45: 5 | AN45: =1/100 -> 0.01
H46: EMS | I46: 6 | J46: 6 | AH46: EMS | AI46: 6 | AJ46: 6
B47: EMS | C47: =A15=1 -> TRUE | D47: WAHR/FALSCH für EMS AN/AUS | H47: Koeff | I47: 7 | J47: 7 | AB47: EMS | AC47: =AA15=1 -> TRUE | AD47: WAHR/FALSCH für EMS AN/AUS | AH47: Koeff | AI47: 7 | AJ47: 7
C48: um Platz1 | D48: um Platz2 | E48: um Platz 3 | AC48: um Platz1 | AD48: um Platz2 | AE48: um Platz 3
B49: Anz. Teams | C49: =COUNTIF($F$41:$F$44,"=1") -> 4 | D49: =COUNTIF($F$41:$F$44,"=2") -> 0 | E49: =COUNTIF($F$41:$F$44,"=3") -> 0 | AB49: Anz. Teams | AC49: =COUNTIF($AF$41:$AF$44,"=1") -> 4 | AD49: =COUNTIF($AF$41:$AF$44,"=2") -> 0 | AE49: =COUNTIF($AF$41:$AF$44,"=3") -> 0
B51: Rang | C51: =IF(NOT(C47),0,IF(C49=2,1,IF(D49=2,2,IF(E49=2,3,0)))) -> 0 | E51: Teams | F51: =MIN(IF($F$41:$F$44=$C$51,$C$15:$C$18)) -> 0 | G51: =MAX(IF($F$41:$F$44=C51,$C$15:$C$18)) -> 0 | I51: Paarung | J51: =IF(ISERROR(F53),G53,F53) ->  | AB51: Rang | AC51: =IF(NOT(AC47),0,IF(AC49=2,1,IF(AD49=2,2,IF(AE49=2,3,0)))) -> 0 | AE51: Teams | AF51: =MIN(IF($AF$41:$AF$44=$AC$51,$AC$15:$AC$18)) -> 0 | AG51: =MAX(IF($AF$41:$AF$44=AC51,$AC$15:$AC$18)) -> 0 | AI51: Paarung | AJ51: =IF(ISERROR(AF53),AG53,AF53) -> 
F52: =F51&"#"&G51 -> 0#0 | G52: =G51&"#"&F51 -> 0#0 | AF52: =AF51&"#"&AG51 -> 0#0 | AG52: =AG51&"#"&AF51 -> 0#0
F53: =MATCH(F52,$B$6:$B$11,0) ->  | G53: =MATCH(G52,$B$6:$B$11,0) ->  | AF53: =MATCH(AF52,$AB$6:$AB$11,0) ->  | AG53: =MATCH(AG52,$AB$6:$AB$11,0) -> 
B56: TeamIdx | C56: =INDEX(D6:D11,J51) ->  | D56: =INDEX(E6:E11,J51) ->  | E56: Häufigkeit | F56: Remis | G56: EMS OK | I56: Text | J56: =IF(G57=0,"","EMS um Rang " &C51) ->  | AB56: TeamIdx | AC56: =INDEX(AD6:AD11,AJ51) ->  | AD56: =INDEX(AE6:AE11,AJ51) ->  | AE56: Häufigkeit | AF56: Remis | AG56: EMS OK | AI56: Text | AJ56: =IF(AG57=0,"","EMS um Rang " &AC51) -> 
B57: Punkte | C57: =VLOOKUP(C56,$C$15:$D$18,2,FALSE) ->  | D57: =VLOOKUP(D56,$C$15:$D$18,2,FALSE) ->  | E57: =COUNTIF($D$15:$D$18,"="&D57) -> 0 | F57: =INDEX(K6:K11,J51)=1 ->  | G57: =IF(C51=0,0,IF(J51<5,0,IF(E57<>2,0,IF(C57<>D57,0,IF(NOT(F57),0,1))))) -> 0 | AB57: Punkte | AC57: =VLOOKUP(AC56,$AC$15:$AD$18,2,FALSE) ->  | AD57: =VLOOKUP(AD56,$AC$15:$AD$18,2,FALSE) ->  | AE57: =COUNTIF($AD$15:$AD$18,"="&AD57) -> 0 | AF57: =INDEX(AK6:AK11,AJ51)=1 ->  | AG57: =IF(AC51=0,0,IF(AJ51<5,0,IF(AE57<>2,0,IF(AC57<>AD57,0,IF(NOT(AF57),0,1))))) -> 0
E59: Ergebnis EMS | AE59: Ergebnis EMS
B60: Teams | C60: =VLOOKUP(C56,$C$15:$H$18,6,FALSE) ->  | D60: =VLOOKUP(D56,$C$15:$H$18,6,FALSE) ->  | AB60: Teams | AC60: =VLOOKUP(AC56,$AC$15:$AH$18,6,FALSE) ->  | AD60: =VLOOKUP(AD56,$AC$15:$AH$18,6,FALSE) -> 
B61: Nr | C61: =MATCH(C56,$C$15:$C$18,0) ->  | D61: =MATCH(D56,$C$15:$C$18,0) ->  | E61: =IF(COUNT(E60:F60)<>2,0,IF(E60>F60,1,0)) -> 0 | F61: =IF(COUNT(E60:F60)<>2,0,IF(E60<F60,1,0)) -> 0 | G61: EMS-Pkt | AB61: Nr | AC61: =MATCH(AC56,$AC$15:$AC$18,0) ->  | AD61: =MATCH(AD56,$AC$15:$AC$18,0) ->  | AE61: =IF(COUNT(AE60:AF60)<>2,0,IF(AE60>AF60,1,0)) -> 0 | AF61: =IF(COUNT(AE60:AF60)<>2,0,IF(AE60<AF60,1,0)) -> 0 | AG61: EMS-Pkt
C64: Rangpkt inkl. EMS und Koeff | AC64: Rangpkt inkl. EMS und Koeff
C65: Nr. | D65: RangPkt | E65: Rang | F65: Rang korr | AC65: Nr. | AD65: RangPkt | AE65: Rang | AF65: Rang korr
B66: Wert | C66: 1 | D66: =E41+IF($G$57=0,0,SUMIF($C$61:$D$61,"="&C66,$E$61:$F$61)/100)+N15/10000 -> 1.0001 | E66: =RANK(D66,$D$66:$D$69) -> 1 | F66: =E66+COUNTIF(E$65:E65,"="&E66) -> 1 | AB66: Wert | AC66: 1 | AD66: =AE41+IF($AG$57=0,0,SUMIF($AC$61:$AD$61,"="&AC66,$AE$61:$AF$61)/100)+AN15/10000 -> 1.0001 | AE66: =RANK(AD66,$AD$66:$AD$69) -> 1 | AF66: =AE66+COUNTIF(AE$65:AE65,"="&AE66) -> 1
C67: 2 | D67: =E42+IF($G$57=0,0,SUMIF($C$61:$D$61,"="&C67,$E$61:$F$61)/100)+N16/10000 -> 1.0001 | E67: =RANK(D67,$D$66:$D$69) -> 1 | F67: =E67+COUNTIF(E$65:E66,"="&E67) -> 2 | AC67: 2 | AD67: =AE42+IF($AG$57=0,0,SUMIF($AC$61:$AD$61,"="&AC67,$AE$61:$AF$61)/100)+AN16/10000 -> 1.0001 | AE67: =RANK(AD67,$AD$66:$AD$69) -> 1 | AF67: =AE67+COUNTIF(AE$65:AE66,"="&AE67) -> 2
C68: 3 | D68: =E43+IF($G$57=0,0,SUMIF($C$61:$D$61,"="&C68,$E$61:$F$61)/100)+N17/10000 -> 1.0001 | E68: =RANK(D68,$D$66:$D$69) -> 1 | F68: =E68+COUNTIF(E$65:E67,"="&E68) -> 3 | AC68: 3 | AD68: =AE43+IF($AG$57=0,0,SUMIF($AC$61:$AD$61,"="&AC68,$AE$61:$AF$61)/100)+AN17/10000 -> 1.0001 | AE68: =RANK(AD68,$AD$66:$AD$69) -> 1 | AF68: =AE68+COUNTIF(AE$65:AE67,"="&AE68) -> 3
C69: 4 | D69: =E44+IF($G$57=0,0,SUMIF($C$61:$D$61,"="&C69,$E$61:$F$61)/100)+N18/10000 -> 1.0001 | E69: =RANK(D69,$D$66:$D$69) -> 1 | F69: =E69+COUNTIF(E$65:E68,"="&E69) -> 4 | AC69: 4 | AD69: =AE44+IF($AG$57=0,0,SUMIF($AC$61:$AD$61,"="&AC69,$AE$61:$AF$61)/100)+AN18/10000 -> 1.0001 | AE69: =RANK(AD69,$AD$66:$AD$69) -> 1 | AF69: =AE69+COUNTIF(AE$65:AE68,"="&AE69) -> 4
J70: berechnete oder manuelle Tabelle | AJ70: berechnete oder manuelle Tabelle
B71: Tabelle | C71: Rang | D71: Nr | E71: Rang Eff | F71: Manuell | G71: =VLOOKUP(A4,TIPPABGABE!$CQ$69:$CR$75,2,FALSE) -> FALSE | H71: Nr | J71: Nr korr | AB71: Tabelle | AC71: Rang | AD71: Nr | AE71: Rang Eff | AF71: Manuell | AG71: =VLOOKUP(AA4,TIPPABGABE!$CQ$69:$CR$75,2,FALSE) -> FALSE | AH71: Nr | AJ71: Nr korr
B72: =INDEX(teams,INDEX(C15:C18,D72)) -> Deutschland | C72: 1 | D72: =MATCH(C72,$F$66:$F$69,0) -> 1 | E72: =IF(G71,C72,INDEX(E66:E69,D72)) -> 1 | G72: 1 | H72: =IF(G71,VLOOKUP(A79,TIPPABGABE!$CQ$40:$CS$67,3,FALSE),D72) -> 1 | J72: =IF(AND(G71,TIPPABGABE!$DA$35=1,TIPPABGABE!$AN$8=TIPPABGABE!$AN$4),H72,D72) -> 1 | AB72: =INDEX(teams,INDEX(AC15:AC18,AD72)) -> Spanien | AC72: 1 | AD72: =MATCH(AC72,$AF$66:$AF$69,0) -> 1 | AE72: =IF(AG71,AC72,INDEX(AE66:AE69,AD72)) -> 1 | AG72: 1 | AH72: =IF(AG71,VLOOKUP(AA79,TIPPABGABE!$CQ$40:$CS$67,3,FALSE),AD72) -> 1 | AJ72: =IF(AND(AG71,TIPPABGABE!$DA$35=1,TIPPABGABE!$AN$8=TIPPABGABE!$AN$4),AH72,AD72) -> 1
B73: =INDEX(teams,INDEX(C15:C18,D73)) -> Schottland | C73: 2 | D73: =MATCH(C73,$F$66:$F$69,0) -> 2 | E73: =IF(G71,C73,INDEX(E66:E69,D73)) -> 1 | G73: 2 | H73: =IF(G71,VLOOKUP(A80,TIPPABGABE!$CQ$40:$CS$67,3,FALSE),D73) -> 2 | J73: =IF(AND(G71,TIPPABGABE!$DA$35=1,TIPPABGABE!$AN$8=TIPPABGABE!$AN$4),H73,D73) -> 2 | AB73: =INDEX(teams,INDEX(AC15:AC18,AD73)) -> Kroatien | AC73: 2 | AD73: =MATCH(AC73,$AF$66:$AF$69,0) -> 2 | AE73: =IF(AG71,AC73,INDEX(AE66:AE69,AD73)) -> 1 | AG73: 2 | AH73: =IF(AG71,VLOOKUP(AA80,TIPPABGABE!$CQ$40:$CS$67,3,FALSE),AD73) -> 2 | AJ73: =IF(AND(AG71,TIPPABGABE!$DA$35=1,TIPPABGABE!$AN$8=TIPPABGABE!$AN$4),AH73,AD73) -> 2
B74: =INDEX(teams,INDEX(C15:C18,D74)) -> Ungarn | C74: 3 | D74: =MATCH(C74,$F$66:$F$69,0) -> 3 | E74: =IF(G71,C74,INDEX(E66:E69,D74)) -> 1 | G74: 3 | H74: =IF(G71,VLOOKUP(A81,TIPPABGABE!$CQ$40:$CS$67,3,FALSE),D74) -> 3 | J74: =IF(AND(G71,TIPPABGABE!$DA$35=1,TIPPABGABE!$AN$8=TIPPABGABE!$AN$4),H74,D74) -> 3 | AB74: =INDEX(teams,INDEX(AC15:AC18,AD74)) -> Italien | AC74: 3 | AD74: =MATCH(AC74,$AF$66:$AF$69,0) -> 3 | AE74: =IF(AG71,AC74,INDEX(AE66:AE69,AD74)) -> 1 | AG74: 3 | AH74: =IF(AG71,VLOOKUP(AA81,TIPPABGABE!$CQ$40:$CS$67,3,FALSE),AD74) -> 3 | AJ74: =IF(AND(AG71,TIPPABGABE!$DA$35=1,TIPPABGABE!$AN$8=TIPPABGABE!$AN$4),AH74,AD74) -> 3
B75: =INDEX(teams,INDEX(C15:C18,D75)) -> Schweiz | C75: 4 | D75: =MATCH(C75,$F$66:$F$69,0) -> 4 | E75: =IF(G71,C75,INDEX(E66:E69,D75)) -> 1 | G75: 4 | H75: =IF(G71,VLOOKUP(A82,TIPPABGABE!$CQ$40:$CS$67,3,FALSE),D75) -> 4 | J75: =IF(AND(G71,TIPPABGABE!$DA$35=1,TIPPABGABE!$AN$8=TIPPABGABE!$AN$4),H75,D75) -> 4 | AB75: =INDEX(teams,INDEX(AC15:AC18,AD75)) -> Albanien | AC75: 4 | AD75: =MATCH(AC75,$AF$66:$AF$69,0) -> 4 | AE75: =IF(AG71,AC75,INDEX(AE66:AE69,AD75)) -> 1 | AG75: 4 | AH75: =IF(AG71,VLOOKUP(AA82,TIPPABGABE!$CQ$40:$CS$67,3,FALSE),AD75) -> 4 | AJ75: =IF(AND(AG71,TIPPABGABE!$DA$35=1,TIPPABGABE!$AN$8=TIPPABGABE!$AN$4),AH75,AD75) -> 4
B78: Tabelle | C78: TeamIndex | D78: Nr | E78: Team | F78: Sp | G78: P | H78: T+ | I78: T- | J78: Diff | K78: S | L78: U | M78: N | AB78: Tabelle | AC78: TeamIndex | AD78: Nr | AE78: Team | AF78: Sp | AG78: P | AH78: T+ | AI78: T- | AJ78: Diff | AK78: S | AL78: U | AM78: N
A79: ="S"&A4 -> SA | B79: 1 | C79: =INDEX($C$15:$C$18,J72) -> 1 | D79: =J72 -> 1 | E79: =INDEX($H$15:$H$18,J72) -> GER | F79: =SUMIF($D$6:$E$11,"="&$C79,$Q$6:$R$11) -> 0 | G79: =INDEX($D$15:$D$18,$J72) -> 0 | H79: =INDEX($E$15:$E$18,$J72) -> 0 | I79: =INDEX($F$15:$F$18,$J72) -> 0 | J79: =INDEX($G$15:$G$18,$J72) -> 0 | K79: =COUNTIF($S$6:$T$11,"="&K$78&$C79) -> 0 | L79: 0 | M79: 0 | AA79: ="S"&AA4 -> SB | AB79: 1 | AC79: =INDEX($AC$15:$AC$18,AJ72) -> 5 | AD79: =AJ72 -> 1 | AE79: =INDEX($AH$15:$AH$18,AJ72) -> ESP | AF79: =SUMIF($AD$6:$AE$11,"="&$AC79,$AQ$6:$AR$11) -> 0 | AG79: =INDEX($AD$15:$AD$18,$AJ72) -> 0 | AH79: =INDEX($AE$15:$AE$18,$AJ72) -> 0 | AI79: =INDEX($AF$15:$AF$18,$AJ72) -> 0 | AJ79: =INDEX($AG$15:$AG$18,$AJ72) -> 0 | AK79: =COUNTIF($AS$6:$AT$11,"="&AK$78&$AC79) -> 0 | AL79: 0 | AM79: 0
A80: ="Z"&A4 -> ZA | B80: 2 | C80: =INDEX($C$15:$C$18,J73) -> 2 | D80: =J73 -> 2 | E80: =INDEX($H$15:$H$18,J73) -> SCO | F80: =SUMIF($D$6:$E$11,"="&$C80,$Q$6:$R$11) -> 0 | G80: =INDEX($D$15:$D$18,$J73) -> 0 | H80: =INDEX($E$15:$E$18,$J73) -> 0 | I80: =INDEX($F$15:$F$18,$J73) -> 0 | J80: =INDEX($G$15:$G$18,$J73) -> 0 | K80: 0 | L80: 0 | M80: 0 | AA80: ="Z"&AA4 -> ZB | AB80: 2 | AC80: =INDEX($AC$15:$AC$18,AJ73) -> 6 | AD80: =AJ73 -> 2 | AE80: =INDEX($AH$15:$AH$18,AJ73) -> CRO | AF80: =SUMIF($AD$6:$AE$11,"="&$AC80,$AQ$6:$AR$11) -> 0 | AG80: =INDEX($AD$15:$AD$18,$AJ73) -> 0 | AH80: =INDEX($AE$15:$AE$18,$AJ73) -> 0 | AI80: =INDEX($AF$15:$AF$18,$AJ73) -> 0 | AJ80: =INDEX($AG$15:$AG$18,$AJ73) -> 0 | AK80: 0 | AL80: 0 | AM80: 0
A81: ="D"&A4 -> DA | B81: 3 | C81: =INDEX($C$15:$C$18,J74) -> 3 | D81: =J74 -> 3 | E81: =INDEX($H$15:$H$18,J74) -> HUN | F81: =SUMIF($D$6:$E$11,"="&$C81,$Q$6:$R$11) -> 0 | G81: =INDEX($D$15:$D$18,$J74) -> 0 | H81: =INDEX($E$15:$E$18,$J74) -> 0 | I81: =INDEX($F$15:$F$18,$J74) -> 0 | J81: =INDEX($G$15:$G$18,$J74) -> 0 | K81: 0 | L81: 0 | M81: 0 | AA81: ="D"&AA4 -> DB | AB81: 3 | AC81: =INDEX($AC$15:$AC$18,AJ74) -> 7 | AD81: =AJ74 -> 3 | AE81: =INDEX($AH$15:$AH$18,AJ74) -> ITA | AF81: =SUMIF($AD$6:$AE$11,"="&$AC81,$AQ$6:$AR$11) -> 0 | AG81: =INDEX($AD$15:$AD$18,$AJ74) -> 0 | AH81: =INDEX($AE$15:$AE$18,$AJ74) -> 0 | AI81: =INDEX($AF$15:$AF$18,$AJ74) -> 0 | AJ81: =INDEX($AG$15:$AG$18,$AJ74) -> 0 | AK81: 0 | AL81: 0 | AM81: 0
A82: ="V"&A4 -> VA | B82: 4 | C82: =INDEX($C$15:$C$18,J75) -> 4 | D82: =J75 -> 4 | E82: =INDEX($H$15:$H$18,J75) -> SUI | F82: =SUMIF($D$6:$E$11,"="&$C82,$Q$6:$R$11) -> 0 | G82: =INDEX($D$15:$D$18,$J75) -> 0 | H82: =INDEX($E$15:$E$18,$J75) -> 0 | I82: =INDEX($F$15:$F$18,$J75) -> 0 | J82: =INDEX($G$15:$G$18,$J75) -> 0 | K82: 0 | L82: 0 | M82: 0 | AA82: ="V"&AA4 -> VB | AB82: 4 | AC82: =INDEX($AC$15:$AC$18,AJ75) -> 8 | AD82: =AJ75 -> 4 | AE82: =INDEX($AH$15:$AH$18,AJ75) -> ALB | AF82: =SUMIF($AD$6:$AE$11,"="&$AC82,$AQ$6:$AR$11) -> 0 | AG82: =INDEX($AD$15:$AD$18,$AJ75) -> 0 | AH82: =INDEX($AE$15:$AE$18,$AJ75) -> 0 | AI82: =INDEX($AF$15:$AF$18,$AJ75) -> 0 | AJ82: =INDEX($AG$15:$AG$18,$AJ75) -> 0 | AK82: 0 | AL82: 0 | AM82: 0
A86: C | B86: Paarungen | G86: Resultat | K86: Punkte | AA86: D | AB86: Paarungen | AG86: Resultat | AK86: Punkte
A87: Nr | D87: HT | E87: AT | F87: HT2 | G87: ErgH | H87: ErgA | I87: ErgH2 | K87: PH | L87: PA | M87: DifH | N87: DifA | O87: WertH | P87: WertA | Q87: Spiele | S87: Resultat | AA87: Nr | AD87: HT | AE87: AT | AF87: HT2 | AG87: ErgH | AH87: ErgA | AI87: ErgH2 | AK87: PH | AL87: PA | AM87: DifH | AN87: DifA | AO87: WertH | AP87: WertA | AQ87: Spiele | AS87: Resultat
A88: 1 | B88: =D88&"#"&E88 -> 9#10 | C88: =E88&"#"&D88 -> 10#9 | D88: =VLOOKUP(J88,daten!$D$49:$J$84,6,FALSE) -> 9 | E88: =VLOOKUP(J88,daten!$D$49:$K$84,7,FALSE) -> 10 | F88: =D88 -> 9 | G88: =VLOOKUP(J88,TIPPABGABE!$CU$40:$DE$75,10,FALSE) ->  | H88: =VLOOKUP(J88,TIPPABGABE!$CU$40:$DE$75,11,FALSE) ->  | I88: =IF(LEN(G88)>0,G88,"") ->  | J88: =A86&A88 -> C1 | K88: =IF(COUNT(G88:H88)<>2,0,IF(G88>H88,3,IF(H88>G88,0,1))) -> 0 | L88: =IF(COUNT(G88:H88)<>2,0,IF(G88>H88,0,IF(H88>G88,3,1))) -> 0 | M88: =IF(COUNT(G88:H88)<>2,0,G88-H88) -> 0 | N88: =IF(COUNT(G88:H88)<>2,0,H88-I88) -> 0 | O88: =K88*1000+M88+IF(LEN(G88)=0,0,G88/1000) -> 0 | P88: 0 | Q88: =IF(COUNT(G88:H88)=2,1,0) -> 0 | R88: =Q88 -> 0 | S88: =IF(Q88=0,"X",IF(K88=3,"S",IF(K88=0,"N","U")))&D88 -> X9 | T88: X10 | AA88: 1 | AB88: =AD88&"#"&AE88 -> 13#14 | AC88: =AE88&"#"&AD88 -> 14#13 | AD88: =VLOOKUP(AJ88,daten!$D$49:$J$84,6,FALSE) -> 13 | AE88: =VLOOKUP(AJ88,daten!$D$49:$K$84,7,FALSE) -> 14 | AF88: =AD88 -> 13 | AG88: =VLOOKUP(AJ88,TIPPABGABE!$CU$40:$DE$75,10,FALSE) ->  | AH88: =VLOOKUP(AJ88,TIPPABGABE!$CU$40:$DE$75,11,FALSE) ->  | AI88: =IF(LEN(AG88)>0,AG88,"") ->  | AJ88: =AA86&AA88 -> D1 | AK88: =IF(COUNT(AG88:AH88)<>2,0,IF(AG88>AH88,3,IF(AH88>AG88,0,1))) -> 0 | AL88: =IF(COUNT(AG88:AH88)<>2,0,IF(AG88>AH88,0,IF(AH88>AG88,3,1))) -> 0 | AM88: =IF(COUNT(AG88:AH88)<>2,0,AG88-AH88) -> 0 | AN88: =IF(COUNT(AG88:AH88)<>2,0,AH88-AI88) -> 0 | AO88: =AK88*1000+AM88+IF(LEN(AG88)=0,0,AG88/1000) -> 0 | AP88: 0 | AQ88: =IF(COUNT(AG88:AH88)=2,1,0) -> 0 | AR88: =AQ88 -> 0 | AS88: =IF(AQ88=0,"X",IF(AK88=3,"S",IF(AK88=0,"N","U")))&AD88 -> X13 | AT88: X14
A89: 2 | B89: 11#12 | C89: 12#11 | D89: =VLOOKUP(J89,daten!$D$49:$J$84,6,FALSE) -> 11 | E89: =VLOOKUP(J89,daten!$D$49:$K$84,7,FALSE) -> 12 | F89: 11 | G89: =VLOOKUP(J89,TIPPABGABE!$CU$40:$DE$75,10,FALSE) ->  | H89: =VLOOKUP(J89,TIPPABGABE!$CU$40:$DE$75,11,FALSE) ->  | J89: =A86&A89 -> C2 | K89: 0 | L89: 0 | M89: 0 | N89: 0 | O89: 0 | P89: 0 | Q89: 0 | R89: 0 | S89: X11 | T89: X12 | AA89: 2 | AB89: 15#16 | AC89: 16#15 | AD89: =VLOOKUP(AJ89,daten!$D$49:$J$84,6,FALSE) -> 15 | AE89: =VLOOKUP(AJ89,daten!$D$49:$K$84,7,FALSE) -> 16 | AF89: 15 | AG89: =VLOOKUP(AJ89,TIPPABGABE!$CU$40:$DE$75,10,FALSE) ->  | AH89: =VLOOKUP(AJ89,TIPPABGABE!$CU$40:$DE$75,11,FALSE) ->  | AJ89: =AA86&AA89 -> D2 | AK89: 0 | AL89: 0 | AM89: 0 | AN89: 0 | AO89: 0 | AP89: 0 | AQ89: 0 | AR89: 0 | AS89: X15 | AT89: X16
A90: 3 | B90: 9#11 | C90: 11#9 | D90: =VLOOKUP(J90,daten!$D$49:$J$84,6,FALSE) -> 9 | E90: =VLOOKUP(J90,daten!$D$49:$K$84,7,FALSE) -> 11 | F90: 9 | G90: =VLOOKUP(J90,TIPPABGABE!$CU$40:$DE$75,10,FALSE) ->  | H90: =VLOOKUP(J90,TIPPABGABE!$CU$40:$DE$75,11,FALSE) ->  | J90: =A86&A90 -> C3 | K90: 0 | L90: 0 | M90: 0 | N90: 0 | O90: 0 | P90: 0 | Q90: 0 | R90: 0 | S90: X9 | T90: X11 | AA90: 3 | AB90: 13#15 | AC90: 15#13 | AD90: =VLOOKUP(AJ90,daten!$D$49:$J$84,6,FALSE) -> 13 | AE90: =VLOOKUP(AJ90,daten!$D$49:$K$84,7,FALSE) -> 15 | AF90: 13 | AG90: =VLOOKUP(AJ90,TIPPABGABE!$CU$40:$DE$75,10,FALSE) ->  | AH90: =VLOOKUP(AJ90,TIPPABGABE!$CU$40:$DE$75,11,FALSE) ->  | AJ90: =AA86&AA90 -> D3 | AK90: 0 | AL90: 0 | AM90: 0 | AN90: 0 | AO90: 0 | AP90: 0 | AQ90: 0 | AR90: 0 | AS90: X13 | AT90: X15
A91: 4 | B91: 10#12 | C91: 12#10 | D91: =VLOOKUP(J91,daten!$D$49:$J$84,6,FALSE) -> 10 | E91: =VLOOKUP(J91,daten!$D$49:$K$84,7,FALSE) -> 12 | F91: 10 | G91: =VLOOKUP(J91,TIPPABGABE!$CU$40:$DE$75,10,FALSE) ->  | H91: =VLOOKUP(J91,TIPPABGABE!$CU$40:$DE$75,11,FALSE) ->  | J91: =A86&A91 -> C4 | K91: 0 | L91: 0 | M91: 0 | N91: 0 | O91: 0 | P91: 0 | Q91: 0 | R91: 0 | S91: X10 | T91: X12 | AA91: 4 | AB91: 14#16 | AC91: 16#14 | AD91: =VLOOKUP(AJ91,daten!$D$49:$J$84,6,FALSE) -> 14 | AE91: =VLOOKUP(AJ91,daten!$D$49:$K$84,7,FALSE) -> 16 | AF91: 14 | AG91: =VLOOKUP(AJ91,TIPPABGABE!$CU$40:$DE$75,10,FALSE) ->  | AH91: =VLOOKUP(AJ91,TIPPABGABE!$CU$40:$DE$75,11,FALSE) ->  | AJ91: =AA86&AA91 -> D4 | AK91: 0 | AL91: 0 | AM91: 0 | AN91: 0 | AO91: 0 | AP91: 0 | AQ91: 0 | AR91: 0 | AS91: X14 | AT91: X16
A92: 5 | B92: 12#9 | C92: 9#12 | D92: =VLOOKUP(J92,daten!$D$49:$J$84,6,FALSE) -> 12 | E92: =VLOOKUP(J92,daten!$D$49:$K$84,7,FALSE) -> 9 | F92: 12 | G92: =VLOOKUP(J92,TIPPABGABE!$CU$40:$DE$75,10,FALSE) ->  | H92: =VLOOKUP(J92,TIPPABGABE!$CU$40:$DE$75,11,FALSE) ->  | J92: =A86&A92 -> C5 | K92: 0 | L92: 0 | M92: 0 | N92: 0 | O92: 0 | P92: 0 | Q92: 0 | R92: 0 | S92: X12 | T92: X9 | AA92: 5 | AB92: 14#15 | AC92: 15#14 | AD92: =VLOOKUP(AJ92,daten!$D$49:$J$84,6,FALSE) -> 14 | AE92: =VLOOKUP(AJ92,daten!$D$49:$K$84,7,FALSE) -> 15 | AF92: 14 | AG92: =VLOOKUP(AJ92,TIPPABGABE!$CU$40:$DE$75,10,FALSE) ->  | AH92: =VLOOKUP(AJ92,TIPPABGABE!$CU$40:$DE$75,11,FALSE) ->  | AJ92: =AA86&AA92 -> D5 | AK92: 0 | AL92: 0 | AM92: 0 | AN92: 0 | AO92: 0 | AP92: 0 | AQ92: 0 | AR92: 0 | AS92: X14 | AT92: X15
A93: 6 | B93: 10#11 | C93: 11#10 | D93: =VLOOKUP(J93,daten!$D$49:$J$84,6,FALSE) -> 10 | E93: =VLOOKUP(J93,daten!$D$49:$K$84,7,FALSE) -> 11 | F93: 10 | G93: =VLOOKUP(J93,TIPPABGABE!$CU$40:$DE$75,10,FALSE) ->  | H93: =VLOOKUP(J93,TIPPABGABE!$CU$40:$DE$75,11,FALSE) ->  | J93: =A86&A93 -> C6 | K93: 0 | L93: 0 | M93: 0 | N93: 0 | O93: 0 | P93: 0 | Q93: 0 | R93: 0 | S93: X10 | T93: X11 | AA93: 6 | AB93: 16#13 | AC93: 13#16 | AD93: =VLOOKUP(AJ93,daten!$D$49:$J$84,6,FALSE) -> 16 | AE93: =VLOOKUP(AJ93,daten!$D$49:$K$84,7,FALSE) -> 13 | AF93: 16 | AG93: =VLOOKUP(AJ93,TIPPABGABE!$CU$40:$DE$75,10,FALSE) ->  | AH93: =VLOOKUP(AJ93,TIPPABGABE!$CU$40:$DE$75,11,FALSE) ->  | AJ93: =AA86&AA93 -> D6 | AK93: 0 | AL93: 0 | AM93: 0 | AN93: 0 | AO93: 0 | AP93: 0 | AQ93: 0 | AR93: 0 | AS93: X16 | AT93: X13
A96: Modus | C96: TeamIdx | D96: P | E96: Treffer | F96: GTo | G96: Dif | H96: Team | I96: RangPkt | K96: Koeff | M96: Rang | N96: RangPkt | AA96: Modus | AC96: TeamIdx | AD96: P | AE96: Treffer | AF96: GTo | AG96: Dif | AH96: Team | AI96: RangPkt | AK96: Koeff | AM96: Rang | AN96: RangPkt
A97: 1 | C97: 9 | D97: =SUMIF($D$88:$E$93,"="&C97,$K$88:$L$93) -> 0 | E97: =SUMIF($D$88:$E$93,"="&$C97,$G$88:$H$93) -> 0 | F97: =E97-G97 -> 0 | G97: =SUMIF($D$88:$E$93,"="&$C97,$G$88:$H$93)-SUMIF($D$88:$E$93,"="&$C97,$H$88:$I$93) -> 0 | H97: =INDEX(teams_k,C97) -> SLO | I97: =RANK(D97,$D$97:$D$100,1) -> 1 | L97: 1 | M97: 1 | N97: =RANK(M97,$M$97:$M$100) -> 1 | AA97: 1 | AC97: 13 | AD97: =SUMIF($AD$88:$AE$93,"="&AC97,$AK$88:$AL$93) -> 0 | AE97: =SUMIF($AD$88:$AE$93,"="&$AC97,$AG$88:$AH$93) -> 0 | AF97: =AE97-AG97 -> 0 | AG97: =SUMIF($AD$88:$AE$93,"="&$AC97,$AG$88:$AH$93)-SUMIF($AD$88:$AE$93,"="&$AC97,$AH$88:$AI$93) -> 0 | AH97: =INDEX(teams_k,AC97) -> POL | AI97: =RANK(AD97,$AD$97:$AD$100,1) -> 1 | AL97: 1 | AM97: 1 | AN97: =RANK(AM97,$AM$97:$AM$100) -> 1
C98: 10 | D98: =SUMIF($D$88:$E$93,"="&C98,$K$88:$L$93) -> 0 | E98: =SUMIF($D$88:$E$93,"="&$C98,$G$88:$H$93) -> 0 | F98: =E98-G98 -> 0 | G98: =SUMIF($D$88:$E$93,"="&$C98,$G$88:$H$93)-SUMIF($D$88:$E$93,"="&$C98,$H$88:$I$93) -> 0 | H98: =INDEX(teams_k,C98) -> DEN | I98: =RANK(D98,$D$97:$D$100,1) -> 1 | L98: 2 | M98: 1 | N98: =RANK(M98,$M$97:$M$100) -> 1 | AC98: 14 | AD98: =SUMIF($AD$88:$AE$93,"="&AC98,$AK$88:$AL$93) -> 0 | AE98: =SUMIF($AD$88:$AE$93,"="&$AC98,$AG$88:$AH$93) -> 0 | AF98: =AE98-AG98 -> 0 | AG98: =SUMIF($AD$88:$AE$93,"="&$AC98,$AG$88:$AH$93)-SUMIF($AD$88:$AE$93,"="&$AC98,$AH$88:$AI$93) -> 0 | AH98: =INDEX(teams_k,AC98) -> NED | AI98: =RANK(AD98,$AD$97:$AD$100,1) -> 1 | AL98: 2 | AM98: 1 | AN98: =RANK(AM98,$AM$97:$AM$100) -> 1
C99: 11 | D99: =SUMIF($D$88:$E$93,"="&C99,$K$88:$L$93) -> 0 | E99: =SUMIF($D$88:$E$93,"="&$C99,$G$88:$H$93) -> 0 | F99: =E99-G99 -> 0 | G99: =SUMIF($D$88:$E$93,"="&$C99,$G$88:$H$93)-SUMIF($D$88:$E$93,"="&$C99,$H$88:$I$93) -> 0 | H99: =INDEX(teams_k,C99) -> SRB | I99: =RANK(D99,$D$97:$D$100,1) -> 1 | L99: 3 | M99: 1 | N99: =RANK(M99,$M$97:$M$100) -> 1 | AC99: 15 | AD99: =SUMIF($AD$88:$AE$93,"="&AC99,$AK$88:$AL$93) -> 0 | AE99: =SUMIF($AD$88:$AE$93,"="&$AC99,$AG$88:$AH$93) -> 0 | AF99: =AE99-AG99 -> 0 | AG99: =SUMIF($AD$88:$AE$93,"="&$AC99,$AG$88:$AH$93)-SUMIF($AD$88:$AE$93,"="&$AC99,$AH$88:$AI$93) -> 0 | AH99: =INDEX(teams_k,AC99) -> AUT | AI99: =RANK(AD99,$AD$97:$AD$100,1) -> 1 | AL99: 3 | AM99: 1 | AN99: =RANK(AM99,$AM$97:$AM$100) -> 1
C100: 12 | D100: =SUMIF($D$88:$E$93,"="&C100,$K$88:$L$93) -> 0 | E100: =SUMIF($D$88:$E$93,"="&$C100,$G$88:$H$93) -> 0 | F100: =E100-G100 -> 0 | G100: =SUMIF($D$88:$E$93,"="&$C100,$G$88:$H$93)-SUMIF($D$88:$E$93,"="&$C100,$H$88:$I$93) -> 0 | H100: =INDEX(teams_k,C100) -> ENG | I100: =RANK(D100,$D$97:$D$100,1) -> 1 | L100: 4 | M100: 1 | N100: =RANK(M100,$M$97:$M$100) -> 1 | AC100: 16 | AD100: =SUMIF($AD$88:$AE$93,"="&AC100,$AK$88:$AL$93) -> 0 | AE100: =SUMIF($AD$88:$AE$93,"="&$AC100,$AG$88:$AH$93) -> 0 | AF100: =AE100-AG100 -> 0 | AG100: =SUMIF($AD$88:$AE$93,"="&$AC100,$AG$88:$AH$93)-SUMIF($AD$88:$AE$93,"="&$AC100,$AH$88:$AI$93) -> 0 | AH100: =INDEX(teams_k,AC100) -> FRA | AI100: =RANK(AD100,$AD$97:$AD$100,1) -> 1 | AL100: 4 | AM100: 1 | AN100: =RANK(AM100,$AM$97:$AM$100) -> 1
B102: DV1 | D102: =B104 -> 9 | E102: =B105 -> 10 | F102: =B106 -> 11 | G102: =B107 -> 12 | AB102: DV1 | AD102: =AB104 -> 13 | AE102: =AB105 -> 14 | AF102: =AB106 -> 15 | AG102: =AB107 -> 16
B103: TeamIndex | C103: Nr | D103: =C104 -> 1 | E103: =C105 -> 2 | F103: =C106 -> 3 | G103: =C107 -> 4 | I103: RangPkt. | AB103: TeamIndex | AC103: Nr | AD103: =AC104 -> 1 | AE103: =AC105 -> 2 | AF103: =AC106 -> 3 | AG103: =AC107 -> 4 | AI103: RangPkt.
B104: =INDEX($C$97:$C$100,C104) -> 9 | C104: 1 | D104: =IF(INDEX($I$97:$I$100,$C104)<>INDEX($I$97:$I$100,D$103),0,SUMIF($B$88:$C$93,"="&$B104&"#"&D$102,$O$88:$P$93)) -> 0 | E104: 0 | F104: 0 | G104: 0 | H104: =SUM(D104:G104) -> 0 | I104: =RANK(H104,$H$104:$H$107,1) -> 1 | AB104: =INDEX($AC$97:$AC$100,AC104) -> 13 | AC104: 1 | AD104: =IF(INDEX($AI$97:$AI$100,$AC104)<>INDEX($AI$97:$AI$100,AD$103),0,SUMIF($AB$88:$AC$93,"="&$AB104&"#"&AD$102,$AO$88:$AP$93)) -> 0 | AE104: 0 | AF104: 0 | AG104: 0 | AH104: =SUM(AD104:AG104) -> 0 | AI104: =RANK(AH104,$AH$104:$AH$107,1) -> 1
B105: =INDEX($C$97:$C$100,C105) -> 10 | C105: 2 | D105: 0 | E105: 0 | F105: 0 | G105: 0 | H105: =SUM(D105:G105) -> 0 | I105: =RANK(H105,$H$104:$H$107,1) -> 1 | AB105: =INDEX($AC$97:$AC$100,AC105) -> 14 | AC105: 2 | AD105: 0 | AE105: 0 | AF105: 0 | AG105: 0 | AH105: =SUM(AD105:AG105) -> 0 | AI105: =RANK(AH105,$AH$104:$AH$107,1) -> 1
B106: =INDEX($C$97:$C$100,C106) -> 11 | C106: 3 | D106: 0 | E106: 0 | F106: 0 | G106: 0 | H106: =SUM(D106:G106) -> 0 | I106: =RANK(H106,$H$104:$H$107,1) -> 1 | AB106: =INDEX($AC$97:$AC$100,AC106) -> 15 | AC106: 3 | AD106: 0 | AE106: 0 | AF106: 0 | AG106: 0 | AH106: =SUM(AD106:AG106) -> 0 | AI106: =RANK(AH106,$AH$104:$AH$107,1) -> 1
B107: =INDEX($C$97:$C$100,C107) -> 12 | C107: 4 | D107: 0 | E107: 0 | F107: 0 | G107: 0 | H107: =SUM(D107:G107) -> 0 | I107: =RANK(H107,$H$104:$H$107,1) -> 1 | AB107: =INDEX($AC$97:$AC$100,AC107) -> 16 | AC107: 4 | AD107: 0 | AE107: 0 | AF107: 0 | AG107: 0 | AH107: =SUM(AD107:AG107) -> 0 | AI107: =RANK(AH107,$AH$104:$AH$107,1) -> 1
B109: DV2 | C109: Nr | D109: =C110 -> 1 | E109: =C111 -> 2 | F109: =C112 -> 3 | G109: =C113 -> 4 | I109: RangPkt. | AB109: DV2 | AC109: Nr | AD109: =AC110 -> 1 | AE109: =AC111 -> 2 | AF109: =AC112 -> 3 | AG109: =AC113 -> 4 | AI109: RangPkt.
B110: =B104 -> 9 | C110: 1 | D110: =IF(D104=0,0,IF(INDEX($I$104:$I$107,$C104)<>INDEX($I$104:$I$107,D$103),0,SUMIF($B$88:$C$93,"="&$B104&"#"&D$102,$K$88:$L$93)*1000+SUMIF($B$88:$C$93,"="&$B104&"#"&D$102,$M$88:$N$93)+SUMIF($B$88:$C$93,"="&$B104&"#"&D$102,$G$88:$H$93)/1000)) -> 0 | E110: 0 | F110: 0 | G110: 0 | H110: =SUM(D110:G110) -> 0 | I110: =RANK(H110,$H$110:$H$113,1) -> 1 | AB110: =AB104 -> 13 | AC110: 1 | AD110: =IF(AD104=0,0,IF(INDEX($AI$104:$AI$107,$AC104)<>INDEX($AI$104:$AI$107,AD$103),0,SUMIF($AB$88:$AC$93,"="&$AB104&"#"&AD$102,$AK$88:$AL$93)*1000+SUMIF($AB$88:$AC$93,"="&$AB104&"#"&AD$102,$AM$88:$AN$93)+SUMIF($AB$88:$AC$93,"="&$AB104&"#"&AD$102,$AG$88:$AH$93)/1000)) -> 0 | AE110: 0 | AF110: 0 | AG110: 0 | AH110: =SUM(AD110:AG110) -> 0 | AI110: =RANK(AH110,$AH$110:$AH$113,1) -> 1
B111: =B105 -> 10 | C111: 2 | D111: 0 | E111: 0 | F111: 0 | G111: 0 | H111: =SUM(D111:G111) -> 0 | I111: =RANK(H111,$H$110:$H$113,1) -> 1 | AB111: =AB105 -> 14 | AC111: 2 | AD111: 0 | AE111: 0 | AF111: 0 | AG111: 0 | AH111: =SUM(AD111:AG111) -> 0 | AI111: =RANK(AH111,$AH$110:$AH$113,1) -> 1
B112: =B106 -> 11 | C112: 3 | D112: 0 | E112: 0 | F112: 0 | G112: 0 | H112: =SUM(D112:G112) -> 0 | I112: =RANK(H112,$H$110:$H$113,1) -> 1 | AB112: =AB106 -> 15 | AC112: 3 | AD112: 0 | AE112: 0 | AF112: 0 | AG112: 0 | AH112: =SUM(AD112:AG112) -> 0 | AI112: =RANK(AH112,$AH$110:$AH$113,1) -> 1
B113: =B107 -> 12 | C113: 4 | D113: 0 | E113: 0 | F113: 0 | G113: 0 | H113: =SUM(D113:G113) -> 0 | I113: =RANK(H113,$H$110:$H$113,1) -> 1 | AB113: =AB107 -> 16 | AC113: 4 | AD113: 0 | AE113: 0 | AF113: 0 | AG113: 0 | AH113: =SUM(AD113:AG113) -> 0 | AI113: =RANK(AH113,$AH$110:$AH$113,1) -> 1
C115: Nr | D115: RangPkt | H115: RangPkt | AC115: Nr | AD115: RangPkt | AH115: RangPkt
B116: Diff | C116: 1 | D116: =RANK(G97,$G$97:$G$100,1) -> 1 | F116: Tore | G116: 1 | H116: =RANK(E97,$E$97:$E$100,1) -> 1 | AB116: Diff | AC116: 1 | AD116: =RANK(AG97,$AG$97:$AG$100,1) -> 1 | AF116: Tore | AG116: 1 | AH116: =RANK(AE97,$AE$97:$AE$100,1) -> 1
C117: 2 | D117: =RANK(G98,$G$97:$G$100,1) -> 1 | G117: 2 | H117: =RANK(E98,$E$97:$E$100,1) -> 1 | AC117: 2 | AD117: =RANK(AG98,$AG$97:$AG$100,1) -> 1 | AG117: 2 | AH117: =RANK(AE98,$AE$97:$AE$100,1) -> 1
C118: 3 | D118: =RANK(G99,$G$97:$G$100,1) -> 1 | G118: 3 | H118: =RANK(E99,$E$97:$E$100,1) -> 1 | AC118: 3 | AD118: =RANK(AG99,$AG$97:$AG$100,1) -> 1 | AG118: 3 | AH118: =RANK(AE99,$AE$97:$AE$100,1) -> 1
C119: 4 | D119: =RANK(G100,$G$97:$G$100,1) -> 1 | G119: 4 | H119: =RANK(E100,$E$97:$E$100,1) -> 1 | AC119: 4 | AD119: =RANK(AG100,$AG$97:$AG$100,1) -> 1 | AG119: 4 | AH119: =RANK(AE100,$AE$97:$AE$100,1) -> 1
I121: Modus | AI121: Modus
C122: Nr | E122: RangPkt | F122: Rang | H122: Wertigkeit | I122: 1 | J122: 2 | K122: Faktor | M122: Faktoren | AC122: Nr | AE122: RangPkt | AF122: Rang | AH122: Wertigkeit | AI122: 1 | AJ122: 2 | AK122: Faktor | AM122: Faktoren
B123: Wert | C123: 1 | D123: =I97*$K$123+I104*$K$124+I110*$K$125+D116*$K$126+H116*$K$127 -> 1010101.01 | E123: =RANK(D123,$D$123:$D$126,1) -> 1 | F123: =RANK(D123,$D$123:$D$126) -> 1 | H123: Punkte | I123: 1 | J123: 1 | K123: =INDEX($N$123:$N$127,INDEX(I123:J123,$A$97)) -> 1000000 | M123: 1 | N123: 1000000 | AB123: Wert | AC123: 1 | AD123: =AI97*$AK$123+AI104*$AK$124+AI110*$AK$125+AD116*$AK$126+AH116*$AK$127 -> 1010101.01 | AE123: =RANK(AD123,$AD$123:$AD$126,1) -> 1 | AF123: =RANK(AD123,$AD$123:$AD$126) -> 1 | AH123: Punkte | AI123: 1 | AJ123: 1 | AK123: =INDEX($AN$123:$AN$127,INDEX(AI123:AJ123,$AA$97)) -> 1000000 | AM123: 1 | AN123: 1000000
C124: 2 | D124: =I98*$K$123+I105*$K$124+I111*$K$125+D117*$K$126+H117*$K$127 -> 1010101.01 | E124: =RANK(D124,$D$123:$D$126,1) -> 1 | F124: =RANK(D124,$D$123:$D$126) -> 1 | H124: DV1 | I124: 2 | J124: 4 | K124: =INDEX($N$123:$N$127,INDEX(I124:J124,$A$97)) -> 10000 | M124: 2 | N124: 10000 | AC124: 2 | AD124: =AI98*$AK$123+AI105*$AK$124+AI111*$AK$125+AD117*$AK$126+AH117*$AK$127 -> 1010101.01 | AE124: =RANK(AD124,$AD$123:$AD$126,1) -> 1 | AF124: =RANK(AD124,$AD$123:$AD$126) -> 1 | AH124: DV1 | AI124: 2 | AJ124: 4 | AK124: =INDEX($AN$123:$AN$127,INDEX(AI124:AJ124,$AA$97)) -> 10000 | AM124: 2 | AN124: 10000
C125: 3 | D125: =I99*$K$123+I106*$K$124+I112*$K$125+D118*$K$126+H118*$K$127 -> 1010101.01 | E125: =RANK(D125,$D$123:$D$126,1) -> 1 | F125: =RANK(D125,$D$123:$D$126) -> 1 | H125: DV2 | I125: 3 | J125: 5 | K125: =INDEX($N$123:$N$127,INDEX(I125:J125,$A$97)) -> 100 | M125: 3 | N125: 100 | AC125: 3 | AD125: =AI99*$AK$123+AI106*$AK$124+AI112*$AK$125+AD118*$AK$126+AH118*$AK$127 -> 1010101.01 | AE125: =RANK(AD125,$AD$123:$AD$126,1) -> 1 | AF125: =RANK(AD125,$AD$123:$AD$126) -> 1 | AH125: DV2 | AI125: 3 | AJ125: 5 | AK125: =INDEX($AN$123:$AN$127,INDEX(AI125:AJ125,$AA$97)) -> 100 | AM125: 3 | AN125: 100
C126: 4 | D126: =I100*$K$123+I107*$K$124+I113*$K$125+D119*$K$126+H119*$K$127 -> 1010101.01 | E126: =RANK(D126,$D$123:$D$126,1) -> 1 | F126: =RANK(D126,$D$123:$D$126) -> 1 | H126: TD alle | I126: 4 | J126: 2 | K126: =INDEX($N$123:$N$127,INDEX(I126:J126,$A$97)) -> 1 | M126: 4 | N126: 1 | AC126: 4 | AD126: =AI100*$AK$123+AI107*$AK$124+AI113*$AK$125+AD119*$AK$126+AH119*$AK$127 -> 1010101.01 | AE126: =RANK(AD126,$AD$123:$AD$126,1) -> 1 | AF126: =RANK(AD126,$AD$123:$AD$126) -> 1 | AH126: TD alle | AI126: 4 | AJ126: 2 | AK126: =INDEX($AN$123:$AN$127,INDEX(AI126:AJ126,$AA$97)) -> 1 | AM126: 4 | AN126: 1
H127: Tore alle | I127: 5 | J127: 3 | K127: =INDEX($N$123:$N$127,INDEX(I127:J127,$A$97)) -> 0.01 | M127: 5 | N127: =1/100 -> 0.01 | AH127: Tore alle | AI127: 5 | AJ127: 3 | AK127: =INDEX($AN$123:$AN$127,INDEX(AI127:AJ127,$AA$97)) -> 0.01 | AM127: 5 | AN127: =1/100 -> 0.01
H128: EMS | I128: 6 | J128: 6 | AH128: EMS | AI128: 6 | AJ128: 6
B129: EMS | C129: =A97=1 -> TRUE | D129: WAHR/FALSCH für EMS AN/AUS | H129: Koeff | I129: 7 | J129: 7 | AB129: EMS | AC129: =AA97=1 -> TRUE | AD129: WAHR/FALSCH für EMS AN/AUS | AH129: Koeff | AI129: 7 | AJ129: 7
C130: um Platz1 | D130: um Platz2 | E130: um Platz 3 | AC130: um Platz1 | AD130: um Platz2 | AE130: um Platz 3
B131: Anz. Teams | C131: =COUNTIF($F$123:$F$126,"=1") -> 4 | D131: =COUNTIF($F$123:$F$126,"=2") -> 0 | E131: =COUNTIF($F$123:$F$126,"=3") -> 0 | AB131: Anz. Teams | AC131: =COUNTIF($AF$123:$AF$126,"=1") -> 4 | AD131: =COUNTIF($AF$123:$AF$126,"=2") -> 0 | AE131: =COUNTIF($AF$123:$AF$126,"=3") -> 0
B133: Rang | C133: =IF(NOT(C129),0,IF(C131=2,1,IF(D131=2,2,IF(E131=2,3,0)))) -> 0 | E133: Teams | F133: =MIN(IF($F$123:$F$126=$C$133,$C$97:$C$100)) -> 0 | G133: =MAX(IF($F$123:$F$126=C133,$C$97:$C$100)) -> 0 | I133: Paarung | J133: =IF(ISERROR(F135),G135,F135) ->  | AB133: Rang | AC133: =IF(NOT(AC129),0,IF(AC131=2,1,IF(AD131=2,2,IF(AE131=2,3,0)))) -> 0 | AE133: Teams | AF133: =MIN(IF($AF$123:$AF$126=$AC$133,$AC$97:$AC$100)) -> 0 | AG133: =MAX(IF($AF$123:$AF$126=AC133,$AC$97:$AC$100)) -> 0 | AI133: Paarung | AJ133: =IF(ISERROR(AF135),AG135,AF135) -> 
F134: =F133&"#"&G133 -> 0#0 | G134: =G133&"#"&F133 -> 0#0 | AF134: =AF133&"#"&AG133 -> 0#0 | AG134: =AG133&"#"&AF133 -> 0#0
F135: =MATCH(F134,$B$88:$B$93,0) ->  | G135: =MATCH(G134,$B$88:$B$93,0) ->  | AF135: =MATCH(AF134,$AB$88:$AB$93,0) ->  | AG135: =MATCH(AG134,$AB$88:$AB$93,0) -> 
B138: TeamIdx | C138: =INDEX(D88:D93,J133) ->  | D138: =INDEX(E88:E93,J133) ->  | E138: Häufigkeit | F138: Remis | G138: EMS OK | I138: Text | J138: =IF(G139=0,"","EMS um Rang " &C133) ->  | AB138: TeamIdx | AC138: =INDEX(AD88:AD93,AJ133) ->  | AD138: =INDEX(AE88:AE93,AJ133) ->  | AE138: Häufigkeit | AF138: Remis | AG138: EMS OK | AI138: Text | AJ138: =IF(AG139=0,"","EMS um Rang " &AC133) -> 
B139: Punkte | C139: =VLOOKUP(C138,$C$97:$D$100,2,FALSE) ->  | D139: =VLOOKUP(D138,$C$97:$D$100,2,FALSE) ->  | E139: =COUNTIF($D$97:$D$100,"="&D139) -> 0 | F139: =INDEX(K88:K93,J133)=1 ->  | G139: =IF(C133=0,0,IF(J133<5,0,IF(E139<>2,0,IF(C139<>D139,0,IF(NOT(F139),0,1))))) -> 0 | AB139: Punkte | AC139: =VLOOKUP(AC138,$AC$97:$AD$100,2,FALSE) ->  | AD139: =VLOOKUP(AD138,$AC$97:$AD$100,2,FALSE) ->  | AE139: =COUNTIF($AD$97:$AD$100,"="&AD139) -> 0 | AF139: =INDEX(AK88:AK93,AJ133)=1 ->  | AG139: =IF(AC133=0,0,IF(AJ133<5,0,IF(AE139<>2,0,IF(AC139<>AD139,0,IF(NOT(AF139),0,1))))) -> 0
E141: Ergebnis EMS | AE141: Ergebnis EMS
B142: Teams | C142: =VLOOKUP(C138,$C$97:$H$100,6,FALSE) ->  | D142: =VLOOKUP(D138,$C$97:$H$100,6,FALSE) ->  | AB142: Teams | AC142: =VLOOKUP(AC138,$AC$97:$AH$100,6,FALSE) ->  | AD142: =VLOOKUP(AD138,$AC$97:$AH$100,6,FALSE) -> 
B143: Nr | C143: =MATCH(C138,$C$97:$C$100,0) ->  | D143: =MATCH(D138,$C$97:$C$100,0) ->  | E143: =IF(COUNT(E142:F142)<>2,0,IF(E142>F142,1,0)) -> 0 | F143: =IF(COUNT(E142:F142)<>2,0,IF(E142<F142,1,0)) -> 0 | G143: EMS-Pkt | AB143: Nr | AC143: =MATCH(AC138,$AC$97:$AC$100,0) ->  | AD143: =MATCH(AD138,$AC$97:$AC$100,0) ->  | AE143: =IF(COUNT(AE142:AF142)<>2,0,IF(AE142>AF142,1,0)) -> 0 | AF143: =IF(COUNT(AE142:AF142)<>2,0,IF(AE142<AF142,1,0)) -> 0 | AG143: EMS-Pkt
C146: Rangpkt inkl. EMS und Koeff | AC146: Rangpkt inkl. EMS und Koeff
C147: Nr. | D147: RangPkt | E147: Rang | F147: Rang korr | AC147: Nr. | AD147: RangPkt | AE147: Rang | AF147: Rang korr
B148: Wert | C148: 1 | D148: =E123+IF($G$139=0,0,SUMIF($C$143:$D$143,"="&C148,$E$143:$F$143)/100)+N97/10000 -> 1.0001 | E148: =RANK(D148,$D$148:$D$151) -> 1 | F148: =E148+COUNTIF(E$147:E147,"="&E148) -> 1 | AB148: Wert | AC148: 1 | AD148: =AE123+IF($AG$139=0,0,SUMIF($AC$143:$AD$143,"="&AC148,$AE$143:$AF$143)/100)+AN97/10000 -> 1.0001 | AE148: =RANK(AD148,$AD$148:$AD$151) -> 1 | AF148: =AE148+COUNTIF(AE$147:AE147,"="&AE148) -> 1
C149: 2 | D149: =E124+IF($G$139=0,0,SUMIF($C$143:$D$143,"="&C149,$E$143:$F$143)/100)+N98/10000 -> 1.0001 | E149: =RANK(D149,$D$148:$D$151) -> 1 | F149: =E149+COUNTIF(E$147:E148,"="&E149) -> 2 | AC149: 2 | AD149: =AE124+IF($AG$139=0,0,SUMIF($AC$143:$AD$143,"="&AC149,$AE$143:$AF$143)/100)+AN98/10000 -> 1.0001 | AE149: =RANK(AD149,$AD$148:$AD$151) -> 1 | AF149: =AE149+COUNTIF(AE$147:AE148,"="&AE149) -> 2
C150: 3 | D150: =E125+IF($G$139=0,0,SUMIF($C$143:$D$143,"="&C150,$E$143:$F$143)/100)+N99/10000 -> 1.0001 | E150: =RANK(D150,$D$148:$D$151) -> 1 | F150: =E150+COUNTIF(E$147:E149,"="&E150) -> 3 | AC150: 3 | AD150: =AE125+IF($AG$139=0,0,SUMIF($AC$143:$AD$143,"="&AC150,$AE$143:$AF$143)/100)+AN99/10000 -> 1.0001 | AE150: =RANK(AD150,$AD$148:$AD$151) -> 1 | AF150: =AE150+COUNTIF(AE$147:AE149,"="&AE150) -> 3
C151: 4 | D151: =E126+IF($G$139=0,0,SUMIF($C$143:$D$143,"="&C151,$E$143:$F$143)/100)+N100/10000 -> 1.0001 | E151: =RANK(D151,$D$148:$D$151) -> 1 | F151: =E151+COUNTIF(E$147:E150,"="&E151) -> 4 | AC151: 4 | AD151: =AE126+IF($AG$139=0,0,SUMIF($AC$143:$AD$143,"="&AC151,$AE$143:$AF$143)/100)+AN100/10000 -> 1.0001 | AE151: =RANK(AD151,$AD$148:$AD$151) -> 1 | AF151: =AE151+COUNTIF(AE$147:AE150,"="&AE151) -> 4
J152: berechnete oder manuelle Tabelle | AJ152: berechnete oder manuelle Tabelle
B153: Tabelle | C153: Rang | D153: Nr | E153: Rang Eff | F153: Manuell | G153: =VLOOKUP(A86,TIPPABGABE!$CQ$69:$CR$75,2,FALSE) -> FALSE | H153: Nr | J153: Nr korr | AB153: Tabelle | AC153: Rang | AD153: Nr | AE153: Rang Eff | AF153: Manuell | AG153: =VLOOKUP(AA86,TIPPABGABE!$CQ$69:$CR$75,2,FALSE) -> FALSE | AH153: Nr | AJ153: Nr korr
B154: =INDEX(teams,INDEX(C97:C100,D154)) -> Slowenien | C154: 1 | D154: =MATCH(C154,$F$148:$F$151,0) -> 1 | E154: =IF(G153,C154,INDEX(E148:E151,D154)) -> 1 | G154: 1 | H154: =IF(G153,VLOOKUP(A161,TIPPABGABE!$CQ$40:$CS$67,3,FALSE),D154) -> 1 | J154: =IF(AND(G153,TIPPABGABE!$DA$35=1,TIPPABGABE!$AN$8=TIPPABGABE!$AN$4),H154,D154) -> 1 | AB154: =INDEX(teams,INDEX(AC97:AC100,AD154)) -> Polen | AC154: 1 | AD154: =MATCH(AC154,$AF$148:$AF$151,0) -> 1 | AE154: =IF(AG153,AC154,INDEX(AE148:AE151,AD154)) -> 1 | AG154: 1 | AH154: =IF(AG153,VLOOKUP(AA161,TIPPABGABE!$CQ$40:$CS$67,3,FALSE),AD154) -> 1 | AJ154: =IF(AND(AG153,TIPPABGABE!$DA$35=1,TIPPABGABE!$AN$8=TIPPABGABE!$AN$4),AH154,AD154) -> 1
B155: =INDEX(teams,INDEX(C97:C100,D155)) -> Dänemark | C155: 2 | D155: =MATCH(C155,$F$148:$F$151,0) -> 2 | E155: =IF(G153,C155,INDEX(E148:E151,D155)) -> 1 | G155: 2 | H155: =IF(G153,VLOOKUP(A162,TIPPABGABE!$CQ$40:$CS$67,3,FALSE),D155) -> 2 | J155: =IF(AND(G153,TIPPABGABE!$DA$35=1,TIPPABGABE!$AN$8=TIPPABGABE!$AN$4),H155,D155) -> 2 | AB155: =INDEX(teams,INDEX(AC97:AC100,AD155)) -> Niederlande | AC155: 2 | AD155: =MATCH(AC155,$AF$148:$AF$151,0) -> 2 | AE155: =IF(AG153,AC155,INDEX(AE148:AE151,AD155)) -> 1 | AG155: 2 | AH155: =IF(AG153,VLOOKUP(AA162,TIPPABGABE!$CQ$40:$CS$67,3,FALSE),AD155) -> 2 | AJ155: =IF(AND(AG153,TIPPABGABE!$DA$35=1,TIPPABGABE!$AN$8=TIPPABGABE!$AN$4),AH155,AD155) -> 2
B156: =INDEX(teams,INDEX(C97:C100,D156)) -> Serbien | C156: 3 | D156: =MATCH(C156,$F$148:$F$151,0) -> 3 | E156: =IF(G153,C156,INDEX(E148:E151,D156)) -> 1 | G156: 3 | H156: =IF(G153,VLOOKUP(A163,TIPPABGABE!$CQ$40:$CS$67,3,FALSE),D156) -> 3 | J156: =IF(AND(G153,TIPPABGABE!$DA$35=1,TIPPABGABE!$AN$8=TIPPABGABE!$AN$4),H156,D156) -> 3 | AB156: =INDEX(teams,INDEX(AC97:AC100,AD156)) -> Österreich | AC156: 3 | AD156: =MATCH(AC156,$AF$148:$AF$151,0) -> 3 | AE156: =IF(AG153,AC156,INDEX(AE148:AE151,AD156)) -> 1 | AG156: 3 | AH156: =IF(AG153,VLOOKUP(AA163,TIPPABGABE!$CQ$40:$CS$67,3,FALSE),AD156) -> 3 | AJ156: =IF(AND(AG153,TIPPABGABE!$DA$35=1,TIPPABGABE!$AN$8=TIPPABGABE!$AN$4),AH156,AD156) -> 3
B157: =INDEX(teams,INDEX(C97:C100,D157)) -> England | C157: 4 | D157: =MATCH(C157,$F$148:$F$151,0) -> 4 | E157: =IF(G153,C157,INDEX(E148:E151,D157)) -> 1 | G157: 4 | H157: =IF(G153,VLOOKUP(A164,TIPPABGABE!$CQ$40:$CS$67,3,FALSE),D157) -> 4 | J157: =IF(AND(G153,TIPPABGABE!$DA$35=1,TIPPABGABE!$AN$8=TIPPABGABE!$AN$4),H157,D157) -> 4 | AB157: =INDEX(teams,INDEX(AC97:AC100,AD157)) -> Frankreich | AC157: 4 | AD157: =MATCH(AC157,$AF$148:$AF$151,0) -> 4 | AE157: =IF(AG153,AC157,INDEX(AE148:AE151,AD157)) -> 1 | AG157: 4 | AH157: =IF(AG153,VLOOKUP(AA164,TIPPABGABE!$CQ$40:$CS$67,3,FALSE),AD157) -> 4 | AJ157: =IF(AND(AG153,TIPPABGABE!$DA$35=1,TIPPABGABE!$AN$8=TIPPABGABE!$AN$4),AH157,AD157) -> 4
B160: Tabelle | C160: TeamIndex | D160: Nr | E160: Team | F160: Sp | G160: P | H160: T+ | I160: T- | J160: Diff | K160: S | L160: U | M160: N | AB160: Tabelle | AC160: TeamIndex | AD160: Nr | AE160: Team | AF160: Sp | AG160: P | AH160: T+ | AI160: T- | AJ160: Diff | AK160: S | AL160: U | AM160: N
A161: ="S"&A86 -> SC | B161: 1 | C161: =INDEX($C$97:$C$100,J154) -> 9 | D161: =J154 -> 1 | E161: =INDEX($H$97:$H$100,J154) -> SLO | F161: =SUMIF($D$88:$E$93,"="&$C161,$Q$88:$R$93) -> 0 | G161: =INDEX($D$97:$D$100,$J154) -> 0 | H161: =INDEX($E$97:$E$100,$J154) -> 0 | I161: =INDEX($F$97:$F$100,$J154) -> 0 | J161: =INDEX($G$97:$G$100,$J154) -> 0 | K161: =COUNTIF($S$88:$T$93,"="&K$160&$C161) -> 0 | L161: 0 | M161: 0 | AA161: ="S"&AA86 -> SD | AB161: 1 | AC161: =INDEX($AC$97:$AC$100,AJ154) -> 13 | AD161: =AJ154 -> 1 | AE161: =INDEX($AH$97:$AH$100,AJ154) -> POL | AF161: =SUMIF($AD$88:$AE$93,"="&$AC161,$AQ$88:$AR$93) -> 0 | AG161: =INDEX($AD$97:$AD$100,$AJ154) -> 0 | AH161: =INDEX($AE$97:$AE$100,$AJ154) -> 0 | AI161: =INDEX($AF$97:$AF$100,$AJ154) -> 0 | AJ161: =INDEX($AG$97:$AG$100,$AJ154) -> 0 | AK161: =COUNTIF($AS$88:$AT$93,"="&AK$160&$AC161) -> 0 | AL161: 0 | AM161: 0
A162: ="Z"&A86 -> ZC | B162: 2 | C162: =INDEX($C$97:$C$100,J155) -> 10 | D162: =J155 -> 2 | E162: =INDEX($H$97:$H$100,J155) -> DEN | F162: =SUMIF($D$88:$E$93,"="&$C162,$Q$88:$R$93) -> 0 | G162: =INDEX($D$97:$D$100,$J155) -> 0 | H162: =INDEX($E$97:$E$100,$J155) -> 0 | I162: =INDEX($F$97:$F$100,$J155) -> 0 | J162: =INDEX($G$97:$G$100,$J155) -> 0 | K162: 0 | L162: 0 | M162: 0 | AA162: ="Z"&AA86 -> ZD | AB162: 2 | AC162: =INDEX($AC$97:$AC$100,AJ155) -> 14 | AD162: =AJ155 -> 2 | AE162: =INDEX($AH$97:$AH$100,AJ155) -> NED | AF162: =SUMIF($AD$88:$AE$93,"="&$AC162,$AQ$88:$AR$93) -> 0 | AG162: =INDEX($AD$97:$AD$100,$AJ155) -> 0 | AH162: =INDEX($AE$97:$AE$100,$AJ155) -> 0 | AI162: =INDEX($AF$97:$AF$100,$AJ155) -> 0 | AJ162: =INDEX($AG$97:$AG$100,$AJ155) -> 0 | AK162: 0 | AL162: 0 | AM162: 0
A163: ="D"&A86 -> DC | B163: 3 | C163: =INDEX($C$97:$C$100,J156) -> 11 | D163: =J156 -> 3 | E163: =INDEX($H$97:$H$100,J156) -> SRB | F163: =SUMIF($D$88:$E$93,"="&$C163,$Q$88:$R$93) -> 0 | G163: =INDEX($D$97:$D$100,$J156) -> 0 | H163: =INDEX($E$97:$E$100,$J156) -> 0 | I163: =INDEX($F$97:$F$100,$J156) -> 0 | J163: =INDEX($G$97:$G$100,$J156) -> 0 | K163: 0 | L163: 0 | M163: 0 | AA163: ="D"&AA86 -> DD | AB163: 3 | AC163: =INDEX($AC$97:$AC$100,AJ156) -> 15 | AD163: =AJ156 -> 3 | AE163: =INDEX($AH$97:$AH$100,AJ156) -> AUT | AF163: =SUMIF($AD$88:$AE$93,"="&$AC163,$AQ$88:$AR$93) -> 0 | AG163: =INDEX($AD$97:$AD$100,$AJ156) -> 0 | AH163: =INDEX($AE$97:$AE$100,$AJ156) -> 0 | AI163: =INDEX($AF$97:$AF$100,$AJ156) -> 0 | AJ163: =INDEX($AG$97:$AG$100,$AJ156) -> 0 | AK163: 0 | AL163: 0 | AM163: 0
A164: ="V"&A86 -> VC | B164: 4 | C164: =INDEX($C$97:$C$100,J157) -> 12 | D164: =J157 -> 4 | E164: =INDEX($H$97:$H$100,J157) -> ENG | F164: =SUMIF($D$88:$E$93,"="&$C164,$Q$88:$R$93) -> 0 | G164: =INDEX($D$97:$D$100,$J157) -> 0 | H164: =INDEX($E$97:$E$100,$J157) -> 0 | I164: =INDEX($F$97:$F$100,$J157) -> 0 | J164: =INDEX($G$97:$G$100,$J157) -> 0 | K164: 0 | L164: 0 | M164: 0 | AA164: ="V"&AA86 -> VD | AB164: 4 | AC164: =INDEX($AC$97:$AC$100,AJ157) -> 16 | AD164: =AJ157 -> 4 | AE164: =INDEX($AH$97:$AH$100,AJ157) -> FRA | AF164: =SUMIF($AD$88:$AE$93,"="&$AC164,$AQ$88:$AR$93) -> 0 | AG164: =INDEX($AD$97:$AD$100,$AJ157) -> 0 | AH164: =INDEX($AE$97:$AE$100,$AJ157) -> 0 | AI164: =INDEX($AF$97:$AF$100,$AJ157) -> 0 | AJ164: =INDEX($AG$97:$AG$100,$AJ157) -> 0 | AK164: 0 | AL164: 0 | AM164: 0
A168: E | B168: Paarungen | G168: Resultat | K168: Punkte | AA168: F | AB168: Paarungen | AG168: Resultat | AK168: Punkte
A169: Nr | D169: HT | E169: AT | F169: HT2 | G169: ErgH | H169: ErgA | I169: ErgH2 | K169: PH | L169: PA | M169: DifH | N169: DifA | O169: WertH | P169: WertA | Q169: Spiele | S169: Resultat | AA169: Nr | AD169: HT | AE169: AT | AF169: HT2 | AG169: ErgH | AH169: ErgA | AI169: ErgH2 | AK169: PH | AL169: PA | AM169: DifH | AN169: DifA | AO169: WertH | AP169: WertA | AQ169: Spiele | AS169: Resultat
A170: 1 | B170: =D170&"#"&E170 -> 19#20 | C170: =E170&"#"&D170 -> 20#19 | D170: =VLOOKUP(J170,daten!$D$49:$J$84,6,FALSE) -> 19 | E170: =VLOOKUP(J170,daten!$D$49:$K$84,7,FALSE) -> 20 | F170: =D170 -> 19 | G170: =VLOOKUP(J170,TIPPABGABE!$CU$40:$DE$75,10,FALSE) ->  | H170: =VLOOKUP(J170,TIPPABGABE!$CU$40:$DE$75,11,FALSE) ->  | I170: =IF(LEN(G170)>0,G170,"") ->  | J170: =A168&A170 -> E1 | K170: =IF(COUNT(G170:H170)<>2,0,IF(G170>H170,3,IF(H170>G170,0,1))) -> 0 | L170: =IF(COUNT(G170:H170)<>2,0,IF(G170>H170,0,IF(H170>G170,3,1))) -> 0 | M170: =IF(COUNT(G170:H170)<>2,0,G170-H170) -> 0 | N170: =IF(COUNT(G170:H170)<>2,0,H170-I170) -> 0 | O170: =K170*1000+M170+IF(LEN(G170)=0,0,G170/1000) -> 0 | P170: 0 | Q170: =IF(COUNT(G170:H170)=2,1,0) -> 0 | R170: =Q170 -> 0 | S170: =IF(Q170=0,"X",IF(K170=3,"S",IF(K170=0,"N","U")))&D170 -> X19 | T170: X20 | AA170: 1 | AB170: =AD170&"#"&AE170 -> 21#22 | AC170: =AE170&"#"&AD170 -> 22#21 | AD170: =VLOOKUP(AJ170,daten!$D$49:$J$84,6,FALSE) -> 21 | AE170: =VLOOKUP(AJ170,daten!$D$49:$K$84,7,FALSE) -> 22 | AF170: =AD170 -> 21 | AG170: =VLOOKUP(AJ170,TIPPABGABE!$CU$40:$DE$75,10,FALSE) ->  | AH170: =VLOOKUP(AJ170,TIPPABGABE!$CU$40:$DE$75,11,FALSE) ->  | AI170: =IF(LEN(AG170)>0,AG170,"") ->  | AJ170: =AA168&AA170 -> F1 | AK170: =IF(COUNT(AG170:AH170)<>2,0,IF(AG170>AH170,3,IF(AH170>AG170,0,1))) -> 0 | AL170: =IF(COUNT(AG170:AH170)<>2,0,IF(AG170>AH170,0,IF(AH170>AG170,3,1))) -> 0 | AM170: =IF(COUNT(AG170:AH170)<>2,0,AG170-AH170) -> 0 | AN170: =IF(COUNT(AG170:AH170)<>2,0,AH170-AI170) -> 0 | AO170: =AK170*1000+AM170+IF(LEN(AG170)=0,0,AG170/1000) -> 0 | AP170: 0 | AQ170: =IF(COUNT(AG170:AH170)=2,1,0) -> 0 | AR170: =AQ170 -> 0 | AS170: =IF(AQ170=0,"X",IF(AK170=3,"S",IF(AK170=0,"N","U")))&AD170 -> X21 | AT170: X22
A171: 2 | B171: 17#18 | C171: 18#17 | D171: =VLOOKUP(J171,daten!$D$49:$J$84,6,FALSE) -> 17 | E171: =VLOOKUP(J171,daten!$D$49:$K$84,7,FALSE) -> 18 | F171: 17 | G171: =VLOOKUP(J171,TIPPABGABE!$CU$40:$DE$75,10,FALSE) ->  | H171: =VLOOKUP(J171,TIPPABGABE!$CU$40:$DE$75,11,FALSE) ->  | J171: =A168&A171 -> E2 | K171: 0 | L171: 0 | M171: 0 | N171: 0 | O171: 0 | P171: 0 | Q171: 0 | R171: 0 | S171: X17 | T171: X18 | AA171: 2 | AB171: 23#24 | AC171: 24#23 | AD171: =VLOOKUP(AJ171,daten!$D$49:$J$84,6,FALSE) -> 23 | AE171: =VLOOKUP(AJ171,daten!$D$49:$K$84,7,FALSE) -> 24 | AF171: 23 | AG171: =VLOOKUP(AJ171,TIPPABGABE!$CU$40:$DE$75,10,FALSE) ->  | AH171: =VLOOKUP(AJ171,TIPPABGABE!$CU$40:$DE$75,11,FALSE) ->  | AJ171: =AA168&AA171 -> F2 | AK171: 0 | AL171: 0 | AM171: 0 | AN171: 0 | AO171: 0 | AP171: 0 | AQ171: 0 | AR171: 0 | AS171: X23 | AT171: X24
A172: 3 | B172: 18#20 | C172: 20#18 | D172: =VLOOKUP(J172,daten!$D$49:$J$84,6,FALSE) -> 18 | E172: =VLOOKUP(J172,daten!$D$49:$K$84,7,FALSE) -> 20 | F172: 18 | G172: =VLOOKUP(J172,TIPPABGABE!$CU$40:$DE$75,10,FALSE) ->  | H172: =VLOOKUP(J172,TIPPABGABE!$CU$40:$DE$75,11,FALSE) ->  | J172: =A168&A172 -> E3 | K172: 0 | L172: 0 | M172: 0 | N172: 0 | O172: 0 | P172: 0 | Q172: 0 | R172: 0 | S172: X18 | T172: X20 | AA172: 3 | AB172: 22#24 | AC172: 24#22 | AD172: =VLOOKUP(AJ172,daten!$D$49:$J$84,6,FALSE) -> 22 | AE172: =VLOOKUP(AJ172,daten!$D$49:$K$84,7,FALSE) -> 24 | AF172: 22 | AG172: =VLOOKUP(AJ172,TIPPABGABE!$CU$40:$DE$75,10,FALSE) ->  | AH172: =VLOOKUP(AJ172,TIPPABGABE!$CU$40:$DE$75,11,FALSE) ->  | AJ172: =AA168&AA172 -> F3 | AK172: 0 | AL172: 0 | AM172: 0 | AN172: 0 | AO172: 0 | AP172: 0 | AQ172: 0 | AR172: 0 | AS172: X22 | AT172: X24
A173: 4 | B173: 17#19 | C173: 19#17 | D173: =VLOOKUP(J173,daten!$D$49:$J$84,6,FALSE) -> 17 | E173: =VLOOKUP(J173,daten!$D$49:$K$84,7,FALSE) -> 19 | F173: 17 | G173: =VLOOKUP(J173,TIPPABGABE!$CU$40:$DE$75,10,FALSE) ->  | H173: =VLOOKUP(J173,TIPPABGABE!$CU$40:$DE$75,11,FALSE) ->  | J173: =A168&A173 -> E4 | K173: 0 | L173: 0 | M173: 0 | N173: 0 | O173: 0 | P173: 0 | Q173: 0 | R173: 0 | S173: X17 | T173: X19 | AA173: 4 | AB173: 21#23 | AC173: 23#21 | AD173: =VLOOKUP(AJ173,daten!$D$49:$J$84,6,FALSE) -> 21 | AE173: =VLOOKUP(AJ173,daten!$D$49:$K$84,7,FALSE) -> 23 | AF173: 21 | AG173: =VLOOKUP(AJ173,TIPPABGABE!$CU$40:$DE$75,10,FALSE) ->  | AH173: =VLOOKUP(AJ173,TIPPABGABE!$CU$40:$DE$75,11,FALSE) ->  | AJ173: =AA168&AA173 -> F4 | AK173: 0 | AL173: 0 | AM173: 0 | AN173: 0 | AO173: 0 | AP173: 0 | AQ173: 0 | AR173: 0 | AS173: X21 | AT173: X23
A174: 5 | B174: 18#19 | C174: 19#18 | D174: =VLOOKUP(J174,daten!$D$49:$J$84,6,FALSE) -> 18 | E174: =VLOOKUP(J174,daten!$D$49:$K$84,7,FALSE) -> 19 | F174: 18 | G174: =VLOOKUP(J174,TIPPABGABE!$CU$40:$DE$75,10,FALSE) ->  | H174: =VLOOKUP(J174,TIPPABGABE!$CU$40:$DE$75,11,FALSE) ->  | J174: =A168&A174 -> E5 | K174: 0 | L174: 0 | M174: 0 | N174: 0 | O174: 0 | P174: 0 | Q174: 0 | R174: 0 | S174: X18 | T174: X19 | AA174: 5 | AB174: 22#23 | AC174: 23#22 | AD174: =VLOOKUP(AJ174,daten!$D$49:$J$84,6,FALSE) -> 22 | AE174: =VLOOKUP(AJ174,daten!$D$49:$K$84,7,FALSE) -> 23 | AF174: 22 | AG174: =VLOOKUP(AJ174,TIPPABGABE!$CU$40:$DE$75,10,FALSE) ->  | AH174: =VLOOKUP(AJ174,TIPPABGABE!$CU$40:$DE$75,11,FALSE) ->  | AJ174: =AA168&AA174 -> F5 | AK174: 0 | AL174: 0 | AM174: 0 | AN174: 0 | AO174: 0 | AP174: 0 | AQ174: 0 | AR174: 0 | AS174: X22 | AT174: X23
A175: 6 | B175: 20#17 | C175: 17#20 | D175: =VLOOKUP(J175,daten!$D$49:$J$84,6,FALSE) -> 20 | E175: =VLOOKUP(J175,daten!$D$49:$K$84,7,FALSE) -> 17 | F175: 20 | G175: =VLOOKUP(J175,TIPPABGABE!$CU$40:$DE$75,10,FALSE) ->  | H175: =VLOOKUP(J175,TIPPABGABE!$CU$40:$DE$75,11,FALSE) ->  | J175: =A168&A175 -> E6 | K175: 0 | L175: 0 | M175: 0 | N175: 0 | O175: 0 | P175: 0 | Q175: 0 | R175: 0 | S175: X20 | T175: X17 | AA175: 6 | AB175: 24#21 | AC175: 21#24 | AD175: =VLOOKUP(AJ175,daten!$D$49:$J$84,6,FALSE) -> 24 | AE175: =VLOOKUP(AJ175,daten!$D$49:$K$84,7,FALSE) -> 21 | AF175: 24 | AG175: =VLOOKUP(AJ175,TIPPABGABE!$CU$40:$DE$75,10,FALSE) ->  | AH175: =VLOOKUP(AJ175,TIPPABGABE!$CU$40:$DE$75,11,FALSE) ->  | AJ175: =AA168&AA175 -> F6 | AK175: 0 | AL175: 0 | AM175: 0 | AN175: 0 | AO175: 0 | AP175: 0 | AQ175: 0 | AR175: 0 | AS175: X24 | AT175: X21
A178: Modus | C178: TeamIdx | D178: P | E178: Treffer | F178: GTo | G178: Dif | H178: Team | I178: RangPkt | K178: Koeff | M178: Rang | N178: RangPkt | AA178: Modus | AC178: TeamIdx | AD178: P | AE178: Treffer | AF178: GTo | AG178: Dif | AH178: Team | AI178: RangPkt | AK178: Koeff | AM178: Rang | AN178: RangPkt
A179: 1 | C179: 17 | D179: =SUMIF($D$170:$E$175,"="&C179,$K$170:$L$175) -> 0 | E179: =SUMIF($D$170:$E$175,"="&$C179,$G$170:$H$175) -> 0 | F179: =E179-G179 -> 0 | G179: =SUMIF($D$170:$E$175,"="&$C179,$G$170:$H$175)-SUMIF($D$170:$E$175,"="&$C179,$H$170:$I$175) -> 0 | H179: =INDEX(teams_k,C179) -> BEL | I179: =RANK(D179,$D$179:$D$182,1) -> 1 | L179: 1 | M179: 1 | N179: =RANK(M179,$M$179:$M$182) -> 1 | AA179: 1 | AC179: 21 | AD179: =SUMIF($AD$170:$AE$175,"="&AC179,$AK$170:$AL$175) -> 0 | AE179: =SUMIF($AD$170:$AE$175,"="&$AC179,$AG$170:$AH$175) -> 0 | AF179: =AE179-AG179 -> 0 | AG179: =SUMIF($AD$170:$AE$175,"="&$AC179,$AG$170:$AH$175)-SUMIF($AD$170:$AE$175,"="&$AC179,$AH$170:$AI$175) -> 0 | AH179: =INDEX(teams_k,AC179) -> TUR | AI179: =RANK(AD179,$AD$179:$AD$182,1) -> 1 | AL179: 1 | AM179: 1 | AN179: =RANK(AM179,$AM$179:$AM$182) -> 1
C180: 18 | D180: =SUMIF($D$170:$E$175,"="&C180,$K$170:$L$175) -> 0 | E180: =SUMIF($D$170:$E$175,"="&$C180,$G$170:$H$175) -> 0 | F180: =E180-G180 -> 0 | G180: =SUMIF($D$170:$E$175,"="&$C180,$G$170:$H$175)-SUMIF($D$170:$E$175,"="&$C180,$H$170:$I$175) -> 0 | H180: =INDEX(teams_k,C180) -> SVK | I180: =RANK(D180,$D$179:$D$182,1) -> 1 | L180: 2 | M180: 1 | N180: =RANK(M180,$M$179:$M$182) -> 1 | AC180: 22 | AD180: =SUMIF($AD$170:$AE$175,"="&AC180,$AK$170:$AL$175) -> 0 | AE180: =SUMIF($AD$170:$AE$175,"="&$AC180,$AG$170:$AH$175) -> 0 | AF180: =AE180-AG180 -> 0 | AG180: =SUMIF($AD$170:$AE$175,"="&$AC180,$AG$170:$AH$175)-SUMIF($AD$170:$AE$175,"="&$AC180,$AH$170:$AI$175) -> 0 | AH180: =INDEX(teams_k,AC180) -> GEO | AI180: =RANK(AD180,$AD$179:$AD$182,1) -> 1 | AL180: 2 | AM180: 1 | AN180: =RANK(AM180,$AM$179:$AM$182) -> 1
C181: 19 | D181: =SUMIF($D$170:$E$175,"="&C181,$K$170:$L$175) -> 0 | E181: =SUMIF($D$170:$E$175,"="&$C181,$G$170:$H$175) -> 0 | F181: =E181-G181 -> 0 | G181: =SUMIF($D$170:$E$175,"="&$C181,$G$170:$H$175)-SUMIF($D$170:$E$175,"="&$C181,$H$170:$I$175) -> 0 | H181: =INDEX(teams_k,C181) -> ROM | I181: =RANK(D181,$D$179:$D$182,1) -> 1 | L181: 3 | M181: 1 | N181: =RANK(M181,$M$179:$M$182) -> 1 | AC181: 23 | AD181: =SUMIF($AD$170:$AE$175,"="&AC181,$AK$170:$AL$175) -> 0 | AE181: =SUMIF($AD$170:$AE$175,"="&$AC181,$AG$170:$AH$175) -> 0 | AF181: =AE181-AG181 -> 0 | AG181: =SUMIF($AD$170:$AE$175,"="&$AC181,$AG$170:$AH$175)-SUMIF($AD$170:$AE$175,"="&$AC181,$AH$170:$AI$175) -> 0 | AH181: =INDEX(teams_k,AC181) -> POR | AI181: =RANK(AD181,$AD$179:$AD$182,1) -> 1 | AL181: 3 | AM181: 1 | AN181: =RANK(AM181,$AM$179:$AM$182) -> 1
C182: 20 | D182: =SUMIF($D$170:$E$175,"="&C182,$K$170:$L$175) -> 0 | E182: =SUMIF($D$170:$E$175,"="&$C182,$G$170:$H$175) -> 0 | F182: =E182-G182 -> 0 | G182: =SUMIF($D$170:$E$175,"="&$C182,$G$170:$H$175)-SUMIF($D$170:$E$175,"="&$C182,$H$170:$I$175) -> 0 | H182: =INDEX(teams_k,C182) -> UKR | I182: =RANK(D182,$D$179:$D$182,1) -> 1 | L182: 4 | M182: 1 | N182: =RANK(M182,$M$179:$M$182) -> 1 | AC182: 24 | AD182: =SUMIF($AD$170:$AE$175,"="&AC182,$AK$170:$AL$175) -> 0 | AE182: =SUMIF($AD$170:$AE$175,"="&$AC182,$AG$170:$AH$175) -> 0 | AF182: =AE182-AG182 -> 0 | AG182: =SUMIF($AD$170:$AE$175,"="&$AC182,$AG$170:$AH$175)-SUMIF($AD$170:$AE$175,"="&$AC182,$AH$170:$AI$175) -> 0 | AH182: =INDEX(teams_k,AC182) -> CZE | AI182: =RANK(AD182,$AD$179:$AD$182,1) -> 1 | AL182: 4 | AM182: 1 | AN182: =RANK(AM182,$AM$179:$AM$182) -> 1
B184: DV1 | D184: =B186 -> 17 | E184: =B187 -> 18 | F184: =B188 -> 19 | G184: =B189 -> 20 | AB184: DV1 | AD184: =AB186 -> 21 | AE184: =AB187 -> 22 | AF184: =AB188 -> 23 | AG184: =AB189 -> 24
B185: TeamIndex | C185: Nr | D185: =C186 -> 1 | E185: =C187 -> 2 | F185: =C188 -> 3 | G185: =C189 -> 4 | I185: RangPkt. | AB185: TeamIndex | AC185: Nr | AD185: =AC186 -> 1 | AE185: =AC187 -> 2 | AF185: =AC188 -> 3 | AG185: =AC189 -> 4 | AI185: RangPkt.
B186: =INDEX($C$179:$C$182,C186) -> 17 | C186: 1 | D186: =IF(INDEX($I$179:$I$182,$C186)<>INDEX($I$179:$I$182,D$185),0,SUMIF($B$170:$C$175,"="&$B186&"#"&D$184,$O$170:$P$175)) -> 0 | E186: 0 | F186: 0 | G186: 0 | H186: =SUM(D186:G186) -> 0 | I186: =RANK(H186,$H$186:$H$189,1) -> 1 | AB186: =INDEX($AC$179:$AC$182,AC186) -> 21 | AC186: 1 | AD186: =IF(INDEX($AI$179:$AI$182,$AC186)<>INDEX($AI$179:$AI$182,AD$185),0,SUMIF($AB$170:$AC$175,"="&$AB186&"#"&AD$184,$AO$170:$AP$175)) -> 0 | AE186: 0 | AF186: 0 | AG186: 0 | AH186: =SUM(AD186:AG186) -> 0 | AI186: =RANK(AH186,$AH$186:$AH$189,1) -> 1
B187: =INDEX($C$179:$C$182,C187) -> 18 | C187: 2 | D187: 0 | E187: 0 | F187: 0 | G187: 0 | H187: =SUM(D187:G187) -> 0 | I187: =RANK(H187,$H$186:$H$189,1) -> 1 | AB187: =INDEX($AC$179:$AC$182,AC187) -> 22 | AC187: 2 | AD187: 0 | AE187: 0 | AF187: 0 | AG187: 0 | AH187: =SUM(AD187:AG187) -> 0 | AI187: =RANK(AH187,$AH$186:$AH$189,1) -> 1
B188: =INDEX($C$179:$C$182,C188) -> 19 | C188: 3 | D188: 0 | E188: 0 | F188: 0 | G188: 0 | H188: =SUM(D188:G188) -> 0 | I188: =RANK(H188,$H$186:$H$189,1) -> 1 | AB188: =INDEX($AC$179:$AC$182,AC188) -> 23 | AC188: 3 | AD188: 0 | AE188: 0 | AF188: 0 | AG188: 0 | AH188: =SUM(AD188:AG188) -> 0 | AI188: =RANK(AH188,$AH$186:$AH$189,1) -> 1
B189: =INDEX($C$179:$C$182,C189) -> 20 | C189: 4 | D189: 0 | E189: 0 | F189: 0 | G189: 0 | H189: =SUM(D189:G189) -> 0 | I189: =RANK(H189,$H$186:$H$189,1) -> 1 | AB189: =INDEX($AC$179:$AC$182,AC189) -> 24 | AC189: 4 | AD189: 0 | AE189: 0 | AF189: 0 | AG189: 0 | AH189: =SUM(AD189:AG189) -> 0 | AI189: =RANK(AH189,$AH$186:$AH$189,1) -> 1
B191: DV2 | C191: Nr | D191: =C192 -> 1 | E191: =C193 -> 2 | F191: =C194 -> 3 | G191: =C195 -> 4 | I191: RangPkt. | AB191: DV2 | AC191: Nr | AD191: =AC192 -> 1 | AE191: =AC193 -> 2 | AF191: =AC194 -> 3 | AG191: =AC195 -> 4 | AI191: RangPkt.
B192: =B186 -> 17 | C192: 1 | D192: =IF(D186=0,0,IF(INDEX($I$186:$I$189,$C186)<>INDEX($I$186:$I$189,D$185),0,SUMIF($B$170:$C$175,"="&$B186&"#"&D$184,$K$170:$L$175)*1000+SUMIF($B$170:$C$175,"="&$B186&"#"&D$184,$M$170:$N$175)+SUMIF($B$170:$C$175,"="&$B186&"#"&D$184,$G$170:$H$175)/1000)) -> 0 | E192: 0 | F192: 0 | G192: 0 | H192: =SUM(D192:G192) -> 0 | I192: =RANK(H192,$H$192:$H$195,1) -> 1 | AB192: =AB186 -> 21 | AC192: 1 | AD192: =IF(AD186=0,0,IF(INDEX($AI$186:$AI$189,$AC186)<>INDEX($AI$186:$AI$189,AD$185),0,SUMIF($AB$170:$AC$175,"="&$AB186&"#"&AD$184,$AK$170:$AL$175)*1000+SUMIF($AB$170:$AC$175,"="&$AB186&"#"&AD$184,$AM$170:$AN$175)+SUMIF($AB$170:$AC$175,"="&$AB186&"#"&AD$184,$AG$170:$AH$175)/1000)) -> 0 | AE192: 0 | AF192: 0 | AG192: 0 | AH192: =SUM(AD192:AG192) -> 0 | AI192: =RANK(AH192,$AH$192:$AH$195,1) -> 1
B193: =B187 -> 18 | C193: 2 | D193: 0 | E193: 0 | F193: 0 | G193: 0 | H193: =SUM(D193:G193) -> 0 | I193: =RANK(H193,$H$192:$H$195,1) -> 1 | AB193: =AB187 -> 22 | AC193: 2 | AD193: 0 | AE193: 0 | AF193: 0 | AG193: 0 | AH193: =SUM(AD193:AG193) -> 0 | AI193: =RANK(AH193,$AH$192:$AH$195,1) -> 1
B194: =B188 -> 19 | C194: 3 | D194: 0 | E194: 0 | F194: 0 | G194: 0 | H194: =SUM(D194:G194) -> 0 | I194: =RANK(H194,$H$192:$H$195,1) -> 1 | AB194: =AB188 -> 23 | AC194: 3 | AD194: 0 | AE194: 0 | AF194: 0 | AG194: 0 | AH194: =SUM(AD194:AG194) -> 0 | AI194: =RANK(AH194,$AH$192:$AH$195,1) -> 1
B195: =B189 -> 20 | C195: 4 | D195: 0 | E195: 0 | F195: 0 | G195: 0 | H195: =SUM(D195:G195) -> 0 | I195: =RANK(H195,$H$192:$H$195,1) -> 1 | AB195: =AB189 -> 24 | AC195: 4 | AD195: 0 | AE195: 0 | AF195: 0 | AG195: 0 | AH195: =SUM(AD195:AG195) -> 0 | AI195: =RANK(AH195,$AH$192:$AH$195,1) -> 1
C197: Nr | D197: RangPkt | H197: RangPkt | AC197: Nr | AD197: RangPkt | AH197: RangPkt
B198: Diff | C198: 1 | D198: =RANK(G179,$G$179:$G$182,1) -> 1 | F198: Tore | G198: 1 | H198: =RANK(E179,$E$179:$E$182,1) -> 1 | AB198: Diff | AC198: 1 | AD198: =RANK(AG179,$AG$179:$AG$182,1) -> 1 | AF198: Tore | AG198: 1 | AH198: =RANK(AE179,$AE$179:$AE$182,1) -> 1
C199: 2 | D199: =RANK(G180,$G$179:$G$182,1) -> 1 | G199: 2 | H199: =RANK(E180,$E$179:$E$182,1) -> 1 | AC199: 2 | AD199: =RANK(AG180,$AG$179:$AG$182,1) -> 1 | AG199: 2 | AH199: =RANK(AE180,$AE$179:$AE$182,1) -> 1
C200: 3 | D200: =RANK(G181,$G$179:$G$182,1) -> 1 | G200: 3 | H200: =RANK(E181,$E$179:$E$182,1) -> 1 | AC200: 3 | AD200: =RANK(AG181,$AG$179:$AG$182,1) -> 1 | AG200: 3 | AH200: =RANK(AE181,$AE$179:$AE$182,1) -> 1
C201: 4 | D201: =RANK(G182,$G$179:$G$182,1) -> 1 | G201: 4 | H201: =RANK(E182,$E$179:$E$182,1) -> 1 | AC201: 4 | AD201: =RANK(AG182,$AG$179:$AG$182,1) -> 1 | AG201: 4 | AH201: =RANK(AE182,$AE$179:$AE$182,1) -> 1
I203: Modus | AI203: Modus
C204: Nr | E204: RangPkt | F204: Rang | H204: Wertigkeit | I204: 1 | J204: 2 | K204: Faktor | M204: Faktoren | AC204: Nr | AE204: RangPkt | AF204: Rang | AH204: Wertigkeit | AI204: 1 | AJ204: 2 | AK204: Faktor | AM204: Faktoren
B205: Wert | C205: 1 | D205: =I179*$K$205+I186*$K$206+I192*$K$207+D198*$K$208+H198*$K$209 -> 1010101.01 | E205: =RANK(D205,$D$205:$D$208,1) -> 1 | F205: =RANK(D205,$D$205:$D$208) -> 1 | H205: Punkte | I205: 1 | J205: 1 | K205: =INDEX($N$205:$N$209,INDEX(I205:J205,$A$179)) -> 1000000 | M205: 1 | N205: 1000000 | AB205: Wert | AC205: 1 | AD205: =AI179*$AK$205+AI186*$AK$206+AI192*$AK$207+AD198*$AK$208+AH198*$AK$209 -> 1010101.01 | AE205: =RANK(AD205,$AD$205:$AD$208,1) -> 1 | AF205: =RANK(AD205,$AD$205:$AD$208) -> 1 | AH205: Punkte | AI205: 1 | AJ205: 1 | AK205: =INDEX($AN$205:$AN$209,INDEX(AI205:AJ205,$AA$179)) -> 1000000 | AM205: 1 | AN205: 1000000
C206: 2 | D206: =I180*$K$205+I187*$K$206+I193*$K$207+D199*$K$208+H199*$K$209 -> 1010101.01 | E206: =RANK(D206,$D$205:$D$208,1) -> 1 | F206: =RANK(D206,$D$205:$D$208) -> 1 | H206: DV1 | I206: 2 | J206: 4 | K206: =INDEX($N$205:$N$209,INDEX(I206:J206,$A$179)) -> 10000 | M206: 2 | N206: 10000 | AC206: 2 | AD206: =AI180*$AK$205+AI187*$AK$206+AI193*$AK$207+AD199*$AK$208+AH199*$AK$209 -> 1010101.01 | AE206: =RANK(AD206,$AD$205:$AD$208,1) -> 1 | AF206: =RANK(AD206,$AD$205:$AD$208) -> 1 | AH206: DV1 | AI206: 2 | AJ206: 4 | AK206: =INDEX($AN$205:$AN$209,INDEX(AI206:AJ206,$AA$179)) -> 10000 | AM206: 2 | AN206: 10000
C207: 3 | D207: =I181*$K$205+I188*$K$206+I194*$K$207+D200*$K$208+H200*$K$209 -> 1010101.01 | E207: =RANK(D207,$D$205:$D$208,1) -> 1 | F207: =RANK(D207,$D$205:$D$208) -> 1 | H207: DV2 | I207: 3 | J207: 5 | K207: =INDEX($N$205:$N$209,INDEX(I207:J207,$A$179)) -> 100 | M207: 3 | N207: 100 | AC207: 3 | AD207: =AI181*$AK$205+AI188*$AK$206+AI194*$AK$207+AD200*$AK$208+AH200*$AK$209 -> 1010101.01 | AE207: =RANK(AD207,$AD$205:$AD$208,1) -> 1 | AF207: =RANK(AD207,$AD$205:$AD$208) -> 1 | AH207: DV2 | AI207: 3 | AJ207: 5 | AK207: =INDEX($AN$205:$AN$209,INDEX(AI207:AJ207,$AA$179)) -> 100 | AM207: 3 | AN207: 100
C208: 4 | D208: =I182*$K$205+I189*$K$206+I195*$K$207+D201*$K$208+H201*$K$209 -> 1010101.01 | E208: =RANK(D208,$D$205:$D$208,1) -> 1 | F208: =RANK(D208,$D$205:$D$208) -> 1 | H208: TD alle | I208: 4 | J208: 2 | K208: =INDEX($N$205:$N$209,INDEX(I208:J208,$A$179)) -> 1 | M208: 4 | N208: 1 | AC208: 4 | AD208: =AI182*$AK$205+AI189*$AK$206+AI195*$AK$207+AD201*$AK$208+AH201*$AK$209 -> 1010101.01 | AE208: =RANK(AD208,$AD$205:$AD$208,1) -> 1 | AF208: =RANK(AD208,$AD$205:$AD$208) -> 1 | AH208: TD alle | AI208: 4 | AJ208: 2 | AK208: =INDEX($AN$205:$AN$209,INDEX(AI208:AJ208,$AA$179)) -> 1 | AM208: 4 | AN208: 1
H209: Tore alle | I209: 5 | J209: 3 | K209: =INDEX($N$205:$N$209,INDEX(I209:J209,$A$179)) -> 0.01 | M209: 5 | N209: =1/100 -> 0.01 | AH209: Tore alle | AI209: 5 | AJ209: 3 | AK209: =INDEX($AN$205:$AN$209,INDEX(AI209:AJ209,$AA$179)) -> 0.01 | AM209: 5 | AN209: =1/100 -> 0.01
H210: EMS | I210: 6 | J210: 6 | AH210: EMS | AI210: 6 | AJ210: 6
B211: EMS | C211: =A179=1 -> TRUE | D211: WAHR/FALSCH für EMS AN/AUS | H211: Koeff | I211: 7 | J211: 7 | AB211: EMS | AC211: =AA179=1 -> TRUE | AD211: WAHR/FALSCH für EMS AN/AUS | AH211: Koeff | AI211: 7 | AJ211: 7
C212: um Platz1 | D212: um Platz2 | E212: um Platz 3 | AC212: um Platz1 | AD212: um Platz2 | AE212: um Platz 3
B213: Anz. Teams | C213: =COUNTIF($F$205:$F$208,"=1") -> 4 | D213: =COUNTIF($F$205:$F$208,"=2") -> 0 | E213: =COUNTIF($F$205:$F$208,"=3") -> 0 | AB213: Anz. Teams | AC213: =COUNTIF($AF$205:$AF$208,"=1") -> 4 | AD213: =COUNTIF($AF$205:$AF$208,"=2") -> 0 | AE213: =COUNTIF($AF$205:$AF$208,"=3") -> 0
B215: Rang | C215: =IF(NOT(C211),0,IF(C213=2,1,IF(D213=2,2,IF(E213=2,3,0)))) -> 0 | E215: Teams | F215: =MIN(IF($F$205:$F$208=$C$215,$C$179:$C$182)) -> 0 | G215: =MAX(IF($F$205:$F$208=C215,$C$179:$C$182)) -> 0 | I215: Paarung | J215: =IF(ISERROR(F217),G217,F217) ->  | AB215: Rang | AC215: =IF(NOT(AC211),0,IF(AC213=2,1,IF(AD213=2,2,IF(AE213=2,3,0)))) -> 0 | AE215: Teams | AF215: =MIN(IF($AF$205:$AF$208=$AC$215,$AC$179:$AC$182)) -> 0 | AG215: =MAX(IF($AF$205:$AF$208=AC215,$AC$179:$AC$182)) -> 0 | AI215: Paarung | AJ215: =IF(ISERROR(AF217),AG217,AF217) -> 
F216: =F215&"#"&G215 -> 0#0 | G216: =G215&"#"&F215 -> 0#0 | AF216: =AF215&"#"&AG215 -> 0#0 | AG216: =AG215&"#"&AF215 -> 0#0
F217: =MATCH(F216,$B$170:$B$175,0) ->  | G217: =MATCH(G216,$B$170:$B$175,0) ->  | AF217: =MATCH(AF216,$AB$170:$AB$175,0) ->  | AG217: =MATCH(AG216,$AB$170:$AB$175,0) -> 
B220: TeamIdx | C220: =INDEX(D170:D175,J215) ->  | D220: =INDEX(E170:E175,J215) ->  | E220: Häufigkeit | F220: Remis | G220: EMS OK | I220: Text | J220: =IF(G221=0,"","EMS um Rang " &C215) ->  | AB220: TeamIdx | AC220: =INDEX(AD170:AD175,AJ215) ->  | AD220: =INDEX(AE170:AE175,AJ215) ->  | AE220: Häufigkeit | AF220: Remis | AG220: EMS OK | AI220: Text | AJ220: =IF(AG221=0,"","EMS um Rang " &AC215) -> 
B221: Punkte | C221: =VLOOKUP(C220,$C$179:$D$182,2,FALSE) ->  | D221: =VLOOKUP(D220,$C$179:$D$182,2,FALSE) ->  | E221: =COUNTIF($D$179:$D$182,"="&D221) -> 0 | F221: =INDEX(K170:K175,J215)=1 ->  | G221: =IF(C215=0,0,IF(J215<5,0,IF(E221<>2,0,IF(C221<>D221,0,IF(NOT(F221),0,1))))) -> 0 | AB221: Punkte | AC221: =VLOOKUP(AC220,$AC$179:$AD$182,2,FALSE) ->  | AD221: =VLOOKUP(AD220,$AC$179:$AD$182,2,FALSE) ->  | AE221: =COUNTIF($AD$179:$AD$182,"="&AD221) -> 0 | AF221: =INDEX(AK170:AK175,AJ215)=1 ->  | AG221: =IF(AC215=0,0,IF(AJ215<5,0,IF(AE221<>2,0,IF(AC221<>AD221,0,IF(NOT(AF221),0,1))))) -> 0
E223: Ergebnis EMS | AE223: Ergebnis EMS
B224: Teams | C224: =VLOOKUP(C220,$C$179:$H$182,6,FALSE) ->  | D224: =VLOOKUP(D220,$C$179:$H$182,6,FALSE) ->  | AB224: Teams | AC224: =VLOOKUP(AC220,$AC$179:$AH$182,6,FALSE) ->  | AD224: =VLOOKUP(AD220,$AC$179:$AH$182,6,FALSE) -> 
B225: Nr | C225: =MATCH(C220,$C$179:$C$182,0) ->  | D225: =MATCH(D220,$C$179:$C$182,0) ->  | E225: =IF(COUNT(E224:F224)<>2,0,IF(E224>F224,1,0)) -> 0 | F225: =IF(COUNT(E224:F224)<>2,0,IF(E224<F224,1,0)) -> 0 | G225: EMS-Pkt | AB225: Nr | AC225: =MATCH(AC220,$AC$179:$AC$182,0) ->  | AD225: =MATCH(AD220,$AC$179:$AC$182,0) ->  | AE225: =IF(COUNT(AE224:AF224)<>2,0,IF(AE224>AF224,1,0)) -> 0 | AF225: =IF(COUNT(AE224:AF224)<>2,0,IF(AE224<AF224,1,0)) -> 0 | AG225: EMS-Pkt
C228: Rangpkt inkl. EMS und Koeff | AC228: Rangpkt inkl. EMS und Koeff
C229: Nr. | D229: RangPkt | E229: Rang | F229: Rang korr | AC229: Nr. | AD229: RangPkt | AE229: Rang | AF229: Rang korr
B230: Wert | C230: 1 | D230: =E205+IF($G$221=0,0,SUMIF($C$225:$D$225,"="&C230,$E$225:$F$225)/100)+N179/10000 -> 1.0001 | E230: =RANK(D230,$D$230:$D$233) -> 1 | F230: =E230+COUNTIF(E$229:E229,"="&E230) -> 1 | AB230: Wert | AC230: 1 | AD230: =AE205+IF($AG$221=0,0,SUMIF($AC$225:$AD$225,"="&AC230,$AE$225:$AF$225)/100)+AN179/10000 -> 1.0001 | AE230: =RANK(AD230,$AD$230:$AD$233) -> 1 | AF230: =AE230+COUNTIF(AE$229:AE229,"="&AE230) -> 1
C231: 2 | D231: =E206+IF($G$221=0,0,SUMIF($C$225:$D$225,"="&C231,$E$225:$F$225)/100)+N180/10000 -> 1.0001 | E231: =RANK(D231,$D$230:$D$233) -> 1 | F231: =E231+COUNTIF(E$229:E230,"="&E231) -> 2 | AC231: 2 | AD231: =AE206+IF($AG$221=0,0,SUMIF($AC$225:$AD$225,"="&AC231,$AE$225:$AF$225)/100)+AN180/10000 -> 1.0001 | AE231: =RANK(AD231,$AD$230:$AD$233) -> 1 | AF231: =AE231+COUNTIF(AE$229:AE230,"="&AE231) -> 2
C232: 3 | D232: =E207+IF($G$221=0,0,SUMIF($C$225:$D$225,"="&C232,$E$225:$F$225)/100)+N181/10000 -> 1.0001 | E232: =RANK(D232,$D$230:$D$233) -> 1 | F232: =E232+COUNTIF(E$229:E231,"="&E232) -> 3 | AC232: 3 | AD232: =AE207+IF($AG$221=0,0,SUMIF($AC$225:$AD$225,"="&AC232,$AE$225:$AF$225)/100)+AN181/10000 -> 1.0001 | AE232: =RANK(AD232,$AD$230:$AD$233) -> 1 | AF232: =AE232+COUNTIF(AE$229:AE231,"="&AE232) -> 3
C233: 4 | D233: =E208+IF($G$221=0,0,SUMIF($C$225:$D$225,"="&C233,$E$225:$F$225)/100)+N182/10000 -> 1.0001 | E233: =RANK(D233,$D$230:$D$233) -> 1 | F233: =E233+COUNTIF(E$229:E232,"="&E233) -> 4 | AC233: 4 | AD233: =AE208+IF($AG$221=0,0,SUMIF($AC$225:$AD$225,"="&AC233,$AE$225:$AF$225)/100)+AN182/10000 -> 1.0001 | AE233: =RANK(AD233,$AD$230:$AD$233) -> 1 | AF233: =AE233+COUNTIF(AE$229:AE232,"="&AE233) -> 4
J234: berechnete oder manuelle Tabelle | AJ234: berechnete oder manuelle Tabelle
B235: Tabelle | C235: Rang | D235: Nr | E235: Rang Eff | F235: Manuell | G235: =VLOOKUP(A168,TIPPABGABE!$CQ$69:$CR$75,2,FALSE) -> FALSE | H235: Nr | J235: Nr korr | AB235: Tabelle | AC235: Rang | AD235: Nr | AE235: Rang Eff | AF235: Manuell | AG235: =VLOOKUP(AA168,TIPPABGABE!$CQ$69:$CR$75,2,FALSE) -> FALSE | AH235: Nr | AJ235: Nr korr
B236: =INDEX(teams,INDEX(C179:C182,D236)) -> Belgien | C236: 1 | D236: =MATCH(C236,$F$230:$F$233,0) -> 1 | E236: =IF(G235,C236,INDEX(E230:E233,D236)) -> 1 | G236: 1 | H236: =IF(G235,VLOOKUP(A243,TIPPABGABE!$CQ$40:$CS$67,3,FALSE),D236) -> 1 | J236: =IF(AND(G235,TIPPABGABE!$DA$35=1,TIPPABGABE!$AN$8=TIPPABGABE!$AN$4),H236,D236) -> 1 | AB236: =INDEX(teams,INDEX(AC179:AC182,AD236)) -> Türkei | AC236: 1 | AD236: =MATCH(AC236,$AF$230:$AF$233,0) -> 1 | AE236: =IF(AG235,AC236,INDEX(AE230:AE233,AD236)) -> 1 | AG236: 1 | AH236: =IF(AG235,VLOOKUP(AA243,TIPPABGABE!$CQ$40:$CS$67,3,FALSE),AD236) -> 1 | AJ236: =IF(AND(AG235,TIPPABGABE!$DA$35=1,TIPPABGABE!$AN$8=TIPPABGABE!$AN$4),AH236,AD236) -> 1
B237: =INDEX(teams,INDEX(C179:C182,D237)) -> Slowakei | C237: 2 | D237: =MATCH(C237,$F$230:$F$233,0) -> 2 | E237: =IF(G235,C237,INDEX(E230:E233,D237)) -> 1 | G237: 2 | H237: =IF(G235,VLOOKUP(A244,TIPPABGABE!$CQ$40:$CS$67,3,FALSE),D237) -> 2 | J237: =IF(AND(G235,TIPPABGABE!$DA$35=1,TIPPABGABE!$AN$8=TIPPABGABE!$AN$4),H237,D237) -> 2 | AB237: =INDEX(teams,INDEX(AC179:AC182,AD237)) -> Georgien | AC237: 2 | AD237: =MATCH(AC237,$AF$230:$AF$233,0) -> 2 | AE237: =IF(AG235,AC237,INDEX(AE230:AE233,AD237)) -> 1 | AG237: 2 | AH237: =IF(AG235,VLOOKUP(AA244,TIPPABGABE!$CQ$40:$CS$67,3,FALSE),AD237) -> 2 | AJ237: =IF(AND(AG235,TIPPABGABE!$DA$35=1,TIPPABGABE!$AN$8=TIPPABGABE!$AN$4),AH237,AD237) -> 2
B238: =INDEX(teams,INDEX(C179:C182,D238)) -> Rumänien | C238: 3 | D238: =MATCH(C238,$F$230:$F$233,0) -> 3 | E238: =IF(G235,C238,INDEX(E230:E233,D238)) -> 1 | G238: 3 | H238: =IF(G235,VLOOKUP(A245,TIPPABGABE!$CQ$40:$CS$67,3,FALSE),D238) -> 3 | J238: =IF(AND(G235,TIPPABGABE!$DA$35=1,TIPPABGABE!$AN$8=TIPPABGABE!$AN$4),H238,D238) -> 3 | AB238: =INDEX(teams,INDEX(AC179:AC182,AD238)) -> Portugal | AC238: 3 | AD238: =MATCH(AC238,$AF$230:$AF$233,0) -> 3 | AE238: =IF(AG235,AC238,INDEX(AE230:AE233,AD238)) -> 1 | AG238: 3 | AH238: =IF(AG235,VLOOKUP(AA245,TIPPABGABE!$CQ$40:$CS$67,3,FALSE),AD238) -> 3 | AJ238: =IF(AND(AG235,TIPPABGABE!$DA$35=1,TIPPABGABE!$AN$8=TIPPABGABE!$AN$4),AH238,AD238) -> 3
B239: =INDEX(teams,INDEX(C179:C182,D239)) -> Ukraine | C239: 4 | D239: =MATCH(C239,$F$230:$F$233,0) -> 4 | E239: =IF(G235,C239,INDEX(E230:E233,D239)) -> 1 | G239: 4 | H239: =IF(G235,VLOOKUP(A246,TIPPABGABE!$CQ$40:$CS$67,3,FALSE),D239) -> 4 | J239: =IF(AND(G235,TIPPABGABE!$DA$35=1,TIPPABGABE!$AN$8=TIPPABGABE!$AN$4),H239,D239) -> 4 | AB239: =INDEX(teams,INDEX(AC179:AC182,AD239)) -> Tschechien | AC239: 4 | AD239: =MATCH(AC239,$AF$230:$AF$233,0) -> 4 | AE239: =IF(AG235,AC239,INDEX(AE230:AE233,AD239)) -> 1 | AG239: 4 | AH239: =IF(AG235,VLOOKUP(AA246,TIPPABGABE!$CQ$40:$CS$67,3,FALSE),AD239) -> 4 | AJ239: =IF(AND(AG235,TIPPABGABE!$DA$35=1,TIPPABGABE!$AN$8=TIPPABGABE!$AN$4),AH239,AD239) -> 4
B242: Tabelle | C242: TeamIndex | D242: Nr | E242: Team | F242: Sp | G242: P | H242: T+ | I242: T- | J242: Diff | K242: S | L242: U | M242: N | AB242: Tabelle | AC242: TeamIndex | AD242: Nr | AE242: Team | AF242: Sp | AG242: P | AH242: T+ | AI242: T- | AJ242: Diff | AK242: S | AL242: U | AM242: N
A243: ="S"&A168 -> SE | B243: 1 | C243: =INDEX($C$179:$C$182,J236) -> 17 | D243: =J236 -> 1 | E243: =INDEX($H$179:$H$182,J236) -> BEL | F243: =SUMIF($D$170:$E$175,"="&$C243,$Q$170:$R$175) -> 0 | G243: =INDEX($D$179:$D$182,$J236) -> 0 | H243: =INDEX($E$179:$E$182,$J236) -> 0 | I243: =INDEX($F$179:$F$182,$J236) -> 0 | J243: =INDEX($G$179:$G$182,$J236) -> 0 | K243: =COUNTIF($S$170:$T$175,"="&K$242&$C243) -> 0 | L243: 0 | M243: 0 | AA243: ="S"&AA168 -> SF | AB243: 1 | AC243: =INDEX($AC$179:$AC$182,AJ236) -> 21 | AD243: =AJ236 -> 1 | AE243: =INDEX($AH$179:$AH$182,AJ236) -> TUR | AF243: =SUMIF($AD$170:$AE$175,"="&$AC243,$AQ$170:$AR$175) -> 0 | AG243: =INDEX($AD$179:$AD$182,$AJ236) -> 0 | AH243: =INDEX($AE$179:$AE$182,$AJ236) -> 0 | AI243: =INDEX($AF$179:$AF$182,$AJ236) -> 0 | AJ243: =INDEX($AG$179:$AG$182,$AJ236) -> 0 | AK243: =COUNTIF($AS$170:$AT$175,"="&AK$242&$AC243) -> 0 | AL243: 0 | AM243: 0
A244: ="Z"&A168 -> ZE | B244: 2 | C244: =INDEX($C$179:$C$182,J237) -> 18 | D244: =J237 -> 2 | E244: =INDEX($H$179:$H$182,J237) -> SVK | F244: =SUMIF($D$170:$E$175,"="&$C244,$Q$170:$R$175) -> 0 | G244: =INDEX($D$179:$D$182,$J237) -> 0 | H244: =INDEX($E$179:$E$182,$J237) -> 0 | I244: =INDEX($F$179:$F$182,$J237) -> 0 | J244: =INDEX($G$179:$G$182,$J237) -> 0 | K244: 0 | L244: 0 | M244: 0 | AA244: ="Z"&AA168 -> ZF | AB244: 2 | AC244: =INDEX($AC$179:$AC$182,AJ237) -> 22 | AD244: =AJ237 -> 2 | AE244: =INDEX($AH$179:$AH$182,AJ237) -> GEO | AF244: =SUMIF($AD$170:$AE$175,"="&$AC244,$AQ$170:$AR$175) -> 0 | AG244: =INDEX($AD$179:$AD$182,$AJ237) -> 0 | AH244: =INDEX($AE$179:$AE$182,$AJ237) -> 0 | AI244: =INDEX($AF$179:$AF$182,$AJ237) -> 0 | AJ244: =INDEX($AG$179:$AG$182,$AJ237) -> 0 | AK244: 0 | AL244: 0 | AM244: 0
A245: ="D"&A168 -> DE | B245: 3 | C245: =INDEX($C$179:$C$182,J238) -> 19 | D245: =J238 -> 3 | E245: =INDEX($H$179:$H$182,J238) -> ROM | F245: =SUMIF($D$170:$E$175,"="&$C245,$Q$170:$R$175) -> 0 | G245: =INDEX($D$179:$D$182,$J238) -> 0 | H245: =INDEX($E$179:$E$182,$J238) -> 0 | I245: =INDEX($F$179:$F$182,$J238) -> 0 | J245: =INDEX($G$179:$G$182,$J238) -> 0 | K245: 0 | L245: 0 | M245: 0 | AA245: ="D"&AA168 -> DF | AB245: 3 | AC245: =INDEX($AC$179:$AC$182,AJ238) -> 23 | AD245: =AJ238 -> 3 | AE245: =INDEX($AH$179:$AH$182,AJ238) -> POR | AF245: =SUMIF($AD$170:$AE$175,"="&$AC245,$AQ$170:$AR$175) -> 0 | AG245: =INDEX($AD$179:$AD$182,$AJ238) -> 0 | AH245: =INDEX($AE$179:$AE$182,$AJ238) -> 0 | AI245: =INDEX($AF$179:$AF$182,$AJ238) -> 0 | AJ245: =INDEX($AG$179:$AG$182,$AJ238) -> 0 | AK245: 0 | AL245: 0 | AM245: 0
A246: ="V"&A168 -> VE | B246: 4 | C246: =INDEX($C$179:$C$182,J239) -> 20 | D246: =J239 -> 4 | E246: =INDEX($H$179:$H$182,J239) -> UKR | F246: =SUMIF($D$170:$E$175,"="&$C246,$Q$170:$R$175) -> 0 | G246: =INDEX($D$179:$D$182,$J239) -> 0 | H246: =INDEX($E$179:$E$182,$J239) -> 0 | I246: =INDEX($F$179:$F$182,$J239) -> 0 | J246: =INDEX($G$179:$G$182,$J239) -> 0 | K246: 0 | L246: 0 | M246: 0 | AA246: ="V"&AA168 -> VF | AB246: 4 | AC246: =INDEX($AC$179:$AC$182,AJ239) -> 24 | AD246: =AJ239 -> 4 | AE246: =INDEX($AH$179:$AH$182,AJ239) -> CZE | AF246: =SUMIF($AD$170:$AE$175,"="&$AC246,$AQ$170:$AR$175) -> 0 | AG246: =INDEX($AD$179:$AD$182,$AJ239) -> 0 | AH246: =INDEX($AE$179:$AE$182,$AJ239) -> 0 | AI246: =INDEX($AF$179:$AF$182,$AJ239) -> 0 | AJ246: =INDEX($AG$179:$AG$182,$AJ239) -> 0 | AK246: 0 | AL246: 0 | AM246: 0
A334: Rang Eff | C334: =C78 -> TeamIndex | D334: Nr | E334: Team | F334: Sp | G334: P | H334: T+ | I334: T- | J334: Diff | K334: S | L334: U | M334: N | O334: Rang Eff | Q334: Tore KO | R334: Tore GES
A335: =$E$72 -> 1 | B335: SA | C335: =C79 -> 1 | D335: 1 | E335: GER | F335: 0 | G335: 0 | H335: 0 | I335: 0 | J335: 0 | K335: 0 | L335: 0 | M335: 0 | N335: 1 | O335: =A335 -> 1 | P335: =INDEX(teams,C335) -> Deutschland | Q335: =SUMIF($L$407:$M$422,"="&C335,$S$407:$T$422) -> 0 | R335: =H335+Q335 -> 0
... 127 more rows

Sheet EM 2024 XXL
F3: UEFA FUSSBALL-EUROPAMEISTERSCHAFT 2024 | J3: V 24.0401 vom 01.04.2024 | N3: Verantwortlich: Thomas Günther, Kassel Kontakt: hexceler@gmx.de Web: https://www.hexceler.de
F4: Kostenlose Turnierverwaltung für die UEFA Fußball-EM 2024 mit Tippspiel für bis zu 500 Mitspieler. Für MS Excel ab Version 2000.
E7: Diese Datei enthält Makros, die beim Öffnen zu aktivieren sind. Alle Makros dienen ausschließlich der Funktionalität der Datei und stellen keine Gefahr für das System dar.
F9: Hinweise für das Aktivieren von Makros können Sie der diesem Programm beiliegenden Anleitung (Word- und PDF-Format) entnehmen. Wegen der enthaltenen Makros kann diese Datei leider nicht mit OpenOffice, StarOffice, Office für Mac oder anderen alternativen Officeprogrammen verwendet werden . Nuzter dieser Software können jedoch über Tippformulare am Tippspiel teilnehmen. Falls die Startleiste von Windows die Blattregister dieser Arbeitsmappe verdecken sollte, kann der Wechsel zwischen den einzelnen Tabellenblättern über die Navigationsbox erfolgen, die auf jedem Blatt oben links zu finden ist. Die Navigationsbox enthält zudem Funktionen für die Ausgabe von Daten (Druck, HTM-Export) sowie zum Speichern und Schließen der Datei.
D16: Wenn Ihnen diese Datei gefällt und Sie den Arbeitsaufwand für dieses Projekt honorieren möchten, können Sie sich erkenntlich zeigen durch eine Überweisung auf das Konto von:
D17: Thomas Günther BIC: GENODE51KS1 IBAN: DE03 5209 0000 0114 5469 09 (Volksbank Kassel Göttingen. Bankleitzahl: 52090000, Kontonummer: 0114546909).
D18: Als Alternative zur Banküberweisung können Sie eine Zahlung über die Funktion "Geld senden" von PayPal an die Adresse hexceler@gmx.de vornehmen.
D19: Bitte honorieren Sie den Arbeitsaufwand durch eine Spende über PayPal oder eine Überweisung auf das angegebene Konto. Vielen Dank, für jede Fairplay-Spende.
D23: =IF(daten!AH45>0,"AKTUELLER "&UPPER(daten!AI45),"DATENSTAND: NOCH KEINE ERGEBNISSE") -> DATENSTAND: NOCH KEINE ERGEBNISSE
E25: Die Ergebnisse der Spiele können eigenständig auf dem Tabellenblatt "Ergebnisse" eingegeben werden. KO-Spiele werden vom Programm ermittelt. Das Editieren zusätzlicher Daten (Aufstellung, Torschützen, verteilte Karten ...) ist über den Spieldateneditor möglich. Sie können Resultate und Spieldaten aber auch über eine 'Aktualisierungsdatei' in diese EM-Datei importieren. Eine Aktualisierungsdatei wird nach jedem Spieltag unter https://www.hexceler.de zum kostenlosen Download bereitgestellt werden. Nach dem Extrahieren der geladenen ZIP-Datei können Sie die darin enthaltenen Daten über "Ergebnis-Update durchführen" übertragen. Über "Aktualisierungsdatei erstellen" werden alle Ergebnisse und Spieldaten in eine separate Datei exportiert. Die so erstellte Datei kann für das Importieren dieser Daten in andere Hauptprogrammdateien genutzt werden. Tippspieldaten werden über die Import- und Exportfunktion des Tippspiels übertragen. | Q25: AKTUALISIERUNGSDATEI LADEN
A36: =settings!C114 -> TRUE | G36: Beim Öffnen der Datei den Vollbildmodus aktivieren | M36: =IF(ISERROR(NOT(A36)),"Deaktiviert",IF(NOT(A36),"Deaktiviert","Aktiviert")) -> Aktiviert
A37: =IF(NOT(A36),"nicht verfügbar",settings!C113) -> TRUE | G37: Zoom der Tabellenblätter automatisch anpassen | M37: =IF(settings!C122,"Pers. Zoom ("&INT(settings!C123*100+0.5)&"%)",IF(ISERROR(NOT(A37)),A37,IF(NOT(A37),"Deaktiviert","Aktiviert ("&INT(settings!C111*100+0.5)&"%)"))) -> Aktiviert (116%)
A38: =IF(OR(settings!C122,NOT(settings!C114),NOT(settings!C113)),"nicht verfügbar",settings!C112) -> FALSE | G38: Bei 4:3-Bildschirmen Blatt-Zoom auf verfügbare HÖHE ausrichten | M38: =IF(ISERROR(NOT(A38)),A38,IF(NOT(A38),"Deaktiviert","Aktiviert")) -> Deaktiviert
A40: =settings!C115 -> FALSE | G40: Statuszeile beim Öffnen ausblenden | M40: =IF(ISERROR(NOT(A40)),A40,IF(NOT(settings!C115),"Deaktiviert","Aktiviert")) -> Deaktiviert
A41: =settings!C116 -> TRUE | G41: Bearbeitungsleiste beim Öffnen ausblenden | M41: =IF(ISERROR(NOT(A41)),A41,IF(NOT(settings!C116),"Deaktiviert","Aktiviert")) -> Aktiviert | Q41: ANLEITUNG ANZEIGEN
A43: =settings!C117 -> TRUE | F43: Warnen, wenn eine XLS-Datei im Kompatibilitätsmodus geöffnet wird (Excel ab Version 2007) | M43: =IF(ISERROR(NOT(A43)),A43,IF(NOT(A43),"Deaktiviert","Aktiviert")) -> Aktiviert
A45: =AND(anzmsp>0,settings!C118) -> FALSE | G45: Nach Änderungen automatisch ein OneClick-Web für das Tippspiel generieren | M45: =IF(ISERROR(NOT(A45)),A45,IF(NOT(A45),"Deaktiviert","Aktiviert")) -> Deaktiviert | Q45: HÄUFIGE FRAGEN…
A47: =settings!C119 -> TRUE | G47: Modulfenster vergrößert darstellen | M47: =IF(ISERROR(NOT(A47)),A47,IF(NOT(A47),"Deaktiviert","Aktiviert (" & INT(settings!C126*100+0.5)&"%)")) -> Aktiviert (115%)
F49: Zeitverschiebung ihres Aufenthaltsortes zur MESZ (Time difference between your local time and CEST) | M49: =INDEX(settings!$W$104:$W$201,settings!X102) -> ± 0:00
J50: =IF(A44,"(das OCW wird beim Aktivieren des Blattes 'Tippspiel' erstellt)","") -> 
F51: Beim Speichern der EM-Datei automatisch eine UPDATEDATEI des Tippspiels erstellen | M51: =IF(settings!C132,"Aktiviert","Deaktiviert") -> Deaktiviert

Sheet ERGEBNISSE
B6: $V$44 | H6: Spieldaten und Halbzeitresultate editieren: RECHTSKLICK auf Termin. Paarungsbilanz: RECHTSKLICK auf Paarung. EM-Teambilanz: RECHTSKLICK in die Gruppentabelle.
B7: Zeige allgemeine Angaben | D7: TRUE | E7: Spiele GR | F7: =SUM(tabber!F335:F358)/2 -> 0 | BF7: Ergebnisse | BI7: ?
B8: AF aktueller Stand | D8: FALSE | H8: ="UEFA EM 2024 - "&daten!$P$105 -> UEFA EM 2024 - Fr., 14.06. bis So., 14.07.2024
B10: Spiel Nr. nach TA | C10: Spiel WERTE | D10: TANr2Chrono | E10: ErgH | F10: ErgA | H10: Gruppenrunde | N10: Die Gruppenersten und -zweiten sowie die vier besten Drittplatzierten erreichen das Achtelfinale. | AI10: Ergebnis | AS10: =IF(F7<36,"Aktuelle Tabellen","Tabellen") -> Aktuelle Tabellen | AY10: ="Stand: "&F7 &" von 36 Spielen" -> Stand: 0 von 36 Spielen | BI10: ? | BQ10: Manuell | BS10: TIDX | BT10: GrIDX | BV10: Sortierspalte Wappen | BW10: akt | BX10: alt | BY10: test | BZ10: =SUM(BY12:BY46) -> 0
B12: 1 | C12: A1 | D12: =MATCH(C12,daten!$D$49:$D$84,0) -> 1 | E12: =IF(COUNT(AI12,AK12)=2,AI12,"") ->  | F12: =IF(COUNT(AI12,AK12)=2,AK12,"") ->  | H12: =INDEX(daten!$L$106:$L$157,D12) -> 14.06. | K12: =INDEX(daten!$K$106:$K$157,D12) -> 21:00 | N12: =UPPER(INDEX(daten!$B$106:$B$141,D12)) -> MÜNCHEN | T12: =INDEX(daten!$C$49:$C$100,D12) -> A | V12: =UPPER(INDEX(daten!$K$49:$K$84,D12))&" ("&INDEX(daten!$M$49:$M$84,D12)&")" -> DEUTSCHLAND (GER) | AB12: : | AC12: =UPPER(INDEX(daten!$L$49:$L$84,D12))&" ("&INDEX(daten!$N$49:$N$84,D12)&")" -> SCHOTTLAND (SCO) | AJ12: : | AL12: =INDEX(daten!$AD$49:$AD$100,D12) ->  | AR12: A | AZ12: Tore | BB12: Diff. | BD12: P | BE12: S | U | N | BK12: Sp | BL12: Rang Eff | BM12: TIDX | BO12: Dritte | BQ12: A | BR12: SA | BT12: =IF(LEN(BS12)=0,0,SUMIF(daten!$B$6:$B$29,"="&BS12,daten!$J$6:$J$29)) -> 0 | BV12: A | BW12: =IF(LEN(BJ12)=0,ROW(),MATCH(BJ12,$BM$12:$BM$46,0)+11) -> 12 | BX12: 12 | BY12: =IF(BW12=BX12,0,1) -> 0
B13: 2 | C13: A2 | D13: =MATCH(C13,daten!$D$49:$D$84,0) -> 2 | H13: =INDEX(daten!$L$106:$L$157,D13) -> 15.06. | K13: =INDEX(daten!$K$106:$K$157,D13) -> 15:00 | N13: =UPPER(INDEX(daten!$B$106:$B$141,D13)) -> KÖLN | T13: =INDEX(daten!$C$49:$C$100,D13) -> A | V13: =UPPER(INDEX(daten!$K$49:$K$84,D13))&" ("&INDEX(daten!$M$49:$M$84,D13)&")" -> UNGARN (HUN) | AB13: : | AC13: =UPPER(INDEX(daten!$L$49:$L$84,D13))&" ("&INDEX(daten!$N$49:$N$84,D13)&")" -> SCHWEIZ (SUI) | AJ13: : | AL13: =INDEX(daten!$AD$49:$AD$100,D13) ->  | AS13: =IF(SUM(BD13:BD16)=0,"",IF(BL13=BL12,"",BL13)) ->  | AT13: =UPPER(INDEX(tabber!$P$335:$P$358,BJ13)) -> DEUTSCHLAND | AZ13: =INDEX(tabber!$E$335:$M$358,BJ13,4)&" : "&INDEX(tabber!$E$335:$M$358,BJ13,5) -> 0 : 0 | BB13: =INDEX(tabber!$E$335:$M$358,BJ13,6) -> 0 | BD13: =INDEX(tabber!$E$335:$M$358,BJ13,3) -> 0 | BE13: =INDEX(tabber!$E$335:$M$358,BJ13,7) &" | " &INDEX(tabber!$E$335:$M$358,BJ13,8)&" | " &INDEX(tabber!$E$335:$M$358,BJ13,9) -> 0 | 0 | 0 | BJ13: 1 | BL13: =INDEX(tabber!$A$335:$A$358,BJ13) -> 1 | BM13: =MATCH(AT13,teams,0) -> 1 | BO13: =tabber!$H$392 -> x | BP13: =tabber!$H$393 -> x | BQ13: A | BR13: ZA | BT13: =IF(LEN(BS13)=0,0,SUMIF(daten!$B$6:$B$29,"="&BS13,daten!$J$6:$J$29)) -> 0 | BW13: 13 | BX13: 13 | BY13: 0
B14: 3 | C14: B1 | D14: =MATCH(C14,daten!$D$49:$D$84,0) -> 3 | H14: =INDEX(daten!$L$106:$L$157,D14) -> 15.06. | K14: =INDEX(daten!$K$106:$K$157,D14) -> 18:00 | N14: =UPPER(INDEX(daten!$B$106:$B$141,D14)) -> BERLIN | T14: =INDEX(daten!$C$49:$C$100,D14) -> B | V14: =UPPER(INDEX(daten!$K$49:$K$84,D14))&" ("&INDEX(daten!$M$49:$M$84,D14)&")" -> SPANIEN (ESP) | AB14: : | AC14: =UPPER(INDEX(daten!$L$49:$L$84,D14))&" ("&INDEX(daten!$N$49:$N$84,D14)&")" -> KROATIEN (CRO) | AJ14: : | AL14: =INDEX(daten!$AD$49:$AD$100,D14) ->  | AS14: =IF(SUM(BD13:BD16)=0,"",IF(BL14=BL13,"",BL14)) ->  | AT14: =UPPER(INDEX(tabber!$P$335:$P$358,BJ14)) -> SCHOTTLAND | AZ14: =INDEX(tabber!$E$335:$M$358,BJ14,4)&" : "&INDEX(tabber!$E$335:$M$358,BJ14,5) -> 0 : 0 | BB14: =INDEX(tabber!$E$335:$M$358,BJ14,6) -> 0 | BD14: =INDEX(tabber!$E$335:$M$358,BJ14,3) -> 0 | BE14: =INDEX(tabber!$E$335:$M$358,BJ14,7) &" | " &INDEX(tabber!$E$335:$M$358,BJ14,8)&" | " &INDEX(tabber!$E$335:$M$358,BJ14,9) -> 0 | 0 | 0 | BJ14: 2 | BL14: =INDEX(tabber!$A$335:$A$358,BJ14) -> 1 | BM14: =MATCH(AT14,teams,0) -> 2 | BO14: =tabber!$I$392 -> x | BP14: =tabber!$I$393 -> x | BQ14: A | BR14: DA | BT14: =IF(LEN(BS14)=0,0,SUMIF(daten!$B$6:$B$29,"="&BS14,daten!$J$6:$J$29)) -> 0 | BW14: 14 | BX14: 14 | BY14: 0
B15: 4 | C15: B2 | D15: =MATCH(C15,daten!$D$49:$D$84,0) -> 4 | H15: =INDEX(daten!$L$106:$L$157,D15) -> 15.06. | K15: =INDEX(daten!$K$106:$K$157,D15) -> 21:00 | N15: =UPPER(INDEX(daten!$B$106:$B$141,D15)) -> DORTMUND | T15: =INDEX(daten!$C$49:$C$100,D15) -> B | V15: =UPPER(INDEX(daten!$K$49:$K$84,D15))&" ("&INDEX(daten!$M$49:$M$84,D15)&")" -> ITALIEN (ITA) | AB15: : | AC15: =UPPER(INDEX(daten!$L$49:$L$84,D15))&" ("&INDEX(daten!$N$49:$N$84,D15)&")" -> ALBANIEN (ALB) | AJ15: : | AL15: =INDEX(daten!$AD$49:$AD$100,D15) ->  | AS15: =IF(SUM(BD13:BD16)=0,"",IF(BL15=BL14,"",BL15)) ->  | AT15: =UPPER(INDEX(tabber!$P$335:$P$358,BJ15)) -> UNGARN | AZ15: =INDEX(tabber!$E$335:$M$358,BJ15,4)&" : "&INDEX(tabber!$E$335:$M$358,BJ15,5) -> 0 : 0 | BB15: =INDEX(tabber!$E$335:$M$358,BJ15,6) -> 0 | BD15: =INDEX(tabber!$E$335:$M$358,BJ15,3) -> 0 | BE15: =INDEX(tabber!$E$335:$M$358,BJ15,7) &" | " &INDEX(tabber!$E$335:$M$358,BJ15,8)&" | " &INDEX(tabber!$E$335:$M$358,BJ15,9) -> 0 | 0 | 0 | BJ15: 3 | BL15: =INDEX(tabber!$A$335:$A$358,BJ15) -> 1 | BM15: =MATCH(AT15,teams,0) -> 3 | BO15: =tabber!$J$392 -> x | BP15: =tabber!$J$393 -> x | BQ15: A | BR15: VA | BT15: =IF(LEN(BS15)=0,0,SUMIF(daten!$B$6:$B$29,"="&BS15,daten!$J$6:$J$29)) -> 0 | BW15: 15 | BX15: 15 | BY15: 0
B16: 5 | C16: D1 | D16: =MATCH(C16,daten!$D$49:$D$84,0) -> 5 | H16: =INDEX(daten!$L$106:$L$157,D16) -> 16.06. | K16: =INDEX(daten!$K$106:$K$157,D16) -> 15:00 | N16: =UPPER(INDEX(daten!$B$106:$B$141,D16)) -> HAMBURG | T16: =INDEX(daten!$C$49:$C$100,D16) -> D | V16: =UPPER(INDEX(daten!$K$49:$K$84,D16))&" ("&INDEX(daten!$M$49:$M$84,D16)&")" -> POLEN (POL) | AB16: : | AC16: =UPPER(INDEX(daten!$L$49:$L$84,D16))&" ("&INDEX(daten!$N$49:$N$84,D16)&")" -> NIEDERLANDE (NED) | AJ16: : | AL16: =INDEX(daten!$AD$49:$AD$100,D16) ->  | AS16: =IF(SUM(BD13:BD16)=0,"",IF(BL16=BL15,"",BL16)) ->  | AT16: =UPPER(INDEX(tabber!$P$335:$P$358,BJ16)) -> SCHWEIZ | AZ16: =INDEX(tabber!$E$335:$M$358,BJ16,4)&" : "&INDEX(tabber!$E$335:$M$358,BJ16,5) -> 0 : 0 | BB16: =INDEX(tabber!$E$335:$M$358,BJ16,6) -> 0 | BD16: =INDEX(tabber!$E$335:$M$358,BJ16,3) -> 0 | BE16: =INDEX(tabber!$E$335:$M$358,BJ16,7) &" | " &INDEX(tabber!$E$335:$M$358,BJ16,8)&" | " &INDEX(tabber!$E$335:$M$358,BJ16,9) -> 0 | 0 | 0 | BJ16: 4 | BL16: =INDEX(tabber!$A$335:$A$358,BJ16) -> 1 | BM16: =MATCH(AT16,teams,0) -> 4 | BO16: =tabber!$K$392 -> x | BP16: =tabber!$K$393 -> x | BQ16: B | BR16: SB | BT16: =IF(LEN(BS16)=0,0,SUMIF(daten!$B$6:$B$29,"="&BS16,daten!$J$6:$J$29)) -> 0 | BW16: 16 | BX16: 16 | BY16: 0
B17: 6 | C17: C1 | D17: =MATCH(C17,daten!$D$49:$D$84,0) -> 6 | H17: =INDEX(daten!$L$106:$L$157,D17) -> 16.06. | K17: =INDEX(daten!$K$106:$K$157,D17) -> 18:00 | N17: =UPPER(INDEX(daten!$B$106:$B$141,D17)) -> STUTTGART | T17: =INDEX(daten!$C$49:$C$100,D17) -> C | V17: =UPPER(INDEX(daten!$K$49:$K$84,D17))&" ("&INDEX(daten!$M$49:$M$84,D17)&")" -> SLOWENIEN (SLO) | AB17: : | AC17: =UPPER(INDEX(daten!$L$49:$L$84,D17))&" ("&INDEX(daten!$N$49:$N$84,D17)&")" -> DÄNEMARK (DEN) | AJ17: : | AL17: =INDEX(daten!$AD$49:$AD$100,D17) ->  | BQ17: B | BR17: ZB | BT17: =IF(LEN(BS17)=0,0,SUMIF(daten!$B$6:$B$29,"="&BS17,daten!$J$6:$J$29)) -> 0 | BV17: B | BW17: 17 | BX17: 17 | BY17: 0
B18: 7 | C18: C2 | D18: =MATCH(C18,daten!$D$49:$D$84,0) -> 7 | H18: =INDEX(daten!$L$106:$L$157,D18) -> 16.06. | K18: =INDEX(daten!$K$106:$K$157,D18) -> 21:00 | N18: =UPPER(INDEX(daten!$B$106:$B$141,D18)) -> GELSENKIRCHEN | T18: =INDEX(daten!$C$49:$C$100,D18) -> C | V18: =UPPER(INDEX(daten!$K$49:$K$84,D18))&" ("&INDEX(daten!$M$49:$M$84,D18)&")" -> SERBIEN (SRB) | AB18: : | AC18: =UPPER(INDEX(daten!$L$49:$L$84,D18))&" ("&INDEX(daten!$N$49:$N$84,D18)&")" -> ENGLAND (ENG) | AJ18: : | AL18: =INDEX(daten!$AD$49:$AD$100,D18) ->  | AR18: B | AZ18: Tore | BB18: Diff. | BD18: P | BE18: S | U | N | BQ18: B | BR18: DB | BT18: =IF(LEN(BS18)=0,0,SUMIF(daten!$B$6:$B$29,"="&BS18,daten!$J$6:$J$29)) -> 0 | BV18: B | BW18: 18 | BX18: 18 | BY18: 0
B19: 8 | C19: E1 | D19: =MATCH(C19,daten!$D$49:$D$84,0) -> 8 | H19: =INDEX(daten!$L$106:$L$157,D19) -> 17.06. | K19: =INDEX(daten!$K$106:$K$157,D19) -> 15:00 | N19: =UPPER(INDEX(daten!$B$106:$B$141,D19)) -> MÜNCHEN | T19: =INDEX(daten!$C$49:$C$100,D19) -> E | V19: =UPPER(INDEX(daten!$K$49:$K$84,D19))&" ("&INDEX(daten!$M$49:$M$84,D19)&")" -> RUMÄNIEN (ROM) | AB19: : | AC19: =UPPER(INDEX(daten!$L$49:$L$84,D19))&" ("&INDEX(daten!$N$49:$N$84,D19)&")" -> UKRAINE (UKR) | AJ19: : | AL19: =INDEX(daten!$AD$49:$AD$100,D19) ->  | AS19: =IF(SUM(BD19:BD22)=0,"",IF(BL19=BL18,"",BL19)) ->  | AT19: =UPPER(INDEX(tabber!$P$335:$P$358,BJ19)) -> SPANIEN | AZ19: =INDEX(tabber!$E$335:$M$358,BJ19,4)&" : "&INDEX(tabber!$E$335:$M$358,BJ19,5) -> 0 : 0 | BB19: =INDEX(tabber!$E$335:$M$358,BJ19,6) -> 0 | BD19: =INDEX(tabber!$E$335:$M$358,BJ19,3) -> 0 | BE19: =INDEX(tabber!$E$335:$M$358,BJ19,7) &" | " &INDEX(tabber!$E$335:$M$358,BJ19,8)&" | " &INDEX(tabber!$E$335:$M$358,BJ19,9) -> 0 | 0 | 0 | BJ19: 5 | BL19: =INDEX(tabber!$A$335:$A$358,BJ19) -> 1 | BM19: =MATCH(AT19,teams,0) -> 5 | BQ19: B | BR19: VB | BT19: =IF(LEN(BS19)=0,0,SUMIF(daten!$B$6:$B$29,"="&BS19,daten!$J$6:$J$29)) -> 0 | BW19: 19 | BX19: 19 | BY19: 0
B20: 9 | C20: E2 | D20: =MATCH(C20,daten!$D$49:$D$84,0) -> 9 | H20: =INDEX(daten!$L$106:$L$157,D20) -> 17.06. | K20: =INDEX(daten!$K$106:$K$157,D20) -> 18:00 | N20: =UPPER(INDEX(daten!$B$106:$B$141,D20)) -> FRANKFURT | T20: =INDEX(daten!$C$49:$C$100,D20) -> E | V20: =UPPER(INDEX(daten!$K$49:$K$84,D20))&" ("&INDEX(daten!$M$49:$M$84,D20)&")" -> BELGIEN (BEL) | AB20: : | AC20: =UPPER(INDEX(daten!$L$49:$L$84,D20))&" ("&INDEX(daten!$N$49:$N$84,D20)&")" -> SLOWAKEI (SVK) | AJ20: : | AL20: =INDEX(daten!$AD$49:$AD$100,D20) ->  | AS20: =IF(SUM(BD19:BD22)=0,"",IF(BL20=BL19,"",BL20)) ->  | AT20: =UPPER(INDEX(tabber!$P$335:$P$358,BJ20)) -> KROATIEN | AZ20: =INDEX(tabber!$E$335:$M$358,BJ20,4)&" : "&INDEX(tabber!$E$335:$M$358,BJ20,5) -> 0 : 0 | BB20: =INDEX(tabber!$E$335:$M$358,BJ20,6) -> 0 | BD20: =INDEX(tabber!$E$335:$M$358,BJ20,3) -> 0 | BE20: =INDEX(tabber!$E$335:$M$358,BJ20,7) &" | " &INDEX(tabber!$E$335:$M$358,BJ20,8)&" | " &INDEX(tabber!$E$335:$M$358,BJ20,9) -> 0 | 0 | 0 | BJ20: 6 | BL20: =INDEX(tabber!$A$335:$A$358,BJ20) -> 1 | BM20: =MATCH(AT20,teams,0) -> 6 | BQ20: C | BR20: SC | BT20: =IF(LEN(BS20)=0,0,SUMIF(daten!$B$6:$B$29,"="&BS20,daten!$J$6:$J$29)) -> 0 | BW20: 20 | BX20: 20 | BY20: 0
B21: 10 | C21: D2 | D21: =MATCH(C21,daten!$D$49:$D$84,0) -> 10 | H21: =INDEX(daten!$L$106:$L$157,D21) -> 17.06. | K21: =INDEX(daten!$K$106:$K$157,D21) -> 21:00 | N21: =UPPER(INDEX(daten!$B$106:$B$141,D21)) -> DÜSSELDORF | T21: =INDEX(daten!$C$49:$C$100,D21) -> D | V21: =UPPER(INDEX(daten!$K$49:$K$84,D21))&" ("&INDEX(daten!$M$49:$M$84,D21)&")" -> ÖSTERREICH (AUT) | AB21: : | AC21: =UPPER(INDEX(daten!$L$49:$L$84,D21))&" ("&INDEX(daten!$N$49:$N$84,D21)&")" -> FRANKREICH (FRA) | AJ21: : | AL21: =INDEX(daten!$AD$49:$AD$100,D21) ->  | AS21: =IF(SUM(BD19:BD22)=0,"",IF(BL21=BL20,"",BL21)) ->  | AT21: =UPPER(INDEX(tabber!$P$335:$P$358,BJ21)) -> ITALIEN | AZ21: =INDEX(tabber!$E$335:$M$358,BJ21,4)&" : "&INDEX(tabber!$E$335:$M$358,BJ21,5) -> 0 : 0 | BB21: =INDEX(tabber!$E$335:$M$358,BJ21,6) -> 0 | BD21: =INDEX(tabber!$E$335:$M$358,BJ21,3) -> 0 | BE21: =INDEX(tabber!$E$335:$M$358,BJ21,7) &" | " &INDEX(tabber!$E$335:$M$358,BJ21,8)&" | " &INDEX(tabber!$E$335:$M$358,BJ21,9) -> 0 | 0 | 0 | BJ21: 7 | BL21: =INDEX(tabber!$A$335:$A$358,BJ21) -> 1 | BM21: =MATCH(AT21,teams,0) -> 7 | BQ21: C | BR21: ZC | BT21: =IF(LEN(BS21)=0,0,SUMIF(daten!$B$6:$B$29,"="&BS21,daten!$J$6:$J$29)) -> 0 | BW21: 21 | BX21: 21 | BY21: 0
B22: 11 | C22: F1 | D22: =MATCH(C22,daten!$D$49:$D$84,0) -> 11 | H22: =INDEX(daten!$L$106:$L$157,D22) -> 18.06. | K22: =INDEX(daten!$K$106:$K$157,D22) -> 18:00 | N22: =UPPER(INDEX(daten!$B$106:$B$141,D22)) -> DORTMUND | T22: =INDEX(daten!$C$49:$C$100,D22) -> F | V22: =UPPER(INDEX(daten!$K$49:$K$84,D22))&" ("&INDEX(daten!$M$49:$M$84,D22)&")" -> TÜRKEI (TUR) | AB22: : | AC22: =UPPER(INDEX(daten!$L$49:$L$84,D22))&" ("&INDEX(daten!$N$49:$N$84,D22)&")" -> GEORGIEN (GEO) | AJ22: : | AL22: =INDEX(daten!$AD$49:$AD$100,D22) ->  | AS22: =IF(SUM(BD19:BD22)=0,"",IF(BL22=BL21,"",BL22)) ->  | AT22: =UPPER(INDEX(tabber!$P$335:$P$358,BJ22)) -> ALBANIEN | AZ22: =INDEX(tabber!$E$335:$M$358,BJ22,4)&" : "&INDEX(tabber!$E$335:$M$358,BJ22,5) -> 0 : 0 | BB22: =INDEX(tabber!$E$335:$M$358,BJ22,6) -> 0 | BD22: =INDEX(tabber!$E$335:$M$358,BJ22,3) -> 0 | BE22: =INDEX(tabber!$E$335:$M$358,BJ22,7) &" | " &INDEX(tabber!$E$335:$M$358,BJ22,8)&" | " &INDEX(tabber!$E$335:$M$358,BJ22,9) -> 0 | 0 | 0 | BJ22: 8 | BL22: =INDEX(tabber!$A$335:$A$358,BJ22) -> 1 | BM22: =MATCH(AT22,teams,0) -> 8 | BQ22: C | BR22: DC | BT22: =IF(LEN(BS22)=0,0,SUMIF(daten!$B$6:$B$29,"="&BS22,daten!$J$6:$J$29)) -> 0 | BW22: 22 | BX22: 22 | BY22: 0
B23: 12 | C23: F2 | D23: =MATCH(C23,daten!$D$49:$D$84,0) -> 12 | H23: =INDEX(daten!$L$106:$L$157,D23) -> 18.06. | K23: =INDEX(daten!$K$106:$K$157,D23) -> 21:00 | N23: =UPPER(INDEX(daten!$B$106:$B$141,D23)) -> LEIPZIG | T23: =INDEX(daten!$C$49:$C$100,D23) -> F | V23: =UPPER(INDEX(daten!$K$49:$K$84,D23))&" ("&INDEX(daten!$M$49:$M$84,D23)&")" -> PORTUGAL (POR) | AB23: : | AC23: =UPPER(INDEX(daten!$L$49:$L$84,D23))&" ("&INDEX(daten!$N$49:$N$84,D23)&")" -> TSCHECHIEN (CZE) | AJ23: : | AL23: =INDEX(daten!$AD$49:$AD$100,D23) ->  | BQ23: C | BR23: VC | BT23: =IF(LEN(BS23)=0,0,SUMIF(daten!$B$6:$B$29,"="&BS23,daten!$J$6:$J$29)) -> 0 | BV23: C | BW23: 23 | BX23: 23 | BY23: 0
B24: 13 | C24: B3 | D24: =MATCH(C24,daten!$D$49:$D$84,0) -> 13 | H24: =INDEX(daten!$L$106:$L$157,D24) -> 19.06. | K24: =INDEX(daten!$K$106:$K$157,D24) -> 15:00 | N24: =UPPER(INDEX(daten!$B$106:$B$141,D24)) -> HAMBURG | T24: =INDEX(daten!$C$49:$C$100,D24) -> B | V24: =UPPER(INDEX(daten!$K$49:$K$84,D24))&" ("&INDEX(daten!$M$49:$M$84,D24)&")" -> KROATIEN (CRO) | AB24: : | AC24: =UPPER(INDEX(daten!$L$49:$L$84,D24))&" ("&INDEX(daten!$N$49:$N$84,D24)&")" -> ALBANIEN (ALB) | AJ24: : | AL24: =INDEX(daten!$AD$49:$AD$100,D24) ->  | AR24: C | AZ24: Tore | BB24: Diff. | BD24: P | BE24: S | U | N | BQ24: D | BR24: SD | BT24: =IF(LEN(BS24)=0,0,SUMIF(daten!$B$6:$B$29,"="&BS24,daten!$J$6:$J$29)) -> 0 | BV24: C | BW24: 24 | BX24: 24 | BY24: 0
B25: 14 | C25: A3 | D25: =MATCH(C25,daten!$D$49:$D$84,0) -> 14 | H25: =INDEX(daten!$L$106:$L$157,D25) -> 19.06. | K25: =INDEX(daten!$K$106:$K$157,D25) -> 18:00 | N25: =UPPER(INDEX(daten!$B$106:$B$141,D25)) -> STUTTGART | T25: =INDEX(daten!$C$49:$C$100,D25) -> A | V25: =UPPER(INDEX(daten!$K$49:$K$84,D25))&" ("&INDEX(daten!$M$49:$M$84,D25)&")" -> DEUTSCHLAND (GER) | AB25: : | AC25: =UPPER(INDEX(daten!$L$49:$L$84,D25))&" ("&INDEX(daten!$N$49:$N$84,D25)&")" -> UNGARN (HUN) | AJ25: : | AL25: =INDEX(daten!$AD$49:$AD$100,D25) ->  | AS25: =IF(SUM(BD25:BD28)=0,"",IF(BL25=BL24,"",BL25)) ->  | AT25: =UPPER(INDEX(tabber!$P$335:$P$358,BJ25)) -> SLOWENIEN | AZ25: =INDEX(tabber!$E$335:$M$358,BJ25,4)&" : "&INDEX(tabber!$E$335:$M$358,BJ25,5) -> 0 : 0 | BB25: =INDEX(tabber!$E$335:$M$358,BJ25,6) -> 0 | BD25: =INDEX(tabber!$E$335:$M$358,BJ25,3) -> 0 | BE25: =INDEX(tabber!$E$335:$M$358,BJ25,7) &" | " &INDEX(tabber!$E$335:$M$358,BJ25,8)&" | " &INDEX(tabber!$E$335:$M$358,BJ25,9) -> 0 | 0 | 0 | BJ25: 9 | BL25: =INDEX(tabber!$A$335:$A$358,BJ25) -> 1 | BM25: =MATCH(AT25,teams,0) -> 9 | BQ25: D | BR25: ZD | BT25: =IF(LEN(BS25)=0,0,SUMIF(daten!$B$6:$B$29,"="&BS25,daten!$J$6:$J$29)) -> 0 | BW25: 25 | BX25: 25 | BY25: 0
B26: 15 | C26: A4 | D26: =MATCH(C26,daten!$D$49:$D$84,0) -> 15 | H26: =INDEX(daten!$L$106:$L$157,D26) -> 19.06. | K26: =INDEX(daten!$K$106:$K$157,D26) -> 21:00 | N26: =UPPER(INDEX(daten!$B$106:$B$141,D26)) -> KÖLN | T26: =INDEX(daten!$C$49:$C$100,D26) -> A | V26: =UPPER(INDEX(daten!$K$49:$K$84,D26))&" ("&INDEX(daten!$M$49:$M$84,D26)&")" -> SCHOTTLAND (SCO) | AB26: : | AC26: =UPPER(INDEX(daten!$L$49:$L$84,D26))&" ("&INDEX(daten!$N$49:$N$84,D26)&")" -> SCHWEIZ (SUI) | AJ26: : | AL26: =INDEX(daten!$AD$49:$AD$100,D26) ->  | AS26: =IF(SUM(BD25:BD28)=0,"",IF(BL26=BL25,"",BL26)) ->  | AT26: =UPPER(INDEX(tabber!$P$335:$P$358,BJ26)) -> DÄNEMARK | AZ26: =INDEX(tabber!$E$335:$M$358,BJ26,4)&" : "&INDEX(tabber!$E$335:$M$358,BJ26,5) -> 0 : 0 | BB26: =INDEX(tabber!$E$335:$M$358,BJ26,6) -> 0 | BD26: =INDEX(tabber!$E$335:$M$358,BJ26,3) -> 0 | BE26: =INDEX(tabber!$E$335:$M$358,BJ26,7) &" | " &INDEX(tabber!$E$335:$M$358,BJ26,8)&" | " &INDEX(tabber!$E$335:$M$358,BJ26,9) -> 0 | 0 | 0 | BJ26: 10 | BL26: =INDEX(tabber!$A$335:$A$358,BJ26) -> 1 | BM26: =MATCH(AT26,teams,0) -> 10 | BQ26: D | BR26: DD | BT26: =IF(LEN(BS26)=0,0,SUMIF(daten!$B$6:$B$29,"="&BS26,daten!$J$6:$J$29)) -> 0 | BW26: 26 | BX26: 26 | BY26: 0
B27: 16 | C27: C3 | D27: =MATCH(C27,daten!$D$49:$D$84,0) -> 16 | H27: =INDEX(daten!$L$106:$L$157,D27) -> 20.06. | K27: =INDEX(daten!$K$106:$K$157,D27) -> 15:00 | N27: =UPPER(INDEX(daten!$B$106:$B$141,D27)) -> MÜNCHEN | T27: =INDEX(daten!$C$49:$C$100,D27) -> C | V27: =UPPER(INDEX(daten!$K$49:$K$84,D27))&" ("&INDEX(daten!$M$49:$M$84,D27)&")" -> SLOWENIEN (SLO) | AB27: : | AC27: =UPPER(INDEX(daten!$L$49:$L$84,D27))&" ("&INDEX(daten!$N$49:$N$84,D27)&")" -> SERBIEN (SRB) | AJ27: : | AL27: =INDEX(daten!$AD$49:$AD$100,D27) ->  | AS27: =IF(SUM(BD25:BD28)=0,"",IF(BL27=BL26,"",BL27)) ->  | AT27: =UPPER(INDEX(tabber!$P$335:$P$358,BJ27)) -> SERBIEN | AZ27: =INDEX(tabber!$E$335:$M$358,BJ27,4)&" : "&INDEX(tabber!$E$335:$M$358,BJ27,5) -> 0 : 0 | BB27: =INDEX(tabber!$E$335:$M$358,BJ27,6) -> 0 | BD27: =INDEX(tabber!$E$335:$M$358,BJ27,3) -> 0 | BE27: =INDEX(tabber!$E$335:$M$358,BJ27,7) &" | " &INDEX(tabber!$E$335:$M$358,BJ27,8)&" | " &INDEX(tabber!$E$335:$M$358,BJ27,9) -> 0 | 0 | 0 | BJ27: 11 | BL27: =INDEX(tabber!$A$335:$A$358,BJ27) -> 1 | BM27: =MATCH(AT27,teams,0) -> 11 | BQ27: D | BR27: VD | BT27: =IF(LEN(BS27)=0,0,SUMIF(daten!$B$6:$B$29,"="&BS27,daten!$J$6:$J$29)) -> 0 | BW27: 27 | BX27: 27 | BY27: 0
B28: 17 | C28: C4 | D28: =MATCH(C28,daten!$D$49:$D$84,0) -> 17 | H28: =INDEX(daten!$L$106:$L$157,D28) -> 20.06. | K28: =INDEX(daten!$K$106:$K$157,D28) -> 18:00 | N28: =UPPER(INDEX(daten!$B$106:$B$141,D28)) -> FRANKFURT | T28: =INDEX(daten!$C$49:$C$100,D28) -> C | V28: =UPPER(INDEX(daten!$K$49:$K$84,D28))&" ("&INDEX(daten!$M$49:$M$84,D28)&")" -> DÄNEMARK (DEN) | AB28: : | AC28: =UPPER(INDEX(daten!$L$49:$L$84,D28))&" ("&INDEX(daten!$N$49:$N$84,D28)&")" -> ENGLAND (ENG) | AJ28: : | AL28: =INDEX(daten!$AD$49:$AD$100,D28) ->  | AS28: =IF(SUM(BD25:BD28)=0,"",IF(BL28=BL27,"",BL28)) ->  | AT28: =UPPER(INDEX(tabber!$P$335:$P$358,BJ28)) -> ENGLAND | AZ28: =INDEX(tabber!$E$335:$M$358,BJ28,4)&" : "&INDEX(tabber!$E$335:$M$358,BJ28,5) -> 0 : 0 | BB28: =INDEX(tabber!$E$335:$M$358,BJ28,6) -> 0 | BD28: =INDEX(tabber!$E$335:$M$358,BJ28,3) -> 0 | BE28: =INDEX(tabber!$E$335:$M$358,BJ28,7) &" | " &INDEX(tabber!$E$335:$M$358,BJ28,8)&" | " &INDEX(tabber!$E$335:$M$358,BJ28,9) -> 0 | 0 | 0 | BJ28: 12 | BL28: =INDEX(tabber!$A$335:$A$358,BJ28) -> 1 | BM28: =MATCH(AT28,teams,0) -> 12 | BQ28: E | BR28: SE | BT28: =IF(LEN(BS28)=0,0,SUMIF(daten!$B$6:$B$29,"="&BS28,daten!$J$6:$J$29)) -> 0 | BW28: 28 | BX28: 28 | BY28: 0
B29: 18 | C29: B4 | D29: =MATCH(C29,daten!$D$49:$D$84,0) -> 18 | H29: =INDEX(daten!$L$106:$L$157,D29) -> 20.06. | K29: =INDEX(daten!$K$106:$K$157,D29) -> 21:00 | N29: =UPPER(INDEX(daten!$B$106:$B$141,D29)) -> GELSENKIRCHEN | T29: =INDEX(daten!$C$49:$C$100,D29) -> B | V29: =UPPER(INDEX(daten!$K$49:$K$84,D29))&" ("&INDEX(daten!$M$49:$M$84,D29)&")" -> SPANIEN (ESP) | AB29: : | AC29: =UPPER(INDEX(daten!$L$49:$L$84,D29))&" ("&INDEX(daten!$N$49:$N$84,D29)&")" -> ITALIEN (ITA) | AJ29: : | AL29: =INDEX(daten!$AD$49:$AD$100,D29) ->  | BQ29: E | BR29: ZE | BT29: =IF(LEN(BS29)=0,0,SUMIF(daten!$B$6:$B$29,"="&BS29,daten!$J$6:$J$29)) -> 0 | BV29: D | BW29: 29 | BX29: 29 | BY29: 0
B30: 19 | C30: E3 | D30: =MATCH(C30,daten!$D$49:$D$84,0) -> 19 | H30: =INDEX(daten!$L$106:$L$157,D30) -> 21.06. | K30: =INDEX(daten!$K$106:$K$157,D30) -> 15:00 | N30: =UPPER(INDEX(daten!$B$106:$B$141,D30)) -> DÜSSELDORF | T30: =INDEX(daten!$C$49:$C$100,D30) -> E | V30: =UPPER(INDEX(daten!$K$49:$K$84,D30))&" ("&INDEX(daten!$M$49:$M$84,D30)&")" -> SLOWAKEI (SVK) | AB30: : | AC30: =UPPER(INDEX(daten!$L$49:$L$84,D30))&" ("&INDEX(daten!$N$49:$N$84,D30)&")" -> UKRAINE (UKR) | AJ30: : | AL30: =INDEX(daten!$AD$49:$AD$100,D30) ->  | AR30: D | AZ30: Tore | BB30: Diff. | BD30: P | BE30: S | U | N | BQ30: E | BR30: DE | BT30: =IF(LEN(BS30)=0,0,SUMIF(daten!$B$6:$B$29,"="&BS30,daten!$J$6:$J$29)) -> 0 | BV30: D | BW30: 30 | BX30: 30 | BY30: 0
B31: 20 | C31: D3 | D31: =MATCH(C31,daten!$D$49:$D$84,0) -> 20 | H31: =INDEX(daten!$L$106:$L$157,D31) -> 21.06. | K31: =INDEX(daten!$K$106:$K$157,D31) -> 18:00 | N31: =UPPER(INDEX(daten!$B$106:$B$141,D31)) -> BERLIN | T31: =INDEX(daten!$C$49:$C$100,D31) -> D | V31: =UPPER(INDEX(daten!$K$49:$K$84,D31))&" ("&INDEX(daten!$M$49:$M$84,D31)&")" -> POLEN (POL) | AB31: : | AC31: =UPPER(INDEX(daten!$L$49:$L$84,D31))&" ("&INDEX(daten!$N$49:$N$84,D31)&")" -> ÖSTERREICH (AUT) | AJ31: : | AL31: =INDEX(daten!$AD$49:$AD$100,D31) ->  | AS31: =IF(SUM(BD31:BD34)=0,"",IF(BL31=BL30,"",BL31)) ->  | AT31: =UPPER(INDEX(tabber!$P$335:$P$358,BJ31)) -> POLEN | AZ31: =INDEX(tabber!$E$335:$M$358,BJ31,4)&" : "&INDEX(tabber!$E$335:$M$358,BJ31,5) -> 0 : 0 | BB31: =INDEX(tabber!$E$335:$M$358,BJ31,6) -> 0 | BD31: =INDEX(tabber!$E$335:$M$358,BJ31,3) -> 0 | BE31: =INDEX(tabber!$E$335:$M$358,BJ31,7) &" | " &INDEX(tabber!$E$335:$M$358,BJ31,8)&" | " &INDEX(tabber!$E$335:$M$358,BJ31,9) -> 0 | 0 | 0 | BJ31: 13 | BL31: =INDEX(tabber!$A$335:$A$358,BJ31) -> 1 | BM31: =MATCH(AT31,teams,0) -> 13 | BQ31: E | BR31: VE | BT31: =IF(LEN(BS31)=0,0,SUMIF(daten!$B$6:$B$29,"="&BS31,daten!$J$6:$J$29)) -> 0 | BW31: 31 | BX31: 31 | BY31: 0
B32: 21 | C32: D4 | D32: =MATCH(C32,daten!$D$49:$D$84,0) -> 21 | H32: =INDEX(daten!$L$106:$L$157,D32) -> 21.06. | K32: =INDEX(daten!$K$106:$K$157,D32) -> 21:00 | N32: =UPPER(INDEX(daten!$B$106:$B$141,D32)) -> LEIPZIG | T32: =INDEX(daten!$C$49:$C$100,D32) -> D | V32: =UPPER(INDEX(daten!$K$49:$K$84,D32))&" ("&INDEX(daten!$M$49:$M$84,D32)&")" -> NIEDERLANDE (NED) | AB32: : | AC32: =UPPER(INDEX(daten!$L$49:$L$84,D32))&" ("&INDEX(daten!$N$49:$N$84,D32)&")" -> FRANKREICH (FRA) | AJ32: : | AL32: =INDEX(daten!$AD$49:$AD$100,D32) ->  | AS32: =IF(SUM(BD31:BD34)=0,"",IF(BL32=BL31,"",BL32)) ->  | AT32: =UPPER(INDEX(tabber!$P$335:$P$358,BJ32)) -> NIEDERLANDE | AZ32: =INDEX(tabber!$E$335:$M$358,BJ32,4)&" : "&INDEX(tabber!$E$335:$M$358,BJ32,5) -> 0 : 0 | BB32: =INDEX(tabber!$E$335:$M$358,BJ32,6) -> 0 | BD32: =INDEX(tabber!$E$335:$M$358,BJ32,3) -> 0 | BE32: =INDEX(tabber!$E$335:$M$358,BJ32,7) &" | " &INDEX(tabber!$E$335:$M$358,BJ32,8)&" | " &INDEX(tabber!$E$335:$M$358,BJ32,9) -> 0 | 0 | 0 | BJ32: 14 | BL32: =INDEX(tabber!$A$335:$A$358,BJ32) -> 1 | BM32: =MATCH(AT32,teams,0) -> 14 | BQ32: F | BR32: SF | BT32: =IF(LEN(BS32)=0,0,SUMIF(daten!$B$6:$B$29,"="&BS32,daten!$J$6:$J$29)) -> 0 | BW32: 32 | BX32: 32 | BY32: 0
B33: 22 | C33: F3 | D33: =MATCH(C33,daten!$D$49:$D$84,0) -> 22 | H33: =INDEX(daten!$L$106:$L$157,D33) -> 22.06. | K33: =INDEX(daten!$K$106:$K$157,D33) -> 15:00 | N33: =UPPER(INDEX(daten!$B$106:$B$141,D33)) -> HAMBURG | T33: =INDEX(daten!$C$49:$C$100,D33) -> F | V33: =UPPER(INDEX(daten!$K$49:$K$84,D33))&" ("&INDEX(daten!$M$49:$M$84,D33)&")" -> GEORGIEN (GEO) | AB33: : | AC33: =UPPER(INDEX(daten!$L$49:$L$84,D33))&" ("&INDEX(daten!$N$49:$N$84,D33)&")" -> TSCHECHIEN (CZE) | AJ33: : | AL33: =INDEX(daten!$AD$49:$AD$100,D33) ->  | AS33: =IF(SUM(BD31:BD34)=0,"",IF(BL33=BL32,"",BL33)) ->  | AT33: =UPPER(INDEX(tabber!$P$335:$P$358,BJ33)) -> ÖSTERREICH | AZ33: =INDEX(tabber!$E$335:$M$358,BJ33,4)&" : "&INDEX(tabber!$E$335:$M$358,BJ33,5) -> 0 : 0 | BB33: =INDEX(tabber!$E$335:$M$358,BJ33,6) -> 0 | BD33: =INDEX(tabber!$E$335:$M$358,BJ33,3) -> 0 | BE33: =INDEX(tabber!$E$335:$M$358,BJ33,7) &" | " &INDEX(tabber!$E$335:$M$358,BJ33,8)&" | " &INDEX(tabber!$E$335:$M$358,BJ33,9) -> 0 | 0 | 0 | BJ33: 15 | BL33: =INDEX(tabber!$A$335:$A$358,BJ33) -> 1 | BM33: =MATCH(AT33,teams,0) -> 15 | BQ33: F | BR33: ZF | BT33: =IF(LEN(BS33)=0,0,SUMIF(daten!$B$6:$B$29,"="&BS33,daten!$J$6:$J$29)) -> 0 | BW33: 33 | BX33: 33 | BY33: 0
B34: 23 | C34: F4 | D34: =MATCH(C34,daten!$D$49:$D$84,0) -> 23 | H34: =INDEX(daten!$L$106:$L$157,D34) -> 22.06. | K34: =INDEX(daten!$K$106:$K$157,D34) -> 18:00 | N34: =UPPER(INDEX(daten!$B$106:$B$141,D34)) -> DORTMUND | T34: =INDEX(daten!$C$49:$C$100,D34) -> F | V34: =UPPER(INDEX(daten!$K$49:$K$84,D34))&" ("&INDEX(daten!$M$49:$M$84,D34)&")" -> TÜRKEI (TUR) | AB34: : | AC34: =UPPER(INDEX(daten!$L$49:$L$84,D34))&" ("&INDEX(daten!$N$49:$N$84,D34)&")" -> PORTUGAL (POR) | AJ34: : | AL34: =INDEX(daten!$AD$49:$AD$100,D34) ->  | AS34: =IF(SUM(BD31:BD34)=0,"",IF(BL34=BL33,"",BL34)) ->  | AT34: =UPPER(INDEX(tabber!$P$335:$P$358,BJ34)) -> FRANKREICH | AZ34: =INDEX(tabber!$E$335:$M$358,BJ34,4)&" : "&INDEX(tabber!$E$335:$M$358,BJ34,5) -> 0 : 0 | BB34: =INDEX(tabber!$E$335:$M$358,BJ34,6) -> 0 | BD34: =INDEX(tabber!$E$335:$M$358,BJ34,3) -> 0 | BE34: =INDEX(tabber!$E$335:$M$358,BJ34,7) &" | " &INDEX(tabber!$E$335:$M$358,BJ34,8)&" | " &INDEX(tabber!$E$335:$M$358,BJ34,9) -> 0 | 0 | 0 | BJ34: 16 | BL34: =INDEX(tabber!$A$335:$A$358,BJ34) -> 1 | BM34: =MATCH(AT34,teams,0) -> 16 | BQ34: F | BR34: DF | BT34: =IF(LEN(BS34)=0,0,SUMIF(daten!$B$6:$B$29,"="&BS34,daten!$J$6:$J$29)) -> 0 | BW34: 34 | BX34: 34 | BY34: 0
B35: 24 | C35: E4 | D35: =MATCH(C35,daten!$D$49:$D$84,0) -> 24 | H35: =INDEX(daten!$L$106:$L$157,D35) -> 22.06. | K35: =INDEX(daten!$K$106:$K$157,D35) -> 21:00 | N35: =UPPER(INDEX(daten!$B$106:$B$141,D35)) -> KÖLN | T35: =INDEX(daten!$C$49:$C$100,D35) -> E | V35: =UPPER(INDEX(daten!$K$49:$K$84,D35))&" ("&INDEX(daten!$M$49:$M$84,D35)&")" -> BELGIEN (BEL) | AB35: : | AC35: =UPPER(INDEX(daten!$L$49:$L$84,D35))&" ("&INDEX(daten!$N$49:$N$84,D35)&")" -> RUMÄNIEN (ROM) | AJ35: : | AL35: =INDEX(daten!$AD$49:$AD$100,D35) ->  | AO35: =IF(tabber!R265>0,"EMS GR","") ->  | BQ35: F | BR35: VF | BT35: =IF(LEN(BS35)=0,0,SUMIF(daten!$B$6:$B$29,"="&BS35,daten!$J$6:$J$29)) -> 0 | BV35: E | BW35: 35 | BX35: 35 | BY35: 0
B36: 25 | C36: A5 | D36: =MATCH(C36,daten!$D$49:$D$84,0) -> 25 | H36: =INDEX(daten!$L$106:$L$157,D36) -> 23.06. | K36: =INDEX(daten!$K$106:$K$157,D36) -> 21:00 | N36: =UPPER(INDEX(daten!$B$106:$B$141,D36)) -> FRANKFURT | T36: =INDEX(daten!$C$49:$C$100,D36) -> A | V36: =UPPER(INDEX(daten!$K$49:$K$84,D36))&" ("&INDEX(daten!$M$49:$M$84,D36)&")" -> SCHWEIZ (SUI) | AB36: : | AC36: =UPPER(INDEX(daten!$L$49:$L$84,D36))&" ("&INDEX(daten!$N$49:$N$84,D36)&")" -> DEUTSCHLAND (GER) | AJ36: : | AL36: =INDEX(daten!$AD$49:$AD$100,D36) ->  | AP36: =IF(tabber!M266,":","") ->  | AR36: E | AZ36: Tore | BB36: Diff. | BD36: P | BE36: S | U | N | BV36: E | BW36: 36 | BX36: 36 | BY36: 0
B37: 26 | C37: A6 | D37: =MATCH(C37,daten!$D$49:$D$84,0) -> 26 | H37: =INDEX(daten!$L$106:$L$157,D37) -> 23.06. | K37: =INDEX(daten!$K$106:$K$157,D37) -> 21:00 | N37: =UPPER(INDEX(daten!$B$106:$B$141,D37)) -> STUTTGART | T37: =INDEX(daten!$C$49:$C$100,D37) -> A | V37: =UPPER(INDEX(daten!$K$49:$K$84,D37))&" ("&INDEX(daten!$M$49:$M$84,D37)&")" -> SCHOTTLAND (SCO) | AB37: : | AC37: =UPPER(INDEX(daten!$L$49:$L$84,D37))&" ("&INDEX(daten!$N$49:$N$84,D37)&")" -> UNGARN (HUN) | AJ37: : | AL37: =INDEX(daten!$AD$49:$AD$100,D37) ->  | AP37: =IF(tabber!M267,":","") ->  | AS37: =IF(SUM(BD37:BD40)=0,"",IF(BL37=BL36,"",BL37)) ->  | AT37: =UPPER(INDEX(tabber!$P$335:$P$358,BJ37)) -> BELGIEN | AZ37: =INDEX(tabber!$E$335:$M$358,BJ37,4)&" : "&INDEX(tabber!$E$335:$M$358,BJ37,5) -> 0 : 0 | BB37: =INDEX(tabber!$E$335:$M$358,BJ37,6) -> 0 | BD37: =INDEX(tabber!$E$335:$M$358,BJ37,3) -> 0 | BE37: =INDEX(tabber!$E$335:$M$358,BJ37,7) &" | " &INDEX(tabber!$E$335:$M$358,BJ37,8)&" | " &INDEX(tabber!$E$335:$M$358,BJ37,9) -> 0 | 0 | 0 | BJ37: 17 | BL37: =INDEX(tabber!$A$335:$A$358,BJ37) -> 1 | BM37: =MATCH(AT37,teams,0) -> 17 | BR37: Gruppe manuell | BS37: Dritter qualifiziert | BT37: =COUNTIF(BT38:BT45,"<99")=4 -> FALSE | BW37: 37 | BX37: 37 | BY37: 0
B38: 27 | C38: B5 | D38: =MATCH(C38,daten!$D$49:$D$84,0) -> 27 | H38: =INDEX(daten!$L$106:$L$157,D38) -> 24.06. | K38: =INDEX(daten!$K$106:$K$157,D38) -> 21:00 | N38: =UPPER(INDEX(daten!$B$106:$B$141,D38)) -> LEIPZIG | T38: =INDEX(daten!$C$49:$C$100,D38) -> B | V38: =UPPER(INDEX(daten!$K$49:$K$84,D38))&" ("&INDEX(daten!$M$49:$M$84,D38)&")" -> KROATIEN (CRO) | AB38: : | AC38: =UPPER(INDEX(daten!$L$49:$L$84,D38))&" ("&INDEX(daten!$N$49:$N$84,D38)&")" -> ITALIEN (ITA) | AJ38: : | AL38: =INDEX(daten!$AD$49:$AD$100,D38) ->  | AP38: =IF(tabber!M268,":","") ->  | AS38: =IF(SUM(BD37:BD40)=0,"",IF(BL38=BL37,"",BL38)) ->  | AT38: =UPPER(INDEX(tabber!$P$335:$P$358,BJ38)) -> SLOWAKEI | AZ38: =INDEX(tabber!$E$335:$M$358,BJ38,4)&" : "&INDEX(tabber!$E$335:$M$358,BJ38,5) -> 0 : 0 | BB38: =INDEX(tabber!$E$335:$M$358,BJ38,6) -> 0 | BD38: =INDEX(tabber!$E$335:$M$358,BJ38,3) -> 0 | BE38: =INDEX(tabber!$E$335:$M$358,BJ38,7) &" | " &INDEX(tabber!$E$335:$M$358,BJ38,8)&" | " &INDEX(tabber!$E$335:$M$358,BJ38,9) -> 0 | 0 | 0 | BJ38: 18 | BL38: =INDEX(tabber!$A$335:$A$358,BJ38) -> 1 | BM38: =MATCH(AT38,teams,0) -> 18 | BP38: 1 | BQ38: A | BR38: =SUM(IF($BQ$12:$BQ$35=BQ38,IF($BT$12:$BT$35>0,1,0)))=4 -> FALSE | BT38: =IF(LEN(BS38)=0,99,IF(BS38,BP38,99)) -> 99 | BW38: 38 | BX38: 38 | BY38: 0
B39: 28 | C39: B6 | D39: =MATCH(C39,daten!$D$49:$D$84,0) -> 28 | H39: =INDEX(daten!$L$106:$L$157,D39) -> 24.06. | K39: =INDEX(daten!$K$106:$K$157,D39) -> 21:00 | N39: =UPPER(INDEX(daten!$B$106:$B$141,D39)) -> DÜSSELDORF | T39: =INDEX(daten!$C$49:$C$100,D39) -> B | V39: =UPPER(INDEX(daten!$K$49:$K$84,D39))&" ("&INDEX(daten!$M$49:$M$84,D39)&")" -> ALBANIEN (ALB) | AB39: : | AC39: =UPPER(INDEX(daten!$L$49:$L$84,D39))&" ("&INDEX(daten!$N$49:$N$84,D39)&")" -> SPANIEN (ESP) | AJ39: : | AL39: =INDEX(daten!$AD$49:$AD$100,D39) ->  | AP39: =IF(tabber!M269,":","") ->  | AS39: =IF(SUM(BD37:BD40)=0,"",IF(BL39=BL38,"",BL39)) ->  | AT39: =UPPER(INDEX(tabber!$P$335:$P$358,BJ39)) -> RUMÄNIEN | AZ39: =INDEX(tabber!$E$335:$M$358,BJ39,4)&" : "&INDEX(tabber!$E$335:$M$358,BJ39,5) -> 0 : 0 | BB39: =INDEX(tabber!$E$335:$M$358,BJ39,6) -> 0 | BD39: =INDEX(tabber!$E$335:$M$358,BJ39,3) -> 0 | BE39: =INDEX(tabber!$E$335:$M$358,BJ39,7) &" | " &INDEX(tabber!$E$335:$M$358,BJ39,8)&" | " &INDEX(tabber!$E$335:$M$358,BJ39,9) -> 0 | 0 | 0 | BJ39: 19 | BL39: =INDEX(tabber!$A$335:$A$358,BJ39) -> 1 | BM39: =MATCH(AT39,teams,0) -> 19 | BP39: 2 | BQ39: B | BR39: =SUM(IF($BQ$12:$BQ$35=BQ39,IF($BT$12:$BT$35>0,1,0)))=4 -> FALSE | BT39: 99 | BW39: 39 | BX39: 39 | BY39: 0
B40: 29 | C40: D5 | D40: =MATCH(C40,daten!$D$49:$D$84,0) -> 29 | H40: =INDEX(daten!$L$106:$L$157,D40) -> 25.06. | K40: =INDEX(daten!$K$106:$K$157,D40) -> 18:00 | N40: =UPPER(INDEX(daten!$B$106:$B$141,D40)) -> BERLIN | T40: =INDEX(daten!$C$49:$C$100,D40) -> D | V40: =UPPER(INDEX(daten!$K$49:$K$84,D40))&" ("&INDEX(daten!$M$49:$M$84,D40)&")" -> NIEDERLANDE (NED) | AB40: : | AC40: =UPPER(INDEX(daten!$L$49:$L$84,D40))&" ("&INDEX(daten!$N$49:$N$84,D40)&")" -> ÖSTERREICH (AUT) | AJ40: : | AL40: =INDEX(daten!$AD$49:$AD$100,D40) ->  | AP40: =IF(tabber!M270,":","") ->  | AS40: =IF(SUM(BD37:BD40)=0,"",IF(BL40=BL39,"",BL40)) ->  | AT40: =UPPER(INDEX(tabber!$P$335:$P$358,BJ40)) -> UKRAINE | AZ40: =INDEX(tabber!$E$335:$M$358,BJ40,4)&" : "&INDEX(tabber!$E$335:$M$358,BJ40,5) -> 0 : 0 | BB40: =INDEX(tabber!$E$335:$M$358,BJ40,6) -> 0 | BD40: =INDEX(tabber!$E$335:$M$358,BJ40,3) -> 0 | BE40: =INDEX(tabber!$E$335:$M$358,BJ40,7) &" | " &INDEX(tabber!$E$335:$M$358,BJ40,8)&" | " &INDEX(tabber!$E$335:$M$358,BJ40,9) -> 0 | 0 | 0 | BJ40: 20 | BL40: =INDEX(tabber!$A$335:$A$358,BJ40) -> 1 | BM40: =MATCH(AT40,teams,0) -> 20 | BP40: 3 | BQ40: C | BR40: =SUM(IF($BQ$12:$BQ$35=BQ40,IF($BT$12:$BT$35>0,1,0)))=4 -> FALSE | BT40: 99 | BW40: 40 | BX40: 40 | BY40: 0
B41: 30 | C41: D6 | D41: =MATCH(C41,daten!$D$49:$D$84,0) -> 30 | H41: =INDEX(daten!$L$106:$L$157,D41) -> 25.06. | K41: =INDEX(daten!$K$106:$K$157,D41) -> 18:00 | N41: =UPPER(INDEX(daten!$B$106:$B$141,D41)) -> DORTMUND | T41: =INDEX(daten!$C$49:$C$100,D41) -> D | V41: =UPPER(INDEX(daten!$K$49:$K$84,D41))&" ("&INDEX(daten!$M$49:$M$84,D41)&")" -> FRANKREICH (FRA) | AB41: : | AC41: =UPPER(INDEX(daten!$L$49:$L$84,D41))&" ("&INDEX(daten!$N$49:$N$84,D41)&")" -> POLEN (POL) | AJ41: : | AL41: =INDEX(daten!$AD$49:$AD$100,D41) ->  | AP41: =IF(tabber!M271,":","") ->  | BP41: 4 | BQ41: D | BR41: =SUM(IF($BQ$12:$BQ$35=BQ41,IF($BT$12:$BT$35>0,1,0)))=4 -> FALSE | BT41: 99 | BV41: F | BW41: 41 | BX41: 41 | BY41: 0
B42: 31 | C42: C5 | D42: =MATCH(C42,daten!$D$49:$D$84,0) -> 31 | H42: =INDEX(daten!$L$106:$L$157,D42) -> 25.06. | K42: =INDEX(daten!$K$106:$K$157,D42) -> 21:00 | N42: =UPPER(INDEX(daten!$B$106:$B$141,D42)) -> KÖLN | T42: =INDEX(daten!$C$49:$C$100,D42) -> C | V42: =UPPER(INDEX(daten!$K$49:$K$84,D42))&" ("&INDEX(daten!$M$49:$M$84,D42)&")" -> ENGLAND (ENG) | AB42: : | AC42: =UPPER(INDEX(daten!$L$49:$L$84,D42))&" ("&INDEX(daten!$N$49:$N$84,D42)&")" -> SLOWENIEN (SLO) | AJ42: : | AL42: =INDEX(daten!$AD$49:$AD$100,D42) ->  | AP42: =IF(tabber!M272,":","") ->  | AR42: F | AZ42: Tore | BB42: Diff. | BD42: P | BE42: S | U | N | BP42: 5 | BQ42: E | BR42: =SUM(IF($BQ$12:$BQ$35=BQ42,IF($BT$12:$BT$35>0,1,0)))=4 -> FALSE | BT42: 99 | BV42: F | BW42: 42 | BX42: 42 | BY42: 0
B43: 32 | C43: C6 | D43: =MATCH(C43,daten!$D$49:$D$84,0) -> 32 | H43: =INDEX(daten!$L$106:$L$157,D43) -> 25.06. | K43: =INDEX(daten!$K$106:$K$157,D43) -> 21:00 | N43: =UPPER(INDEX(daten!$B$106:$B$141,D43)) -> MÜNCHEN | T43: =INDEX(daten!$C$49:$C$100,D43) -> C | V43: =UPPER(INDEX(daten!$K$49:$K$84,D43))&" ("&INDEX(daten!$M$49:$M$84,D43)&")" -> DÄNEMARK (DEN) | AB43: : | AC43: =UPPER(INDEX(daten!$L$49:$L$84,D43))&" ("&INDEX(daten!$N$49:$N$84,D43)&")" -> SERBIEN (SRB) | AJ43: : | AL43: =INDEX(daten!$AD$49:$AD$100,D43) ->  | AP43: =IF(tabber!M273,":","") ->  | AS43: =IF(SUM(BD43:BD46)=0,"",IF(BL43=BL42,"",BL43)) ->  | AT43: =UPPER(INDEX(tabber!$P$335:$P$358,BJ43)) -> TÜRKEI | AZ43: =INDEX(tabber!$E$335:$M$358,BJ43,4)&" : "&INDEX(tabber!$E$335:$M$358,BJ43,5) -> 0 : 0 | BB43: =INDEX(tabber!$E$335:$M$358,BJ43,6) -> 0 | BD43: =INDEX(tabber!$E$335:$M$358,BJ43,3) -> 0 | BE43: =INDEX(tabber!$E$335:$M$358,BJ43,7) &" | " &INDEX(tabber!$E$335:$M$358,BJ43,8)&" | " &INDEX(tabber!$E$335:$M$358,BJ43,9) -> 0 | 0 | 0 | BJ43: 21 | BL43: =INDEX(tabber!$A$335:$A$358,BJ43) -> 1 | BM43: =MATCH(AT43,teams,0) -> 21 | BP43: 6 | BQ43: F | BR43: =SUM(IF($BQ$12:$BQ$35=BQ43,IF($BT$12:$BT$35>0,1,0)))=4 -> FALSE | BT43: 99 | BW43: 43 | BX43: 43 | BY43: 0
B44: 33 | C44: E5 | D44: =MATCH(C44,daten!$D$49:$D$84,0) -> 33 | H44: =INDEX(daten!$L$106:$L$157,D44) -> 26.06. | K44: =INDEX(daten!$K$106:$K$157,D44) -> 18:00 | N44: =UPPER(INDEX(daten!$B$106:$B$141,D44)) -> FRANKFURT | T44: =INDEX(daten!$C$49:$C$100,D44) -> E | V44: =UPPER(INDEX(daten!$K$49:$K$84,D44))&" ("&INDEX(daten!$M$49:$M$84,D44)&")" -> SLOWAKEI (SVK) | AB44: : | AC44: =UPPER(INDEX(daten!$L$49:$L$84,D44))&" ("&INDEX(daten!$N$49:$N$84,D44)&")" -> RUMÄNIEN (ROM) | AJ44: : | AL44: =INDEX(daten!$AD$49:$AD$100,D44) ->  | AP44: =IF(tabber!M274,":","") ->  | AS44: =IF(SUM(BD43:BD46)=0,"",IF(BL44=BL43,"",BL44)) ->  | AT44: =UPPER(INDEX(tabber!$P$335:$P$358,BJ44)) -> GEORGIEN | AZ44: =INDEX(tabber!$E$335:$M$358,BJ44,4)&" : "&INDEX(tabber!$E$335:$M$358,BJ44,5) -> 0 : 0 | BB44: =INDEX(tabber!$E$335:$M$358,BJ44,6) -> 0 | BD44: =INDEX(tabber!$E$335:$M$358,BJ44,3) -> 0 | BE44: =INDEX(tabber!$E$335:$M$358,BJ44,7) &" | " &INDEX(tabber!$E$335:$M$358,BJ44,8)&" | " &INDEX(tabber!$E$335:$M$358,BJ44,9) -> 0 | 0 | 0 | BJ44: 22 | BL44: =INDEX(tabber!$A$335:$A$358,BJ44) -> 1 | BM44: =MATCH(AT44,teams,0) -> 22 | BP44: 7 | BQ44: G | BR44: =SUM(IF($BQ$12:$BQ$35=BQ44,IF($BT$12:$BT$35>0,1,0)))=4 -> FALSE | BT44: 99 | BW44: 44 | BX44: 44 | BY44: 0
B45: 34 | C45: E6 | D45: =MATCH(C45,daten!$D$49:$D$84,0) -> 34 | H45: =INDEX(daten!$L$106:$L$157,D45) -> 26.06. | K45: =INDEX(daten!$K$106:$K$157,D45) -> 18:00 | N45: =UPPER(INDEX(daten!$B$106:$B$141,D45)) -> STUTTGART | T45: =INDEX(daten!$C$49:$C$100,D45) -> E | V45: =UPPER(INDEX(daten!$K$49:$K$84,D45))&" ("&INDEX(daten!$M$49:$M$84,D45)&")" -> UKRAINE (UKR) | AB45: : | AC45: =UPPER(INDEX(daten!$L$49:$L$84,D45))&" ("&INDEX(daten!$N$49:$N$84,D45)&")" -> BELGIEN (BEL) | AJ45: : | AL45: =INDEX(daten!$AD$49:$AD$100,D45) ->  | AP45: =IF(tabber!M275,":","") ->  | AS45: =IF(SUM(BD43:BD46)=0,"",IF(BL45=BL44,"",BL45)) ->  | AT45: =UPPER(INDEX(tabber!$P$335:$P$358,BJ45)) -> PORTUGAL | AZ45: =INDEX(tabber!$E$335:$M$358,BJ45,4)&" : "&INDEX(tabber!$E$335:$M$358,BJ45,5) -> 0 : 0 | BB45: =INDEX(tabber!$E$335:$M$358,BJ45,6) -> 0 | BD45: =INDEX(tabber!$E$335:$M$358,BJ45,3) -> 0 | BE45: =INDEX(tabber!$E$335:$M$358,BJ45,7) &" | " &INDEX(tabber!$E$335:$M$358,BJ45,8)&" | " &INDEX(tabber!$E$335:$M$358,BJ45,9) -> 0 | 0 | 0 | BJ45: 23 | BL45: =INDEX(tabber!$A$335:$A$358,BJ45) -> 1 | BM45: =MATCH(AT45,teams,0) -> 23 | BP45: 8 | BQ45: H | BR45: =SUM(IF($BQ$12:$BQ$35=BQ45,IF($BT$12:$BT$35>0,1,0)))=4 -> FALSE | BT45: 99 | BW45: 45 | BX45: 45 | BY45: 0
B46: 35 | C46: F5 | D46: =MATCH(C46,daten!$D$49:$D$84,0) -> 35 | H46: =INDEX(daten!$L$106:$L$157,D46) -> 26.06. | K46: =INDEX(daten!$K$106:$K$157,D46) -> 21:00 | N46: =UPPER(INDEX(daten!$B$106:$B$141,D46)) -> GELSENKIRCHEN | T46: =INDEX(daten!$C$49:$C$100,D46) -> F | V46: =UPPER(INDEX(daten!$K$49:$K$84,D46))&" ("&INDEX(daten!$M$49:$M$84,D46)&")" -> GEORGIEN (GEO) | AB46: : | AC46: =UPPER(INDEX(daten!$L$49:$L$84,D46))&" ("&INDEX(daten!$N$49:$N$84,D46)&")" -> PORTUGAL (POR) | AJ46: : | AL46: =INDEX(daten!$AD$49:$AD$100,D46) ->  | AP46: =IF(tabber!M276,":","") ->  | AS46: =IF(SUM(BD43:BD46)=0,"",IF(BL46=BL45,"",BL46)) ->  | AT46: =UPPER(INDEX(tabber!$P$335:$P$358,BJ46)) -> TSCHECHIEN | AZ46: =INDEX(tabber!$E$335:$M$358,BJ46,4)&" : "&INDEX(tabber!$E$335:$M$358,BJ46,5) -> 0 : 0 | BB46: =INDEX(tabber!$E$335:$M$358,BJ46,6) -> 0 | BD46: =INDEX(tabber!$E$335:$M$358,BJ46,3) -> 0 | BE46: =INDEX(tabber!$E$335:$M$358,BJ46,7) &" | " &INDEX(tabber!$E$335:$M$358,BJ46,8)&" | " &INDEX(tabber!$E$335:$M$358,BJ46,9) -> 0 | 0 | 0 | BJ46: 24 | BL46: =INDEX(tabber!$A$335:$A$358,BJ46) -> 1 | BM46: =MATCH(AT46,teams,0) -> 24 | BW46: 46 | BX46: 46 | BY46: 0
B47: 36 | C47: F6 | D47: =MATCH(C47,daten!$D$49:$D$84,0) -> 36 | H47: =INDEX(daten!$L$106:$L$157,D47) -> 26.06. | K47: =INDEX(daten!$K$106:$K$157,D47) -> 21:00 | N47: =UPPER(INDEX(daten!$B$106:$B$141,D47)) -> HAMBURG | T47: =INDEX(daten!$C$49:$C$100,D47) -> F | V47: =UPPER(INDEX(daten!$K$49:$K$84,D47))&" ("&INDEX(daten!$M$49:$M$84,D47)&")" -> TSCHECHIEN (CZE) | AB47: : | AC47: =UPPER(INDEX(daten!$L$49:$L$84,D47))&" ("&INDEX(daten!$N$49:$N$84,D47)&")" -> TÜRKEI (TUR) | AJ47: : | AL47: =INDEX(daten!$AD$49:$AD$100,D47) ->  | AP47: =IF(tabber!M277,":","") -> 
H49: =IF(LEN(AO35)>0,BR49,"") ->  | BR49: EMS GR: Ein Elfmeterschießen entscheidet über die Platzierung, wenn Teams, die am 3. Spieltag aufeinander treffen, gegeneinander Remis spielen, nach diesem Spiel punkt- und torgleich sind und kein weiteres Team der Gruppe die gleiche Punktzahl aufweist
H51: KO-Runde | M51: Ergebnis nach der regulären Spielzeit | X51: Ergebnis DER Verlängerung | AG51: Ergebnis DES Elfmeterschießens | BI51: ?
I52: =INDEX(daten!$B$106:$B$157,36+M59) -> Köln | O52: =INDEX(daten!$B$106:$B$157,36+N59) -> Dortmund | V52: =INDEX(daten!$B$106:$B$157,36+Z59) -> Frankfurt | AB52: =INDEX(daten!$B$106:$B$157,36+AA59) -> Düsseldorf | AI52: =INDEX(daten!$B$106:$B$157,36+AM59) -> München | AO52: =INDEX(daten!$B$106:$B$157,36+AN59) -> Leipzig | AV52: =INDEX(daten!$B$106:$B$157,36+AZ59) -> Gelsenkirchen | BB52: =INDEX(daten!$B$106:$B$157,36+BA59) -> Berlin | BR52: GR Manuell BR54:BR76 für Import in Formulare
H53: =INDEX(daten!$O$106:$O$157,36+M59) -> So. 30.06., 21:00 | M53: AF | S53: =INDEX(daten!$O$106:$O$157,36+N59) -> Sa. 29.06., 21:00 | U53: =INDEX(daten!$O$106:$O$157,36+Z59) -> Mo. 01.07., 21:00 | Z53: AF | AF53: =INDEX(daten!$O$106:$O$157,36+AA59) -> Mo. 01.07., 18:00 | AH53: =INDEX(daten!$O$106:$O$157,36+AM59) -> Di. 02.07., 18:00 | AM53: AF | AS53: =INDEX(daten!$O$106:$O$157,36+AN59) -> Di. 02.07., 21:00 | AU53: =INDEX(daten!$O$106:$O$157,36+AZ59) -> So. 30.06., 18:00 | AZ53: AF | BF53: =INDEX(daten!$O$106:$O$157,36+BA59) -> Sa. 29.06., 18:00 | BR53: =tabber!V335 -> 
I54: =INDEX(tabber!$S$395:$S$402,1) -> 1. B : ADEF | O54: =INDEX(tabber!$S$395:$S$402,2) -> 1. A : 2. C | V54: =INDEX(tabber!$S$395:$S$402,3) -> 1. F : ABC | AB54: =INDEX(tabber!$S$395:$S$402,4) -> 2. D : 2. E | AI54: =INDEX(tabber!$S$395:$S$402,5) -> 1. E : ABCD | AO54: =INDEX(tabber!$S$395:$S$402,6) -> 1. D : 2. F | AV54: =INDEX(tabber!$S$395:$S$402,7) -> 1. C : DEF | BB54: =INDEX(tabber!$S$395:$S$402,8) -> 2. A : 2. B | BR54: =tabber!V336 -> 
BR55: =tabber!V337 -> 
BR56: =tabber!V338 -> 
I57: =INDEX(daten!$AD$49:$AD$100,M59+36) ->  | O57: =INDEX(daten!$AD$49:$AD$100,N59+36) ->  | V57: =INDEX(daten!$AD$49:$AD$100,Z59+36) ->  | AB57: =INDEX(daten!$AD$49:$AD$100,AA59+36) ->  | AI57: =INDEX(daten!$AD$49:$AD$100,AM59+36) ->  | AO57: =INDEX(daten!$AD$49:$AD$100,AN59+36) ->  | AV57: =INDEX(daten!$AD$49:$AD$100,AZ59+36) ->  | BB57: =INDEX(daten!$AD$49:$AD$100,BA59+36) ->  | BR57: =tabber!V339 -> 
BR58: =tabber!V340 -> 
M59: 4 | N59: 2 | Z59: 6 | AA59: 5 | AM59: 7 | AN59: 8 | AZ59: 3 | BA59: 1 | BR59: =tabber!V341 -> 
BR60: =tabber!V342 -> 
H61: =INDEX(daten!$N$106:$N$157,44+H68) -> Fr., 05.07. - 18:00 | P61: =INDEX(daten!$B$106:$B$157,44+H68) -> Stuttgart | U61: =INDEX(daten!$N$106:$N$157,44+AF68) -> Fr., 05.07. - 21:00 | AC61: =INDEX(daten!$B$106:$B$157,44+AF68) -> Hamburg | AH61: =INDEX(daten!$N$106:$N$157,44+AH68) -> Sa., 06.07. - 21:00 | AP61: =INDEX(daten!$B$106:$B$157,44+AH68) -> Berlin | AU61: =INDEX(daten!$N$106:$N$157,44+BF68) -> Sa., 06.07. - 18:00 | BC61: =INDEX(daten!$B$106:$B$157,44+BF68) -> Düsseldorf | BR61: =tabber!V343 -> 
BR62: =tabber!V344 -> 
H63: =IF(INDEX($AL$108:$AL$122,1)=0,IF($D$7,"SIEGER AF "&M59,""),UPPER(INDEX(teams,INDEX($AL$108:$AL$122,1)))) -> SIEGER AF 4 | N63: =IF(INDEX($AL$108:$AL$122,2)=0,IF($D$7,"SIEGER AF "&N59,""),UPPER(INDEX(teams,INDEX($AL$108:$AL$122,2)))) -> SIEGER AF 2 | U63: =IF(INDEX($AL$108:$AL$122,3)=0,IF($D$7,"SIEGER AF "&Z59,""),UPPER(INDEX(teams,INDEX($AL$108:$AL$122,3)))) -> SIEGER AF 6 | AA63: =IF(INDEX($AL$108:$AL$122,4)=0,IF($D$7,"SIEGER AF "&AA59,""),UPPER(INDEX(teams,INDEX($AL$108:$AL$122,4)))) -> SIEGER AF 5 | AH63: =IF(INDEX($AL$108:$AL$122,5)=0,IF($D$7,"SIEGER AF "&AM59,""),UPPER(INDEX(teams,INDEX($AL$108:$AL$122,5)))) -> SIEGER AF 7 | AN63: =IF(INDEX($AL$108:$AL$122,6)=0,IF($D$7,"SIEGER AF "&AN59,""),UPPER(INDEX(teams,INDEX($AL$108:$AL$122,6)))) -> SIEGER AF 8 | AU63: =IF(INDEX($AL$108:$AL$122,7)=0,IF($D$7,"SIEGER AF "&AZ59,""),UPPER(INDEX(teams,INDEX($AL$108:$AL$122,7)))) -> SIEGER AF 3 | BA63: =IF(INDEX($AL$108:$AL$122,8)=0,IF($D$7,"SIEGER AF "&BA59,""),UPPER(INDEX(teams,INDEX($AL$108:$AL$122,8)))) -> SIEGER AF 1 | BR63: =tabber!V345 -> 
BR64: =tabber!V346 -> 
BR65: =tabber!V347 -> 
L66: =INDEX(daten!$AD$49:$AD$100,H68+44) ->  | S66: VF | Y66: =INDEX(daten!$AD$49:$AD$100,AF68+44) ->  | AL66: =INDEX(daten!$AD$49:$AD$100,AH68+44) ->  | AS66: VF | AY66: =INDEX(daten!$AD$49:$AD$100,BF68+44) ->  | BR66: =tabber!V348 -> 
BR67: =tabber!V349 -> 
H68: 1 | AF68: 2 | AH68: 4 | BF68: 3 | BR68: =tabber!V350 -> 
BR69: =tabber!V351 -> 
J70: =INDEX(daten!$N$106:$N$157,49) -> Di., 09.07. - 21:00 | Q70: =INDEX(daten!$B$106:$B$157,49) -> München | AJ70: =INDEX(daten!$N$106:$N$157,50) -> Mi., 10.07. - 21:00 | AQ70: =INDEX(daten!$B$106:$B$157,50) -> Dortmund | BR70: =tabber!V352 -> 
BR71: =tabber!V353 -> 
J72: =IF(INDEX($AL$108:$AL$122,9)=0,IF($D$7,"SIEGER VF "&H68,""),UPPER(INDEX(teams,INDEX($AL$108:$AL$122,9)))) -> SIEGER VF 1 | W72: =IF(INDEX($AL$108:$AL$122,10)=0,IF($D$7,"SIEGER VF "&AF68,""),UPPER(INDEX(teams,INDEX($AL$108:$AL$122,10)))) -> SIEGER VF 2 | AJ72: =IF(INDEX($AL$108:$AL$122,11)=0,IF($D$7,"SIEGER VF "&AH68,""),UPPER(INDEX(teams,INDEX($AL$108:$AL$122,11)))) -> SIEGER VF 4 | AW72: =IF(INDEX($AL$108:$AL$122,12)=0,IF($D$7,"SIEGER VF "&BF68,""),UPPER(INDEX(teams,INDEX($AL$108:$AL$122,12)))) -> SIEGER VF 3 | BR72: =tabber!V354 -> 
BR73: =tabber!V355 -> 
BR74: =tabber!V356 -> 
S75: =INDEX(daten!$AD$49:$AD$100,49) ->  | AE75: HALBFINALE | AS75: =INDEX(daten!$AD$49:$AD$100,50) ->  | BR75: =tabber!V357 -> 
BR76: =tabber!V358 -> 
I77: 1 | BE77: 2
AE80: FINALE
S81: =IF(INDEX($AL$108:$AL$122,13)=0,IF($D$7,"SIEGER HF 1",""),UPPER(INDEX(teams,INDEX($AL$108:$AL$122,13)))) -> SIEGER HF 1 | AK81: =IF(INDEX($AL$108:$AL$122,14)=0,IF($D$7,"SIEGER HF 2",""),UPPER(INDEX(teams,INDEX($AL$108:$AL$122,14)))) -> SIEGER HF 2
I83: =INDEX(daten!$B$106:$B$157,51) -> Berlin | AY83: =INDEX(daten!$N$106:$N$157,51) -> So., 14.07. - 21:00
AF84: =INDEX(daten!$AD$49:$AD$100,51) -> 
BT105: Flagen AF von links nach rechts | BX105: Flagge AF
H106: Lidx | I106: Editierte Erg | M106: Sieger | P106: Korrigierte Erg | X106: Ko-Spiel # | AC106: Erlaubt | AZ106: Erg | BE106: Zeilen/Spalten Chronol | BT106: Zeile=54 | BV106: Team 1 oder 2 | BW106: Teams | BX106: sichtbar in Spalte 0=unsichtbar | BY106: bisher | BZ106: Test | CA106: =SUM(BZ107:BZ130) -> 0
W107: TXT | X107: # | Y107: Zuord | AA107: Chrono | AB107: Rd | AC107: VL | AD107: EMS | AF107: Sieger | AI107: Paarung | AL107: Sieger | AO107: Verlierer | AR107: Chrono | AU107: # | AV107: Chrono# | AY107: Chrono# | AZ107: lidx | BF107: Z | BG107: Sp | BH107: OfsX | BI107: Nachfolgende P | BL107: Spalten AF von links nach rechts und nachfolgende Paarung | BT107: T1 | BU107: T2 | BV107: =SUMIF($BT$108:$BU$115,"="&BX107,$BT$117:$BU$124) -> 0 | BW107: 1 | BX107: =SUMIF($AI$108:$AJ$115,"="&BW107,$BT$108:$BU$115) -> 0 | BY107: 0 | BZ107: =IF(BY107=BX107,0,1) -> 0
H108: AF1 | J108: =IF(COUNT(J56:K56)=2,J56,"") ->  | K108: =IF(COUNT(J56:K56)=2,K56,"") ->  | M108: =IF(COUNT(J108:K108)<>2,"x",J108-K108) -> x | O108: 90 | Q108: =J108 ->  | R108: =K108 ->  | W108: ="AF "&AA108 -> AF 4 | X108: 1 | AA108: =tabber!E395 -> 4 | AB108: 2 | AC108: =IF(M108=0,1,0) -> 0 | AD108: =IF(M109=0,1,0) -> 0 | AF108: =$M$110 -> x | AI108: =tabber!U395 -> 0 | AJ108: =tabber!V395 -> 0 | AL108: =IF(AF108="x",0,IF(AF108=0,0,IF(AF108>0,AI108,AJ108))) -> 0 | AO108: =IF(AF108="x",0,IF(AF108=0,0,IF(AF108>0,AJ108,AI108))) -> 0 | AR108: =AA108 -> 4 | AU108: 1 | AV108: =AA108 -> 4 | AY108: 1 | AZ108: =MATCH(AY108,$AV$108:$AV$122,0) -> 8 | BE108: AF 1 | BF108: 56 | BG108: =INDEX($BM$108:$BM$115,MATCH(BE108,$W$108:$W$115,0)) -> 55 | BH108: 0 | BI108: =INDEX($BN$108:$BN$115,MATCH(BE108,$W$108:$W$115,0)) -> 48 | BL108: 1 | BM108: 10 | BN108: 45 | BT108: 9 | BU108: 12 | BV108: 0 | BW108: 2 | BX108: 0 | BY108: 0 | BZ108: 0
J109: =IF(COUNT(J58:K58)=2,J58,"") ->  | K109: =IF(COUNT(J58:K58)=2,K58,"") ->  | M109: =IF(M108<>0,M108,IF(COUNT(J109:K109)<>2,"x",J109-K109)) -> x | O109: VL | Q109: =IF(M108=0,J109,"") ->  | R109: =IF(M108=0,K109,"") ->  | W109: AF 2 | X109: 2 | AA109: =tabber!E396 -> 2 | AB109: 2 | AC109: =IF(M112=0,1,0) -> 0 | AD109: =IF(M113=0,1,0) -> 0 | AF109: =$M$114 -> x | AI109: =tabber!U396 -> 0 | AJ109: =tabber!V396 -> 0 | AL109: 0 | AO109: 0 | AR109: 2 | AU109: 2 | AV109: 2 | AY109: 2 | AZ109: 2 | BE109: AF 2 | BF109: 56 | BG109: 16 | BH109: 0 | BI109: 45 | BL109: 2 | BM109: 16 | BN109: 45 | BT109: 15 | BU109: 18 | BV109: 0 | BW109: 3 | BX109: 0 | BY109: 0 | BZ109: 0
J110: =IF(COUNT(J59:K59)=2,J59,"") ->  | K110: =IF(COUNT(J59:K59)=2,K59,"") ->  | M110: =IF(M109<>0,M109,IF(COUNT(J110:K110)<>2,"x",J110-K110)) -> x | O110: EM | Q110: =IF(M109<>0,"",J110) ->  | R110: =IF(M109<>0,"",K110) ->  | W110: AF 6 | X110: 3 | AA110: =tabber!E397 -> 6 | AB110: 2 | AC110: =IF(M116=0,1,0) -> 0 | AD110: =IF(M117=0,1,0) -> 0 | AF110: =$M$118 -> x | AI110: =tabber!U397 -> 0 | AJ110: =tabber!V397 -> 0 | AL110: 0 | AO110: 0 | AR110: 6 | AU110: 3 | AV110: 6 | AY110: 3 | AZ110: 7 | BE110: AF 3 | BF110: 56 | BG110: 49 | BH110: 0 | BI110: 48 | BL110: 3 | BM110: 23 | BN110: 46 | BT110: 22 | BU110: 25 | BV110: 0 | BW110: 4 | BX110: 0 | BY110: 0 | BZ110: 0
W111: AF 5 | X111: 4 | AA111: =tabber!E398 -> 5 | AB111: 2 | AC111: =IF(M120=0,1,0) -> 0 | AD111: =IF(M121=0,1,0) -> 0 | AF111: =$M$122 -> x | AI111: =tabber!U398 -> 0 | AJ111: =tabber!V398 -> 0 | AL111: 0 | AO111: 0 | AR111: 5 | AU111: 4 | AV111: 5 | AY111: 4 | AZ111: 1 | BE111: AF 4 | BF111: 56 | BG111: 10 | BH111: 0 | BI111: 45 | BL111: 4 | BM111: 29 | BN111: 46 | BT111: 28 | BU111: 31 | BV111: 0 | BW111: 5 | BX111: 0 | BY111: 0 | BZ111: 0
H112: AF2 | J112: =IF(COUNT(P56:Q56)=2,P56,"") ->  | K112: =IF(COUNT(P56:Q56)=2,Q56,"") ->  | M112: =IF(COUNT(J112:K112)<>2,"x",J112-K112) -> x | O112: 90 | Q112: =J112 ->  | R112: =K112 ->  | W112: AF 7 | X112: 5 | AA112: =tabber!E399 -> 7 | AB112: 2 | AC112: =IF(M124=0,1,0) -> 0 | AD112: =IF(M125=0,1,0) -> 0 | AF112: =$M$126 -> x | AI112: =tabber!U399 -> 0 | AJ112: =tabber!V399 -> 0 | AL112: 0 | AO112: 0 | AR112: 7 | AU112: 5 | AV112: 7 | AY112: 5 | AZ112: 4 | BE112: AF 5 | BF112: 56 | BG112: 29 | BH112: 0 | BI112: 46 | BL112: 5 | BM112: 36 | BN112: 47 | BT112: 35 | BU112: 38 | BV112: 0 | BW112: 6 | BX112: 0 | BY112: 0 | BZ112: 0
J113: =IF(COUNT(P58:Q58)=2,P58,"") ->  | K113: =IF(COUNT(P58:Q58)=2,Q58,"") ->  | M113: =IF(M112<>0,M112,IF(COUNT(J113:K113)<>2,"x",J113-K113)) -> x | O113: VL | Q113: =IF(M112=0,J113,"") ->  | R113: =IF(M112=0,K113,"") ->  | W113: AF 8 | X113: 6 | AA113: =tabber!E400 -> 8 | AB113: 2 | AC113: =IF(M128=0,1,0) -> 0 | AD113: =IF(M129=0,1,0) -> 0 | AF113: =$M$130 -> x | AI113: =tabber!U400 -> 0 | AJ113: =tabber!V400 -> 0 | AL113: 0 | AO113: 0 | AR113: 8 | AU113: 6 | AV113: 8 | AY113: 6 | AZ113: 3 | BE113: AF 6 | BF113: 56 | BG113: 23 | BH113: 0 | BI113: 46 | BL113: 6 | BM113: 42 | BN113: 47 | BT113: 41 | BU113: 44 | BV113: 0 | BW113: 7 | BX113: 0 | BY113: 0 | BZ113: 0
J114: =IF(COUNT(P59:Q59)=2,P59,"") ->  | K114: =IF(COUNT(P59:Q59)=2,Q59,"") ->  | M114: =IF(M113<>0,M113,IF(COUNT(J114:K114)<>2,"x",J114-K114)) -> x | O114: EM | Q114: =IF(M113<>0,"",J114) ->  | R114: =IF(M113<>0,"",K114) ->  | W114: AF 3 | X114: 7 | AA114: =tabber!E401 -> 3 | AB114: 2 | AC114: =IF(M132=0,1,0) -> 0 | AD114: =IF(M133=0,1,0) -> 0 | AF114: =$M$134 -> x | AI114: =tabber!U401 -> 0 | AJ114: =tabber!V401 -> 0 | AL114: 0 | AO114: 0 | AR114: 3 | AU114: 7 | AV114: 3 | AY114: 7 | AZ114: 5 | BE114: AF 7 | BF114: 56 | BG114: 36 | BH114: 0 | BI114: 47 | BL114: 7 | BM114: 49 | BN114: 48 | BT114: 48 | BU114: 51 | BV114: 0 | BW114: 8 | BX114: 0 | BY114: 0 | BZ114: 0
W115: AF 1 | X115: 8 | AA115: =tabber!E402 -> 1 | AB115: 2 | AC115: =IF(M136=0,1,0) -> 0 | AD115: =IF(M137=0,1,0) -> 0 | AF115: =$M$138 -> x | AI115: =tabber!U402 -> 0 | AJ115: =tabber!V402 -> 0 | AL115: 0 | AO115: 0 | AR115: 1 | AU115: 8 | AV115: 1 | AY115: 8 | AZ115: 6 | BE115: AF 8 | BF115: 56 | BG115: 42 | BH115: 0 | BI115: 47 | BL115: 8 | BM115: 55 | BN115: 48 | BT115: 54 | BU115: 57 | BV115: 0 | BW115: 9 | BX115: 0 | BY115: 0 | BZ115: 0
H116: AF3 | J116: =IF(COUNT(W56:X56)=2,W56,"") ->  | K116: =IF(COUNT(W56:X56)=2,X56,"") ->  | M116: =IF(COUNT(J116:K116)<>2,"x",J116-K116) -> x | O116: 90 | Q116: =J116 ->  | R116: =K116 ->  | W116: ="VF "&AR116 -> VF 1 | X116: 9 | Y116: 1 | Z116: 2 | AA116: =AR116+8 -> 9 | AB116: 3 | AC116: =IF(M140=0,1,0) -> 0 | AD116: =IF(M141=0,1,0) -> 0 | AF116: =$M$142 -> x | AI116: =INDEX($AL$108:$AL$115,Y116) -> 0 | AJ116: 0 | AL116: 0 | AO116: 0 | AR116: =H68 -> 1 | AU116: 9 | AV116: 9 | AY116: 9 | AZ116: 9 | BB116: =INDEX($AA$108:$AA$115,INDEX(Y$108:Y$122,$AZ116)) -> 4 | BC116: 2 | BE116: VF1 | BF116: 65 | BG116: 13 | BH116: 1 | BI116: 49 | BV116: 0 | BW116: 10 | BX116: 0 | BY116: 0 | BZ116: 0
J117: =IF(COUNT(W58:X58)=2,W58,"") ->  | K117: =IF(COUNT(W58:X58)=2,X58,"") ->  | M117: =IF(M116<>0,M116,IF(COUNT(J117:K117)<>2,"x",J117-K117)) -> x | O117: VL | Q117: =IF(M116=0,J117,"") ->  | R117: =IF(M116=0,K117,"") ->  | W117: ="VF "&AR117 -> VF 2 | X117: 10 | Y117: 3 | Z117: 4 | AA117: =AR117+8 -> 10 | AB117: 3 | AC117: =IF(M144=0,1,0) -> 0 | AD117: =IF(M145=0,1,0) -> 0 | AF117: =$M$146 -> x | AI117: 0 | AJ117: 0 | AL117: 0 | AO117: 0 | AR117: =AF68 -> 2 | AU117: 10 | AV117: 10 | AY117: 10 | AZ117: 10 | BB117: 6 | BC117: 5 | BE117: VF2 | BF117: 65 | BG117: 26 | BH117: 1 | BI117: 49 | BT117: 1 | BU117: 2 | BV117: 0 | BW117: 11 | BX117: 0 | BY117: 0 | BZ117: 0
J118: =IF(COUNT(W59:X59)=2,W59,"") ->  | K118: =IF(COUNT(W59:X59)=2,X59,"") ->  | M118: =IF(M117<>0,M117,IF(COUNT(J118:K118)<>2,"x",J118-K118)) -> x | O118: EM | Q118: =IF(M117<>0,"",J118) ->  | R118: =IF(M117<>0,"",K118) ->  | W118: ="VF "&AR118 -> VF 4 | X118: 11 | Y118: 5 | Z118: 6 | AA118: =AR118+8 -> 12 | AB118: 3 | AC118: =IF(M148=0,1,0) -> 0 | AD118: =IF(M149=0,1,0) -> 0 | AF118: =$M$150 -> x | AI118: 0 | AJ118: 0 | AL118: 0 | AO118: 0 | AR118: =AH68 -> 4 | AU118: 11 | AV118: 12 | AY118: 11 | AZ118: 12 | BB118: 3 | BC118: 1 | BE118: VF3 | BF118: 65 | BG118: 39 | BH118: 1 | BI118: 50 | BT118: 1 | BU118: 2 | BV118: 0 | BW118: 12 | BX118: 0 | BY118: 0 | BZ118: 0
W119: ="VF "&AR119 -> VF 3 | X119: 12 | Y119: 7 | Z119: 8 | AA119: =AR119+8 -> 11 | AB119: 3 | AC119: =IF(M152=0,1,0) -> 0 | AD119: =IF(M153=0,1,0) -> 0 | AF119: =$M$154 -> x | AI119: 0 | AJ119: 0 | AL119: 0 | AO119: 0 | AR119: =BF68 -> 3 | AU119: 12 | AV119: 11 | AY119: 12 | AZ119: 11 | BB119: 7 | BC119: 8 | BE119: VF4 | BF119: 65 | BG119: 52 | BH119: 1 | BI119: 50 | BT119: 1 | BU119: 2 | BV119: 0 | BW119: 13 | BX119: 0 | BY119: 0 | BZ119: 0
H120: AF4 | J120: =IF(COUNT(AC56:AD56)=2,AC56,"") ->  | K120: =IF(COUNT(AC56:AD56)=2,AD56,"") ->  | M120: =IF(COUNT(J120:K120)<>2,"x",J120-K120) -> x | O120: 90 | Q120: =J120 ->  | R120: =K120 ->  | W120: H1 | X120: 13 | Y120: 9 | Z120: 10 | AA120: 13 | AB120: 4 | AC120: =IF(M156=0,1,0) -> 0 | AD120: =IF(M157=0,1,0) -> 0 | AF120: =$M$158 -> x | AI120: =INDEX($AL$108:$AL$119,Y120) -> 0 | AJ120: =INDEX($AL$108:$AL$119,Z120) -> 0 | AL120: 0 | AO120: 0 | AR120: 1 | AU120: 13 | AV120: 13 | AY120: 13 | AZ120: 13 | BB120: =AR116 -> 1 | BC120: =AR117 -> 2 | BE120: HF1 | BF120: 74 | BG120: 19 | BH120: 1 | BT120: 1 | BU120: 2 | BV120: 0 | BW120: 14 | BX120: 0 | BY120: 0 | BZ120: 0
J121: =IF(COUNT(AC58:AD58)=2,AC58,"") ->  | K121: =IF(COUNT(AC58:AD58)=2,AD58,"") ->  | M121: =IF(M120<>0,M120,IF(COUNT(J121:K121)<>2,"x",J121-K121)) -> x | O121: VL | Q121: =IF(M120=0,J121,"") ->  | R121: =IF(M120=0,K121,"") ->  | W121: H2 | X121: 14 | Y121: 11 | Z121: 12 | AA121: 14 | AB121: 4 | AC121: =IF(M160=0,1,0) -> 0 | AD121: =IF(M161=0,1,0) -> 0 | AF121: =$M$162 -> x | AI121: =INDEX($AL$108:$AL$119,Y121) -> 0 | AJ121: =INDEX($AL$108:$AL$119,Z121) -> 0 | AL121: 0 | AO121: 0 | AR121: 2 | AU121: 14 | AV121: 14 | AY121: 14 | AZ121: 14 | BB121: =AR118 -> 4 | BC121: =AR119 -> 3 | BE121: HF2 | BF121: 74 | BG121: 45 | BH121: 1 | BT121: 1 | BU121: 2 | BV121: 0 | BW121: 15 | BX121: 0 | BY121: 0 | BZ121: 0
J122: =IF(COUNT(AC59:AD59)=2,AC59,"") ->  | K122: =IF(COUNT(AC59:AD59)=2,AD59,"") ->  | M122: =IF(M121<>0,M121,IF(COUNT(J122:K122)<>2,"x",J122-K122)) -> x | O122: EM | Q122: =IF(M121<>0,"",J122) ->  | R122: =IF(M121<>0,"",K122) ->  | W122: F | X122: 16 | Y122: 13 | Z122: 14 | AA122: 15 | AB122: 5 | AC122: =IF(M164=0,1,0) -> 0 | AD122: =IF(M165=0,1,0) -> 0 | AF122: =$M$166 -> x | AI122: =AL120 -> 0 | AJ122: =AL121 -> 0 | AL122: 0 | AO122: 0 | AR122: 1 | AU122: 15 | AV122: 15 | AY122: 15 | AZ122: 15 | BE122: F | BF122: 83 | BG122: 32 | BH122: 1 | BT122: 1 | BU122: 2 | BV122: 0 | BW122: 16 | BX122: 0 | BY122: 0 | BZ122: 0
BT123: 1 | BU123: 2 | BV123: 0 | BW123: 17 | BX123: 0 | BY123: 0 | BZ123: 0
H124: AF5 | J124: =IF(COUNT(AJ56:AK56)=2,AJ56,"") ->  | K124: =IF(COUNT(AJ56:AK56)=2,AK56,"") ->  | M124: =IF(COUNT(J124:K124)<>2,"x",J124-K124) -> x | O124: 90 | Q124: =J124 ->  | R124: =K124 ->  | BT124: 1 | BU124: 2 | BV124: 0 | BW124: 18 | BX124: 0 | BY124: 0 | BZ124: 0
J125: =IF(COUNT(AJ58:AK58)=2,AJ58,"") ->  | K125: =IF(COUNT(AJ58:AK58)=2,AK58,"") ->  | M125: =IF(M124<>0,M124,IF(COUNT(J125:K125)<>2,"x",J125-K125)) -> x | O125: VL | Q125: =IF(M124=0,J125,"") ->  | R125: =IF(M124=0,K125,"") ->  | BV125: 0 | BW125: 19 | BX125: 0 | BY125: 0 | BZ125: 0
J126: =IF(COUNT(AJ59:AK59)=2,AJ59,"") ->  | K126: =IF(COUNT(AJ59:AK59)=2,AK59,"") ->  | M126: =IF(M125<>0,M125,IF(COUNT(J126:K126)<>2,"x",J126-K126)) -> x | O126: EM | Q126: =IF(M125<>0,"",J126) ->  | R126: =IF(M125<>0,"",K126) ->  | X126: Flaggen | AB126: =SUM(AC128:AC141) -> 0 | AC126: =AB126+BZ10+CA106 -> 0 | AG126: Positionen | BV126: 0 | BW126: 20 | BX126: 0 | BY126: 0 | BZ126: 0
Z127: akt | AA127: bisher | AC127: Test | AG127: vonSp | AH127: bissp | AI127: Zeile | AJ127: offsetY | AK127: Width | BV127: 0 | BW127: 21 | BX127: 0 | BY127: 0 | BZ127: 0
H128: AF6 | J128: =IF(COUNT(AP56:AQ56)=2,AP56,"") ->  | K128: =IF(COUNT(AP56:AQ56)=2,AQ56,"") ->  | M128: =IF(COUNT(J128:K128)<>2,"x",J128-K128) -> x | O128: 90 | Q128: =J128 ->  | R128: =K128 ->  | W128: 1 | X128: flag1 | Z128: =INDEX($AI$116:$AI$122,W128) -> 0 | AA128: 0 | AC128: =IF(Z128=AA128,0,1) -> 0 | AG128: 8 | AH128: 14 | AI128: 65 | AJ128: 0 | AK128: 30 | BV128: 0 | BW128: 22 | BX128: 0 | BY128: 0 | BZ128: 0
J129: =IF(COUNT(AP58:AQ58)=2,AP58,"") ->  | K129: =IF(COUNT(AP58:AQ58)=2,AQ58,"") ->  | M129: =IF(M128<>0,M128,IF(COUNT(J129:K129)<>2,"x",J129-K129)) -> x | O129: VL | Q129: =IF(M128=0,J129,"") ->  | R129: =IF(M128=0,K129,"") ->  | W129: 1 | X129: flag2 | Z129: =INDEX($AJ$116:$AJ$122,W129) -> 0 | AA129: 0 | AC129: 0 | AG129: 14 | AH129: 20 | AI129: 65 | AJ129: 0 | AK129: 30 | BV129: 0 | BW129: 23 | BX129: 0 | BY129: 0 | BZ129: 0
J130: =IF(COUNT(AP59:AQ59)=2,AP59,"") ->  | K130: =IF(COUNT(AP59:AQ59)=2,AQ59,"") ->  | M130: =IF(M129<>0,M129,IF(COUNT(J130:K130)<>2,"x",J130-K130)) -> x | O130: EM | Q130: =IF(M129<>0,"",J130) ->  | R130: =IF(M129<>0,"",K130) ->  | W130: 2 | X130: flag3 | Z130: =INDEX($AI$116:$AI$122,W130) -> 0 | AA130: 0 | AC130: 0 | AG130: 21 | AH130: 27 | AI130: 65 | AJ130: 0 | AK130: 30 | BV130: 0 | BW130: 24 | BX130: 0 | BY130: 0 | BZ130: 0
W131: 2 | X131: flag4 | Z131: =INDEX($AJ$116:$AJ$122,W131) -> 0 | AA131: 0 | AC131: 0 | AG131: 27 | AH131: 33 | AI131: 65 | AJ131: 0 | AK131: 30
H132: AF7 | J132: =IF(COUNT(AW56:AX56)=2,AW56,"") ->  | K132: =IF(COUNT(AW56:AX56)=2,AX56,"") ->  | M132: =IF(COUNT(J132:K132)<>2,"x",J132-K132) -> x | O132: 90 | Q132: =J132 ->  | R132: =K132 ->  | W132: 3 | X132: flag5 | Z132: =INDEX($AI$116:$AI$122,W132) -> 0 | AA132: 0 | AC132: 0 | AG132: 34 | AH132: 40 | AI132: 65 | AJ132: 0 | AK132: 30
J133: =IF(COUNT(AW58:AX58)=2,AW58,"") ->  | K133: =IF(COUNT(AW58:AX58)=2,AX58,"") ->  | M133: =IF(M132<>0,M132,IF(COUNT(J133:K133)<>2,"x",J133-K133)) -> x | O133: VL | Q133: =IF(M132=0,J133,"") ->  | R133: =IF(M132=0,K133,"") ->  | W133: 3 | X133: flag6 | Z133: =INDEX($AJ$116:$AJ$122,W133) -> 0 | AA133: 0 | AC133: 0 | AG133: 40 | AH133: 46 | AI133: 65 | AJ133: 0 | AK133: 30
J134: =IF(COUNT(AW59:AX59)=2,AW59,"") ->  | K134: =IF(COUNT(AW59:AX59)=2,AX59,"") ->  | M134: =IF(M133<>0,M133,IF(COUNT(J134:K134)<>2,"x",J134-K134)) -> x | O134: EM | Q134: =IF(M133<>0,"",J134) ->  | R134: =IF(M133<>0,"",K134) ->  | W134: 4 | X134: flag7 | Z134: =INDEX($AI$116:$AI$122,W134) -> 0 | AA134: 0 | AC134: 0 | AG134: 47 | AH134: 53 | AI134: 65 | AJ134: 0 | AK134: 30
W135: 4 | X135: flag8 | Z135: =INDEX($AJ$116:$AJ$122,W135) -> 0 | AA135: 0 | AC135: 0 | AG135: 53 | AH135: 59 | AI135: 65 | AJ135: 0 | AK135: 30
H136: AF8 | J136: =IF(COUNT(BC56:BD56)=2,BC56,"") ->  | K136: =IF(COUNT(BC56:BD56)=2,BD56,"") ->  | M136: =IF(COUNT(J136:K136)<>2,"x",J136-K136) -> x | O136: 90 | Q136: =J136 ->  | R136: =K136 ->  | W136: 5 | X136: flag9 | Z136: =INDEX($AI$116:$AI$122,W136) -> 0 | AA136: 0 | AC136: 0 | AG136: 10 | AH136: 18 | AI136: 74 | AJ136: 5 | AK136: 36
J137: =IF(COUNT(BC58:BD58)=2,BC58,"") ->  | K137: =IF(COUNT(BC58:BD58)=2,BD58,"") ->  | M137: =IF(M136<>0,M136,IF(COUNT(J137:K137)<>2,"x",J137-K137)) -> x | O137: VL | Q137: =IF(M136=0,J137,"") ->  | R137: =IF(M136=0,K137,"") ->  | W137: 5 | X137: flag10 | Z137: =INDEX($AJ$116:$AJ$122,W137) -> 0 | AA137: 0 | AC137: 0 | AG137: 23 | AH137: 31 | AI137: 74 | AJ137: 5 | AK137: 36
J138: =IF(COUNT(BC59:BD59)=2,BC59,"") ->  | K138: =IF(COUNT(BC59:BD59)=2,BD59,"") ->  | M138: =IF(M137<>0,M137,IF(COUNT(J138:K138)<>2,"x",J138-K138)) -> x | O138: EM | Q138: =IF(M137<>0,"",J138) ->  | R138: =IF(M137<>0,"",K138) ->  | W138: 6 | X138: flag11 | Z138: =INDEX($AI$116:$AI$122,W138) -> 0 | AA138: 0 | AC138: 0 | AG138: 36 | AH138: 44 | AI138: 74 | AJ138: 5 | AK138: 36
W139: 6 | X139: flag12 | Z139: =INDEX($AJ$116:$AJ$122,W139) -> 0 | AA139: 0 | AC139: 0 | AG139: 49 | AH139: 57 | AI139: 74 | AJ139: 5 | AK139: 36
H140: VF1 | J140: =IF(COUNT(M65:N65)=2,M65,"") ->  | K140: =IF(COUNT(M65:N65)=2,N65,"") ->  | M140: =IF(COUNT(J140:K140)<>2,"x",J140-K140) -> x | O140: 90 | Q140: =J140 ->  | R140: =K140 ->  | W140: 7 | X140: flag13 | Z140: =INDEX($AI$116:$AI$122,W140) -> 0 | AA140: 0 | AC140: 0 | AG140: 19 | AH140: 30 | AI140: 84 | AJ140: -6 | AK140: 54
J141: =IF(COUNT(M67:N67)=2,M67,"") ->  | K141: =IF(COUNT(M67:N67)=2,N67,"") ->  | M141: =IF(M140<>0,M140,IF(COUNT(J141:K141)<>2,"x",J141-K141)) -> x | O141: VL | Q141: =IF(M140=0,J141,"") ->  | R141: =IF(M140=0,K141,"") ->  | W141: 7 | X141: flag14 | Z141: =INDEX($AJ$116:$AJ$122,W141) -> 0 | AA141: 0 | AC141: 0 | AG141: 37 | AH141: 48 | AI141: 84 | AJ141: -6 | AK141: 54
J142: =IF(COUNT(M68:N68)=2,M68,"") ->  | K142: =IF(COUNT(M68:N68)=2,N68,"") ->  | M142: =IF(M141<>0,M141,IF(COUNT(J142:K142)<>2,"x",J142-K142)) -> x | O142: EM | Q142: =IF(M141<>0,"",J142) ->  | R142: =IF(M141<>0,"",K142) -> 
H144: VF2 | J144: =IF(COUNT(Z65:AA65)=2,Z65,"") ->  | K144: =IF(COUNT(Z65:AA65)=2,AA65,"") ->  | M144: =IF(COUNT(J144:K144)<>2,"x",J144-K144) -> x | O144: 90 | Q144: =J144 ->  | R144: =K144 -> 
J145: =IF(COUNT(Z67:AA67)=2,Z67,"") ->  | K145: =IF(COUNT(Z67:AA67)=2,AA67,"") ->  | M145: =IF(M144<>0,M144,IF(COUNT(J145:K145)<>2,"x",J145-K145)) -> x | O145: VL | Q145: =IF(M144=0,J145,"") ->  | R145: =IF(M144=0,K145,"") -> 
J146: =IF(COUNT(Z68:AA68)=2,Z68,"") ->  | K146: =IF(COUNT(Z68:AA68)=2,AA68,"") ->  | M146: =IF(M145<>0,M145,IF(COUNT(J146:K146)<>2,"x",J146-K146)) -> x | O146: EM | Q146: =IF(M145<>0,"",J146) ->  | R146: =IF(M145<>0,"",K146) -> 
H148: VF3 | J148: =IF(COUNT(AM65:AN65)=2,AM65,"") ->  | K148: =IF(COUNT(AM65:AN65)=2,AN65,"") ->  | M148: =IF(COUNT(J148:K148)<>2,"x",J148-K148) -> x | O148: 90 | Q148: =J148 ->  | R148: =K148 -> 
J149: =IF(COUNT(AM67:AN67)=2,AM67,"") ->  | K149: =IF(COUNT(AM67:AN67)=2,AN67,"") ->  | M149: =IF(M148<>0,M148,IF(COUNT(J149:K149)<>2,"x",J149-K149)) -> x | O149: VL | Q149: =IF(M148=0,J149,"") ->  | R149: =IF(M148=0,K149,"") -> 
J150: =IF(COUNT(AM68:AN68)=2,AM68,"") ->  | K150: =IF(COUNT(AM68:AN68)=2,AN68,"") ->  | M150: =IF(M149<>0,M149,IF(COUNT(J150:K150)<>2,"x",J150-K150)) -> x | O150: EM | Q150: =IF(M149<>0,"",J150) ->  | R150: =IF(M149<>0,"",K150) -> 
H152: VF4 | J152: =IF(COUNT(AZ65:BA65)=2,AZ65,"") ->  | K152: =IF(COUNT(AZ65:BA65)=2,BA65,"") ->  | M152: =IF(COUNT(J152:K152)<>2,"x",J152-K152) -> x | O152: 90 | Q152: =J152 ->  | R152: =K152 -> 
J153: =IF(COUNT(AZ67:BA67)=2,AZ67,"") ->  | K153: =IF(COUNT(AZ67:BA67)=2,BA67,"") ->  | M153: =IF(M152<>0,M152,IF(COUNT(J153:K153)<>2,"x",J153-K153)) -> x | O153: VL | Q153: =IF(M152=0,J153,"") ->  | R153: =IF(M152=0,K153,"") -> 
J154: =IF(COUNT(AZ68:BA68)=2,AZ68,"") ->  | K154: =IF(COUNT(AZ68:BA68)=2,BA68,"") ->  | M154: =IF(M153<>0,M153,IF(COUNT(J154:K154)<>2,"x",J154-K154)) -> x | O154: EM | Q154: =IF(M153<>0,"",J154) ->  | R154: =IF(M153<>0,"",K154) -> 
H156: HF1 | J156: =IF(COUNT(S74,U74)=2,S74,"") ->  | K156: =IF(COUNT(S74,U74)=2,U74,"") ->  | M156: =IF(COUNT(J156:K156)<>2,"x",J156-K156) -> x | O156: 90 | Q156: =J156 ->  | R156: =K156 -> 
J157: =IF(COUNT(S76,U76)=2,S76,"") ->  | K157: =IF(COUNT(S76,U76)=2,U76,"") ->  | M157: =IF(M156<>0,M156,IF(COUNT(J157:K157)<>2,"x",J157-K157)) -> x | O157: VL | Q157: =IF(M156=0,J157,"") ->  | R157: =IF(M156=0,K157,"") -> 
J158: =IF(COUNT(S77,U77)=2,S77,"") ->  | K158: =IF(COUNT(S77,U77)=2,U77,"") ->  | M158: =IF(M157<>0,M157,IF(COUNT(J158:K158)<>2,"x",J158-K158)) -> x | O158: EM | Q158: =IF(M157<>0,"",J158) ->  | R158: =IF(M157<>0,"",K158) -> 
H160: HF2 | J160: =IF(COUNT(AS74,AU74)=2,AS74,"") ->  | K160: =IF(COUNT(AS74,AU74)=2,AU74,"") ->  | M160: =IF(COUNT(J160:K160)<>2,"x",J160-K160) -> x | O160: 90 | Q160: =J160 ->  | R160: =K160 -> 
J161: =IF(COUNT(AS76,AU76)=2,AS76,"") ->  | K161: =IF(COUNT(AS76,AU76)=2,AU76,"") ->  | M161: =IF(M160<>0,M160,IF(COUNT(J161:K161)<>2,"x",J161-K161)) -> x | O161: VL | Q161: =IF(M160=0,J161,"") ->  | R161: =IF(M160=0,K161,"") -> 
J162: =IF(COUNT(AS77,AU77)=2,AS77,"") ->  | K162: =IF(COUNT(AS77,AU77)=2,AU77,"") ->  | M162: =IF(M161<>0,M161,IF(COUNT(J162:K162)<>2,"x",J162-K162)) -> x | O162: EM | Q162: =IF(M161<>0,"",J162) ->  | R162: =IF(M161<>0,"",K162) -> 
H164: F | J164: =IF(COUNT(AF83,AH83)=2,AF83,"") ->  | K164: =IF(COUNT(AF83,AH83)=2,AH83,"") ->  | M164: =IF(COUNT(J164:K164)<>2,"x",J164-K164) -> x | O164: 90 | Q164: =J164 ->  | R164: =K164 -> 
J165: =IF(COUNT(AF85,AH85)=2,AF85,"") ->  | K165: =IF(COUNT(AF85,AH85)=2,AH85,"") ->  | M165: =IF(M164<>0,M164,IF(COUNT(J165:K165)<>2,"x",J165-K165)) -> x | O165: VL | Q165: =IF(M164=0,J165,"") ->  | R165: =IF(M164=0,K165,"") -> 
J166: =IF(COUNT(AF86,AH86)=2,AF86,"") ->  | K166: =IF(COUNT(AF86,AH86)=2,AH86,"") ->  | M166: =IF(M165<>0,M165,IF(COUNT(J166:K166)<>2,"x",J166-K166)) -> x | O166: EM | Q166: =IF(M165<>0,"",J166) ->  | R166: =IF(M165<>0,"",K166) -> 
I211: RECHTSKLICK
H212: =D12 -> 1 | I212: =H212 -> 1 | J212: 1 | K212: 1 | L212: 1 | M212: 1 | N212: 1 | O212: 1 | P212: 1 | Q212: 1 | R212: 1 | S212: 1 | T212: 1 | U212: =-H212 -> -1 | V212: =U212 -> -1 | W212: -1 | X212: -1 | Y212: -1 | Z212: -1 | AA212: -1 | AB212: -1 | AC212: -1 | AD212: -1 | AE212: -1 | AF212: -1 | AG212: -1 | AH212: -1 | AI212: -1 | AJ212: -1 | AK212: -1 | AL212: -1 | AM212: -1 | AN212: -1
H213: 2 | I213: =H213 -> 2 | J213: 2 | K213: 2 | L213: 2 | M213: 2 | N213: 2 | O213: 2 | P213: 2 | Q213: 2 | R213: 2 | S213: 2 | T213: 2 | U213: -2 | V213: =U213 -> -2 | W213: -2 | X213: -2 | Y213: -2 | Z213: -2 | AA213: -2 | AB213: -2 | AC213: -2 | AD213: -2 | AE213: -2 | AF213: -2 | AG213: -2 | AH213: -2 | AI213: -2 | AJ213: -2 | AK213: -2 | AL213: -2 | AM213: -2 | AN213: -2
H214: 3 | I214: =H214 -> 3 | J214: 3 | K214: 3 | L214: 3 | M214: 3 | N214: 3 | O214: 3 | P214: 3 | Q214: 3 | R214: 3 | S214: 3 | T214: 3 | U214: -3 | V214: =U214 -> -3 | W214: -3 | X214: -3 | Y214: -3 | Z214: -3 | AA214: -3 | AB214: -3 | AC214: -3 | AD214: -3 | AE214: -3 | AF214: -3 | AG214: -3 | AH214: -3 | AI214: -3 | AJ214: -3 | AK214: -3 | AL214: -3 | AM214: -3 | AN214: -3
H215: 4 | I215: =H215 -> 4 | J215: 4 | K215: 4 | L215: 4 | M215: 4 | N215: 4 | O215: 4 | P215: 4 | Q215: 4 | R215: 4 | S215: 4 | T215: 4 | U215: -4 | V215: =U215 -> -4 | W215: -4 | X215: -4 | Y215: -4 | Z215: -4 | AA215: -4 | AB215: -4 | AC215: -4 | AD215: -4 | AE215: -4 | AF215: -4 | AG215: -4 | AH215: -4 | AI215: -4 | AJ215: -4 | AK215: -4 | AL215: -4 | AM215: -4 | AN215: -4
H216: 5 | I216: =H216 -> 5 | J216: 5 | K216: 5 | L216: 5 | M216: 5 | N216: 5 | O216: 5 | P216: 5 | Q216: 5 | R216: 5 | S216: 5 | T216: 5 | U216: -5 | V216: =U216 -> -5 | W216: -5 | X216: -5 | Y216: -5 | Z216: -5 | AA216: -5 | AB216: -5 | AC216: -5 | AD216: -5 | AE216: -5 | AF216: -5 | AG216: -5 | AH216: -5 | AI216: -5 | AJ216: -5 | AK216: -5 | AL216: -5 | AM216: -5 | AN216: -5
H217: 6 | I217: =H217 -> 6 | J217: 6 | K217: 6 | L217: 6 | M217: 6 | N217: 6 | O217: 6 | P217: 6 | Q217: 6 | R217: 6 | S217: 6 | T217: 6 | U217: -6 | V217: =U217 -> -6 | W217: -6 | X217: -6 | Y217: -6 | Z217: -6 | AA217: -6 | AB217: -6 | AC217: -6 | AD217: -6 | AE217: -6 | AF217: -6 | AG217: -6 | AH217: -6 | AI217: -6 | AJ217: -6 | AK217: -6 | AL217: -6 | AM217: -6 | AN217: -6
H218: 7 | I218: =H218 -> 7 | J218: 7 | K218: 7 | L218: 7 | M218: 7 | N218: 7 | O218: 7 | P218: 7 | Q218: 7 | R218: 7 | S218: 7 | T218: 7 | U218: -7 | V218: =U218 -> -7 | W218: -7 | X218: -7 | Y218: -7 | Z218: -7 | AA218: -7 | AB218: -7 | AC218: -7 | AD218: -7 | AE218: -7 | AF218: -7 | AG218: -7 | AH218: -7 | AI218: -7 | AJ218: -7 | AK218: -7 | AL218: -7 | AM218: -7 | AN218: -7
H219: 8 | I219: =H219 -> 8 | J219: 8 | K219: 8 | L219: 8 | M219: 8 | N219: 8 | O219: 8 | P219: 8 | Q219: 8 | R219: 8 | S219: 8 | T219: 8 | U219: -8 | V219: =U219 -> -8 | W219: -8 | X219: -8 | Y219: -8 | Z219: -8 | AA219: -8 | AB219: -8 | AC219: -8 | AD219: -8 | AE219: -8 | AF219: -8 | AG219: -8 | AH219: -8 | AI219: -8 | AJ219: -8 | AK219: -8 | AL219: -8 | AM219: -8 | AN219: -8
H220: 9 | I220: =H220 -> 9 | J220: 9 | K220: 9 | L220: 9 | M220: 9 | N220: 9 | O220: 9 | P220: 9 | Q220: 9 | R220: 9 | S220: 9 | T220: 9 | U220: -9 | V220: =U220 -> -9 | W220: -9 | X220: -9 | Y220: -9 | Z220: -9 | AA220: -9 | AB220: -9 | AC220: -9 | AD220: -9 | AE220: -9 | AF220: -9 | AG220: -9 | AH220: -9 | AI220: -9 | AJ220: -9 | AK220: -9 | AL220: -9 | AM220: -9 | AN220: -9
H221: 10 | I221: =H221 -> 10 | J221: 10 | K221: 10 | L221: 10 | M221: 10 | N221: 10 | O221: 10 | P221: 10 | Q221: 10 | R221: 10 | S221: 10 | T221: 10 | U221: -10 | V221: =U221 -> -10 | W221: -10 | X221: -10 | Y221: -10 | Z221: -10 | AA221: -10 | AB221: -10 | AC221: -10 | AD221: -10 | AE221: -10 | AF221: -10 | AG221: -10 | AH221: -10 | AI221: -10 | AJ221: -10 | AK221: -10 | AL221: -10 | AM221: -10 | AN221: -10
H222: 11 | I222: =H222 -> 11 | J222: 11 | K222: 11 | L222: 11 | M222: 11 | N222: 11 | O222: 11 | P222: 11 | Q222: 11 | R222: 11 | S222: 11 | T222: 11 | U222: -11 | V222: =U222 -> -11 | W222: -11 | X222: -11 | Y222: -11 | Z222: -11 | AA222: -11 | AB222: -11 | AC222: -11 | AD222: -11 | AE222: -11 | AF222: -11 | AG222: -11 | AH222: -11 | AI222: -11 | AJ222: -11 | AK222: -11 | AL222: -11 | AM222: -11 | AN222: -11
H223: 12 | I223: =H223 -> 12 | J223: 12 | K223: 12 | L223: 12 | M223: 12 | N223: 12 | O223: 12 | P223: 12 | Q223: 12 | R223: 12 | S223: 12 | T223: 12 | U223: -12 | V223: =U223 -> -12 | W223: -12 | X223: -12 | Y223: -12 | Z223: -12 | AA223: -12 | AB223: -12 | AC223: -12 | AD223: -12 | AE223: -12 | AF223: -12 | AG223: -12 | AH223: -12 | AI223: -12 | AJ223: -12 | AK223: -12 | AL223: -12 | AM223: -12 | AN223: -12
H224: 13 | I224: =H224 -> 13 | J224: 13 | K224: 13 | L224: 13 | M224: 13 | N224: 13 | O224: 13 | P224: 13 | Q224: 13 | R224: 13 | S224: 13 | T224: 13 | U224: -13 | V224: =U224 -> -13 | W224: -13 | X224: -13 | Y224: -13 | Z224: -13 | AA224: -13 | AB224: -13 | AC224: -13 | AD224: -13 | AE224: -13 | AF224: -13 | AG224: -13 | AH224: -13 | AI224: -13 | AJ224: -13 | AK224: -13 | AL224: -13 | AM224: -13 | AN224: -13
H225: 14 | I225: =H225 -> 14 | J225: 14 | K225: 14 | L225: 14 | M225: 14 | N225: 14 | O225: 14 | P225: 14 | Q225: 14 | R225: 14 | S225: 14 | T225: 14 | U225: -14 | V225: =U225 -> -14 | W225: -14 | X225: -14 | Y225: -14 | Z225: -14 | AA225: -14 | AB225: -14 | AC225: -14 | AD225: -14 | AE225: -14 | AF225: -14 | AG225: -14 | AH225: -14 | AI225: -14 | AJ225: -14 | AK225: -14 | AL225: -14 | AM225: -14 | AN225: -14
H226: 15 | I226: =H226 -> 15 | J226: 15 | K226: 15 | L226: 15 | M226: 15 | N226: 15 | O226: 15 | P226: 15 | Q226: 15 | R226: 15 | S226: 15 | T226: 15 | U226: -15 | V226: =U226 -> -15 | W226: -15 | X226: -15 | Y226: -15 | Z226: -15 | AA226: -15 | AB226: -15 | AC226: -15 | AD226: -15 | AE226: -15 | AF226: -15 | AG226: -15 | AH226: -15 | AI226: -15 | AJ226: -15 | AK226: -15 | AL226: -15 | AM226: -15 | AN226: -15
H227: 16 | I227: =H227 -> 16 | J227: 16 | K227: 16 | L227: 16 | M227: 16 | N227: 16 | O227: 16 | P227: 16 | Q227: 16 | R227: 16 | S227: 16 | T227: 16 | U227: -16 | V227: =U227 -> -16 | W227: -16 | X227: -16 | Y227: -16 | Z227: -16 | AA227: -16 | AB227: -16 | AC227: -16 | AD227: -16 | AE227: -16 | AF227: -16 | AG227: -16 | AH227: -16 | AI227: -16 | AJ227: -16 | AK227: -16 | AL227: -16 | AM227: -16 | AN227: -16
H228: 17 | I228: =H228 -> 17 | J228: 17 | K228: 17 | L228: 17 | M228: 17 | N228: 17 | O228: 17 | P228: 17 | Q228: 17 | R228: 17 | S228: 17 | T228: 17 | U228: -17 | V228: =U228 -> -17 | W228: -17 | X228: -17 | Y228: -17 | Z228: -17 | AA228: -17 | AB228: -17 | AC228: -17 | AD228: -17 | AE228: -17 | AF228: -17 | AG228: -17 | AH228: -17 | AI228: -17 | AJ228: -17 | AK228: -17 | AL228: -17 | AM228: -17 | AN228: -17
H229: 18 | I229: =H229 -> 18 | J229: 18 | K229: 18 | L229: 18 | M229: 18 | N229: 18 | O229: 18 | P229: 18 | Q229: 18 | R229: 18 | S229: 18 | T229: 18 | U229: -18 | V229: =U229 -> -18 | W229: -18 | X229: -18 | Y229: -18 | Z229: -18 | AA229: -18 | AB229: -18 | AC229: -18 | AD229: -18 | AE229: -18 | AF229: -18 | AG229: -18 | AH229: -18 | AI229: -18 | AJ229: -18 | AK229: -18 | AL229: -18 | AM229: -18 | AN229: -18
H230: 19 | I230: =H230 -> 19 | J230: 19 | K230: 19 | L230: 19 | M230: 19 | N230: 19 | O230: 19 | P230: 19 | Q230: 19 | R230: 19 | S230: 19 | T230: 19 | U230: -19 | V230: =U230 -> -19 | W230: -19 | X230: -19 | Y230: -19 | Z230: -19 | AA230: -19 | AB230: -19 | AC230: -19 | AD230: -19 | AE230: -19 | AF230: -19 | AG230: -19 | AH230: -19 | AI230: -19 | AJ230: -19 | AK230: -19 | AL230: -19 | AM230: -19 | AN230: -19
H231: 20 | I231: =H231 -> 20 | J231: 20 | K231: 20 | L231: 20 | M231: 20 | N231: 20 | O231: 20 | P231: 20 | Q231: 20 | R231: 20 | S231: 20 | T231: 20 | U231: -20 | V231: =U231 -> -20 | W231: -20 | X231: -20 | Y231: -20 | Z231: -20 | AA231: -20 | AB231: -20 | AC231: -20 | AD231: -20 | AE231: -20 | AF231: -20 | AG231: -20 | AH231: -20 | AI231: -20 | AJ231: -20 | AK231: -20 | AL231: -20 | AM231: -20 | AN231: -20
H232: 21 | I232: =H232 -> 21 | J232: 21 | K232: 21 | L232: 21 | M232: 21 | N232: 21 | O232: 21 | P232: 21 | Q232: 21 | R232: 21 | S232: 21 | T232: 21 | U232: -21 | V232: =U232 -> -21 | W232: -21 | X232: -21 | Y232: -21 | Z232: -21 | AA232: -21 | AB232: -21 | AC232: -21 | AD232: -21 | AE232: -21 | AF232: -21 | AG232: -21 | AH232: -21 | AI232: -21 | AJ232: -21 | AK232: -21 | AL232: -21 | AM232: -21 | AN232: -21
H233: 22 | I233: =H233 -> 22 | J233: 22 | K233: 22 | L233: 22 | M233: 22 | N233: 22 | O233: 22 | P233: 22 | Q233: 22 | R233: 22 | S233: 22 | T233: 22 | U233: -22 | V233: =U233 -> -22 | W233: -22 | X233: -22 | Y233: -22 | Z233: -22 | AA233: -22 | AB233: -22 | AC233: -22 | AD233: -22 | AE233: -22 | AF233: -22 | AG233: -22 | AH233: -22 | AI233: -22 | AJ233: -22 | AK233: -22 | AL233: -22 | AM233: -22 | AN233: -22
H234: 23 | I234: =H234 -> 23 | J234: 23 | K234: 23 | L234: 23 | M234: 23 | N234: 23 | O234: 23 | P234: 23 | Q234: 23 | R234: 23 | S234: 23 | T234: 23 | U234: -23 | V234: =U234 -> -23 | W234: -23 | X234: -23 | Y234: -23 | Z234: -23 | AA234: -23 | AB234: -23 | AC234: -23 | AD234: -23 | AE234: -23 | AF234: -23 | AG234: -23 | AH234: -23 | AI234: -23 | AJ234: -23 | AK234: -23 | AL234: -23 | AM234: -23 | AN234: -23
H235: 24 | I235: =H235 -> 24 | J235: 24 | K235: 24 | L235: 24 | M235: 24 | N235: 24 | O235: 24 | P235: 24 | Q235: 24 | R235: 24 | S235: 24 | T235: 24 | U235: -24 | V235: =U235 -> -24 | W235: -24 | X235: -24 | Y235: -24 | Z235: -24 | AA235: -24 | AB235: -24 | AC235: -24 | AD235: -24 | AE235: -24 | AF235: -24 | AG235: -24 | AH235: -24 | AI235: -24 | AJ235: -24 | AK235: -24 | AL235: -24 | AM235: -24 | AN235: -24
H236: 25 | I236: =H236 -> 25 | J236: 25 | K236: 25 | L236: 25 | M236: 25 | N236: 25 | O236: 25 | P236: 25 | Q236: 25 | R236: 25 | S236: 25 | T236: 25 | U236: -25 | V236: =U236 -> -25 | W236: -25 | X236: -25 | Y236: -25 | Z236: -25 | AA236: -25 | AB236: -25 | AC236: -25 | AD236: -25 | AE236: -25 | AF236: -25 | AG236: -25 | AH236: -25 | AI236: -25 | AJ236: -25 | AK236: -25 | AL236: -25 | AM236: -25 | AN236: -25
H237: 26 | I237: =H237 -> 26 | J237: 26 | K237: 26 | L237: 26 | M237: 26 | N237: 26 | O237: 26 | P237: 26 | Q237: 26 | R237: 26 | S237: 26 | T237: 26 | U237: -26 | V237: =U237 -> -26 | W237: -26 | X237: -26 | Y237: -26 | Z237: -26 | AA237: -26 | AB237: -26 | AC237: -26 | AD237: -26 | AE237: -26 | AF237: -26 | AG237: -26 | AH237: -26 | AI237: -26 | AJ237: -26 | AK237: -26 | AL237: -26 | AM237: -26 | AN237: -26
H238: 27 | I238: =H238 -> 27 | J238: 27 | K238: 27 | L238: 27 | M238: 27 | N238: 27 | O238: 27 | P238: 27 | Q238: 27 | R238: 27 | S238: 27 | T238: 27 | U238: -27 | V238: =U238 -> -27 | W238: -27 | X238: -27 | Y238: -27 | Z238: -27 | AA238: -27 | AB238: -27 | AC238: -27 | AD238: -27 | AE238: -27 | AF238: -27 | AG238: -27 | AH238: -27 | AI238: -27 | AJ238: -27 | AK238: -27 | AL238: -27 | AM238: -27 | AN238: -27
H239: 28 | I239: =H239 -> 28 | J239: 28 | K239: 28 | L239: 28 | M239: 28 | N239: 28 | O239: 28 | P239: 28 | Q239: 28 | R239: 28 | S239: 28 | T239: 28 | U239: -28 | V239: =U239 -> -28 | W239: -28 | X239: -28 | Y239: -28 | Z239: -28 | AA239: -28 | AB239: -28 | AC239: -28 | AD239: -28 | AE239: -28 | AF239: -28 | AG239: -28 | AH239: -28 | AI239: -28 | AJ239: -28 | AK239: -28 | AL239: -28 | AM239: -28 | AN239: -28
H240: 29 | I240: =H240 -> 29 | J240: 29 | K240: 29 | L240: 29 | M240: 29 | N240: 29 | O240: 29 | P240: 29 | Q240: 29 | R240: 29 | S240: 29 | T240: 29 | U240: -29 | V240: =U240 -> -29 | W240: -29 | X240: -29 | Y240: -29 | Z240: -29 | AA240: -29 | AB240: -29 | AC240: -29 | AD240: -29 | AE240: -29 | AF240: -29 | AG240: -29 | AH240: -29 | AI240: -29 | AJ240: -29 | AK240: -29 | AL240: -29 | AM240: -29 | AN240: -29
H241: 30 | I241: =H241 -> 30 | J241: 30 | K241: 30 | L241: 30 | M241: 30 | N241: 30 | O241: 30 | P241: 30 | Q241: 30 | R241: 30 | S241: 30 | T241: 30 | U241: -30 | V241: =U241 -> -30 | W241: -30 | X241: -30 | Y241: -30 | Z241: -30 | AA241: -30 | AB241: -30 | AC241: -30 | AD241: -30 | AE241: -30 | AF241: -30 | AG241: -30 | AH241: -30 | AI241: -30 | AJ241: -30 | AK241: -30 | AL241: -30 | AM241: -30 | AN241: -30
H242: 31 | I242: =H242 -> 31 | J242: 31 | K242: 31 | L242: 31 | M242: 31 | N242: 31 | O242: 31 | P242: 31 | Q242: 31 | R242: 31 | S242: 31 | T242: 31 | U242: -31 | V242: =U242 -> -31 | W242: -31 | X242: -31 | Y242: -31 | Z242: -31 | AA242: -31 | AB242: -31 | AC242: -31 | AD242: -31 | AE242: -31 | AF242: -31 | AG242: -31 | AH242: -31 | AI242: -31 | AJ242: -31 | AK242: -31 | AL242: -31 | AM242: -31 | AN242: -31
H243: 32 | I243: =H243 -> 32 | J243: 32 | K243: 32 | L243: 32 | M243: 32 | N243: 32 | O243: 32 | P243: 32 | Q243: 32 | R243: 32 | S243: 32 | T243: 32 | U243: -32 | V243: =U243 -> -32 | W243: -32 | X243: -32 | Y243: -32 | Z243: -32 | AA243: -32 | AB243: -32 | AC243: -32 | AD243: -32 | AE243: -32 | AF243: -32 | AG243: -32 | AH243: -32 | AI243: -32 | AJ243: -32 | AK243: -32 | AL243: -32 | AM243: -32 | AN243: -32
H244: 33 | I244: =H244 -> 33 | J244: 33 | K244: 33 | L244: 33 | M244: 33 | N244: 33 | O244: 33 | P244: 33 | Q244: 33 | R244: 33 | S244: 33 | T244: 33 | U244: -33 | V244: =U244 -> -33 | W244: -33 | X244: -33 | Y244: -33 | Z244: -33 | AA244: -33 | AB244: -33 | AC244: -33 | AD244: -33 | AE244: -33 | AF244: -33 | AG244: -33 | AH244: -33 | AI244: -33 | AJ244: -33 | AK244: -33 | AL244: -33 | AM244: -33 | AN244: -33
H245: 34 | I245: =H245 -> 34 | J245: 34 | K245: 34 | L245: 34 | M245: 34 | N245: 34 | O245: 34 | P245: 34 | Q245: 34 | R245: 34 | S245: 34 | T245: 34 | U245: -34 | V245: =U245 -> -34 | W245: -34 | X245: -34 | Y245: -34 | Z245: -34 | AA245: -34 | AB245: -34 | AC245: -34 | AD245: -34 | AE245: -34 | AF245: -34 | AG245: -34 | AH245: -34 | AI245: -34 | AJ245: -34 | AK245: -34 | AL245: -34 | AM245: -34 | AN245: -34
H246: 35 | I246: =H246 -> 35 | J246: 35 | K246: 35 | L246: 35 | M246: 35 | N246: 35 | O246: 35 | P246: 35 | Q246: 35 | R246: 35 | S246: 35 | T246: 35 | U246: -35 | V246: =U246 -> -35 | W246: -35 | X246: -35 | Y246: -35 | Z246: -35 | AA246: -35 | AB246: -35 | AC246: -35 | AD246: -35 | AE246: -35 | AF246: -35 | AG246: -35 | AH246: -35 | AI246: -35 | AJ246: -35 | AK246: -35 | AL246: -35 | AM246: -35 | AN246: -35
H247: 36 | I247: =H247 -> 36 | J247: 36 | K247: 36 | L247: 36 | M247: 36 | N247: 36 | O247: 36 | P247: 36 | Q247: 36 | R247: 36 | S247: 36 | T247: 36 | U247: -36 | V247: =U247 -> -36 | W247: -36 | X247: -36 | Y247: -36 | Z247: -36 | AA247: -36 | AB247: -36 | AC247: -36 | AD247: -36 | AE247: -36 | AF247: -36 | AG247: -36 | AH247: -36 | AI247: -36 | AJ247: -36 | AK247: -36 | AL247: -36 | AM247: -36 | AN247: -36
H250: RECHTSKLICK KO | O250: >0 --> Spieldaten | U250: <0 Bilanz
H252: 1 | I252: 1 | J252: 1 | K252: 1 | L252: 1 | O252: 2 | P252: 2 | Q252: 2 | R252: 2 | S252: 2 | U252: 3 | V252: 3 | W252: 3 | X252: 3 | Y252: 3 | AB252: 4 | AC252: 4 | AD252: 4 | AE252: 4 | AF252: 4 | AH252: 5 | AI252: 5 | AJ252: 5 | AK252: 5 | AL252: 5 | AO252: 6 | AP252: 6 | AQ252: 6 | AR252: 6 | AS252: 6 | AU252: 7 | AV252: 7 | AW252: 7 | AX252: 7 | AY252: 7 | BB252: 8 | BC252: 8 | BD252: 8 | BE252: 8 | BF252: 8
H253: 1 | I253: -1 | J253: -1 | K253: -1 | L253: -1 | O253: -2 | P253: -2 | Q253: -2 | R253: -2 | S253: 2 | U253: 3 | V253: -3 | W253: -3 | X253: -3 | Y253: -3 | AB253: -4 | AC253: -4 | AD253: -4 | AE253: -4 | AF253: 4 | AH253: 5 | AI253: -5 | AJ253: -5 | AK253: -5 | AL253: -5 | AO253: -6 | AP253: -6 | AQ253: -6 | AR253: -6 | AS253: 6 | AU253: 7 | AV253: -7 | AW253: -7 | AX253: -7 | AY253: -7 | BB253: -8 | BC253: -8 | BD253: -8 | BE253: -8 | BF253: 8
H254: 1 | I254: -1 | J254: -1 | K254: -1 | L254: -1 | O254: -2 | P254: -2 | Q254: -2 | R254: -2 | S254: 2 | U254: 3 | V254: -3 | W254: -3 | X254: -3 | Y254: -3 | AB254: -4 | AC254: -4 | AD254: -4 | AE254: -4 | AF254: 4 | AH254: 5 | AI254: -5 | AJ254: -5 | AK254: -5 | AL254: -5 | AO254: -6 | AP254: -6 | AQ254: -6 | AR254: -6 | AS254: 6 | AU254: 7 | AV254: -7 | AW254: -7 | AX254: -7 | AY254: -7 | BB254: -8 | BC254: -8 | BD254: -8 | BE254: -8 | BF254: 8
H255: 1 | I255: -1 | J255: -1 | K255: -1 | L255: -1 | O255: -2 | P255: -2 | Q255: -2 | R255: -2 | S255: 2 | U255: 3 | V255: -3 | W255: -3 | X255: -3 | Y255: -3 | AB255: -4 | AC255: -4 | AD255: -4 | AE255: -4 | AF255: 4 | AH255: 5 | AI255: -5 | AJ255: -5 | AK255: -5 | AL255: -5 | AO255: -6 | AP255: -6 | AQ255: -6 | AR255: -6 | AS255: 6 | AU255: 7 | AV255: -7 | AW255: -7 | AX255: -7 | AY255: -7 | BB255: -8 | BC255: -8 | BD255: -8 | BE255: -8 | BF255: 8
H256: 1 | I256: -1 | J256: -1 | K256: -1 | L256: -1 | O256: -2 | P256: -2 | Q256: -2 | R256: -2 | S256: 2 | U256: 3 | V256: -3 | W256: -3 | X256: -3 | Y256: -3 | AB256: -4 | AC256: -4 | AD256: -4 | AE256: -4 | AF256: 4 | AH256: 5 | AI256: -5 | AJ256: -5 | AK256: -5 | AL256: -5 | AO256: -6 | AP256: -6 | AQ256: -6 | AR256: -6 | AS256: 6 | AU256: 7 | AV256: -7 | AW256: -7 | AX256: -7 | AY256: -7 | BB256: -8 | BC256: -8 | BD256: -8 | BE256: -8 | BF256: 8
H257: 1 | I257: -1 | J257: -1 | K257: -1 | L257: -1 | O257: -2 | P257: -2 | Q257: -2 | R257: -2 | S257: 2 | U257: 3 | V257: -3 | W257: -3 | X257: -3 | Y257: -3 | AB257: -4 | AC257: -4 | AD257: -4 | AE257: -4 | AF257: 4 | AH257: 5 | AI257: -5 | AJ257: -5 | AK257: -5 | AL257: -5 | AO257: -6 | AP257: -6 | AQ257: -6 | AR257: -6 | AS257: 6 | AU257: 7 | AV257: -7 | AW257: -7 | AX257: -7 | AY257: -7 | BB257: -8 | BC257: -8 | BD257: -8 | BE257: -8 | BF257: 8
H258: 1 | I258: -1 | J258: -1 | K258: -1 | L258: -1 | O258: -2 | P258: -2 | Q258: -2 | R258: -2 | S258: 2 | U258: 3 | V258: -3 | W258: -3 | X258: -3 | Y258: -3 | AB258: -4 | AC258: -4 | AD258: -4 | AE258: -4 | AF258: 4 | AH258: 5 | AI258: -5 | AJ258: -5 | AK258: -5 | AL258: -5 | AO258: -6 | AP258: -6 | AQ258: -6 | AR258: -6 | AS258: 6 | AU258: 7 | AV258: -7 | AW258: -7 | AX258: -7 | AY258: -7 | BB258: -8 | BC258: -8 | BD258: -8 | BE258: -8 | BF258: 8
H259: 1 | I259: -1 | J259: -1 | K259: -1 | L259: -1 | O259: -2 | P259: -2 | Q259: -2 | R259: -2 | S259: 2 | U259: 3 | V259: -3 | W259: -3 | X259: -3 | Y259: -3 | AB259: -4 | AC259: -4 | AD259: -4 | AE259: -4 | AF259: 4 | AH259: 5 | AI259: -5 | AJ259: -5 | AK259: -5 | AL259: -5 | AO259: -6 | AP259: -6 | AQ259: -6 | AR259: -6 | AS259: 6 | AU259: 7 | AV259: -7 | AW259: -7 | AX259: -7 | AY259: -7 | BB259: -8 | BC259: -8 | BD259: -8 | BE259: -8 | BF259: 8
H260: 1 | I260: -1 | J260: -1 | K260: -1 | L260: -1 | O260: -2 | P260: -2 | Q260: -2 | R260: -2 | S260: 2 | U260: 3 | V260: -3 | W260: -3 | X260: -3 | Y260: -3 | AB260: -4 | AC260: -4 | AD260: -4 | AE260: -4 | AF260: 4 | AH260: 5 | AI260: -5 | AJ260: -5 | AK260: -5 | AL260: -5 | AO260: -6 | AP260: -6 | AQ260: -6 | AR260: -6 | AS260: 6 | AU260: 7 | AV260: -7 | AW260: -7 | AX260: -7 | AY260: -7 | BB260: -8 | BC260: -8 | BD260: -8 | BE260: -8 | BF260: 8
H261: 9 | I261: 9 | J261: 9 | K261: 9 | L261: 9 | M261: 9 | N261: 9 | O261: 9 | P261: 9 | Q261: 9 | R261: 9 | S261: 9 | U261: 10 | V261: 10 | W261: 10 | X261: 10 | Y261: 10 | Z261: 10 | AA261: 10 | AB261: 10 | AC261: 10 | AD261: 10 | AE261: 10 | AF261: 10 | AH261: 11 | AI261: 11 | AJ261: 11 | AK261: 11 | AL261: 11 | AM261: 11 | AN261: 11 | AO261: 11 | AP261: 11 | AQ261: 11 | AR261: 11 | AS261: 11 | AU261: 12 | AV261: 12 | AW261: 12 | AX261: 12 | AY261: 12 | AZ261: 12 | BA261: 12 | BB261: 12 | BC261: 12 | BD261: 12 | BE261: 12 | BF261: 12
H262: -9 | I262: -9 | J262: -9 | K262: -9 | L262: -9 | M262: -9 | N262: -9 | O262: -9 | P262: -9 | Q262: -9 | R262: -9 | S262: -9 | U262: -10 | V262: -10 | W262: -10 | X262: -10 | Y262: -10 | Z262: -10 | AA262: -10 | AB262: -10 | AC262: -10 | AD262: -10 | AE262: -10 | AF262: -10 | AH262: -11 | AI262: -11 | AJ262: -11 | AK262: -11 | AL262: -11 | AM262: -11 | AN262: -11 | AO262: -11 | AP262: -11 | AQ262: -11 | AR262: -11 | AS262: -11 | AU262: -12 | AV262: -12 | AW262: -12 | AX262: -12 | AY262: -12 | AZ262: -12 | BA262: -12 | BB262: -12 | BC262: -12 | BD262: -12 | BE262: -12 | BF262: -12
H263: =IF(INDEX($AI$108:$AI$122,ABS(H262))<=0,H264,INDEX($AI$108:$AI$122,ABS(H262))+1000) -> -9 | I263: =H263 -> -9 | J263: =I263 -> -9 | K263: =J263 -> -9 | L263: =K263 -> -9 | M263: =L263 -> -9 | N263: =IF(INDEX($AJ$108:$AJ$122,ABS(N262))<=0,N264,INDEX($AJ$108:$AJ$122,ABS(N262))+1000) -> -9 | O263: -9 | P263: -9 | Q263: -9 | R263: -9 | S263: -9 | U263: =IF(INDEX($AI$108:$AI$122,ABS(U262))<=0,U264,INDEX($AI$108:$AI$122,ABS(U262))+1000) -> -10 | V263: =U263 -> -10 | W263: =V263 -> -10 | X263: =W263 -> -10 | Y263: =X263 -> -10 | Z263: =Y263 -> -10 | AA263: =IF(INDEX($AJ$108:$AJ$122,ABS(AA262))<=0,AA264,INDEX($AJ$108:$AJ$122,ABS(AA262))+1000) -> -10 | AB263: -10 | AC263: -10 | AD263: -10 | AE263: -10 | AF263: -10 | AH263: =IF(INDEX($AI$108:$AI$122,ABS(AH262))<=0,AH264,INDEX($AI$108:$AI$122,ABS(AH262))+1000) -> -11 | AI263: =AH263 -> -11 | AJ263: =AI263 -> -11 | AK263: =AJ263 -> -11 | AL263: =AK263 -> -11 | AM263: =AL263 -> -11 | AN263: =IF(INDEX($AJ$108:$AJ$122,ABS(AN262))<=0,AN264,INDEX($AJ$108:$AJ$122,ABS(AN262))+1000) -> -11 | AO263: -11 | AP263: -11 | AQ263: -11 | AR263: -11 | AS263: -11 | AU263: =IF(INDEX($AI$108:$AI$122,ABS(AU262))<=0,AU264,INDEX($AI$108:$AI$122,ABS(AU262))+1000) -> -12 | AV263: =AU263 -> -12 | AW263: =AV263 -> -12 | AX263: =AW263 -> -12 | AY263: =AX263 -> -12 | AZ263: =AY263 -> -12 | BA263: =IF(INDEX($AJ$108:$AJ$122,ABS(BA262))<=0,BA264,INDEX($AJ$108:$AJ$122,ABS(BA262))+1000) -> -12 | BB263: -12 | BC263: -12 | BD263: -12 | BE263: -12 | BF263: -12
H264: -9 | I264: -9 | J264: -9 | K264: -9 | L264: -9 | M264: -9 | N264: -9 | O264: -9 | P264: -9 | Q264: -9 | R264: -9 | S264: -9 | U264: -10 | V264: -10 | W264: -10 | X264: -10 | Y264: -10 | Z264: -10 | AA264: -10 | AB264: -10 | AC264: -10 | AD264: -10 | AE264: -10 | AF264: -10 | AH264: -11 | AI264: -11 | AJ264: -11 | AK264: -11 | AL264: -11 | AM264: -11 | AN264: -11 | AO264: -11 | AP264: -11 | AQ264: -11 | AR264: -11 | AS264: -11 | AU264: -12 | AV264: -12 | AW264: -12 | AX264: -12 | AY264: -12 | AZ264: -12 | BA264: -12 | BB264: -12 | BC264: -12 | BD264: -12 | BE264: -12 | BF264: -12
H265: -9 | I265: -9 | J265: -9 | K265: -9 | L265: -9 | M265: -9 | N265: -9 | O265: -9 | P265: -9 | Q265: -9 | R265: -9 | S265: -9 | U265: -10 | V265: -10 | W265: -10 | X265: -10 | Y265: -10 | Z265: -10 | AA265: -10 | AB265: -10 | AC265: -10 | AD265: -10 | AE265: -10 | AF265: -10 | AH265: -11 | AI265: -11 | AJ265: -11 | AK265: -11 | AL265: -11 | AM265: -11 | AN265: -11 | AO265: -11 | AP265: -11 | AQ265: -11 | AR265: -11 | AS265: -11 | AU265: -12 | AV265: -12 | AW265: -12 | AX265: -12 | AY265: -12 | AZ265: -12 | BA265: -12 | BB265: -12 | BC265: -12 | BD265: -12 | BE265: -12 | BF265: -12
H266: -9 | I266: -9 | J266: -9 | K266: -9 | L266: -9 | M266: -9 | N266: -9 | O266: -9 | P266: -9 | Q266: -9 | R266: -9 | S266: -9 | U266: -10 | V266: -10 | W266: -10 | X266: -10 | Y266: -10 | Z266: -10 | AA266: -10 | AB266: -10 | AC266: -10 | AD266: -10 | AE266: -10 | AF266: -10 | AH266: -11 | AI266: -11 | AJ266: -11 | AK266: -11 | AL266: -11 | AM266: -11 | AN266: -11 | AO266: -11 | AP266: -11 | AQ266: -11 | AR266: -11 | AS266: -11 | AU266: -12 | AV266: -12 | AW266: -12 | AX266: -12 | AY266: -12 | AZ266: -12 | BA266: -12 | BB266: -12 | BC266: -12 | BD266: -12 | BE266: -12 | BF266: -12
H267: -9 | I267: -9 | J267: -9 | K267: -9 | L267: -9 | M267: -9 | N267: -9 | O267: -9 | P267: -9 | Q267: -9 | R267: -9 | S267: -9 | U267: -10 | V267: -10 | W267: -10 | X267: -10 | Y267: -10 | Z267: -10 | AA267: -10 | AB267: -10 | AC267: -10 | AD267: -10 | AE267: -10 | AF267: -10 | AH267: -11 | AI267: -11 | AJ267: -11 | AK267: -11 | AL267: -11 | AM267: -11 | AN267: -11 | AO267: -11 | AP267: -11 | AQ267: -11 | AR267: -11 | AS267: -11 | AU267: -12 | AV267: -12 | AW267: -12 | AX267: -12 | AY267: -12 | AZ267: -12 | BA267: -12 | BB267: -12 | BC267: -12 | BD267: -12 | BE267: -12 | BF267: -12
H268: -9 | I268: -9 | J268: -9 | K268: -9 | L268: -9 | M268: -9 | N268: -9 | O268: -9 | P268: -9 | Q268: -9 | R268: -9 | S268: -9 | U268: -10 | V268: -10 | W268: -10 | X268: -10 | Y268: -10 | Z268: -10 | AA268: -10 | AB268: -10 | AC268: -10 | AD268: -10 | AE268: -10 | AF268: -10 | AH268: -11 | AI268: -11 | AJ268: -11 | AK268: -11 | AL268: -11 | AM268: -11 | AN268: -11 | AO268: -11 | AP268: -11 | AQ268: -11 | AR268: -11 | AS268: -11 | AU268: -12 | AV268: -12 | AW268: -12 | AX268: -12 | AY268: -12 | AZ268: -12 | BA268: -12 | BB268: -12 | BC268: -12 | BD268: -12 | BE268: -12 | BF268: -12
H269: -9 | I269: -9 | J269: -9 | K269: -9 | L269: -9 | M269: -9 | N269: -9 | O269: -9 | P269: -9 | Q269: -9 | R269: -9 | S269: -9 | U269: -10 | V269: -10 | W269: -10 | X269: -10 | Y269: -10 | Z269: -10 | AA269: -10 | AB269: -10 | AC269: -10 | AD269: -10 | AE269: -10 | AF269: -10 | AH269: -11 | AI269: -11 | AJ269: -11 | AK269: -11 | AL269: -11 | AM269: -11 | AN269: -11 | AO269: -11 | AP269: -11 | AQ269: -11 | AR269: -11 | AS269: -11 | AU269: -12 | AV269: -12 | AW269: -12 | AX269: -12 | AY269: -12 | AZ269: -12 | BA269: -12 | BB269: -12 | BC269: -12 | BD269: -12 | BE269: -12 | BF269: -12
I270: 13 | J270: 13 | K270: 13 | L270: 13 | M270: 13 | N270: 13 | O270: 13 | P270: 13 | Q270: 13 | R270: 13 | S270: 13 | T270: 13 | U270: 13 | V270: 13 | W270: 13 | X270: 13 | Y270: 13 | Z270: 13 | AA270: 13 | AB270: 13 | AC270: 13 | AD270: 13 | AE270: 13 | AI270: 14 | AJ270: 14 | AK270: 14 | AL270: 14 | AM270: 14 | AN270: 14 | AO270: 14 | AP270: 14 | AQ270: 14 | AR270: 14 | AS270: 14 | AT270: 14 | AU270: 14 | AV270: 14 | AW270: 14 | AX270: 14 | AY270: 14 | AZ270: 14 | BA270: 14 | BB270: 14 | BC270: 14 | BD270: 14 | BE270: 14
I271: -13 | J271: -13 | K271: -13 | L271: -13 | M271: -13 | N271: -13 | O271: -13 | P271: -13 | Q271: -13 | R271: -13 | S271: -13 | T271: -13 | U271: -13 | V271: -13 | W271: -13 | X271: -13 | Y271: -13 | Z271: -13 | AA271: -13 | AB271: -13 | AC271: -13 | AD271: -13 | AE271: -13 | AI271: -14 | AJ271: -14 | AK271: -14 | AL271: -14 | AM271: -14 | AN271: -14 | AO271: -14 | AP271: -14 | AQ271: -14 | AR271: -14 | AS271: -14 | AT271: -14 | AU271: -14 | AV271: -14 | AW271: -14 | AX271: -14 | AY271: -14 | AZ271: -14 | BA271: -14 | BB271: -14 | BC271: -14 | BD271: -14 | BE271: -14
I272: -13 | J272: =IF(INDEX($AI$108:$AI$122,ABS(J275))<=0,J275,INDEX($AI$108:$AI$122,ABS(J275))+1000) -> -13 | K272: =J272 -> -13 | L272: -13 | M272: -13 | N272: -13 | O272: -13 | P272: -13 | Q272: -13 | R272: -13 | S272: -13 | U272: -13 | V272: =IF(INDEX($AJ$108:$AJ$122,ABS(V275))<=0,V275,INDEX($AJ$108:$AJ$122,ABS(V275))+1000) -> -13 | W272: =V272 -> -13 | X272: -13 | Y272: -13 | Z272: -13 | AA272: -13 | AB272: -13 | AC272: -13 | AD272: -13 | AE272: -13 | AI272: -14 | AJ272: =IF(INDEX($AI$108:$AI$122,ABS(AJ275))<=0,AJ275,INDEX($AI$108:$AI$122,ABS(AJ275))+1000) -> -14 | AK272: =AJ272 -> -14 | AL272: -14 | AM272: -14 | AN272: -14 | AO272: -14 | AP272: -14 | AQ272: -14 | AR272: -14 | AS272: -14 | AT272: -14 | AU272: -14 | AV272: -14 | AW272: =IF(INDEX($AJ$108:$AJ$122,ABS(AW275))<=0,AW275,INDEX($AJ$108:$AJ$122,ABS(AW275))+1000) -> -14 | AX272: =AW272 -> -14 | AY272: -14 | AZ272: -14 | BA272: -14 | BB272: -14 | BC272: -14 | BD272: -14 | BE272: -14
I273: -13 | J273: =J272 -> -13 | K273: -13 | L273: -13 | M273: -13 | N273: -13 | O273: -13 | P273: -13 | Q273: -13 | R273: -13 | S273: -13 | U273: -13 | V273: =V272 -> -13 | W273: -13 | X273: -13 | Y273: -13 | Z273: -13 | AA273: -13 | AB273: -13 | AC273: -13 | AD273: -13 | AE273: -13 | AI273: -14 | AJ273: =AJ272 -> -14 | AK273: -14 | AL273: -14 | AM273: -14 | AN273: -14 | AO273: -14 | AP273: -14 | AQ273: -14 | AR273: -14 | AS273: -14 | AT273: -14 | AU273: -14 | AV273: -14 | AW273: =AW272 -> -14 | AX273: -14 | AY273: -14 | AZ273: -14 | BA273: -14 | BB273: -14 | BC273: -14 | BD273: -14 | BE273: -14
I274: -13 | J274: -13 | K274: -13 | L274: -13 | M274: -13 | N274: -13 | O274: -13 | P274: -13 | Q274: -13 | R274: -13 | S274: -13 | T274: -13 | U274: -13 | V274: -13 | W274: -13 | X274: -13 | Y274: -13 | Z274: -13 | AA274: -13 | AB274: -13 | AC274: -13 | AD274: -13 | AE274: -13 | AI274: -14 | AJ274: -14 | AK274: -14 | AL274: -14 | AM274: -14 | AN274: -14 | AO274: -14 | AP274: -14 | AQ274: -14 | AR274: -14 | AS274: -14 | AT274: -14 | AU274: -14 | AV274: -14 | AW274: -14 | AX274: -14 | AY274: -14 | AZ274: -14 | BA274: -14 | BB274: -14 | BC274: -14 | BD274: -14 | BE274: -14
I275: -13 | J275: -13 | K275: -13 | L275: -13 | M275: -13 | N275: -13 | O275: -13 | P275: -13 | Q275: -13 | R275: -13 | S275: -13 | T275: -13 | U275: -13 | V275: -13 | W275: -13 | X275: -13 | Y275: -13 | Z275: -13 | AA275: -13 | AB275: -13 | AC275: -13 | AD275: -13 | AJ275: -14 | AK275: -14 | AL275: -14 | AM275: -14 | AN275: -14 | AO275: -14 | AP275: -14 | AQ275: -14 | AR275: -14 | AS275: -14 | AT275: -14 | AU275: -14 | AV275: -14 | AW275: -14 | AX275: -14 | AY275: -14 | AZ275: -14 | BA275: -14 | BB275: -14 | BC275: -14 | BD275: -14 | BE275: -14
I276: -13 | J276: -13 | K276: -13 | L276: -13 | M276: -13 | N276: -13 | O276: -13 | P276: -13 | Q276: -13 | R276: -13 | S276: -13 | T276: -13 | U276: -13 | V276: -13 | W276: -13 | X276: -13 | Y276: -13 | Z276: -13 | AA276: -13 | AB276: -13 | AC276: -13 | AD276: -13 | AE276: -13 | AI276: -14 | AJ276: -14 | AK276: -14 | AL276: -14 | AM276: -14 | AN276: -14 | AO276: -14 | AP276: -14 | AQ276: -14 | AR276: -14 | AS276: -14 | AT276: -14 | AU276: -14 | AV276: -14 | AW276: -14 | AX276: -14 | AY276: -14 | AZ276: -14 | BA276: -14 | BB276: -14 | BC276: -14 | BD276: -14 | BE276: -14
I277: -13 | J277: -13 | K277: -13 | L277: -13 | M277: -13 | N277: -13 | O277: -13 | P277: -13 | Q277: -13 | R277: -13 | S277: -13 | T277: -13 | U277: -13 | V277: -13 | W277: -13 | X277: -13 | Y277: -13 | Z277: -13 | AA277: -13 | AB277: -13 | AC277: -13 | AD277: -13 | AE277: -13 | AI277: -14 | AJ277: -14 | AK277: -14 | AL277: -14 | AM277: -14 | AN277: -14 | AO277: -14 | AP277: -14 | AQ277: -14 | AR277: -14 | AS277: -14 | AT277: -14 | AU277: -14 | AV277: -14 | AW277: -14 | AX277: -14 | AY277: -14 | AZ277: -14 | BA277: -14 | BB277: -14 | BC277: -14 | BD277: -14 | BE277: -14
I278: -13 | J278: -13 | K278: -13 | L278: -13 | M278: -13 | N278: -13 | O278: -13 | P278: -13 | Q278: -13 | R278: -13 | S278: -13 | T278: -13 | U278: -13 | V278: -13 | W278: -13 | X278: -13 | Y278: -13 | Z278: -13 | AA278: -13 | AB278: -13 | AC278: -13 | AD278: -13 | AE278: -13 | AI278: -14 | AJ278: -14 | AK278: -14 | AL278: -14 | AM278: -14 | AN278: -14 | AO278: -14 | AP278: -14 | AQ278: -14 | AR278: -14 | AS278: -14 | AT278: -14 | AU278: -14 | AV278: -14 | AW278: -14 | AX278: -14 | AY278: -14 | AZ278: -14 | BA278: -14 | BB278: -14 | BC278: -14 | BD278: -14 | BE278: -14
P280: -15 | Q280: -15 | R280: -15 | S280: -15 | T280: -15 | U280: -15 | V280: -15 | W280: -15 | X280: -15 | Y280: -15 | Z280: -15 | AA280: -15 | AB280: -15 | AC280: -15 | AD280: -15 | AE280: 15 | AF280: 15 | AG280: 15 | AH280: 15 | AI280: 15 | AJ280: -15 | AK280: -15 | AL280: -15 | AM280: -15 | AN280: -15 | AO280: -15 | AP280: -15 | AQ280: -15 | AR280: -15 | AS280: -15 | AT280: -15 | AU280: -15 | AV280: -15 | AW280: -15 | AX280: -15
P281: -15 | Q281: -15 | R281: -15 | S281: =IF(INDEX($AI$108:$AI$122,ABS(S284))<=0,S284,INDEX($AI$108:$AI$122,ABS(S284))+1000) -> -15 | T281: =S281 -> -15 | U281: -15 | V281: -15 | W281: -15 | X281: -15 | Y281: -15 | Z281: -15 | AA281: -15 | AB281: -15 | AC281: -15 | AD281: -15 | AE281: 151 | AF281: 15 | AG281: 15 | AH281: 15 | AI281: 15 | AJ281: -15 | AK281: =IF(INDEX($AJ$108:$AJ$122,ABS(AK284))<=0,AK284,INDEX($AJ$108:$AJ$122,ABS(AK284))+1000) -> -15 | AL281: =AK281 -> -15 | AM281: -15 | AN281: -15 | AO281: -15 | AP281: -15 | AQ281: -15 | AR281: -15 | AS281: -15 | AT281: -15 | AU281: -15 | AV281: -15 | AW281: -15 | AX281: -15
I282: 15 | J282: 15 | K282: 15 | L282: 15 | M282: 15 | N282: 15 | O282: 15 | P282: -15 | Q282: -15 | R282: -15 | S282: =S281 -> -15 | T282: =S282 -> -15 | U282: -15 | V282: -15 | W282: -15 | X282: -15 | Y282: -15 | Z282: -15 | AA282: -15 | AB282: -15 | AC282: -15 | AD282: -15 | AE282: -15 | AF282: -15 | AG282: -15 | AH282: -15 | AI282: -15 | AJ282: -15 | AK282: =AK281 -> -15 | AL282: =AK282 -> -15 | AM282: -15 | AN282: -15 | AO282: -15 | AP282: -15 | AQ282: -15 | AR282: -15 | AS282: -15 | AT282: -15 | AU282: -15 | AV282: -15 | AW282: -15 | AX282: -15 | AY282: 15 | AZ282: 15 | BA282: 15 | BB282: 15 | BC282: 15 | BD282: 15 | BE282: 15
I283: 15 | J283: 15 | K283: 15 | L283: 15 | M283: 15 | N283: 15 | O283: 15 | P283: -15 | Q283: -15 | R283: -15 | S283: -15 | T283: -15 | U283: -15 | V283: -15 | W283: -15 | X283: -15 | Y283: -15 | Z283: -15 | AA283: -15 | AB283: -15 | AC283: -15 | AD283: -15 | AE283: -15 | AF283: -15 | AG283: -15 | AH283: -15 | AI283: -15 | AJ283: -15 | AK283: -15 | AL283: -15 | AM283: -15 | AN283: -15 | AO283: -15 | AP283: -15 | AQ283: -15 | AR283: -15 | AS283: -15 | AT283: -15 | AU283: -15 | AV283: -15 | AW283: -15 | AX283: -15 | AY283: 15 | AZ283: 15 | BA283: 15 | BB283: 15 | BC283: 15 | BD283: 15 | BE283: 15
I284: 15 | J284: 15 | K284: 15 | L284: 15 | M284: 15 | N284: 15 | O284: 15 | P284: -15 | Q284: -15 | R284: -15 | S284: -15 | T284: -15 | U284: -15 | V284: -15 | W284: -15 | X284: -15 | Y284: -15 | Z284: -15 | AA284: -15 | AB284: -15 | AC284: -15 | AD284: -15 | AE284: -15 | AF284: -15 | AG284: -15 | AH284: -15 | AI284: -15 | AJ284: -15 | AK284: -15 | AL284: -15 | AM284: -15 | AN284: -15 | AO284: -15 | AP284: -15 | AQ284: -15 | AR284: -15 | AS284: -15 | AT284: -15 | AU284: -15 | AV284: -15 | AW284: -15 | AX284: -15 | AY284: 15 | AZ284: 15 | BA284: 15 | BB284: 15 | BC284: 15 | BD284: 15 | BE284: 15
I285: 15 | J285: 15 | K285: 15 | L285: 15 | M285: 15 | N285: 15 | O285: 15 | P285: -15 | Q285: -15 | R285: -15 | S285: -15 | T285: -15 | U285: -15 | V285: -15 | W285: -15 | X285: -15 | Y285: -15 | Z285: -15 | AA285: -15 | AB285: -15 | AC285: -15 | AD285: -15 | AE285: -15 | AF285: -15 | AG285: -15 | AH285: -15 | AI285: -15 | AJ285: -15 | AK285: -15 | AL285: -15 | AM285: -15 | AN285: -15 | AO285: -15 | AP285: -15 | AQ285: -15 | AR285: -15 | AS285: -15 | AT285: -15 | AU285: -15 | AV285: -15 | AW285: -15 | AX285: -15 | AY285: 15 | AZ285: 15 | BA285: 15 | BB285: 15 | BC285: 15 | BD285: 15 | BE285: 15
I286: 15 | J286: 15 | K286: 15 | L286: 15 | M286: 15 | N286: 15 | O286: 15 | P286: -15 | Q286: -15 | R286: -15 | S286: -15 | T286: -15 | U286: -15 | V286: -15 | W286: -15 | X286: -15 | Y286: -15 | Z286: -15 | AA286: -15 | AB286: -15 | AC286: -15 | AD286: -15 | AE286: -15 | AF286: -15 | AG286: -15 | AH286: -15 | AI286: -15 | AJ286: -15 | AK286: -15 | AL286: -15 | AM286: -15 | AN286: -15 | AO286: -15 | AP286: -15 | AQ286: -15 | AR286: -15 | AS286: -15 | AT286: -15 | AU286: -15 | AV286: -15 | AW286: -15 | AX286: -15 | AY286: 15 | AZ286: 15 | BA286: 15 | BB286: 15 | BC286: 15 | BD286: 15 | BE286: 15
... 1 more rows

Sheet TIPPSPIEL
A1: =anzmsp -> 0 | B1: AnzMSP | C1: 0 | I1: 1 | J1: STATISTIK WÄHLEN… | T1: 1 | W1: 2 | Z1: 3 | AC1: 4 | AF1: 5 | AI1: 6 | AL1: 7 | AO1: 8 | AR1: 9 | AU1: 10 | AX1: 11 | BA1: 12 | BD1: 13 | BG1: 14 | BJ1: 15
